Workbook

Sheet Veiledning
B1: Trondheim kommunes mal for klimagassregnskap i byggeprosjekter
B2: Versjon 2023-04-13. Utviklet av SINTEF AS.
B3: Dette dokumentet er ment for å estimere og dokumentere klimagassutslipp (greenhouse gases, GHG) i byggeprosjekter. Beregningene er basert på NS 3720, NS 3451, og TEK veileder for GHG regnskap (fortsatt under utarbeidelse av DiBK). Den inkluderer data fra EPD-Norge og PROfet (estimat av energibehov utviklet av SINTEF).
B5: Hvordan skal denne malen brukes?
B7: Prosedyre - trinn for trinn:
B8: 1. Fyll ut prosjektbeskrivelsen og velg opsjoner for klimagassberegning i "Projektbeskrivelse"-fanen. Velg hvilken fase som skal rapporteres.
B10: 2. Fyll inn malene for valgt prosjektfase. Velg produkter og prosesser fra rullegardinmenyen, eller skriv inn egne data. Skriv inn produktmengder.
B12: 3. Se resultater fra klimagassberegninger i "Resultater"-fanen (denne fanen kan ikke endres på)
B14: Fargekoder for celler:
B15: Obligatorisk inndata
B16: Valgfri inndata
B17: Ingen inndata (kan ikke endres)
B18: For mer detaljert beskrivelse av hvordan malen skal brukes, metodikk og valg av data, se brukerveiledningen i "Veileder for klimagassberegninger i bygg- og anleggsprosjekter i Trondheim kommune"

Sheet Prosjektbeskrivelse
B2: Beskrivelse av prosjekt og klimagassberegning
B4: Prosjektbeskrivelse | E4: Kommentar
B5: Prosjektnavn | C5: Fjell barnehage
B6: Prosjektadresse
B7: Prosjektnummer
B8: Dato (når malen er fylt ut) | C8: 2023-01-10
B9: Utført av (navn, etternavn) | C9: Kristin Navn
B10: Virksomhet | C10: Grønnbygg AS
B12: Prosjektfase | C12: Detaljprosjekt
B13: Byggeplass | C13: Fossilfri
B14: Beskrivelse av prosjektets mål
B16: Bygningskategori | C16: Barnehage
B17: Energieffektivitetsnivå | C17: Lite energieffektivt
B18: Levetid bygg [år] | C18: 50
B19: Bruttoareal (BTA) [m2] | C19: 145
B20: Bruksareal (BRA) [m2]
B21: Oppvarmet bruksareal (BRA) [m2] | C21: 135
B23: Klimagassberegningsalternativer
B24: Analyseperiode [år] | C24: 50
B25: Livløpsmoduler inkludert i systemgrensen | C25: Trondheim Kommunes krav
B26: Prosjektfaser som skal rapportes
B27: Kilden for referansebygg
A30: =Veiledning!B2 -> Versjon 2023-04-13. Utviklet av SINTEF AS.

Sheet Skisseprosjekt
B2: Skisseprosjekt | I2: Utslipp A1-A3 + A4 + A5 + B4 + B6 + B8 | M2: =IF(F8="NA","Ikke spesifiert",SUM(F11:K11)) -> 59754.0888 | N2: kgCO2e
B3: Denne regneark viser estimert klimagassutslipper fra A1-A3, A4, B4, B6 og B8 moduler, basert på bygningstype (hovedfunksjon) og BTA areal som definert i "Prosjektbeskrivekse", og miljømåltype og energieffektivitetnivå, som må velges her i rader 15 og 19. Valgfritt: For bygningens energibruk, verdioverstyring kan skrives i kolon G i sted av nøkkelverdi fra PROfet/TEK17.
F6: Produktstadiet | G6: Transport | H6: Bygge- og monteringsarbeid | I6: Utskiftning | J6: Energibruk i drift | K6: Transport i drift
F7: A1-A3 | G7: A4 | H7: A5 | I7: B4 | J7: B6 | K7: B8
E8: Utslippsintensitet (kg CO2e/m2BTA/år) | F8: =VLOOKUP(_xlfn.CONCAT($D$17," ",Prosjektbeskrivelse!$C$16),Input_rullegardin!$S$4:$V$51,2,FALSE) -> 3.87 | G8: =VLOOKUP(_xlfn.CONCAT($D$17," ",Prosjektbeskrivelse!$C$16),Input_rullegardin!$S$4:$V$51,3,FALSE) -> 0.09 | I8: =VLOOKUP(_xlfn.CONCAT($D$17," ",Prosjektbeskrivelse!$C$16),Input_rullegardin!$S$4:$V$51,4,FALSE) -> 0.09
E9: Utslippsintensitet - verdier fra egen beregning (kg CO2e/m2BTA/år)
E11: kg CO2e | F11: =IF(ISBLANK(F9),IFERROR(F8*Prosjektbeskrivelse!$C$19*Prosjektbeskrivelse!$C$24,"NA - referansenivå ikke definert for denne bygningstype"),F9*Prosjektbeskrivelse!$C$19*Prosjektbeskrivelse!$C$24) -> 28057.5 | G11: =IF(ISBLANK(G9),IFERROR(G8*Prosjektbeskrivelse!$C$19*Prosjektbeskrivelse!$C$24,"NA - referansenivå ikke definert for denne bygningstype"),G9*Prosjektbeskrivelse!$C$19*Prosjektbeskrivelse!$C$24) -> 652.5 | H11: =SUM(M21:M24)+SUM(M28:M30)+SUM(M34:M37) -> 11194.5888 | I11: =IF(ISBLANK(I9),IFERROR(I8*Prosjektbeskrivelse!$C$19*Prosjektbeskrivelse!$C$24,"NA - referansenivå ikke definert for denne bygningstype"),I9*Prosjektbeskrivelse!$C$19*Prosjektbeskrivelse!$C$24) -> 652.5 | J11: =IF(ISBLANK(J9),SUM(J46:J52),J9*Prosjektbeskrivelse!$C$19*Prosjektbeskrivelse!$C$24) -> 19197
E12: Andel | F12: =IFERROR(F11/$M$2,0) -> 0.4695494578 | G12: 0.01091975483 | H12: 0.1873443144 | I12: 0.01091975483 | J12: 0.3212667181 | K12: 0
B15: Klimagassutslipper fra produktstadiet, transport, og utskiftning (A1-3, A4, B4)
C17: Utslippsnivå for A1-A3 og B4 | D17: Referansenivå
B19: Klimagassutslipper fra energibruk på byggeplass (del av A5)
C21: Drivstoff | D21: _Elektrisitet (NO) | E21: 8000 | F21: =VLOOKUP(D21,Utslippsfaktorer!$B$6:$U$332,5,FALSE) -> kWh | M21: =IFERROR(VLOOKUP($D21,Utslippsfaktorer!$B$6:$U$332,7,FALSE)*$E21,0) -> 144 | N21: kg CO2e
C22: Drivstoff | D22: Biodiesel | E22: 3000 | F22: =VLOOKUP(D22,Utslippsfaktorer!$B$6:$U$332,5,FALSE) -> liter | M22: =IFERROR(VLOOKUP($D22,Utslippsfaktorer!$B$6:$U$332,7,FALSE)*$E22,0) -> 5760 | N22: kg CO2e
C23: Drivstoff | D23: Diesel, Well to wheel | E23: 1000 | F23: =VLOOKUP(D23,Utslippsfaktorer!$B$6:$U$332,5,FALSE) -> liter | M23: =IFERROR(VLOOKUP($D23,Utslippsfaktorer!$B$6:$U$332,7,FALSE)*$E23,0) -> 3240 | N23: kg CO2e
C24: Drivstoff | D24: (Velg material eller prosesser) | F24: =VLOOKUP(D24,Utslippsfaktorer!$B$6:$U$332,5,FALSE) -> - | M24: =IFERROR(VLOOKUP($D24,Utslippsfaktorer!$B$6:$U$332,7,FALSE)*$E24,0) -> 0 | N24: kg CO2e
B26: Klimagassutslipper fra graving og sprenging (del av A5)
I27: Kilde
D28: Utgraving og planering av jordmasser | E28: 100 | F28: m3 | G28: 1 | H28: liter diesel/m3 | I28: Klimamodul EFFEKT 6.6 (2014) | L28: Diesel | M28: =IFERROR(VLOOKUP($L28,Utslippsfaktorer!$B$6:$U$332,7,FALSE)*$E28*G28,0) -> 267 | N28: kg CO2e
D29: Utgraving og planering av steinmasser | E29: 100 | F29: m3 | G29: 1.1 | H29: liter diesel/m4 | I29: Klimamodul EFFEKT 6.6 (2014) | L29: Diesel | M29: =IFERROR(VLOOKUP($L29,Utslippsfaktorer!$B$6:$U$332,7,FALSE)*$E29*G29,0) -> 293.7 | N29: kg CO2e
D30: Utspregning av grunn | E30: 100 | F30: m3 | G30: 1.26 | H30: kgCO2e/m3 | I30: Gjennomsnitt av 10 EPDer for sprengstoff på den norske markedet;Vegard Olsen(2009) Doctoral thesis; | M30: =E30*G30 -> 126 | N30: kg CO2e
B31: Klimagassutslipper fra massetransport (del av A5)
E32: jord og leire | F32: sprengstein | G32: grus og pukk | H32: transportmengde | I32: Referanse distanse | J32: Projsektspesifikk | K32: Endelige distanse | L32: Type transport | M32: Utslipp
E33: m3 | F33: m3 | G33: m3 | H33: tonn | I33: km | J33: km | K33: km | L33: - | M33: kgCO2e
D34: Transport til midlertidig lager | E34: 30 | F34: 20 | G34: 20 | H34: =E34*$E$39+F34*$F$39+G34*$G$39 -> 105.4 | I34: 20 | K34: =IF(ISBLANK(J34),I34,J34) -> 20 | L34: Lastebil 16-32 tonn, EURO 5, diesel | M34: =IFERROR(VLOOKUP($L34,Utslippsfaktorer!$B$6:$U$332,7,FALSE)*$K34*H34*1000,0) -> 342.7608
D35: Transport til deponi | E35: 30 | F35: 20 | G35: 30 | H35: =E35*$E$39+F35*$F$39+G35*$G$39 -> 122 | I35: 20 | K35: =IF(ISBLANK(J35),I35,J35) -> 20 | L35: Lastebil 16-32 tonn, EURO 5, diesel | M35: =IFERROR(VLOOKUP($L35,Utslippsfaktorer!$B$6:$U$332,7,FALSE)*$K35*H35*1000,0) -> 396.744
D36: Transport til knuseverk | E36: 10 | F36: 20 | G36: 30 | H36: 96 | I36: 20 | K36: =IF(ISBLANK(J36),I36,J36) -> 20 | L36: Lastebil 16-32 tonn, EURO 5, diesel | M36: =IFERROR(VLOOKUP($L36,Utslippsfaktorer!$B$6:$U$332,7,FALSE)*$K36*H36*1000,0) -> 312.192
D37: Transport fra materialtak/sidetak/tilført utenfra | E37: 10 | F37: 20 | G37: 30 | H37: 96 | I37: 20 | K37: =IF(ISBLANK(J37),I37,J37) -> 20 | L37: Lastebil 16-32 tonn, EURO 5, diesel | M37: =IFERROR(VLOOKUP($L37,Utslippsfaktorer!$B$6:$U$332,7,FALSE)*$K37*H37*1000,0) -> 312.192
D39: Omregningsfaktorer (tonn/m3) | E39: 1.3 | F39: 1.66 | G39: 1.66
B41: Klimagassutslipper fra energibruk i drift (B6)
C43: Energieffektivitetsnivå, som ønskes i Reguleringsfase* | D43: TEK10-TEK17
C44: *det kan avvike fra effektiviteits nivå i "Prosjektbeskrivelse" arken | F44: Nøkkelverdi (PROfet) | G44: Verdier fra egen beregning | H44: Energibruk per m2 per år | I44: Total energibruk | J44: Klimagassutslipp
F45: kWh/(m2BRA.år) | G45: kWh/(m2BRA.år) | H45: kWh/(m2BRA.år) | I45: kWh | J45: kgCO2e
C46: Oppvarming | D46: _Elektrisitet (NO) | F46: =VLOOKUP(_xlfn.CONCAT(Prosjektbeskrivelse!$C$16," ",$D$43),Input_rullegardin!$I$4:$N$39,4,FALSE) -> 64 | H46: =IF(ISBLANK(G46),F46,G46) -> 64 | I46: =H46*Prosjektbeskrivelse!$C$21*Prosjektbeskrivelse!$C$24 -> 432000 | J46: =IFERROR(VLOOKUP($D46,Utslippsfaktorer!$B$6:$U$332,7,FALSE)*I46,0) -> 7776
D47: _Fjernvarme, Trondheim, NO (snitt 2019-2021) | H47: 0 | I47: =H47*Prosjektbeskrivelse!$C$21*Prosjektbeskrivelse!$C$24 -> 0 | J47: =IFERROR(VLOOKUP($D47,Utslippsfaktorer!$B$6:$U$332,7,FALSE)*I47,0) -> 0
C48: Vannoppvarming | D48: _Elektrisitet (NO) | F48: =VLOOKUP(_xlfn.CONCAT(Prosjektbeskrivelse!$C$16," ",$D$43),Input_rullegardin!$I$4:$N$39,5,FALSE) -> 19 | H48: 19 | I48: =H48*Prosjektbeskrivelse!$C$21*Prosjektbeskrivelse!$C$24 -> 128250 | J48: =IFERROR(VLOOKUP($D48,Utslippsfaktorer!$B$6:$U$332,7,FALSE)*I48,0) -> 2308.5
C49: Elektriske apparater | D49: _Elektrisitet (NO) | F49: =VLOOKUP(_xlfn.CONCAT(Prosjektbeskrivelse!$C$16," ",$D$43),Input_rullegardin!$I$4:$N$39,6,FALSE) -> 75 | H49: 75 | I49: =H49*Prosjektbeskrivelse!$C$21*Prosjektbeskrivelse!$C$24 -> 506250 | J49: =IFERROR(VLOOKUP($D49,Utslippsfaktorer!$B$6:$U$332,7,FALSE)*I49,0) -> 9112.5
C50: Kjøling | D50: _Elektrisitet (NO) | H50: 0 | I50: =H50*Prosjektbeskrivelse!$C$21*Prosjektbeskrivelse!$C$24 -> 0 | J50: =IFERROR(VLOOKUP($D50,Utslippsfaktorer!$B$6:$U$332,7,FALSE)*I50,0) -> 0
C51: Luftbehandling | D51: _Elektrisitet (NO) | H51: 0 | I51: =H51*Prosjektbeskrivelse!$C$21*Prosjektbeskrivelse!$C$24 -> 0 | J51: =IFERROR(VLOOKUP($D51,Utslippsfaktorer!$B$6:$U$332,7,FALSE)*I51,0) -> 0
C52: Annet | D52: _Elektrisitet (NO) | H52: 0 | I52: =H52*Prosjektbeskrivelse!$C$21*Prosjektbeskrivelse!$C$24 -> 0 | J52: =IFERROR(VLOOKUP($D52,Utslippsfaktorer!$B$6:$U$332,7,FALSE)*I52,0) -> 0
A55: =Veiledning!B2 -> Versjon 2023-04-13. Utviklet av SINTEF AS.

Sheet Referansebygg
B2: Referansebygg | J2: Utslipp A1-A3 + A4 + A5 + B3 + B4 + B6 + C1-4 | M2: =SUM(M5,M60,M65) -> 3189633.941 | N2: kgCO2e
B5: Materialer (A1-A3; A4; A5.1;B4,C1-4) | M5: =SUM(M8,M13,M19,M26,M33,M41) -> 3133419.941 | P5: =M5/$M$2 -> 0.982376034
E6: Kategori | F6: A1-A3 Produktstadiet | G6: A4 Transport | H6: A5 Materialsvinn | I6: B3 Reparasjon | J6: B4 Utskiftning | K6: B6 Energibruk i drift | L6: C1-C4 Livsløpets sluttstadiet | M6: Klimagassutslipp | N6: Andel %
E7: - | F7: kgCO2e | G7: kgCO2e | H7: kgCO2e | I7: kgCO2e | J7: kgCO2e | K7: kgCO2e | L7: kgCO2e | M7: kgCO2e | N7: -
C8: 21 | D8: Fundamentering | F8: =IFERROR((SUM(F9:F12)),"Not assessed") -> 301122 | G8: =IFERROR((SUM(G9:G12)),"Not assessed") -> 38592.74353 | H8: =IFERROR((SUM(H9:H12)),"Not assessed") -> 26892.64994 | J8: =IFERROR((SUM(J9:J12)),"Not assessed") -> 0 | L8: =IFERROR((SUM(L9:L12)),"Not assessed") -> 109371.2326 | M8: =IFERROR((SUM(M9:M12)),"Not assessed") -> 475978.626 | O8: =M8/$M$2 -> 0.1492267247
E9: 216 - Direkte fundamentering | F9: 301122 | G9: 38592.74353 | H9: 26892.64994 | I9: 0 | J9: 0 | K9: 0 | L9: 109371.2326 | M9: =SUM(F9:L9) -> 475978.626 | N9: =IFERROR(M9/$M$8,0) -> 1
M10: =SUM(F10:L10) -> 0 | N10: =IFERROR(M10/$M$8,0) -> 0
M11: 0 | N11: =IFERROR(M11/$M$8,0) -> 0
C13: 22 | D13: Bæresystemer | F13: =IFERROR((SUM(F14:F18)),"Not assessed") -> 313033.1201 | G13: 6199.493236 | H13: 13449.70599 | I13: 0 | J13: 0 | K13: 0 | L13: 7864.24228 | M13: 340546.5616 | O13: =M13/$M$2 -> 0.1067666597
E14: 222 - Søyler | F14: 163384.8858 | G14: 2540.6444 | H14: 4752.687382 | I14: 0 | J14: 0 | K14: 0 | L14: 1933.172611 | M14: =SUM(F14:L14) -> 172611.3902 | N14: =IFERROR(M14/$M$13,0) -> 0.5068657554
E15: 223 - Bjelker | F15: 149648.2343 | G15: 3658.848836 | H15: 8697.018603 | I15: 0 | J15: 0 | K15: 0 | L15: 5931.069668 | M15: =SUM(F15:L15) -> 167935.1714 | N15: =IFERROR(M15/$M$13,0) -> 0.4931342446
M16: 0 | N16: 0
M17: 0 | N17: =IFERROR(M17/$M$13,0) -> 0
C19: 23 | D19: Yttervegger | F19: =IFERROR((SUM(F20:F25)),"Not assessed") -> 434171.9121 | G19: =IFERROR((SUM(G20:G25)),"Not assessed") -> 25924.81137 | H19: =IFERROR((SUM(H20:H25)),"Not assessed") -> 32807.20329 | J19: =IFERROR((SUM(J20:J25)),"Not assessed") -> 128950.72 | L19: =IFERROR((SUM(L20:L25)),"Not assessed") -> 30380.95381 | M19: =IFERROR((SUM(M20:M25)),"Not assessed") -> 652235.6006 | O19: =M19/$M$2 -> 0.2044860359
E20: 231 - Bærende yttervegger | F20: 215048.9157 | G20: 23099.5596 | H20: 11182.21036 | I20: 0 | J20: 0 | K20: 0 | L20: 2740.873834 | M20: =SUM(F20:L20) -> 252071.5595 | N20: =IFERROR(M20/$M$19,0) -> 0.386473169
E21: 232 - Ikke - bærende yttervegger | F21: 94603.028 | G21: 1380.337528 | H21: 13656.7846 | I21: 0 | J21: 32093.49095 | K21: 0 | L21: 18453.89298 | M21: =SUM(F21:L21) -> 160187.5341 | N21: =IFERROR(M21/$M$19,0) -> 0.2455976551
E22: 234 - Vinduer, dører, porter | F22: 87451.24554 | G22: 895.7012623 | H22: 0 | I22: 0 | J22: 96857.22906 | K22: 0 | L22: 1060.67822 | M22: 186264.8541 | N22: 0.2855790974
E23: 235 - Utvendig kledning og overflate | F23: 37068.72284 | G23: 549.212981 | H23: 7968.208333 | I23: 0 | J23: 0 | K23: 0 | L23: 8125.508777 | M23: 53711.65293 | N23: 0.08235007854
M24: 0 | N24: 0
C26: 24 | D26: Innervegger | F26: =IFERROR((SUM(F27:F32)),"Not assessed") -> 287327.6587 | G26: =IFERROR((SUM(G27:G32)),"Not assessed") -> 2672.284338 | H26: =IFERROR((SUM(H27:H32)),"Not assessed") -> 17646.30666 | J26: =IFERROR((SUM(J27:J32)),"Not assessed") -> 135882.1077 | L26: =IFERROR((SUM(L27:L32)),"Not assessed") -> 20398.69112 | M26: =IFERROR((SUM(M27:M32)),"Not assessed") -> 463927.0485 | O26: =M26/$M$2 -> 0.1454483671
E27: 242 - Ikke - bærende innvervegger | F27: 195326.8913 | G27: 1428.229892 | H27: 15379.45807 | I27: 0 | J27: 114287.1538 | K27: 0 | L27: 12753.97497 | M27: =SUM(F27:L27) -> 339175.708 | N27: =IFERROR(M27/$M$26,0) -> 0.7310970746
E28: 243 - Systemvegger, glassfelt | F28: 21737.39516 | G28: 269.9473701 | H28: 0 | I28: 0 | J28: 0 | K28: 0 | L28: 251.1318899 | M28: =SUM(F28:L28) -> 22258.47442 | N28: =IFERROR(M28/$M$26,0) -> 0.04797839336
E29: 244 - Vinduer, dører, foldevegger | F29: 60363.80425 | G29: 762.8164849 | H29: 0 | I29: 0 | J29: 21594.95391 | K29: 0 | L29: 3930.49919 | M29: 86652.07384 | N29: 0.1867795252
E30: 246 - Kledning og overflate | F30: 9899.568 | G30: 211.2905909 | H30: 2266.848591 | I30: 0 | J30: 0 | K30: 0 | L30: 3463.085067 | M30: 15840.79225 | N30: 0.03414500685
M31: 0 | N31: 0
C33: 25 | D33: Dekker | F33: =IFERROR((SUM(F34:F40)),"Not assessed") -> 623963.8168 | G33: =IFERROR((SUM(G34:G40)),"Not assessed") -> 25036.33 | H33: =IFERROR((SUM(H34:H40)),"Not assessed") -> 51916.93326 | J33: =IFERROR((SUM(J34:J40)),"Not assessed") -> 79704.46224 | L33: =IFERROR((SUM(L34:L40)),"Not assessed") -> 46549.52794 | M33: =IFERROR((SUM(M34:M40)),"Not assessed") -> 827171.0703 | O33: =M33/$M$2 -> 0.2593310347
E34: 251 - Frittbærende dekker | F34: 405659.9297 | G34: 8064.318208 | H34: 0 | I34: 0 | J34: 0 | K34: 0 | L34: 9579.386107 | M34: =SUM(F34:L34) -> 423303.634 | N34: =IFERROR(M34/$M$33,0) -> 0.5117485962
E35: 252 - Gulv på grunn | F35: 90865.41 | G35: 8493.740413 | H35: 9620.412859 | I35: 0 | J35: 0 | K35: 0 | L35: 6235.581585 | M35: =SUM(F35:L35) -> 115215.1449 | N35: =IFERROR(M35/$M$33,0) -> 0.1392881702
E36: 253 - Oppforet gulv, påstøp | F36: 19581 | G36: 7435.980204 | H36: 26419.91346 | I36: 0 | J36: 0 | K36: 0 | L36: 7182.962272 | M36: 60619.85594 | N36: 0.07328575445
E37: 255 - Gulvoverflate | F37: 55750.20288 | G37: 704.5915078 | H37: 10615.55243 | I37: 0 | J37: 79704.46224 | K37: 0 | L37: 19547.29754 | M37: 166322.1066 | N37: 0.2010734086
E38: 256 - Faste himlinger og overflatebehandling | F38: 52107.27421 | G38: 337.6996655 | H38: 5261.054511 | I38: 0 | J38: 0 | K38: 0 | L38: 4004.300438 | M38: 61710.32883 | N38: 0.07460407048
M39: =SUM(F39:L39) -> 0 | N39: =IFERROR(M39/$M$33,0) -> 0
C41: 26 | D41: Yttertak | F41: =IFERROR((SUM(F42:F47)),"Not assessed") -> 129562.0399 | G41: 5660.466617 | H41: 35987.90223 | I41: 0 | J41: 117202.9206 | K41: 0 | L41: 85147.70449 | M41: 373561.0339 | O41: =M41/$M$2 -> 0.1171172118
E42: 262 - Taktekning | F42: 5154.3 | G42: 76.86868376 | H42: 1141.397572 | I42: 0 | J42: 0 | K42: 0 | L42: 1145.354065 | M42: =SUM(F42:L42) -> 7517.92032 | N42: =IFERROR(M42/$M$41,0) -> 0.02012501208
E43: 264 - Takoppbygg | F43: 124407.7399 | G43: 5583.597934 | H43: 34846.50466 | I43: 0 | J43: 117202.9206 | K43: 0 | L43: 84002.35043 | M43: =SUM(F43:L43) -> 366043.1136 | N43: =IFERROR(M43/$M$41,0) -> 0.9798749879
M44: 0 | N44: 0
M45: 0 | N45: 0
M46: 0 | N46: 0
C48: 28 | D48: Trapper, balkonger, m.m. | F48: =IFERROR((SUM(F49:F54)),"Not assessed") -> 8000 | G48: =IFERROR((SUM(G49:G54)),"Not assessed") -> 76.86868376 | H48: 1141.397572 | I48: 0 | J48: 0 | K48: 0 | L48: 1145.354065 | M48: =IFERROR((SUM(M49:M54)),"Not assessed") -> 10363.62032 | O48: =M48/$M$2 -> 0.003249156647
F49: 8000 | G49: 76.86868376 | H49: 1141.397572 | I49: 0 | J49: 0 | K49: 0 | L49: 1145.354065 | M49: =SUM(F49:L49) -> 10363.62032 | N49: =IFERROR(M49/$M$48,0) -> 1
M50: =SUM(F50:L50) -> 0 | N50: =IFERROR(M50/$M$48,0) -> 0
M51: 0 | N51: 0
M52: 0 | N52: 0
M53: 0 | N53: 0
C55: 49 | D55: Andre elkraftinstallasjoner | F55: =IFERROR((SUM(F56:F58)),"Not assessed") -> 900 | G55: 76.86868376 | H55: 60 | I55: 15 | J55: 800 | K55: 0 | L55: 1145.354065 | M55: 2997.222748 | O55: =M55/$M$2 -> 0.0009396760895
E56: PV installasjon | F56: 900 | G56: 76.86868376 | H56: 60 | I56: 15 | J56: 800 | K56: 0 | L56: 1145.354065 | M56: =SUM(F56:L56) -> 2997.222748 | N56: =IFERROR(M56/$M$55,0) -> 1
M57: =SUM(F57:L57) -> 0 | N57: =IFERROR(M57/$M$55,0) -> 0
B60: Energibruk på byggeplass (del av A5) | M60: =SUM(M61:M63) -> 32400 | P60: =M60/$M$2 -> 0.01015790545
F61: _Elektrisitet (NO) | H61: 0 | I61: =VLOOKUP($F61,Utslippsfaktorer!$B$6:$U$332,5,FALSE) -> kWh | J61: =_xlfn.IFS(AND(Prosjektbeskrivelse!$C$13="Utslippsfri",I61="liter",H61>0),"Krav for utslippsfri byggeplass!",AND(Prosjektbeskrivelse!$C$13="Fossilfri",OR(ISNUMBER(FIND("Diesel",F61)),ISNUMBER(FIND("LPG",F61))),H61>0),"Krav for fossilfri byggeplass!",TRUE,"") ->  | M61: =IFERROR(VLOOKUP($F61,Utslippsfaktorer!$B$6:$U$332,7,FALSE)*$H61,0) -> 0 | N61: =IFERROR(M61/$M$60,0) -> 0
F62: Diesel, Well to wheel | H62: 10000 | I62: =VLOOKUP($F62,Utslippsfaktorer!$B$6:$U$332,5,FALSE) -> liter | J62: =_xlfn.IFS(AND(Prosjektbeskrivelse!$C$13="Utslippsfri",I62="liter",H62>0),"Krav for utslippsfri byggeplass!",AND(Prosjektbeskrivelse!$C$13="Fossilfri",OR(ISNUMBER(FIND("Diesel",F62)),ISNUMBER(FIND("LPG",F62))),H62>0),"Krav for fossilfri byggeplass!",TRUE,"") -> Krav for fossilfri byggeplass! | M62: =IFERROR(VLOOKUP($F62,Utslippsfaktorer!$B$6:$U$332,7,FALSE)*$H62,0) -> 32400 | N62: =IFERROR(M62/$M$60,0) -> 1
F63: Biodiesel | H63: 0 | I63: =VLOOKUP($F63,Utslippsfaktorer!$B$6:$U$332,5,FALSE) -> liter | J63: =_xlfn.IFS(AND(Prosjektbeskrivelse!$C$13="Utslippsfri",I63="liter",H63>0),"Krav for utslippsfri byggeplass!",AND(Prosjektbeskrivelse!$C$13="Fossilfri",OR(ISNUMBER(FIND("Diesel",F63)),ISNUMBER(FIND("LPG",F63))),H63>0),"Krav for fossilfri byggeplass!",TRUE,"") ->  | M63: =IFERROR(VLOOKUP($F63,Utslippsfaktorer!$B$6:$U$332,7,FALSE)*$H63,0) -> 0 | N63: 0
B65: Energibruk i drift (B6) | M65: =SUM(M66:M68) -> 23814 | P65: =M65/$M$2 -> 0.007466060508
E66: Oppvarming | F66: _Elektrisitet (NO) | H66: =VLOOKUP(_xlfn.CONCAT(Prosjektbeskrivelse!$C$16," ",Input_rullegardin!$C$17),Input_rullegardin!$I$4:$N$39,4,FALSE)*Prosjektbeskrivelse!$C$21*Prosjektbeskrivelse!$C$24 -> 688500 | I66: kWh | M66: =IFERROR(VLOOKUP(F66,Utslippsfaktorer!$B$6:$U$332,7,FALSE)*$H66,0) -> 12393 | N66: =IFERROR(M66/$M$65,0) -> 0.5204081633
E67: Vannoppvarming | F67: _Elektrisitet (NO) | H67: =VLOOKUP(_xlfn.CONCAT(Prosjektbeskrivelse!$C$16," ",Input_rullegardin!$C$17),Input_rullegardin!$I$4:$N$39,5,FALSE)*Prosjektbeskrivelse!$C$21*Prosjektbeskrivelse!$C$24 -> 128250 | I67: kWh | M67: =IFERROR(VLOOKUP(F67,Utslippsfaktorer!$B$6:$U$332,7,FALSE)*$H67,0) -> 2308.5 | N67: =IFERROR(M67/$M$65,0) -> 0.09693877551
E68: Elektriske apparater | F68: _Elektrisitet (NO) | H68: =VLOOKUP(_xlfn.CONCAT(Prosjektbeskrivelse!$C$16," ",Input_rullegardin!$C$17),Input_rullegardin!$I$4:$N$39,6,FALSE)*Prosjektbeskrivelse!$C$21*Prosjektbeskrivelse!$C$24 -> 506250 | I68: kWh | M68: =IFERROR(VLOOKUP(F68,Utslippsfaktorer!$B$6:$U$332,7,FALSE)*$H68,0) -> 9112.5 | N68: 0.3826530612
A70: =Veiledning!$B$2 -> Versjon 2023-04-13. Utviklet av SINTEF AS.

Sheet Forprosjekt
B2: Forprosjekt | L2: Utslipp A1-A3 + A4 + A5 + B4 + B6 | N2: =SUM(N4,N49,N54) -> 142610.5843 | O2: kgCO2e
B3: Velg først Kategori og velg så Materialer fra rullegardinmenyen. Legg inn Mengde eller skriv inn verdiene manuelt. Alternativt kan nøkkelverdier (gjennomsnittsverdier fra ZEN-rapport 24) brukes.
A4: Seksjon1 | B4: Bygningselementer | L4: 0.05 | N4: =SUM(N7,N13,N18,N23,N28,N33,N38,N43) -> 92096.58426 | Q4: =N4/$N$2 -> 0.6457906665
E5: Kategori | F5: Materiale eller prosess | G5: Mengde | H5: Enhet | I5: Levetid | J5: A1-A3 Produktstadiet | K5: A4 Transport | L5: A5 Materialsvinn | M5: B4 Utskiftning | N5: Klimagassutslipp | O5: Andel %
E6: - | F6: - | G6: - | H6: - | I6: år | J6: kgCO2e | K6: kgCO2e | L6: kgCO2e | M6: kgCO2e | N6: kgCO2e | O6: -
C7: 21 | D7: Fundamentering | J7: =IF($E$8,J8,SUMIF($D$9:$D$11,$C$7,J$9:J$11)) -> 34354.13182 | K7: =IF($E$8,K8,SUMIF($D$9:$D$11,$C$7,K$9:K$11)) -> 38.32938 | L7: =IF($E$8,L8,SUMIF($D$9:$D$11,$C$7,L$9:L$11)) -> 1719.62306 | M7: =IF($E$8,M8,SUMIF($D$9:$D$11,$C$7,M$9:M$11)) -> 0 | N7: =IF($E$8,N8,SUMIF($D$9:$D$11,$C$7,N$9:N$11)) -> 36112.08426 | P7: =IFERROR(N7/$N$4,0) -> 0.3921110055
E8: FALSE | F8: Bygningsdel 21, gjennomsnitt, per m2 bygg | G8: =Prosjektbeskrivelse!$C$19*60 -> 8700 | H8: =VLOOKUP($F8,Utslippsfaktorer!$B$6:$U$332,5,FALSE) -> m2BTAår | J8: =IFERROR(VLOOKUP($F8,Utslippsfaktorer!$B$6:$U$332,7,FALSE)*G8,0) -> 7830 | K8: =VLOOKUP($F8,Utslippsfaktorer!$B$6:$U$332,8,FALSE)*$G8 -> 0 | L8: =(J8+K8)*$L$4 -> 391.5 | M8: =VLOOKUP($F8,Utslippsfaktorer!$B$6:$U$332,13,FALSE)*$G8 -> 1957.5 | N8: =SUM(J8:M8) -> 10179 | O8: -
D9: 21 | E9: (egen data) | L9: =(J9+K9)*$L$4 -> 0 | N9: =SUM(J9:M9) -> 0 | O9: =IFERROR(N9/$N$7,0) -> 0
D10: 21 | E10: Betong | F10: Betong B30, bransjereferanse | G10: 120 | H10: =VLOOKUP($F10,Utslippsfaktorer!$B$6:$U$332,5,FALSE) -> m3 | I10: =VLOOKUP($F10,Utslippsfaktorer!$B$6:$U$332,6,FALSE) -> 60 | J10: =IFERROR(VLOOKUP($F10,Utslippsfaktorer!$B$6:$U$332,7,FALSE)*$G10,0) -> 33600 | K10: =VLOOKUP($F10,Utslippsfaktorer!$B$6:$U$332,8,FALSE)*$G10 -> 38.304 | L10: 1681.9152 | M10: =VLOOKUP($F10,Utslippsfaktorer!$B$6:$U$332,13,FALSE)*$G10 -> 0 | N10: 35320.2192 | O10: =IFERROR(N10/$N$7,0) -> 0.9780720201
D11: 21 | E11: Stål | F11: Stål, konstruksjon u/resirk | G11: 300 | H11: =VLOOKUP($F11,Utslippsfaktorer!$B$6:$U$332,5,FALSE) -> kg | I11: =VLOOKUP($F11,Utslippsfaktorer!$B$6:$U$332,6,FALSE) -> 60 | J11: =IFERROR(VLOOKUP($F11,Utslippsfaktorer!$B$6:$U$332,7,FALSE)*$G11,0) -> 754.1318182 | K11: =VLOOKUP($F11,Utslippsfaktorer!$B$6:$U$332,8,FALSE)*$G11 -> 0.02538 | L11: 37.70785991 | M11: =VLOOKUP($F11,Utslippsfaktorer!$B$6:$U$332,13,FALSE)*$G11 -> 0 | N11: 791.8650581 | O11: 0.02192797991
C13: 22 | D13: Bæresystemer | J13: =IF($E$14,J14,SUMIF($D$15:$D$16,$C$13,J15:J16)) -> 3915 | K13: =IF($E$14,K14,SUMIF($D$15:$D$16,$C$13,K15:K16)) -> 0 | L13: =IF($E$14,L14,SUMIF($D$15:$D$16,$C$13,L15:L16)) -> 195.75 | M13: =IF($E$14,M14,SUMIF($D$15:$D$16,$C$13,M15:M16)) -> 978.75 | N13: =IF($E$14,N14,SUMIF($D$15:$D$16,$C$13,N15:N16)) -> 5089.5 | P13: =IFERROR(N13/$N$4,0) -> 0.05526263586
E14: TRUE | F14: Bygningsdel 22, gjennomsnitt, per m2 bygg | G14: =Prosjektbeskrivelse!$C$19*60 -> 8700 | H14: =VLOOKUP($F14,Utslippsfaktorer!$B$6:$U$332,5,FALSE) -> m2BTAår | J14: =IFERROR(VLOOKUP($F14,Utslippsfaktorer!$B$6:$U$332,7,FALSE)*G14,0) -> 3915 | K14: =VLOOKUP($F14,Utslippsfaktorer!$B$6:$U$332,8,FALSE)*$G14 -> 0 | L14: =(J14+K14)*$L$4 -> 195.75 | M14: =VLOOKUP($F14,Utslippsfaktorer!$B$6:$U$332,13,FALSE)*$G14 -> 978.75 | N14: =SUM(J14:M14) -> 5089.5 | O14: -
D15: 22 | E15: (egen data) | L15: =(J15+K15)*$L$4 -> 0 | N15: =SUM(J15:M15) -> 0 | O15: =IFERROR(N15/$N$13,0) -> 0
D16: 22 | E16: (Velg kategori) | F16: (Velg material eller prosesser) | H16: =VLOOKUP($F16,Utslippsfaktorer!$B$6:$U$332,5,FALSE) -> - | I16: =VLOOKUP($F16,Utslippsfaktorer!$B$6:$U$332,6,FALSE) -> 0 | J16: =IFERROR(VLOOKUP($F16,Utslippsfaktorer!$B$6:$U$332,7,FALSE)*$G16,0) -> 0 | K16: =VLOOKUP($F16,Utslippsfaktorer!$B$6:$U$332,8,FALSE)*$G16 -> 0 | L16: 0 | M16: =VLOOKUP($F16,Utslippsfaktorer!$B$6:$U$332,13,FALSE)*$G16 -> 0 | N16: =SUM(J16:M16) -> 0 | O16: =IFERROR(N16/$N$13,0) -> 0
C18: 23 | D18: Yttervegger | J18: =IF($E19,J19,SUMIF($D20:$D21,$C18,J20:J21)) -> 7830 | K18: =IF($E19,K19,SUMIF($D20:$D21,$C18,K20:K21)) -> 0 | L18: =IF($E19,L19,SUMIF($D20:$D21,$C18,L20:L21)) -> 391.5 | M18: =IF($E19,M19,SUMIF($D20:$D21,$C18,M20:M21)) -> 1957.5 | N18: =IF($E19,N19,SUMIF($D20:$D21,$C18,N20:N21)) -> 10179 | P18: =IFERROR(N18/$N$4,0) -> 0.1105252717
E19: TRUE | F19: Bygningsdel 23, gjennomsnitt, per m2 bygg | G19: =Prosjektbeskrivelse!$C$19*60 -> 8700 | H19: =VLOOKUP($F19,Utslippsfaktorer!$B$6:$U$332,5,FALSE) -> m2BTAår | J19: =IFERROR(VLOOKUP($F19,Utslippsfaktorer!$B$6:$U$332,7,FALSE)*G19,0) -> 7830 | K19: =VLOOKUP($F19,Utslippsfaktorer!$B$6:$U$332,8,FALSE)*$G19 -> 0 | L19: =(J19+K19)*$L$4 -> 391.5 | M19: =VLOOKUP($F19,Utslippsfaktorer!$B$6:$U$332,13,FALSE)*$G19 -> 1957.5 | N19: =SUM(J19:M19) -> 10179 | O19: -
D20: 23 | E20: (egen data) | L20: 0 | N20: 0 | O20: =IFERROR(N20/$N$18,0) -> 0
D21: 23 | E21: (Velg kategori) | F21: (Velg material eller prosesser) | H21: =VLOOKUP($F21,Utslippsfaktorer!$B$6:$U$332,5,FALSE) -> - | I21: =VLOOKUP($F21,Utslippsfaktorer!$B$6:$U$332,6,FALSE) -> 0 | J21: =IFERROR(VLOOKUP($F21,Utslippsfaktorer!$B$6:$U$332,7,FALSE)*$G21,0) -> 0 | K21: =VLOOKUP($F21,Utslippsfaktorer!$B$6:$U$332,8,FALSE)*$G21 -> 0 | L21: 0 | M21: =VLOOKUP($F21,Utslippsfaktorer!$B$6:$U$332,13,FALSE)*$G21 -> 0 | N21: =SUM(J21:M21) -> 0 | O21: =IFERROR(N21/$N$18,0) -> 0
C23: 24 | D23: Innervegger | J23: =IF($E24,J24,SUMIF($D25:$D26,$C23,J25:J26)) -> 5872.5 | K23: =IF($E24,K24,SUMIF($D25:$D26,$C23,K25:K26)) -> 0 | L23: =IF($E24,L24,SUMIF($D25:$D26,$C23,L25:L26)) -> 293.625 | M23: =IF($E24,M24,SUMIF($D25:$D26,$C23,M25:M26)) -> 1468.125 | N23: =IF($E24,N24,SUMIF($D25:$D26,$C23,N25:N26)) -> 7634.25 | P23: =IFERROR(N23/$N$4,0) -> 0.08289395379
E24: TRUE | F24: Bygningsdel 24, gjennomsnitt, per m2 bygg | G24: =Prosjektbeskrivelse!$C$19*60 -> 8700 | H24: =VLOOKUP($F24,Utslippsfaktorer!$B$6:$U$332,5,FALSE) -> m2BTAår | J24: =IFERROR(VLOOKUP($F24,Utslippsfaktorer!$B$6:$U$332,7,FALSE)*G24,0) -> 5872.5 | K24: =VLOOKUP($F24,Utslippsfaktorer!$B$6:$U$332,8,FALSE)*$G24 -> 0 | L24: =(J24+K24)*$L$4 -> 293.625 | M24: =VLOOKUP($F24,Utslippsfaktorer!$B$6:$U$332,13,FALSE)*$G24 -> 1468.125 | N24: =SUM(J24:M24) -> 7634.25 | O24: -
D25: 24 | E25: (egen data) | L25: 0 | N25: 0 | O25: =IFERROR(N25/$N$23,0) -> 0
D26: 24 | E26: (Velg kategori) | F26: (Velg material eller prosesser) | H26: =VLOOKUP($F26,Utslippsfaktorer!$B$6:$U$332,5,FALSE) -> - | I26: =VLOOKUP($F26,Utslippsfaktorer!$B$6:$U$332,6,FALSE) -> 0 | J26: =IFERROR(VLOOKUP($F26,Utslippsfaktorer!$B$6:$U$332,7,FALSE)*$G26,0) -> 0 | K26: =VLOOKUP($F26,Utslippsfaktorer!$B$6:$U$332,8,FALSE)*$G26 -> 0 | L26: 0 | M26: =VLOOKUP($F26,Utslippsfaktorer!$B$6:$U$332,13,FALSE)*$G26 -> 0 | N26: =SUM(J26:M26) -> 0 | O26: =IFERROR(N26/$N$23,0) -> 0
C28: 25 | D28: Dekker | J28: =IF($E29,J29,SUMIF($D30:$D31,$C28,J30:J31)) -> 9135 | K28: =IF($E29,K29,SUMIF($D30:$D31,$C28,K30:K31)) -> 0 | L28: =IF($E29,L29,SUMIF($D30:$D31,$C28,L30:L31)) -> 456.75 | M28: =IF($E29,M29,SUMIF($D30:$D31,$C28,M30:M31)) -> 2283.75 | N28: =IF($E29,N29,SUMIF($D30:$D31,$C28,N30:N31)) -> 11875.5 | P28: =IFERROR(N28/$N$4,0) -> 0.1289461503
E29: TRUE | F29: Bygningsdel 25, gjennomsnitt, per m2 bygg | G29: =Prosjektbeskrivelse!$C$19*60 -> 8700 | H29: =VLOOKUP($F29,Utslippsfaktorer!$B$6:$U$332,5,FALSE) -> m2BTAår | J29: =IFERROR(VLOOKUP($F29,Utslippsfaktorer!$B$6:$U$332,7,FALSE)*G29,0) -> 9135 | K29: =VLOOKUP($F29,Utslippsfaktorer!$B$6:$U$332,8,FALSE)*$G29 -> 0 | L29: =(J29+K29)*$L$4 -> 456.75 | M29: =VLOOKUP($F29,Utslippsfaktorer!$B$6:$U$332,13,FALSE)*$G29 -> 2283.75 | N29: =SUM(J29:M29) -> 11875.5 | O29: -
D30: 25 | E30: (egen data) | L30: 0 | N30: 0 | O30: =IFERROR(N30/$N$28,0) -> 0
D31: 25 | E31: (Velg kategori) | F31: (Velg material eller prosesser) | H31: =VLOOKUP($F31,Utslippsfaktorer!$B$6:$U$332,5,FALSE) -> - | I31: =VLOOKUP($F31,Utslippsfaktorer!$B$6:$U$332,6,FALSE) -> 0 | J31: =IFERROR(VLOOKUP($F31,Utslippsfaktorer!$B$6:$U$332,7,FALSE)*$G31,0) -> 0 | K31: =VLOOKUP($F31,Utslippsfaktorer!$B$6:$U$332,8,FALSE)*$G31 -> 0 | L31: 0 | M31: =VLOOKUP($F31,Utslippsfaktorer!$B$6:$U$332,13,FALSE)*$G31 -> 0 | N31: 0 | O31: 0
C33: 26 | D33: Yttertak | J33: =IF($E34,J34,SUMIF($D35:$D36,$C33,J35:J36)) -> 3262.5 | K33: =IF($E34,K34,SUMIF($D35:$D36,$C33,K35:K36)) -> 0 | L33: =IF($E34,L34,SUMIF($D35:$D36,$C33,L35:L36)) -> 163.125 | M33: =IF($E34,M34,SUMIF($D35:$D36,$C33,M35:M36)) -> 815.625 | N33: =IF($E34,N34,SUMIF($D35:$D36,$C33,N35:N36)) -> 4241.25 | P33: =IFERROR(N33/$N$4,0) -> 0.04605219655
E34: TRUE | F34: Bygningsdel 26, gjennomsnitt, per m2 bygg | G34: =Prosjektbeskrivelse!$C$19*60 -> 8700 | H34: =VLOOKUP($F34,Utslippsfaktorer!$B$6:$U$332,5,FALSE) -> m2BTAår | J34: =IFERROR(VLOOKUP($F34,Utslippsfaktorer!$B$6:$U$332,7,FALSE)*G34,0) -> 3262.5 | K34: =VLOOKUP($F34,Utslippsfaktorer!$B$6:$U$332,8,FALSE)*$G34 -> 0 | L34: =(J34+K34)*$L$4 -> 163.125 | M34: =VLOOKUP($F34,Utslippsfaktorer!$B$6:$U$332,13,FALSE)*$G34 -> 815.625 | N34: =SUM(J34:M34) -> 4241.25 | O34: -
D35: 26 | E35: (egen data) | L35: 0 | N35: 0 | O35: =IFERROR(N35/$N$33,0) -> 0
D36: 26 | E36: (Velg kategori) | F36: (Velg material eller prosesser) | H36: =VLOOKUP($F36,Utslippsfaktorer!$B$6:$U$332,5,FALSE) -> - | I36: =VLOOKUP($F36,Utslippsfaktorer!$B$6:$U$332,6,FALSE) -> 0 | J36: =IFERROR(VLOOKUP($F36,Utslippsfaktorer!$B$6:$U$332,7,FALSE)*$G36,0) -> 0 | K36: =VLOOKUP($F36,Utslippsfaktorer!$B$6:$U$332,8,FALSE)*$G36 -> 0 | L36: 0 | M36: =VLOOKUP($F36,Utslippsfaktorer!$B$6:$U$332,13,FALSE)*$G36 -> 0 | N36: =SUM(J36:M36) -> 0 | O36: =IFERROR(N36/$N$33,0) -> 0
C38: 28 | D38: Trapper, balkonger, m.m. | J38: =IF($E39,J39,SUMIF($D40:$D41,$C38,J40:J41)) -> 652.5 | K38: =IF($E39,K39,SUMIF($D40:$D41,$C38,K40:K41)) -> 0 | L38: =IF($E39,L39,SUMIF($D40:$D41,$C38,L40:L41)) -> 32.625 | M38: =IF($E39,M39,SUMIF($D40:$D41,$C38,M40:M41)) -> 163.125 | N38: =IF($E39,N39,SUMIF($D40:$D41,$C38,N40:N41)) -> 848.25 | P38: =IFERROR(N38/$N$4,0) -> 0.00921043931
E39: TRUE | F39: Bygningsdel 28, gjennomsnitt, per m2 bygg | G39: =Prosjektbeskrivelse!$C$19*60 -> 8700 | H39: =VLOOKUP($F39,Utslippsfaktorer!$B$6:$U$332,5,FALSE) -> m2BTAår | J39: =IFERROR(VLOOKUP($F39,Utslippsfaktorer!$B$6:$U$332,7,FALSE)*G39,0) -> 652.5 | K39: =VLOOKUP($F39,Utslippsfaktorer!$B$6:$U$332,8,FALSE)*$G39 -> 0 | L39: =(J39+K39)*$L$4 -> 32.625 | M39: =VLOOKUP($F39,Utslippsfaktorer!$B$6:$U$332,13,FALSE)*$G39 -> 163.125 | N39: =SUM(J39:M39) -> 848.25 | O39: -
D40: 28 | E40: (egen data) | L40: 0 | N40: 0 | O40: =IFERROR(N40/$N$38,0) -> 0
D41: 28 | E41: (Velg kategori) | F41: (Velg material eller prosesser) | H41: =VLOOKUP($F41,Utslippsfaktorer!$B$6:$U$332,5,FALSE) -> - | I41: =VLOOKUP($F41,Utslippsfaktorer!$B$6:$U$332,6,FALSE) -> 0 | J41: =IFERROR(VLOOKUP($F41,Utslippsfaktorer!$B$6:$U$332,7,FALSE)*$G41,0) -> 0 | K41: =VLOOKUP($F41,Utslippsfaktorer!$B$6:$U$332,8,FALSE)*$G41 -> 0 | L41: 0 | M41: =VLOOKUP($F41,Utslippsfaktorer!$B$6:$U$332,13,FALSE)*$G41 -> 0 | N41: 0 | O41: 0
C43: 49 | D43: Andre elkraftinstallasjoner | J43: =IF($E44,J44,SUMIF($D45:$D46,$C43,J45:J46)) -> 12397.5 | K43: =IF($E44,K44,SUMIF($D45:$D46,$C43,K45:K46)) -> 0 | L43: =IF($E44,L44,SUMIF($D45:$D46,$C43,L45:L46)) -> 619.875 | M43: =IF($E44,M44,SUMIF($D45:$D46,$C43,M45:M46)) -> 3099.375 | N43: =IF($E44,N44,SUMIF($D45:$D46,$C43,N45:N46)) -> 16116.75 | P43: =IFERROR(N43/$N$4,0) -> 0.1749983469
E44: TRUE | F44: Bygningsdel 49, gjennomsnitt, per m2 bygg | G44: =Prosjektbeskrivelse!$C$19*60 -> 8700 | H44: =VLOOKUP($F44,Utslippsfaktorer!$B$6:$U$332,5,FALSE) -> m2BTAår | J44: =IFERROR(VLOOKUP($F44,Utslippsfaktorer!$B$6:$U$332,7,FALSE)*G44,0) -> 12397.5 | K44: =VLOOKUP($F44,Utslippsfaktorer!$B$6:$U$332,8,FALSE)*$G44 -> 0 | L44: =(J44+K44)*$L$4 -> 619.875 | M44: =VLOOKUP($F44,Utslippsfaktorer!$B$6:$U$332,13,FALSE)*$G44 -> 3099.375 | N44: =SUM(J44:M44) -> 16116.75 | O44: -
D45: 49 | E45: (egen data) | L45: 0 | N45: 0 | O45: =IFERROR(N45/$N$43,0) -> 0
D46: 49 | E46: (Velg kategori) | F46: (Velg material eller prosesser) | H46: =VLOOKUP($F46,Utslippsfaktorer!$B$6:$U$332,5,FALSE) -> - | I46: =VLOOKUP($F46,Utslippsfaktorer!$B$6:$U$332,6,FALSE) -> 0 | J46: =IFERROR(VLOOKUP($F46,Utslippsfaktorer!$B$6:$U$332,7,FALSE)*$G46,0) -> 0 | K46: =VLOOKUP($F46,Utslippsfaktorer!$B$6:$U$332,8,FALSE)*$G46 -> 0 | L46: 0 | M46: =VLOOKUP($F46,Utslippsfaktorer!$B$6:$U$332,13,FALSE)*$G46 -> 0 | N46: 0 | O46: 0
D48: LastRow
A49: Seksjon2 | B49: Energiforbruk på byggeplass (del av A5) | N49: =SUM(N50:N51) -> 26700 | Q49: =IFERROR(N49/$N$2,0) -> 0.1872231303
F50: _Elektrisitet (NO) | H50: =VLOOKUP($F50,Utslippsfaktorer!$B$6:$U$332,5,FALSE) -> kWh | I50: =_xlfn.IFS(AND(Prosjektbeskrivelse!$C$13="Utslippsfri",H50="liter",G50>0),"Krav for utslippsfri byggeplass!",AND(Prosjektbeskrivelse!$C$13="Fossilfri",OR(ISNUMBER(FIND("Diesel",F50)),ISNUMBER(FIND("LPG",F50))),G50>0),"Krav for fossilfri byggeplass!",TRUE,"") ->  | N50: =IFERROR(VLOOKUP($F50,Utslippsfaktorer!$B$6:$U$332,7,FALSE)*$G50,0) -> 0 | O50: =IFERROR(N50/$N$49,0) -> 0
F51: Diesel | G51: 10000 | H51: =VLOOKUP($F51,Utslippsfaktorer!$B$6:$U$332,5,FALSE) -> liter | I51: =_xlfn.IFS(AND(Prosjektbeskrivelse!$C$13="Utslippsfri",H51="liter",G51>0),"Krav for utslippsfri byggeplass!",AND(Prosjektbeskrivelse!$C$13="Fossilfri",OR(ISNUMBER(FIND("Diesel",F51)),ISNUMBER(FIND("LPG",F51))),G51>0),"Krav for fossilfri byggeplass!",TRUE,"") -> Krav for fossilfri byggeplass! | N51: =IFERROR(VLOOKUP($F51,Utslippsfaktorer!$B$6:$U$332,7,FALSE)*$G51,0) -> 26700 | O51: =IFERROR(N51/$N$49,0) -> 1
F52: Biodiesel | H52: =VLOOKUP($F52,Utslippsfaktorer!$B$6:$U$332,5,FALSE) -> liter | I52: =_xlfn.IFS(AND(Prosjektbeskrivelse!$C$13="Utslippsfri",H52="liter",G52>0),"Krav for utslippsfri byggeplass!",AND(Prosjektbeskrivelse!$C$13="Fossilfri",OR(ISNUMBER(FIND("Diesel",F52)),ISNUMBER(FIND("LPG",F52))),G52>0),"Krav for fossilfri byggeplass!",TRUE,"") ->  | N52: =IFERROR(VLOOKUP($F52,Utslippsfaktorer!$B$6:$U$332,7,FALSE)*$G52,0) -> 0 | O52: 0
A54: Seksjon3 | B54: Energibruk i drift (B6) | N54: =SUM(N57:N62) -> 23814 | Q54: =IFERROR(N54/$N$2,0) -> 0.1669862032
J55: Nøkkelverdi (PROfet) | K55: Verdier fra egen beregning | L55: Energibruk per m2 per år | M55: Total energibruk | N55: Klimagassutslipp | O55: Andel %
J56: kWh/(m2BRA.år) | K56: kWh/(m2BRA.år) | L56: kWh/(m2BRA.år) | M56: kWh | N56: kgCO2e | O56: -
E57: Oppvarming | F57: _Elektrisitet (NO) | J57: =VLOOKUP(_xlfn.CONCAT(Prosjektbeskrivelse!$C$16," ",Prosjektbeskrivelse!$C$17),Input_rullegardin!$I$4:$N$39,4,FALSE) -> 102 | L57: =IF(ISBLANK(K57),J57,K57) -> 102 | M57: =L57*Prosjektbeskrivelse!$C$21*Prosjektbeskrivelse!$C$24 -> 688500 | N57: =IFERROR(VLOOKUP($F57,Utslippsfaktorer!$B$6:$U$332,7,FALSE)*M57,0) -> 12393 | O57: =IFERROR(N57/$N$54,0) -> 0.5204081633
F58: _Fjernvarme, Trondheim, NO (snitt 2019-2021) | L58: 0 | M58: =L58*Prosjektbeskrivelse!$C$21*Prosjektbeskrivelse!$C$24 -> 0 | N58: =IFERROR(VLOOKUP($F58,Utslippsfaktorer!$B$6:$U$332,7,FALSE)*M58,0) -> 0 | O58: =IFERROR(N58/$N$54,0) -> 0
E59: Vannoppvarming | F59: _Elektrisitet (NO) | J59: =VLOOKUP(_xlfn.CONCAT(Prosjektbeskrivelse!$C$16," ",Prosjektbeskrivelse!$C$17),Input_rullegardin!I6:N41,5,FALSE) -> 19 | L59: 19 | M59: =L59*Prosjektbeskrivelse!$C$21*Prosjektbeskrivelse!$C$24 -> 128250 | N59: =IFERROR(VLOOKUP($F59,Utslippsfaktorer!$B$6:$U$332,7,FALSE)*M59,0) -> 2308.5 | O59: =IFERROR(N59/$N$54,0) -> 0.09693877551
E60: Elektriske apparater | F60: _Elektrisitet (NO) | J60: =VLOOKUP(_xlfn.CONCAT(Prosjektbeskrivelse!$C$16," ",Prosjektbeskrivelse!$C$17),Input_rullegardin!I7:N42,6,FALSE) -> 75 | L60: 75 | M60: =L60*Prosjektbeskrivelse!$C$21*Prosjektbeskrivelse!$C$24 -> 506250 | N60: =IFERROR(VLOOKUP($F60,Utslippsfaktorer!$B$6:$U$332,7,FALSE)*M60,0) -> 9112.5 | O60: 0.3826530612
E61: Kjøling | F61: _Elektrisitet (NO) | L61: 0 | M61: =L61*Prosjektbeskrivelse!$C$21*Prosjektbeskrivelse!$C$24 -> 0 | N61: =IFERROR(VLOOKUP($F61,Utslippsfaktorer!$B$6:$U$332,7,FALSE)*M61,0) -> 0 | O61: 0
E62: Luftbehandling | F62: _Elektrisitet (NO) | L62: 0 | M62: =L62*Prosjektbeskrivelse!$C$21*Prosjektbeskrivelse!$C$24 -> 0 | N62: =IFERROR(VLOOKUP($F62,Utslippsfaktorer!$B$6:$U$332,7,FALSE)*M62,0) -> 0 | O62: 0
A64: Seksjon4
A66: =Veiledning!$B$2 -> Versjon 2023-04-13. Utviklet av SINTEF AS.

Sheet Detaljprosjekt
B2: Detaljprosjekt | Q2: Utslipp A1-C4 | U2: =SUM(V4,V150,V155) -> 107710.5416 | W2: kgCO2e
B4: Bygningselementer | V4: =SUM(V8,V18,V37,V61,V82,V103) -> 60502.69157 | Y4: =IFERROR(V4/$U$2,0) -> 0.5617156008
J5: Produktstadiet | K5: Transport | L5: Monterings-arbeid | M5: Bruk | N5: Vedlikehold | O5: Reparasjon | P5: Utskiftning | Q5: Ombygging | R5: Riving | S5: Transport | T5: Avfalls-behandling | U5: Avhending
C6: Bygningselement | E6: Kategori | F6: Materialer eller prosesser | G6: Mengde | H6: Enhet | I6: Levetid | J6: A1-A3 | K6: A4 | L6: A5-svinn | M6: B1 | N6: B2 | O6: B3 | P6: B4 | Q6: B5 | R6: C1 | S6: C2 | T6: C3 | U6: C4 | V6: Klimagassutslipp | W6: Andel % per bygningselement | X6: Kilde
I7: år | J7: kgCO2e | K7: kgCO2e | L7: kgCO2e | M7: kgCO2e | N7: kgCO2e | O7: kgCO2e | P7: kgCO2e | Q7: kgCO2e | R7: kgCO2e | S7: kgCO2e | T7: kgCO2e | U7: kgCO2e | V7: kgCO2e | W7: -
A8: seksjon1 | C8: 21 | D8: Fundamentering | J8: =IFERROR(SUM(J9:J17),"Not assessed") -> 10375.09901 | K8: 3.53886 | L8: 152.6 | M8: 0 | N8: 0 | O8: 0 | P8: 0 | Q8: 0 | R8: 0 | S8: 0 | T8: 0 | U8: 0 | V8: 10531.23787 | X8: =IFERROR(V8/$U$2,0) -> 0.0977735115
C9: 21 | D9: 21 | E9: (egen data) | G9: 0 | V9: =SUM(J9:U9) -> 0 | W9: =IFERROR(V9/$V$8,0) -> 0
C10: 21 | D10: 215 Pelefundamentering | E10: Betong | F10: Betong B45, bransjereferanse | G10: 10 | H10: =VLOOKUP($F10,Utslippsfaktorer!$B$6:$U$332,5,FALSE) -> m3 | I10: =VLOOKUP($F10,Utslippsfaktorer!$B$6:$U$332,6,FALSE) -> 60 | J10: =IFERROR(VLOOKUP($F10,Utslippsfaktorer!$B$6:$U$332,7,FALSE)*$G10,0) -> 3600 | K10: =VLOOKUP($F10,Utslippsfaktorer!$B$6:$U$332,8,FALSE)*$G10 -> 3.192 | L10: =VLOOKUP($F10,Utslippsfaktorer!$B$6:$U$332,9,FALSE)*$G10 -> 0 | M10: =VLOOKUP($F10,Utslippsfaktorer!$B$6:$U$332,10,FALSE)*$G10 -> 0 | N10: =VLOOKUP($F10,Utslippsfaktorer!$B$6:$U$332,11,FALSE)*$G10 -> 0 | O10: =VLOOKUP($F10,Utslippsfaktorer!$B$6:$U$332,12,FALSE)*$G10 -> 0 | P10: =VLOOKUP($F10,Utslippsfaktorer!$B$6:$U$332,13,FALSE)*$G10 -> 0 | Q10: =VLOOKUP($F10,Utslippsfaktorer!$B$6:$U$332,14,FALSE)*$G10 -> 0 | R10: =VLOOKUP($F10,Utslippsfaktorer!$B$6:$U$332,16,FALSE)*$G10 -> 0 | S10: =VLOOKUP($F10,Utslippsfaktorer!$B$6:$U$332,17,FALSE)*$G10 -> 0 | T10: =VLOOKUP($F10,Utslippsfaktorer!$B$6:$U$332,18,FALSE)*$G10 -> 0 | U10: =VLOOKUP($F10,Utslippsfaktorer!$B$6:$U$332,19,FALSE)*$G10 -> 0 | V10: =SUM(J10:U10) -> 3603.192 | W10: =IFERROR(V10/$V$8,0) -> 0.3421432545 | X10: =VLOOKUP($F10,Utslippsfaktorer!$B$6:$U$332,3,FALSE) -> 0
C11: 21 | D11: 215 Pelefundamentering | E11: Stål | F11: Stål, konstruksjon m/resirk | G11: 1700 | H11: =VLOOKUP($F11,Utslippsfaktorer!$B$6:$U$332,5,FALSE) -> kg | I11: =VLOOKUP($F11,Utslippsfaktorer!$B$6:$U$332,6,FALSE) -> 60 | J11: =IFERROR(VLOOKUP($F11,Utslippsfaktorer!$B$6:$U$332,7,FALSE)*$G11,0) -> 2112.327273 | K11: =VLOOKUP($F11,Utslippsfaktorer!$B$6:$U$332,8,FALSE)*$G11 -> 0.14382 | L11: =VLOOKUP($F11,Utslippsfaktorer!$B$6:$U$332,9,FALSE)*$G11 -> 0 | M11: =VLOOKUP($F11,Utslippsfaktorer!$B$6:$U$332,10,FALSE)*$G11 -> 0 | N11: =VLOOKUP($F11,Utslippsfaktorer!$B$6:$U$332,11,FALSE)*$G11 -> 0 | O11: =VLOOKUP($F11,Utslippsfaktorer!$B$6:$U$332,12,FALSE)*$G11 -> 0 | P11: =VLOOKUP($F11,Utslippsfaktorer!$B$6:$U$332,13,FALSE)*$G11 -> 0 | Q11: =VLOOKUP($F11,Utslippsfaktorer!$B$6:$U$332,14,FALSE)*$G11 -> 0 | R11: =VLOOKUP($F11,Utslippsfaktorer!$B$6:$U$332,16,FALSE)*$G11 -> 0 | S11: =VLOOKUP($F11,Utslippsfaktorer!$B$6:$U$332,17,FALSE)*$G11 -> 0 | T11: =VLOOKUP($F11,Utslippsfaktorer!$B$6:$U$332,18,FALSE)*$G11 -> 0 | U11: =VLOOKUP($F11,Utslippsfaktorer!$B$6:$U$332,19,FALSE)*$G11 -> 0 | V11: 2112.471093 | W11: =IFERROR(V11/$V$8,0) -> 0.2005909579 | X11: =VLOOKUP($F11,Utslippsfaktorer!$B$6:$U$332,3,FALSE) -> 0
C12: 21 | D12: 215 Pelefundamentering | E12: Isolasjon | F12: Ekstrudert polystyren (XPS 400) | G12: 40 | H12: =VLOOKUP($F12,Utslippsfaktorer!$B$6:$U$332,5,FALSE) -> m3 | I12: =VLOOKUP($F12,Utslippsfaktorer!$B$6:$U$332,6,FALSE) -> 20 | J12: =IFERROR(VLOOKUP($F12,Utslippsfaktorer!$B$6:$U$332,7,FALSE)*$G12,0) -> 4473.671742 | K12: =VLOOKUP($F12,Utslippsfaktorer!$B$6:$U$332,8,FALSE)*$G12 -> 0.10152 | L12: =VLOOKUP($F12,Utslippsfaktorer!$B$6:$U$332,9,FALSE)*$G12 -> 0 | M12: =VLOOKUP($F12,Utslippsfaktorer!$B$6:$U$332,10,FALSE)*$G12 -> 0 | N12: =VLOOKUP($F12,Utslippsfaktorer!$B$6:$U$332,11,FALSE)*$G12 -> 0 | O12: =VLOOKUP($F12,Utslippsfaktorer!$B$6:$U$332,12,FALSE)*$G12 -> 0 | P12: =VLOOKUP($F12,Utslippsfaktorer!$B$6:$U$332,13,FALSE)*$G12 -> 0 | Q12: =VLOOKUP($F12,Utslippsfaktorer!$B$6:$U$332,14,FALSE)*$G12 -> 0 | R12: =VLOOKUP($F12,Utslippsfaktorer!$B$6:$U$332,16,FALSE)*$G12 -> 0 | S12: =VLOOKUP($F12,Utslippsfaktorer!$B$6:$U$332,17,FALSE)*$G12 -> 0 | T12: =VLOOKUP($F12,Utslippsfaktorer!$B$6:$U$332,18,FALSE)*$G12 -> 0 | U12: =VLOOKUP($F12,Utslippsfaktorer!$B$6:$U$332,19,FALSE)*$G12 -> 0 | V12: =SUM(J12:U12) -> 4473.773262 | W12: =IFERROR(V12/$V$8,0) -> 0.4248098196 | X12: =VLOOKUP($F12,Utslippsfaktorer!$B$6:$U$332,3,FALSE) -> 0
C13: 21 | D13: 215 Pelefundamentering | E13: Bitumen | F13: Bitumen, EPD snitt | G13: 40 | H13: =VLOOKUP($F13,Utslippsfaktorer!$B$6:$U$332,5,FALSE) -> m2 | I13: =VLOOKUP($F13,Utslippsfaktorer!$B$6:$U$332,6,FALSE) -> 25 | J13: =IFERROR(VLOOKUP($F13,Utslippsfaktorer!$B$6:$U$332,7,FALSE)*$G13,0) -> 189.1 | K13: =VLOOKUP($F13,Utslippsfaktorer!$B$6:$U$332,8,FALSE)*$G13 -> 0.10152 | L13: =VLOOKUP($F13,Utslippsfaktorer!$B$6:$U$332,9,FALSE)*$G13 -> 152.6 | M13: =VLOOKUP($F13,Utslippsfaktorer!$B$6:$U$332,10,FALSE)*$G13 -> 0 | N13: =VLOOKUP($F13,Utslippsfaktorer!$B$6:$U$332,11,FALSE)*$G13 -> 0 | O13: =VLOOKUP($F13,Utslippsfaktorer!$B$6:$U$332,12,FALSE)*$G13 -> 0 | P13: =VLOOKUP($F13,Utslippsfaktorer!$B$6:$U$332,13,FALSE)*$G13 -> 0 | Q13: =VLOOKUP($F13,Utslippsfaktorer!$B$6:$U$332,14,FALSE)*$G13 -> 0 | R13: =VLOOKUP($F13,Utslippsfaktorer!$B$6:$U$332,16,FALSE)*$G13 -> 0 | S13: =VLOOKUP($F13,Utslippsfaktorer!$B$6:$U$332,17,FALSE)*$G13 -> 0 | T13: =VLOOKUP($F13,Utslippsfaktorer!$B$6:$U$332,18,FALSE)*$G13 -> 0 | U13: =VLOOKUP($F13,Utslippsfaktorer!$B$6:$U$332,19,FALSE)*$G13 -> 0 | V13: =SUM(J13:U13) -> 341.80152 | W13: =IFERROR(V13/$V$8,0) -> 0.03245596805 | X13: =VLOOKUP($F13,Utslippsfaktorer!$B$6:$U$332,3,FALSE) -> 0
C14: 21 | D14: 216 Pelefundamentering | E14: (egen data) | G14: 0 | V14: 0 | W14: =IFERROR(V14/$V$8,0) -> 0
C15: 21 | D15: 216 Direkte fundamentering | E15: (Velg kategori) | F15: (Velg material eller prosesser) | G15: 0 | H15: =VLOOKUP($F15,Utslippsfaktorer!$B$6:$U$332,5,FALSE) -> - | I15: =VLOOKUP($F15,Utslippsfaktorer!$B$6:$U$332,6,FALSE) -> 0 | J15: =IFERROR(VLOOKUP($F15,Utslippsfaktorer!$B$6:$U$332,7,FALSE)*$G15,0) -> 0 | K15: =VLOOKUP($F15,Utslippsfaktorer!$B$6:$U$332,8,FALSE)*$G15 -> 0 | L15: =VLOOKUP($F15,Utslippsfaktorer!$B$6:$U$332,9,FALSE)*$G15 -> 0 | M15: =VLOOKUP($F15,Utslippsfaktorer!$B$6:$U$332,10,FALSE)*$G15 -> 0 | N15: =VLOOKUP($F15,Utslippsfaktorer!$B$6:$U$332,11,FALSE)*$G15 -> 0 | O15: =VLOOKUP($F15,Utslippsfaktorer!$B$6:$U$332,12,FALSE)*$G15 -> 0 | P15: =VLOOKUP($F15,Utslippsfaktorer!$B$6:$U$332,13,FALSE)*$G15 -> 0 | Q15: =VLOOKUP($F15,Utslippsfaktorer!$B$6:$U$332,14,FALSE)*$G15 -> 0 | R15: =VLOOKUP($F15,Utslippsfaktorer!$B$6:$U$332,16,FALSE)*$G15 -> 0 | S15: =VLOOKUP($F15,Utslippsfaktorer!$B$6:$U$332,17,FALSE)*$G15 -> 0 | T15: =VLOOKUP($F15,Utslippsfaktorer!$B$6:$U$332,18,FALSE)*$G15 -> 0 | U15: =VLOOKUP($F15,Utslippsfaktorer!$B$6:$U$332,19,FALSE)*$G15 -> 0 | V15: 0 | W15: =IFERROR(V15/$V$8,0) -> 0 | X15: =VLOOKUP($F15,Utslippsfaktorer!$B$6:$U$332,3,FALSE) -> -
C16: 21 | D16: 216 Direkte fundamentering | E16: (egen data) | G16: 0 | V16: 0 | W16: =IFERROR(V16/$V$8,0) -> 0
A18: seksjon2 | C18: 22 | D18: Bæresystemer | J18: =IFERROR((SUM(J19:J36)),"Not assessed") -> 0 | K18: 0 | L18: 0 | M18: 0 | N18: 0 | O18: 0 | P18: 0 | Q18: 0 | R18: 0 | S18: 0 | T18: 0 | U18: 0 | V18: =IFERROR((SUM(V19:V36)),"Not assessed") -> 0 | X18: =IFERROR(V18/$U$2,0) -> 0
C19: 22 | D19: 22 | E19: (egen data) | G19: 0 | V19: =SUM(J19:U19) -> 0 | W19: =IFERROR(V19/$V$18,0) -> 0
C20: 22 | D20: 221 Rammer | E20: (Velg kategori) | F20: (Velg material eller prosesser) | G20: 0 | H20: =VLOOKUP($F20,Utslippsfaktorer!$B$6:$U$332,5,FALSE) -> - | I20: =VLOOKUP($F20,Utslippsfaktorer!$B$6:$U$332,6,FALSE) -> 0 | J20: =IFERROR(VLOOKUP($F20,Utslippsfaktorer!$B$6:$U$332,7,FALSE)*$G20,0) -> 0 | K20: =VLOOKUP($F20,Utslippsfaktorer!$B$6:$U$332,8,FALSE)*$G20 -> 0 | L20: =VLOOKUP($F20,Utslippsfaktorer!$B$6:$U$332,9,FALSE)*$G20 -> 0 | M20: =VLOOKUP($F20,Utslippsfaktorer!$B$6:$U$332,10,FALSE)*$G20 -> 0 | N20: =VLOOKUP($F20,Utslippsfaktorer!$B$6:$U$332,11,FALSE)*$G20 -> 0 | O20: =VLOOKUP($F20,Utslippsfaktorer!$B$6:$U$332,12,FALSE)*$G20 -> 0 | P20: =VLOOKUP($F20,Utslippsfaktorer!$B$6:$U$332,13,FALSE)*$G20 -> 0 | Q20: =VLOOKUP($F20,Utslippsfaktorer!$B$6:$U$332,14,FALSE)*$G20 -> 0 | R20: =VLOOKUP($F20,Utslippsfaktorer!$B$6:$U$332,16,FALSE)*$G20 -> 0 | S20: =VLOOKUP($F20,Utslippsfaktorer!$B$6:$U$332,17,FALSE)*$G20 -> 0 | T20: =VLOOKUP($F20,Utslippsfaktorer!$B$6:$U$332,18,FALSE)*$G20 -> 0 | U20: =VLOOKUP($F20,Utslippsfaktorer!$B$6:$U$332,19,FALSE)*$G20 -> 0 | V20: 0 | W20: =IFERROR(V20/$V$18,0) -> 0 | X20: =VLOOKUP($F20,Utslippsfaktorer!$B$6:$U$332,3,FALSE) -> -
C21: 22 | D21: 221 Rammer | E21: (egen data) | G21: 0 | V21: 0 | W21: 0
C22: 22 | D22: 222 Søyler | E22: (Velg kategori) | F22: (Velg material eller prosesser) | G22: 0 | H22: =VLOOKUP($F22,Utslippsfaktorer!$B$6:$U$332,5,FALSE) -> - | I22: =VLOOKUP($F22,Utslippsfaktorer!$B$6:$U$332,6,FALSE) -> 0 | J22: =IFERROR(VLOOKUP($F22,Utslippsfaktorer!$B$6:$U$332,7,FALSE)*$G22,0) -> 0 | K22: =VLOOKUP($F22,Utslippsfaktorer!$B$6:$U$332,8,FALSE)*$G22 -> 0 | L22: =VLOOKUP($F22,Utslippsfaktorer!$B$6:$U$332,9,FALSE)*$G22 -> 0 | M22: =VLOOKUP($F22,Utslippsfaktorer!$B$6:$U$332,10,FALSE)*$G22 -> 0 | N22: =VLOOKUP($F22,Utslippsfaktorer!$B$6:$U$332,11,FALSE)*$G22 -> 0 | O22: =VLOOKUP($F22,Utslippsfaktorer!$B$6:$U$332,12,FALSE)*$G22 -> 0 | P22: =VLOOKUP($F22,Utslippsfaktorer!$B$6:$U$332,13,FALSE)*$G22 -> 0 | Q22: =VLOOKUP($F22,Utslippsfaktorer!$B$6:$U$332,14,FALSE)*$G22 -> 0 | R22: =VLOOKUP($F22,Utslippsfaktorer!$B$6:$U$332,16,FALSE)*$G22 -> 0 | S22: =VLOOKUP($F22,Utslippsfaktorer!$B$6:$U$332,17,FALSE)*$G22 -> 0 | T22: =VLOOKUP($F22,Utslippsfaktorer!$B$6:$U$332,18,FALSE)*$G22 -> 0 | U22: =VLOOKUP($F22,Utslippsfaktorer!$B$6:$U$332,19,FALSE)*$G22 -> 0 | V22: 0 | W22: 0 | X22: =VLOOKUP($F22,Utslippsfaktorer!$B$6:$U$332,3,FALSE) -> -
C23: 22 | D23: 222 Søyler | E23: (egen data) | G23: 0 | V23: 0 | W23: 0
C24: 22 | D24: 223 Bjelker | E24: (Velg kategori) | F24: (Velg material eller prosesser) | G24: 0 | H24: =VLOOKUP($F24,Utslippsfaktorer!$B$6:$U$332,5,FALSE) -> - | I24: =VLOOKUP($F24,Utslippsfaktorer!$B$6:$U$332,6,FALSE) -> 0 | J24: =IFERROR(VLOOKUP($F24,Utslippsfaktorer!$B$6:$U$332,7,FALSE)*$G24,0) -> 0 | K24: =VLOOKUP($F24,Utslippsfaktorer!$B$6:$U$332,8,FALSE)*$G24 -> 0 | L24: =VLOOKUP($F24,Utslippsfaktorer!$B$6:$U$332,9,FALSE)*$G24 -> 0 | M24: =VLOOKUP($F24,Utslippsfaktorer!$B$6:$U$332,10,FALSE)*$G24 -> 0 | N24: =VLOOKUP($F24,Utslippsfaktorer!$B$6:$U$332,11,FALSE)*$G24 -> 0 | O24: =VLOOKUP($F24,Utslippsfaktorer!$B$6:$U$332,12,FALSE)*$G24 -> 0 | P24: =VLOOKUP($F24,Utslippsfaktorer!$B$6:$U$332,13,FALSE)*$G24 -> 0 | Q24: =VLOOKUP($F24,Utslippsfaktorer!$B$6:$U$332,14,FALSE)*$G24 -> 0 | R24: =VLOOKUP($F24,Utslippsfaktorer!$B$6:$U$332,16,FALSE)*$G24 -> 0 | S24: =VLOOKUP($F24,Utslippsfaktorer!$B$6:$U$332,17,FALSE)*$G24 -> 0 | T24: =VLOOKUP($F24,Utslippsfaktorer!$B$6:$U$332,18,FALSE)*$G24 -> 0 | U24: =VLOOKUP($F24,Utslippsfaktorer!$B$6:$U$332,19,FALSE)*$G24 -> 0 | V24: 0 | W24: 0 | X24: =VLOOKUP($F24,Utslippsfaktorer!$B$6:$U$332,3,FALSE) -> -
C25: 22 | D25: 223 Bjelker | E25: (egen data) | G25: 0 | V25: 0 | W25: 0
C26: 22 | D26: 224 Avstivende konstruksjoner | E26: (Velg kategori) | F26: (Velg material eller prosesser) | G26: 0 | H26: =VLOOKUP($F26,Utslippsfaktorer!$B$6:$U$332,5,FALSE) -> - | I26: =VLOOKUP($F26,Utslippsfaktorer!$B$6:$U$332,6,FALSE) -> 0 | J26: =IFERROR(VLOOKUP($F26,Utslippsfaktorer!$B$6:$U$332,7,FALSE)*$G26,0) -> 0 | K26: =VLOOKUP($F26,Utslippsfaktorer!$B$6:$U$332,8,FALSE)*$G26 -> 0 | L26: =VLOOKUP($F26,Utslippsfaktorer!$B$6:$U$332,9,FALSE)*$G26 -> 0 | M26: =VLOOKUP($F26,Utslippsfaktorer!$B$6:$U$332,10,FALSE)*$G26 -> 0 | N26: =VLOOKUP($F26,Utslippsfaktorer!$B$6:$U$332,11,FALSE)*$G26 -> 0 | O26: =VLOOKUP($F26,Utslippsfaktorer!$B$6:$U$332,12,FALSE)*$G26 -> 0 | P26: =VLOOKUP($F26,Utslippsfaktorer!$B$6:$U$332,13,FALSE)*$G26 -> 0 | Q26: =VLOOKUP($F26,Utslippsfaktorer!$B$6:$U$332,14,FALSE)*$G26 -> 0 | R26: =VLOOKUP($F26,Utslippsfaktorer!$B$6:$U$332,16,FALSE)*$G26 -> 0 | S26: =VLOOKUP($F26,Utslippsfaktorer!$B$6:$U$332,17,FALSE)*$G26 -> 0 | T26: =VLOOKUP($F26,Utslippsfaktorer!$B$6:$U$332,18,FALSE)*$G26 -> 0 | U26: =VLOOKUP($F26,Utslippsfaktorer!$B$6:$U$332,19,FALSE)*$G26 -> 0 | V26: 0 | W26: 0 | X26: =VLOOKUP($F26,Utslippsfaktorer!$B$6:$U$332,3,FALSE) -> -
C27: 22 | D27: 224 Avstivende konstruksjoner | E27: (egen data) | G27: 0 | V27: 0 | W27: 0
C28: 22 | D28: 225 Brannbeskyttelse av bærende konstruksjoner | E28: (Velg kategori) | F28: (Velg material eller prosesser) | G28: 0 | H28: =VLOOKUP($F28,Utslippsfaktorer!$B$6:$U$332,5,FALSE) -> - | I28: =VLOOKUP($F28,Utslippsfaktorer!$B$6:$U$332,6,FALSE) -> 0 | J28: =IFERROR(VLOOKUP($F28,Utslippsfaktorer!$B$6:$U$332,7,FALSE)*$G28,0) -> 0 | K28: =VLOOKUP($F28,Utslippsfaktorer!$B$6:$U$332,8,FALSE)*$G28 -> 0 | L28: =VLOOKUP($F28,Utslippsfaktorer!$B$6:$U$332,9,FALSE)*$G28 -> 0 | M28: =VLOOKUP($F28,Utslippsfaktorer!$B$6:$U$332,10,FALSE)*$G28 -> 0 | N28: =VLOOKUP($F28,Utslippsfaktorer!$B$6:$U$332,11,FALSE)*$G28 -> 0 | O28: =VLOOKUP($F28,Utslippsfaktorer!$B$6:$U$332,12,FALSE)*$G28 -> 0 | P28: =VLOOKUP($F28,Utslippsfaktorer!$B$6:$U$332,13,FALSE)*$G28 -> 0 | Q28: =VLOOKUP($F28,Utslippsfaktorer!$B$6:$U$332,14,FALSE)*$G28 -> 0 | R28: =VLOOKUP($F28,Utslippsfaktorer!$B$6:$U$332,16,FALSE)*$G28 -> 0 | S28: =VLOOKUP($F28,Utslippsfaktorer!$B$6:$U$332,17,FALSE)*$G28 -> 0 | T28: =VLOOKUP($F28,Utslippsfaktorer!$B$6:$U$332,18,FALSE)*$G28 -> 0 | U28: =VLOOKUP($F28,Utslippsfaktorer!$B$6:$U$332,19,FALSE)*$G28 -> 0 | V28: 0 | W28: 0 | X28: =VLOOKUP($F28,Utslippsfaktorer!$B$6:$U$332,3,FALSE) -> -
C29: 22 | D29: 225 Brannbeskyttelse av bærende konstruksjoner | E29: (egen data) | G29: 0 | V29: 0 | W29: 0
C30: 22 | D30: 226 Kleding og overflate | E30: (Velg kategori) | F30: (Velg material eller prosesser) | G30: 0 | H30: =VLOOKUP($F30,Utslippsfaktorer!$B$6:$U$332,5,FALSE) -> - | I30: =VLOOKUP($F30,Utslippsfaktorer!$B$6:$U$332,6,FALSE) -> 0 | J30: =IFERROR(VLOOKUP($F30,Utslippsfaktorer!$B$6:$U$332,7,FALSE)*$G30,0) -> 0 | K30: =VLOOKUP($F30,Utslippsfaktorer!$B$6:$U$332,8,FALSE)*$G30 -> 0 | L30: =VLOOKUP($F30,Utslippsfaktorer!$B$6:$U$332,9,FALSE)*$G30 -> 0 | M30: =VLOOKUP($F30,Utslippsfaktorer!$B$6:$U$332,10,FALSE)*$G30 -> 0 | N30: =VLOOKUP($F30,Utslippsfaktorer!$B$6:$U$332,11,FALSE)*$G30 -> 0 | O30: =VLOOKUP($F30,Utslippsfaktorer!$B$6:$U$332,12,FALSE)*$G30 -> 0 | P30: =VLOOKUP($F30,Utslippsfaktorer!$B$6:$U$332,13,FALSE)*$G30 -> 0 | Q30: =VLOOKUP($F30,Utslippsfaktorer!$B$6:$U$332,14,FALSE)*$G30 -> 0 | R30: =VLOOKUP($F30,Utslippsfaktorer!$B$6:$U$332,16,FALSE)*$G30 -> 0 | S30: =VLOOKUP($F30,Utslippsfaktorer!$B$6:$U$332,17,FALSE)*$G30 -> 0 | T30: =VLOOKUP($F30,Utslippsfaktorer!$B$6:$U$332,18,FALSE)*$G30 -> 0 | U30: =VLOOKUP($F30,Utslippsfaktorer!$B$6:$U$332,19,FALSE)*$G30 -> 0 | V30: 0 | W30: 0 | X30: =VLOOKUP($F30,Utslippsfaktorer!$B$6:$U$332,3,FALSE) -> -
C31: 22 | D31: 226 Kleding og overflate | E31: (egen data) | G31: 0 | V31: 0 | W31: 0
C32: 22 | D32: 228 Utstyr og komplettering | E32: (Velg kategori) | F32: (Velg material eller prosesser) | G32: 0 | H32: =VLOOKUP($F32,Utslippsfaktorer!$B$6:$U$332,5,FALSE) -> - | I32: =VLOOKUP($F32,Utslippsfaktorer!$B$6:$U$332,6,FALSE) -> 0 | J32: =IFERROR(VLOOKUP($F32,Utslippsfaktorer!$B$6:$U$332,7,FALSE)*$G32,0) -> 0 | K32: =VLOOKUP($F32,Utslippsfaktorer!$B$6:$U$332,8,FALSE)*$G32 -> 0 | L32: =VLOOKUP($F32,Utslippsfaktorer!$B$6:$U$332,9,FALSE)*$G32 -> 0 | M32: =VLOOKUP($F32,Utslippsfaktorer!$B$6:$U$332,10,FALSE)*$G32 -> 0 | N32: =VLOOKUP($F32,Utslippsfaktorer!$B$6:$U$332,11,FALSE)*$G32 -> 0 | O32: =VLOOKUP($F32,Utslippsfaktorer!$B$6:$U$332,12,FALSE)*$G32 -> 0 | P32: =VLOOKUP($F32,Utslippsfaktorer!$B$6:$U$332,13,FALSE)*$G32 -> 0 | Q32: =VLOOKUP($F32,Utslippsfaktorer!$B$6:$U$332,14,FALSE)*$G32 -> 0 | R32: =VLOOKUP($F32,Utslippsfaktorer!$B$6:$U$332,16,FALSE)*$G32 -> 0 | S32: =VLOOKUP($F32,Utslippsfaktorer!$B$6:$U$332,17,FALSE)*$G32 -> 0 | T32: =VLOOKUP($F32,Utslippsfaktorer!$B$6:$U$332,18,FALSE)*$G32 -> 0 | U32: =VLOOKUP($F32,Utslippsfaktorer!$B$6:$U$332,19,FALSE)*$G32 -> 0 | V32: 0 | W32: 0 | X32: =VLOOKUP($F32,Utslippsfaktorer!$B$6:$U$332,3,FALSE) -> -
C33: 22 | D33: 228 Utstyr og komplettering | E33: (egen data) | G33: 0 | V33: 0 | W33: 0
C34: 22 | D34: 229 Andre deler av bærende konstruksjoner | E34: (Velg kategori) | F34: (Velg material eller prosesser) | G34: 0 | H34: =VLOOKUP($F34,Utslippsfaktorer!$B$6:$U$332,5,FALSE) -> - | I34: =VLOOKUP($F34,Utslippsfaktorer!$B$6:$U$332,6,FALSE) -> 0 | J34: =IFERROR(VLOOKUP($F34,Utslippsfaktorer!$B$6:$U$332,7,FALSE)*$G34,0) -> 0 | K34: =VLOOKUP($F34,Utslippsfaktorer!$B$6:$U$332,8,FALSE)*$G34 -> 0 | L34: =VLOOKUP($F34,Utslippsfaktorer!$B$6:$U$332,9,FALSE)*$G34 -> 0 | M34: =VLOOKUP($F34,Utslippsfaktorer!$B$6:$U$332,10,FALSE)*$G34 -> 0 | N34: =VLOOKUP($F34,Utslippsfaktorer!$B$6:$U$332,11,FALSE)*$G34 -> 0 | O34: =VLOOKUP($F34,Utslippsfaktorer!$B$6:$U$332,12,FALSE)*$G34 -> 0 | P34: =VLOOKUP($F34,Utslippsfaktorer!$B$6:$U$332,13,FALSE)*$G34 -> 0 | Q34: =VLOOKUP($F34,Utslippsfaktorer!$B$6:$U$332,14,FALSE)*$G34 -> 0 | R34: =VLOOKUP($F34,Utslippsfaktorer!$B$6:$U$332,16,FALSE)*$G34 -> 0 | S34: =VLOOKUP($F34,Utslippsfaktorer!$B$6:$U$332,17,FALSE)*$G34 -> 0 | T34: =VLOOKUP($F34,Utslippsfaktorer!$B$6:$U$332,18,FALSE)*$G34 -> 0 | U34: =VLOOKUP($F34,Utslippsfaktorer!$B$6:$U$332,19,FALSE)*$G34 -> 0 | V34: 0 | W34: 0 | X34: =VLOOKUP($F34,Utslippsfaktorer!$B$6:$U$332,3,FALSE) -> -
C35: 22 | D35: 229 Andre deler av bærende konstruksjoner | E35: (egen data) | G35: 0 | V35: 0 | W35: 0
A37: seksjon3 | C37: 23 | D37: Yttervegger | J37: =IFERROR((SUM(J38:J59)),"Not assessed") -> 48241 | K37: 21.4461 | L37: 0 | M37: 0 | N37: 0 | O37: 0 | P37: 0 | Q37: 0 | R37: 0 | S37: 0 | T37: 0 | U37: 0 | V37: 48262.4461 | X37: =IFERROR(V37/$U$2,0) -> 0.4480754195
C38: 23 | D38: 23 | E38: (egen data) | G38: 0 | V38: =SUM(J38:U38) -> 0 | W38: =IFERROR(V38/$V$37,0) -> 0
C39: 23 | D39: 231 Bærende ytterveggen | E39: Bygningsplater | F39: Bygningsplater - Gipsplater (12-15 mm) | G39: 50 | H39: =VLOOKUP($F39,Utslippsfaktorer!$B$6:$U$332,5,FALSE) -> m2 | I39: =VLOOKUP($F39,Utslippsfaktorer!$B$6:$U$332,6,FALSE) -> 40 | J39: =IFERROR(VLOOKUP($F39,Utslippsfaktorer!$B$6:$U$332,7,FALSE)*$G39,0) -> 141 | K39: =VLOOKUP($F39,Utslippsfaktorer!$B$6:$U$332,8,FALSE)*$G39 -> 0.1269 | L39: =VLOOKUP($F39,Utslippsfaktorer!$B$6:$U$332,9,FALSE)*$G39 -> 0 | M39: =VLOOKUP($F39,Utslippsfaktorer!$B$6:$U$332,10,FALSE)*$G39 -> 0 | N39: =VLOOKUP($F39,Utslippsfaktorer!$B$6:$U$332,11,FALSE)*$G39 -> 0 | O39: =VLOOKUP($F39,Utslippsfaktorer!$B$6:$U$332,12,FALSE)*$G39 -> 0 | P39: =VLOOKUP($F39,Utslippsfaktorer!$B$6:$U$332,13,FALSE)*$G39 -> 0 | Q39: =VLOOKUP($F39,Utslippsfaktorer!$B$6:$U$332,14,FALSE)*$G39 -> 0 | R39: =VLOOKUP($F39,Utslippsfaktorer!$B$6:$U$332,16,FALSE)*$G39 -> 0 | S39: =VLOOKUP($F39,Utslippsfaktorer!$B$6:$U$332,17,FALSE)*$G39 -> 0 | T39: =VLOOKUP($F39,Utslippsfaktorer!$B$6:$U$332,18,FALSE)*$G39 -> 0 | U39: =VLOOKUP($F39,Utslippsfaktorer!$B$6:$U$332,19,FALSE)*$G39 -> 0 | V39: 141.1269 | W39: =IFERROR(V39/$V$37,0) -> 0.002924155558 | X39: =VLOOKUP($F39,Utslippsfaktorer!$B$6:$U$332,3,FALSE) -> Grønn materialguide
C40: 23 | D40: 231 Bærende ytterveggen | E40: Konstruktive materialer | F40: Konstruktive materialer - Betong (lavkarbon A, B30) | G40: 100 | H40: =VLOOKUP($F40,Utslippsfaktorer!$B$6:$U$332,5,FALSE) -> m3 | I40: =VLOOKUP($F40,Utslippsfaktorer!$B$6:$U$332,6,FALSE) -> 60 | J40: =IFERROR(VLOOKUP($F40,Utslippsfaktorer!$B$6:$U$332,7,FALSE)*$G40,0) -> 20000 | K40: =VLOOKUP($F40,Utslippsfaktorer!$B$6:$U$332,8,FALSE)*$G40 -> 20.304 | L40: =VLOOKUP($F40,Utslippsfaktorer!$B$6:$U$332,9,FALSE)*$G40 -> 0 | M40: =VLOOKUP($F40,Utslippsfaktorer!$B$6:$U$332,10,FALSE)*$G40 -> 0 | N40: =VLOOKUP($F40,Utslippsfaktorer!$B$6:$U$332,11,FALSE)*$G40 -> 0 | O40: =VLOOKUP($F40,Utslippsfaktorer!$B$6:$U$332,12,FALSE)*$G40 -> 0 | P40: =VLOOKUP($F40,Utslippsfaktorer!$B$6:$U$332,13,FALSE)*$G40 -> 0 | Q40: =VLOOKUP($F40,Utslippsfaktorer!$B$6:$U$332,14,FALSE)*$G40 -> 0 | R40: =VLOOKUP($F40,Utslippsfaktorer!$B$6:$U$332,16,FALSE)*$G40 -> 0 | S40: =VLOOKUP($F40,Utslippsfaktorer!$B$6:$U$332,17,FALSE)*$G40 -> 0 | T40: =VLOOKUP($F40,Utslippsfaktorer!$B$6:$U$332,18,FALSE)*$G40 -> 0 | U40: =VLOOKUP($F40,Utslippsfaktorer!$B$6:$U$332,19,FALSE)*$G40 -> 0 | V40: =SUM(J40:U40) -> 20020.304 | W40: 0.414821577
C41: 23 | D41: 231 Bærende ytterveggen | E41: Murstein | F41: Fasadesystem med resirkulert murstein | G41: 200 | H41: =VLOOKUP($F41,Utslippsfaktorer!$B$6:$U$332,5,FALSE) -> m2 | I41: =VLOOKUP($F41,Utslippsfaktorer!$B$6:$U$332,6,FALSE) -> 60 | J41: =IFERROR(VLOOKUP($F41,Utslippsfaktorer!$B$6:$U$332,7,FALSE)*$G41,0) -> 11100 | K41: =VLOOKUP($F41,Utslippsfaktorer!$B$6:$U$332,8,FALSE)*$G41 -> 0.5076 | L41: =VLOOKUP($F41,Utslippsfaktorer!$B$6:$U$332,9,FALSE)*$G41 -> 0 | M41: =VLOOKUP($F41,Utslippsfaktorer!$B$6:$U$332,10,FALSE)*$G41 -> 0 | N41: =VLOOKUP($F41,Utslippsfaktorer!$B$6:$U$332,11,FALSE)*$G41 -> 0 | O41: =VLOOKUP($F41,Utslippsfaktorer!$B$6:$U$332,12,FALSE)*$G41 -> 0 | P41: =VLOOKUP($F41,Utslippsfaktorer!$B$6:$U$332,13,FALSE)*$G41 -> 0 | Q41: =VLOOKUP($F41,Utslippsfaktorer!$B$6:$U$332,14,FALSE)*$G41 -> 0 | R41: =VLOOKUP($F41,Utslippsfaktorer!$B$6:$U$332,16,FALSE)*$G41 -> 0 | S41: =VLOOKUP($F41,Utslippsfaktorer!$B$6:$U$332,17,FALSE)*$G41 -> 0 | T41: =VLOOKUP($F41,Utslippsfaktorer!$B$6:$U$332,18,FALSE)*$G41 -> 0 | U41: =VLOOKUP($F41,Utslippsfaktorer!$B$6:$U$332,19,FALSE)*$G41 -> 0 | V41: =SUM(J41:U41) -> 11100.5076 | W41: 0.2300030043 | X41: =VLOOKUP($F41,Utslippsfaktorer!$B$6:$U$332,3,FALSE) -> NEPD nr.: 1675-673-EN (2018)
C42: 23 | D42: 231 Bærende ytterveggen | E42: Isolasjon | F42: Ekspandert polystyren (EPS 200) | G42: 200 | H42: =VLOOKUP($F42,Utslippsfaktorer!$B$6:$U$332,5,FALSE) -> m3 | I42: =VLOOKUP($F42,Utslippsfaktorer!$B$6:$U$332,6,FALSE) -> 20 | J42: =IFERROR(VLOOKUP($F42,Utslippsfaktorer!$B$6:$U$332,7,FALSE)*$G42,0) -> 17000 | K42: =VLOOKUP($F42,Utslippsfaktorer!$B$6:$U$332,8,FALSE)*$G42 -> 0.5076 | L42: =VLOOKUP($F42,Utslippsfaktorer!$B$6:$U$332,9,FALSE)*$G42 -> 0 | M42: =VLOOKUP($F42,Utslippsfaktorer!$B$6:$U$332,10,FALSE)*$G42 -> 0 | N42: =VLOOKUP($F42,Utslippsfaktorer!$B$6:$U$332,11,FALSE)*$G42 -> 0 | O42: =VLOOKUP($F42,Utslippsfaktorer!$B$6:$U$332,12,FALSE)*$G42 -> 0 | P42: =VLOOKUP($F42,Utslippsfaktorer!$B$6:$U$332,13,FALSE)*$G42 -> 0 | Q42: =VLOOKUP($F42,Utslippsfaktorer!$B$6:$U$332,14,FALSE)*$G42 -> 0 | R42: =VLOOKUP($F42,Utslippsfaktorer!$B$6:$U$332,16,FALSE)*$G42 -> 0 | S42: =VLOOKUP($F42,Utslippsfaktorer!$B$6:$U$332,17,FALSE)*$G42 -> 0 | T42: =VLOOKUP($F42,Utslippsfaktorer!$B$6:$U$332,18,FALSE)*$G42 -> 0 | U42: =VLOOKUP($F42,Utslippsfaktorer!$B$6:$U$332,19,FALSE)*$G42 -> 0 | V42: =SUM(J42:U42) -> 17000.5076 | W42: 0.3522512631 | X42: =VLOOKUP($F42,Utslippsfaktorer!$B$6:$U$332,3,FALSE) -> 0
C43: 23 | D43: 231 Bærende ytterveggen | E43: (egen data) | G43: 0 | V43: 0 | W43: 0
C44: 23 | D44: 232 Ikke-bærende ytterveggen | E44: (Velg kategori) | F44: (Velg material eller prosesser) | G44: 0 | H44: =VLOOKUP($F44,Utslippsfaktorer!$B$6:$U$332,5,FALSE) -> - | I44: =VLOOKUP($F44,Utslippsfaktorer!$B$6:$U$332,6,FALSE) -> 0 | J44: =IFERROR(VLOOKUP($F44,Utslippsfaktorer!$B$6:$U$332,7,FALSE)*$G44,0) -> 0 | K44: =VLOOKUP($F44,Utslippsfaktorer!$B$6:$U$332,8,FALSE)*$G44 -> 0 | L44: =VLOOKUP($F44,Utslippsfaktorer!$B$6:$U$332,9,FALSE)*$G44 -> 0 | M44: =VLOOKUP($F44,Utslippsfaktorer!$B$6:$U$332,10,FALSE)*$G44 -> 0 | N44: =VLOOKUP($F44,Utslippsfaktorer!$B$6:$U$332,11,FALSE)*$G44 -> 0 | O44: =VLOOKUP($F44,Utslippsfaktorer!$B$6:$U$332,12,FALSE)*$G44 -> 0 | P44: =VLOOKUP($F44,Utslippsfaktorer!$B$6:$U$332,13,FALSE)*$G44 -> 0 | Q44: =VLOOKUP($F44,Utslippsfaktorer!$B$6:$U$332,14,FALSE)*$G44 -> 0 | R44: =VLOOKUP($F44,Utslippsfaktorer!$B$6:$U$332,16,FALSE)*$G44 -> 0 | S44: =VLOOKUP($F44,Utslippsfaktorer!$B$6:$U$332,17,FALSE)*$G44 -> 0 | T44: =VLOOKUP($F44,Utslippsfaktorer!$B$6:$U$332,18,FALSE)*$G44 -> 0 | U44: =VLOOKUP($F44,Utslippsfaktorer!$B$6:$U$332,19,FALSE)*$G44 -> 0 | V44: =SUM(J44:U44) -> 0 | W44: 0 | X44: =VLOOKUP($F44,Utslippsfaktorer!$B$6:$U$332,3,FALSE) -> -
C45: 23 | D45: 232 Ikke-bærende ytterveggen | E45: (egen data) | G45: 0 | V45: 0 | W45: 0
C46: 23 | D46: 233 Glassfasader | E46: (Velg kategori) | F46: (Velg material eller prosesser) | G46: 0 | H46: =VLOOKUP($F46,Utslippsfaktorer!$B$6:$U$332,5,FALSE) -> - | I46: =VLOOKUP($F46,Utslippsfaktorer!$B$6:$U$332,6,FALSE) -> 0 | J46: =IFERROR(VLOOKUP($F46,Utslippsfaktorer!$B$6:$U$332,7,FALSE)*$G46,0) -> 0 | K46: =VLOOKUP($F46,Utslippsfaktorer!$B$6:$U$332,8,FALSE)*$G46 -> 0 | L46: =VLOOKUP($F46,Utslippsfaktorer!$B$6:$U$332,9,FALSE)*$G46 -> 0 | M46: =VLOOKUP($F46,Utslippsfaktorer!$B$6:$U$332,10,FALSE)*$G46 -> 0 | N46: =VLOOKUP($F46,Utslippsfaktorer!$B$6:$U$332,11,FALSE)*$G46 -> 0 | O46: =VLOOKUP($F46,Utslippsfaktorer!$B$6:$U$332,12,FALSE)*$G46 -> 0 | P46: =VLOOKUP($F46,Utslippsfaktorer!$B$6:$U$332,13,FALSE)*$G46 -> 0 | Q46: =VLOOKUP($F46,Utslippsfaktorer!$B$6:$U$332,14,FALSE)*$G46 -> 0 | R46: =VLOOKUP($F46,Utslippsfaktorer!$B$6:$U$332,16,FALSE)*$G46 -> 0 | S46: =VLOOKUP($F46,Utslippsfaktorer!$B$6:$U$332,17,FALSE)*$G46 -> 0 | T46: =VLOOKUP($F46,Utslippsfaktorer!$B$6:$U$332,18,FALSE)*$G46 -> 0 | U46: =VLOOKUP($F46,Utslippsfaktorer!$B$6:$U$332,19,FALSE)*$G46 -> 0 | V46: 0 | W46: 0 | X46: =VLOOKUP($F46,Utslippsfaktorer!$B$6:$U$332,3,FALSE) -> -
C47: 23 | D47: 233 Glassfasader | E47: (egen data) | G47: 0 | V47: 0 | W47: 0
C48: 23 | D48: 234 Vinduer, dører, porter | E48: (Velg kategori) | F48: (Velg material eller prosesser) | G48: 0 | H48: =VLOOKUP($F48,Utslippsfaktorer!$B$6:$U$332,5,FALSE) -> - | I48: =VLOOKUP($F48,Utslippsfaktorer!$B$6:$U$332,6,FALSE) -> 0 | J48: =IFERROR(VLOOKUP($F48,Utslippsfaktorer!$B$6:$U$332,7,FALSE)*$G48,0) -> 0 | K48: =VLOOKUP($F48,Utslippsfaktorer!$B$6:$U$332,8,FALSE)*$G48 -> 0 | L48: =VLOOKUP($F48,Utslippsfaktorer!$B$6:$U$332,9,FALSE)*$G48 -> 0 | M48: =VLOOKUP($F48,Utslippsfaktorer!$B$6:$U$332,10,FALSE)*$G48 -> 0 | N48: =VLOOKUP($F48,Utslippsfaktorer!$B$6:$U$332,11,FALSE)*$G48 -> 0 | O48: =VLOOKUP($F48,Utslippsfaktorer!$B$6:$U$332,12,FALSE)*$G48 -> 0 | P48: =VLOOKUP($F48,Utslippsfaktorer!$B$6:$U$332,13,FALSE)*$G48 -> 0 | Q48: =VLOOKUP($F48,Utslippsfaktorer!$B$6:$U$332,14,FALSE)*$G48 -> 0 | R48: =VLOOKUP($F48,Utslippsfaktorer!$B$6:$U$332,16,FALSE)*$G48 -> 0 | S48: =VLOOKUP($F48,Utslippsfaktorer!$B$6:$U$332,17,FALSE)*$G48 -> 0 | T48: =VLOOKUP($F48,Utslippsfaktorer!$B$6:$U$332,18,FALSE)*$G48 -> 0 | U48: =VLOOKUP($F48,Utslippsfaktorer!$B$6:$U$332,19,FALSE)*$G48 -> 0 | V48: 0 | W48: 0 | X48: =VLOOKUP($F48,Utslippsfaktorer!$B$6:$U$332,3,FALSE) -> -
C49: 23 | D49: 234 Vinduer, dører, porter | E49: (egen data) | G49: 0 | V49: 0 | W49: 0
C50: 23 | D50: 235 Utvending kleding og overflate | E50: (Velg kategori) | F50: (Velg material eller prosesser) | G50: 0 | H50: =VLOOKUP($F50,Utslippsfaktorer!$B$6:$U$332,5,FALSE) -> - | I50: =VLOOKUP($F50,Utslippsfaktorer!$B$6:$U$332,6,FALSE) -> 0 | J50: =IFERROR(VLOOKUP($F50,Utslippsfaktorer!$B$6:$U$332,7,FALSE)*$G50,0) -> 0 | K50: =VLOOKUP($F50,Utslippsfaktorer!$B$6:$U$332,8,FALSE)*$G50 -> 0 | L50: =VLOOKUP($F50,Utslippsfaktorer!$B$6:$U$332,9,FALSE)*$G50 -> 0 | M50: =VLOOKUP($F50,Utslippsfaktorer!$B$6:$U$332,10,FALSE)*$G50 -> 0 | N50: =VLOOKUP($F50,Utslippsfaktorer!$B$6:$U$332,11,FALSE)*$G50 -> 0 | O50: =VLOOKUP($F50,Utslippsfaktorer!$B$6:$U$332,12,FALSE)*$G50 -> 0 | P50: =VLOOKUP($F50,Utslippsfaktorer!$B$6:$U$332,13,FALSE)*$G50 -> 0 | Q50: =VLOOKUP($F50,Utslippsfaktorer!$B$6:$U$332,14,FALSE)*$G50 -> 0 | R50: =VLOOKUP($F50,Utslippsfaktorer!$B$6:$U$332,16,FALSE)*$G50 -> 0 | S50: =VLOOKUP($F50,Utslippsfaktorer!$B$6:$U$332,17,FALSE)*$G50 -> 0 | T50: =VLOOKUP($F50,Utslippsfaktorer!$B$6:$U$332,18,FALSE)*$G50 -> 0 | U50: =VLOOKUP($F50,Utslippsfaktorer!$B$6:$U$332,19,FALSE)*$G50 -> 0 | V50: 0 | W50: 0 | X50: =VLOOKUP($F50,Utslippsfaktorer!$B$6:$U$332,3,FALSE) -> -
C51: 23 | D51: 235 Utvending kleding og overflate | E51: (egen data) | G51: 0 | V51: 0 | W51: 0
C52: 23 | D52: 236 Innvending overflate | E52: (Velg kategori) | F52: (Velg material eller prosesser) | G52: 0 | H52: =VLOOKUP($F52,Utslippsfaktorer!$B$6:$U$332,5,FALSE) -> - | I52: =VLOOKUP($F52,Utslippsfaktorer!$B$6:$U$332,6,FALSE) -> 0 | J52: =IFERROR(VLOOKUP($F52,Utslippsfaktorer!$B$6:$U$332,7,FALSE)*$G52,0) -> 0 | K52: =VLOOKUP($F52,Utslippsfaktorer!$B$6:$U$332,8,FALSE)*$G52 -> 0 | L52: =VLOOKUP($F52,Utslippsfaktorer!$B$6:$U$332,9,FALSE)*$G52 -> 0 | M52: =VLOOKUP($F52,Utslippsfaktorer!$B$6:$U$332,10,FALSE)*$G52 -> 0 | N52: =VLOOKUP($F52,Utslippsfaktorer!$B$6:$U$332,11,FALSE)*$G52 -> 0 | O52: =VLOOKUP($F52,Utslippsfaktorer!$B$6:$U$332,12,FALSE)*$G52 -> 0 | P52: =VLOOKUP($F52,Utslippsfaktorer!$B$6:$U$332,13,FALSE)*$G52 -> 0 | Q52: =VLOOKUP($F52,Utslippsfaktorer!$B$6:$U$332,14,FALSE)*$G52 -> 0 | R52: =VLOOKUP($F52,Utslippsfaktorer!$B$6:$U$332,16,FALSE)*$G52 -> 0 | S52: =VLOOKUP($F52,Utslippsfaktorer!$B$6:$U$332,17,FALSE)*$G52 -> 0 | T52: =VLOOKUP($F52,Utslippsfaktorer!$B$6:$U$332,18,FALSE)*$G52 -> 0 | U52: =VLOOKUP($F52,Utslippsfaktorer!$B$6:$U$332,19,FALSE)*$G52 -> 0 | V52: 0 | W52: 0 | X52: =VLOOKUP($F52,Utslippsfaktorer!$B$6:$U$332,3,FALSE) -> -
C53: 23 | D53: 236 Innvending overflate | E53: (egen data) | G53: 0 | V53: 0 | W53: 0
C54: 23 | D54: 237 Solavskjerming | E54: (Velg kategori) | F54: (Velg material eller prosesser) | G54: 0 | H54: =VLOOKUP($F54,Utslippsfaktorer!$B$6:$U$332,5,FALSE) -> - | I54: =VLOOKUP($F54,Utslippsfaktorer!$B$6:$U$332,6,FALSE) -> 0 | J54: =IFERROR(VLOOKUP($F54,Utslippsfaktorer!$B$6:$U$332,7,FALSE)*$G54,0) -> 0 | K54: =VLOOKUP($F54,Utslippsfaktorer!$B$6:$U$332,8,FALSE)*$G54 -> 0 | L54: =VLOOKUP($F54,Utslippsfaktorer!$B$6:$U$332,9,FALSE)*$G54 -> 0 | M54: =VLOOKUP($F54,Utslippsfaktorer!$B$6:$U$332,10,FALSE)*$G54 -> 0 | N54: =VLOOKUP($F54,Utslippsfaktorer!$B$6:$U$332,11,FALSE)*$G54 -> 0 | O54: =VLOOKUP($F54,Utslippsfaktorer!$B$6:$U$332,12,FALSE)*$G54 -> 0 | P54: =VLOOKUP($F54,Utslippsfaktorer!$B$6:$U$332,13,FALSE)*$G54 -> 0 | Q54: =VLOOKUP($F54,Utslippsfaktorer!$B$6:$U$332,14,FALSE)*$G54 -> 0 | R54: =VLOOKUP($F54,Utslippsfaktorer!$B$6:$U$332,16,FALSE)*$G54 -> 0 | S54: =VLOOKUP($F54,Utslippsfaktorer!$B$6:$U$332,17,FALSE)*$G54 -> 0 | T54: =VLOOKUP($F54,Utslippsfaktorer!$B$6:$U$332,18,FALSE)*$G54 -> 0 | U54: =VLOOKUP($F54,Utslippsfaktorer!$B$6:$U$332,19,FALSE)*$G54 -> 0 | V54: 0 | W54: 0 | X54: =VLOOKUP($F54,Utslippsfaktorer!$B$6:$U$332,3,FALSE) -> -
C55: 23 | D55: 237 Solavskjerming | E55: (egen data) | G55: 0 | V55: 0 | W55: 0
C56: 23 | D56: 238 Utstyr og komplettering for yttervegger | E56: (Velg kategori) | F56: (Velg material eller prosesser) | G56: 0 | H56: =VLOOKUP($F56,Utslippsfaktorer!$B$6:$U$332,5,FALSE) -> - | I56: =VLOOKUP($F56,Utslippsfaktorer!$B$6:$U$332,6,FALSE) -> 0 | J56: =IFERROR(VLOOKUP($F56,Utslippsfaktorer!$B$6:$U$332,7,FALSE)*$G56,0) -> 0 | K56: =VLOOKUP($F56,Utslippsfaktorer!$B$6:$U$332,8,FALSE)*$G56 -> 0 | L56: =VLOOKUP($F56,Utslippsfaktorer!$B$6:$U$332,9,FALSE)*$G56 -> 0 | M56: =VLOOKUP($F56,Utslippsfaktorer!$B$6:$U$332,10,FALSE)*$G56 -> 0 | N56: =VLOOKUP($F56,Utslippsfaktorer!$B$6:$U$332,11,FALSE)*$G56 -> 0 | O56: =VLOOKUP($F56,Utslippsfaktorer!$B$6:$U$332,12,FALSE)*$G56 -> 0 | P56: =VLOOKUP($F56,Utslippsfaktorer!$B$6:$U$332,13,FALSE)*$G56 -> 0 | Q56: =VLOOKUP($F56,Utslippsfaktorer!$B$6:$U$332,14,FALSE)*$G56 -> 0 | R56: =VLOOKUP($F56,Utslippsfaktorer!$B$6:$U$332,16,FALSE)*$G56 -> 0 | S56: =VLOOKUP($F56,Utslippsfaktorer!$B$6:$U$332,17,FALSE)*$G56 -> 0 | T56: =VLOOKUP($F56,Utslippsfaktorer!$B$6:$U$332,18,FALSE)*$G56 -> 0 | U56: =VLOOKUP($F56,Utslippsfaktorer!$B$6:$U$332,19,FALSE)*$G56 -> 0 | V56: 0 | W56: 0 | X56: =VLOOKUP($F56,Utslippsfaktorer!$B$6:$U$332,3,FALSE) -> -
C57: 23 | D57: 238 Utstyr og komplettering for yttervegger | E57: (egen data) | G57: 0 | V57: 0 | W57: 0
C58: 23 | D58: 239 Ander deler av yttervegg | E58: (Velg kategori) | F58: (Velg material eller prosesser) | G58: 0 | H58: =VLOOKUP($F58,Utslippsfaktorer!$B$6:$U$332,5,FALSE) -> - | I58: =VLOOKUP($F58,Utslippsfaktorer!$B$6:$U$332,6,FALSE) -> 0 | J58: =IFERROR(VLOOKUP($F58,Utslippsfaktorer!$B$6:$U$332,7,FALSE)*$G58,0) -> 0 | K58: =VLOOKUP($F58,Utslippsfaktorer!$B$6:$U$332,8,FALSE)*$G58 -> 0 | L58: =VLOOKUP($F58,Utslippsfaktorer!$B$6:$U$332,9,FALSE)*$G58 -> 0 | M58: =VLOOKUP($F58,Utslippsfaktorer!$B$6:$U$332,10,FALSE)*$G58 -> 0 | N58: =VLOOKUP($F58,Utslippsfaktorer!$B$6:$U$332,11,FALSE)*$G58 -> 0 | O58: =VLOOKUP($F58,Utslippsfaktorer!$B$6:$U$332,12,FALSE)*$G58 -> 0 | P58: =VLOOKUP($F58,Utslippsfaktorer!$B$6:$U$332,13,FALSE)*$G58 -> 0 | Q58: =VLOOKUP($F58,Utslippsfaktorer!$B$6:$U$332,14,FALSE)*$G58 -> 0 | R58: =VLOOKUP($F58,Utslippsfaktorer!$B$6:$U$332,16,FALSE)*$G58 -> 0 | S58: =VLOOKUP($F58,Utslippsfaktorer!$B$6:$U$332,17,FALSE)*$G58 -> 0 | T58: =VLOOKUP($F58,Utslippsfaktorer!$B$6:$U$332,18,FALSE)*$G58 -> 0 | U58: =VLOOKUP($F58,Utslippsfaktorer!$B$6:$U$332,19,FALSE)*$G58 -> 0 | V58: 0 | W58: 0 | X58: =VLOOKUP($F58,Utslippsfaktorer!$B$6:$U$332,3,FALSE) -> -
C59: 23 | D59: 239 Ander deler av yttervegg | E59: (egen data) | G59: 0 | V59: 0 | W59: 0
A61: seksjon4 | C61: 24 | D61: Innervegger | J61: =IFERROR((SUM(J62:J81)),"Not assessed") -> 0 | K61: 0 | L61: 0 | M61: 0 | N61: 0 | O61: 0 | P61: 0 | Q61: 0 | R61: 0 | S61: 0 | T61: 0 | U61: 0 | V61: 0 | X61: =IFERROR(V61/$U$2,0) -> 0
C62: 24 | D62: 24 | E62: (egen data) | G62: 0 | V62: =SUM(J62:U62) -> 0 | W62: =IFERROR(V62/$V$61,0) -> 0
C63: 24 | D63: 241 Bærende innervegger | E63: (Velg kategori) | F63: (Velg material eller prosesser) | G63: 0 | H63: =VLOOKUP($F63,Utslippsfaktorer!$B$6:$U$332,5,FALSE) -> - | I63: =VLOOKUP($F63,Utslippsfaktorer!$B$6:$U$332,6,FALSE) -> 0 | J63: =IFERROR(VLOOKUP($F63,Utslippsfaktorer!$B$6:$U$332,7,FALSE)*$G63,0) -> 0 | K63: =VLOOKUP($F63,Utslippsfaktorer!$B$6:$U$332,8,FALSE)*$G63 -> 0 | L63: =VLOOKUP($F63,Utslippsfaktorer!$B$6:$U$332,9,FALSE)*$G63 -> 0 | M63: =VLOOKUP($F63,Utslippsfaktorer!$B$6:$U$332,10,FALSE)*$G63 -> 0 | N63: =VLOOKUP($F63,Utslippsfaktorer!$B$6:$U$332,11,FALSE)*$G63 -> 0 | O63: =VLOOKUP($F63,Utslippsfaktorer!$B$6:$U$332,12,FALSE)*$G63 -> 0 | P63: =VLOOKUP($F63,Utslippsfaktorer!$B$6:$U$332,13,FALSE)*$G63 -> 0 | Q63: =VLOOKUP($F63,Utslippsfaktorer!$B$6:$U$332,14,FALSE)*$G63 -> 0 | R63: =VLOOKUP($F63,Utslippsfaktorer!$B$6:$U$332,16,FALSE)*$G63 -> 0 | S63: =VLOOKUP($F63,Utslippsfaktorer!$B$6:$U$332,17,FALSE)*$G63 -> 0 | T63: =VLOOKUP($F63,Utslippsfaktorer!$B$6:$U$332,18,FALSE)*$G63 -> 0 | U63: =VLOOKUP($F63,Utslippsfaktorer!$B$6:$U$332,19,FALSE)*$G63 -> 0 | V63: 0 | W63: =IFERROR(V63/$V$61,0) -> 0 | X63: =VLOOKUP($F63,Utslippsfaktorer!$B$6:$U$332,3,FALSE) -> -
C64: 24 | D64: 241 Bærende innervegger | E64: (egen data) | G64: 0 | V64: 0 | W64: 0
C65: 24 | D65: 242 Ikke-bærende innervegger | E65: (Velg kategori) | F65: (Velg material eller prosesser) | G65: 200 | H65: =VLOOKUP($F65,Utslippsfaktorer!$B$6:$U$332,5,FALSE) -> - | I65: =VLOOKUP($F65,Utslippsfaktorer!$B$6:$U$332,6,FALSE) -> 0 | J65: =IFERROR(VLOOKUP($F65,Utslippsfaktorer!$B$6:$U$332,7,FALSE)*$G65,0) -> 0 | K65: =VLOOKUP($F65,Utslippsfaktorer!$B$6:$U$332,8,FALSE)*$G65 -> 0 | L65: =VLOOKUP($F65,Utslippsfaktorer!$B$6:$U$332,9,FALSE)*$G65 -> 0 | M65: =VLOOKUP($F65,Utslippsfaktorer!$B$6:$U$332,10,FALSE)*$G65 -> 0 | N65: =VLOOKUP($F65,Utslippsfaktorer!$B$6:$U$332,11,FALSE)*$G65 -> 0 | O65: =VLOOKUP($F65,Utslippsfaktorer!$B$6:$U$332,12,FALSE)*$G65 -> 0 | P65: =VLOOKUP($F65,Utslippsfaktorer!$B$6:$U$332,13,FALSE)*$G65 -> 0 | Q65: =VLOOKUP($F65,Utslippsfaktorer!$B$6:$U$332,14,FALSE)*$G65 -> 0 | R65: =VLOOKUP($F65,Utslippsfaktorer!$B$6:$U$332,16,FALSE)*$G65 -> 0 | S65: =VLOOKUP($F65,Utslippsfaktorer!$B$6:$U$332,17,FALSE)*$G65 -> 0 | T65: =VLOOKUP($F65,Utslippsfaktorer!$B$6:$U$332,18,FALSE)*$G65 -> 0 | U65: =VLOOKUP($F65,Utslippsfaktorer!$B$6:$U$332,19,FALSE)*$G65 -> 0 | V65: =SUM(J65:U65) -> 0 | W65: 0 | X65: =VLOOKUP($F65,Utslippsfaktorer!$B$6:$U$332,3,FALSE) -> -
C66: 24 | D66: 242 Ikke-bærende innervegger | E66: (egen data) | G66: 0 | V66: 0 | W66: 0
C67: 24 | D67: 243 Systemvegger og glassfelt | E67: (Velg kategori) | F67: (Velg material eller prosesser) | G67: 0 | H67: =VLOOKUP($F67,Utslippsfaktorer!$B$6:$U$332,5,FALSE) -> - | I67: =VLOOKUP($F67,Utslippsfaktorer!$B$6:$U$332,6,FALSE) -> 0 | J67: =IFERROR(VLOOKUP($F67,Utslippsfaktorer!$B$6:$U$332,7,FALSE)*$G67,0) -> 0 | K67: =VLOOKUP($F67,Utslippsfaktorer!$B$6:$U$332,8,FALSE)*$G67 -> 0 | L67: =VLOOKUP($F67,Utslippsfaktorer!$B$6:$U$332,9,FALSE)*$G67 -> 0 | M67: =VLOOKUP($F67,Utslippsfaktorer!$B$6:$U$332,10,FALSE)*$G67 -> 0 | N67: =VLOOKUP($F67,Utslippsfaktorer!$B$6:$U$332,11,FALSE)*$G67 -> 0 | O67: =VLOOKUP($F67,Utslippsfaktorer!$B$6:$U$332,12,FALSE)*$G67 -> 0 | P67: =VLOOKUP($F67,Utslippsfaktorer!$B$6:$U$332,13,FALSE)*$G67 -> 0 | Q67: =VLOOKUP($F67,Utslippsfaktorer!$B$6:$U$332,14,FALSE)*$G67 -> 0 | R67: =VLOOKUP($F67,Utslippsfaktorer!$B$6:$U$332,16,FALSE)*$G67 -> 0 | S67: =VLOOKUP($F67,Utslippsfaktorer!$B$6:$U$332,17,FALSE)*$G67 -> 0 | T67: =VLOOKUP($F67,Utslippsfaktorer!$B$6:$U$332,18,FALSE)*$G67 -> 0 | U67: =VLOOKUP($F67,Utslippsfaktorer!$B$6:$U$332,19,FALSE)*$G67 -> 0 | V67: 0 | W67: 0 | X67: =VLOOKUP($F67,Utslippsfaktorer!$B$6:$U$332,3,FALSE) -> -
C68: 24 | D68: 243 Systemvegger og glassfelt | E68: (egen data) | G68: 0 | V68: 0 | W68: 0
C69: 24 | D69: 244 Vinduer, dører, foldevegger | E69: (Velg kategori) | F69: (Velg material eller prosesser) | G69: 0 | H69: =VLOOKUP($F69,Utslippsfaktorer!$B$6:$U$332,5,FALSE) -> - | I69: =VLOOKUP($F69,Utslippsfaktorer!$B$6:$U$332,6,FALSE) -> 0 | J69: =IFERROR(VLOOKUP($F69,Utslippsfaktorer!$B$6:$U$332,7,FALSE)*$G69,0) -> 0 | K69: =VLOOKUP($F69,Utslippsfaktorer!$B$6:$U$332,8,FALSE)*$G69 -> 0 | L69: =VLOOKUP($F69,Utslippsfaktorer!$B$6:$U$332,9,FALSE)*$G69 -> 0 | M69: =VLOOKUP($F69,Utslippsfaktorer!$B$6:$U$332,10,FALSE)*$G69 -> 0 | N69: =VLOOKUP($F69,Utslippsfaktorer!$B$6:$U$332,11,FALSE)*$G69 -> 0 | O69: =VLOOKUP($F69,Utslippsfaktorer!$B$6:$U$332,12,FALSE)*$G69 -> 0 | P69: =VLOOKUP($F69,Utslippsfaktorer!$B$6:$U$332,13,FALSE)*$G69 -> 0 | Q69: =VLOOKUP($F69,Utslippsfaktorer!$B$6:$U$332,14,FALSE)*$G69 -> 0 | R69: =VLOOKUP($F69,Utslippsfaktorer!$B$6:$U$332,16,FALSE)*$G69 -> 0 | S69: =VLOOKUP($F69,Utslippsfaktorer!$B$6:$U$332,17,FALSE)*$G69 -> 0 | T69: =VLOOKUP($F69,Utslippsfaktorer!$B$6:$U$332,18,FALSE)*$G69 -> 0 | U69: =VLOOKUP($F69,Utslippsfaktorer!$B$6:$U$332,19,FALSE)*$G69 -> 0 | V69: 0 | W69: 0 | X69: =VLOOKUP($F69,Utslippsfaktorer!$B$6:$U$332,3,FALSE) -> -
C70: 24 | D70: 244 Vinduer, dører, foldevegger | E70: (egen data) | G70: 0 | V70: 0 | W70: 0
C71: 24 | D71: 245 Skjørt | E71: (Velg kategori) | F71: (Velg material eller prosesser) | G71: 0 | H71: =VLOOKUP($F71,Utslippsfaktorer!$B$6:$U$332,5,FALSE) -> - | I71: =VLOOKUP($F71,Utslippsfaktorer!$B$6:$U$332,6,FALSE) -> 0 | J71: =IFERROR(VLOOKUP($F71,Utslippsfaktorer!$B$6:$U$332,7,FALSE)*$G71,0) -> 0 | K71: =VLOOKUP($F71,Utslippsfaktorer!$B$6:$U$332,8,FALSE)*$G71 -> 0 | L71: =VLOOKUP($F71,Utslippsfaktorer!$B$6:$U$332,9,FALSE)*$G71 -> 0 | M71: =VLOOKUP($F71,Utslippsfaktorer!$B$6:$U$332,10,FALSE)*$G71 -> 0 | N71: =VLOOKUP($F71,Utslippsfaktorer!$B$6:$U$332,11,FALSE)*$G71 -> 0 | O71: =VLOOKUP($F71,Utslippsfaktorer!$B$6:$U$332,12,FALSE)*$G71 -> 0 | P71: =VLOOKUP($F71,Utslippsfaktorer!$B$6:$U$332,13,FALSE)*$G71 -> 0 | Q71: =VLOOKUP($F71,Utslippsfaktorer!$B$6:$U$332,14,FALSE)*$G71 -> 0 | R71: =VLOOKUP($F71,Utslippsfaktorer!$B$6:$U$332,16,FALSE)*$G71 -> 0 | S71: =VLOOKUP($F71,Utslippsfaktorer!$B$6:$U$332,17,FALSE)*$G71 -> 0 | T71: =VLOOKUP($F71,Utslippsfaktorer!$B$6:$U$332,18,FALSE)*$G71 -> 0 | U71: =VLOOKUP($F71,Utslippsfaktorer!$B$6:$U$332,19,FALSE)*$G71 -> 0 | V71: 0 | W71: 0 | X71: =VLOOKUP($F71,Utslippsfaktorer!$B$6:$U$332,3,FALSE) -> -
C72: 24 | D72: 245 Skjørt | E72: (egen data) | G72: 0 | V72: 0 | W72: 0
C73: 24 | D73: 246 Kledning og overflate | E73: (Velg kategori) | F73: (Velg material eller prosesser) | G73: 0 | H73: =VLOOKUP($F73,Utslippsfaktorer!$B$6:$U$332,5,FALSE) -> - | I73: =VLOOKUP($F73,Utslippsfaktorer!$B$6:$U$332,6,FALSE) -> 0 | J73: =IFERROR(VLOOKUP($F73,Utslippsfaktorer!$B$6:$U$332,7,FALSE)*$G73,0) -> 0 | K73: =VLOOKUP($F73,Utslippsfaktorer!$B$6:$U$332,8,FALSE)*$G73 -> 0 | L73: =VLOOKUP($F73,Utslippsfaktorer!$B$6:$U$332,9,FALSE)*$G73 -> 0 | M73: =VLOOKUP($F73,Utslippsfaktorer!$B$6:$U$332,10,FALSE)*$G73 -> 0 | N73: =VLOOKUP($F73,Utslippsfaktorer!$B$6:$U$332,11,FALSE)*$G73 -> 0 | O73: =VLOOKUP($F73,Utslippsfaktorer!$B$6:$U$332,12,FALSE)*$G73 -> 0 | P73: =VLOOKUP($F73,Utslippsfaktorer!$B$6:$U$332,13,FALSE)*$G73 -> 0 | Q73: =VLOOKUP($F73,Utslippsfaktorer!$B$6:$U$332,14,FALSE)*$G73 -> 0 | R73: =VLOOKUP($F73,Utslippsfaktorer!$B$6:$U$332,16,FALSE)*$G73 -> 0 | S73: =VLOOKUP($F73,Utslippsfaktorer!$B$6:$U$332,17,FALSE)*$G73 -> 0 | T73: =VLOOKUP($F73,Utslippsfaktorer!$B$6:$U$332,18,FALSE)*$G73 -> 0 | U73: =VLOOKUP($F73,Utslippsfaktorer!$B$6:$U$332,19,FALSE)*$G73 -> 0 | V73: 0 | W73: 0 | X73: =VLOOKUP($F73,Utslippsfaktorer!$B$6:$U$332,3,FALSE) -> -
C74: 24 | D74: 246 Kledning og overflate | E74: (egen data) | G74: 0 | V74: 0 | W74: 0
C75: 24 | D75: 248 Utstyr og komplettering for innervegger | E75: (Velg kategori) | F75: (Velg material eller prosesser) | G75: 0 | H75: =VLOOKUP($F75,Utslippsfaktorer!$B$6:$U$332,5,FALSE) -> - | I75: =VLOOKUP($F75,Utslippsfaktorer!$B$6:$U$332,6,FALSE) -> 0 | J75: =IFERROR(VLOOKUP($F75,Utslippsfaktorer!$B$6:$U$332,7,FALSE)*$G75,0) -> 0 | K75: =VLOOKUP($F75,Utslippsfaktorer!$B$6:$U$332,8,FALSE)*$G75 -> 0 | L75: =VLOOKUP($F75,Utslippsfaktorer!$B$6:$U$332,9,FALSE)*$G75 -> 0 | M75: =VLOOKUP($F75,Utslippsfaktorer!$B$6:$U$332,10,FALSE)*$G75 -> 0 | N75: =VLOOKUP($F75,Utslippsfaktorer!$B$6:$U$332,11,FALSE)*$G75 -> 0 | O75: =VLOOKUP($F75,Utslippsfaktorer!$B$6:$U$332,12,FALSE)*$G75 -> 0 | P75: =VLOOKUP($F75,Utslippsfaktorer!$B$6:$U$332,13,FALSE)*$G75 -> 0 | Q75: =VLOOKUP($F75,Utslippsfaktorer!$B$6:$U$332,14,FALSE)*$G75 -> 0 | R75: =VLOOKUP($F75,Utslippsfaktorer!$B$6:$U$332,16,FALSE)*$G75 -> 0 | S75: =VLOOKUP($F75,Utslippsfaktorer!$B$6:$U$332,17,FALSE)*$G75 -> 0 | T75: =VLOOKUP($F75,Utslippsfaktorer!$B$6:$U$332,18,FALSE)*$G75 -> 0 | U75: =VLOOKUP($F75,Utslippsfaktorer!$B$6:$U$332,19,FALSE)*$G75 -> 0 | V75: 0 | W75: 0 | X75: =VLOOKUP($F75,Utslippsfaktorer!$B$6:$U$332,3,FALSE) -> -
C76: 24 | D76: 248 Utstyr og komplettering for innervegger | E76: (egen data) | G76: 0 | V76: 0 | W76: 0
C77: 24 | D77: 249 Andre deler av innervegg | E77: (Velg kategori) | F77: (Velg material eller prosesser) | G77: 0 | H77: =VLOOKUP($F77,Utslippsfaktorer!$B$6:$U$332,5,FALSE) -> - | I77: =VLOOKUP($F77,Utslippsfaktorer!$B$6:$U$332,6,FALSE) -> 0 | J77: =IFERROR(VLOOKUP($F77,Utslippsfaktorer!$B$6:$U$332,7,FALSE)*$G77,0) -> 0 | K77: =VLOOKUP($F77,Utslippsfaktorer!$B$6:$U$332,8,FALSE)*$G77 -> 0 | L77: =VLOOKUP($F77,Utslippsfaktorer!$B$6:$U$332,9,FALSE)*$G77 -> 0 | M77: =VLOOKUP($F77,Utslippsfaktorer!$B$6:$U$332,10,FALSE)*$G77 -> 0 | N77: =VLOOKUP($F77,Utslippsfaktorer!$B$6:$U$332,11,FALSE)*$G77 -> 0 | O77: =VLOOKUP($F77,Utslippsfaktorer!$B$6:$U$332,12,FALSE)*$G77 -> 0 | P77: =VLOOKUP($F77,Utslippsfaktorer!$B$6:$U$332,13,FALSE)*$G77 -> 0 | Q77: =VLOOKUP($F77,Utslippsfaktorer!$B$6:$U$332,14,FALSE)*$G77 -> 0 | R77: =VLOOKUP($F77,Utslippsfaktorer!$B$6:$U$332,16,FALSE)*$G77 -> 0 | S77: =VLOOKUP($F77,Utslippsfaktorer!$B$6:$U$332,17,FALSE)*$G77 -> 0 | T77: =VLOOKUP($F77,Utslippsfaktorer!$B$6:$U$332,18,FALSE)*$G77 -> 0 | U77: =VLOOKUP($F77,Utslippsfaktorer!$B$6:$U$332,19,FALSE)*$G77 -> 0 | V77: 0 | W77: 0 | X77: =VLOOKUP($F77,Utslippsfaktorer!$B$6:$U$332,3,FALSE) -> -
C78: 24 | D78: 249 Andre deler av innervegg | E78: (egen data) | G78: 0 | V78: 0 | W78: 0
C79: 24 | D79: 239 Andre deler av yttervegg | E79: (Velg kategori) | F79: (Velg material eller prosesser) | G79: 0 | H79: =VLOOKUP($F79,Utslippsfaktorer!$B$6:$U$332,5,FALSE) -> - | I79: =VLOOKUP($F79,Utslippsfaktorer!$B$6:$U$332,6,FALSE) -> 0 | J79: =IFERROR(VLOOKUP($F79,Utslippsfaktorer!$B$6:$U$332,7,FALSE)*$G79,0) -> 0 | K79: =VLOOKUP($F79,Utslippsfaktorer!$B$6:$U$332,8,FALSE)*$G79 -> 0 | L79: =VLOOKUP($F79,Utslippsfaktorer!$B$6:$U$332,9,FALSE)*$G79 -> 0 | M79: =VLOOKUP($F79,Utslippsfaktorer!$B$6:$U$332,10,FALSE)*$G79 -> 0 | N79: =VLOOKUP($F79,Utslippsfaktorer!$B$6:$U$332,11,FALSE)*$G79 -> 0 | O79: =VLOOKUP($F79,Utslippsfaktorer!$B$6:$U$332,12,FALSE)*$G79 -> 0 | P79: =VLOOKUP($F79,Utslippsfaktorer!$B$6:$U$332,13,FALSE)*$G79 -> 0 | Q79: =VLOOKUP($F79,Utslippsfaktorer!$B$6:$U$332,14,FALSE)*$G79 -> 0 | R79: =VLOOKUP($F79,Utslippsfaktorer!$B$6:$U$332,16,FALSE)*$G79 -> 0 | S79: =VLOOKUP($F79,Utslippsfaktorer!$B$6:$U$332,17,FALSE)*$G79 -> 0 | T79: =VLOOKUP($F79,Utslippsfaktorer!$B$6:$U$332,18,FALSE)*$G79 -> 0 | U79: =VLOOKUP($F79,Utslippsfaktorer!$B$6:$U$332,19,FALSE)*$G79 -> 0 | V79: 0 | W79: 0 | X79: =VLOOKUP($F79,Utslippsfaktorer!$B$6:$U$332,3,FALSE) -> -
C80: 24 | D80: 239 Andre deler av yttervegg | E80: (egen data) | G80: 0 | V80: 0 | W80: 0
A82: seksjon5 | C82: 25 | D82: Dekker | J82: =IFERROR((SUM(J83:J102)),"Not assessed") -> 945.5 | K82: =IFERROR((SUM(K83:K102)),"Not assessed") -> 0.5076 | L82: =IFERROR((SUM(L83:L102)),"Not assessed") -> 763 | M82: =IFERROR((SUM(M83:M102)),"Not assessed") -> 0 | N82: =IFERROR((SUM(N83:N102)),"Not assessed") -> 0 | O82: =IFERROR((SUM(O83:O102)),"Not assessed") -> 0 | P82: =IFERROR((SUM(P83:P102)),"Not assessed") -> 0 | Q82: =IFERROR((SUM(Q83:Q102)),"Not assessed") -> 0 | R82: =IFERROR((SUM(R83:R102)),"Not assessed") -> 0 | S82: =IFERROR((SUM(S83:S102)),"Not assessed") -> 0 | T82: =IFERROR((SUM(T83:T102)),"Not assessed") -> 0 | U82: =IFERROR((SUM(U83:U102)),"Not assessed") -> 0 | V82: =IFERROR((SUM(V83:V102)),"Not assessed") -> 1709.0076 | X82: =IFERROR(V82/$U$2,0) -> 0.01586666983
C83: 25 | D83: 25 | E83: (egen data) | G83: 0 | V83: =SUM(J83:U83) -> 0 | W83: =IFERROR(V83/$V$82,0) -> 0
C84: 25 | D84: 251 Frittbærende dekker | E84: (Velg kategori) | F84: (Velg material eller prosesser) | G84: 0 | H84: =VLOOKUP($F84,Utslippsfaktorer!$B$6:$U$332,5,FALSE) -> - | I84: =VLOOKUP($F84,Utslippsfaktorer!$B$6:$U$332,6,FALSE) -> 0 | J84: =IFERROR(VLOOKUP($F84,Utslippsfaktorer!$B$6:$U$332,7,FALSE)*$G84,0) -> 0 | K84: =VLOOKUP($F84,Utslippsfaktorer!$B$6:$U$332,8,FALSE)*$G84 -> 0 | L84: =VLOOKUP($F84,Utslippsfaktorer!$B$6:$U$332,9,FALSE)*$G84 -> 0 | M84: =VLOOKUP($F84,Utslippsfaktorer!$B$6:$U$332,10,FALSE)*$G84 -> 0 | N84: =VLOOKUP($F84,Utslippsfaktorer!$B$6:$U$332,11,FALSE)*$G84 -> 0 | O84: =VLOOKUP($F84,Utslippsfaktorer!$B$6:$U$332,12,FALSE)*$G84 -> 0 | P84: =VLOOKUP($F84,Utslippsfaktorer!$B$6:$U$332,13,FALSE)*$G84 -> 0 | Q84: =VLOOKUP($F84,Utslippsfaktorer!$B$6:$U$332,14,FALSE)*$G84 -> 0 | R84: =VLOOKUP($F84,Utslippsfaktorer!$B$6:$U$332,16,FALSE)*$G84 -> 0 | S84: =VLOOKUP($F84,Utslippsfaktorer!$B$6:$U$332,17,FALSE)*$G84 -> 0 | T84: =VLOOKUP($F84,Utslippsfaktorer!$B$6:$U$332,18,FALSE)*$G84 -> 0 | U84: =VLOOKUP($F84,Utslippsfaktorer!$B$6:$U$332,19,FALSE)*$G84 -> 0 | V84: 0 | W84: =IFERROR(V84/$V$82,0) -> 0 | X84: =VLOOKUP($F84,Utslippsfaktorer!$B$6:$U$332,3,FALSE) -> -
C85: 25 | D85: 251 Frittbærende dekker | E85: (egen data) | G85: 0 | V85: 0 | W85: 0
C86: 25 | D86: 252 Gulv på grunn, bunnplate | E86: (Velg kategori) | F86: (Velg material eller prosesser) | G86: 0 | H86: =VLOOKUP($F86,Utslippsfaktorer!$B$6:$U$332,5,FALSE) -> - | I86: =VLOOKUP($F86,Utslippsfaktorer!$B$6:$U$332,6,FALSE) -> 0 | J86: =IFERROR(VLOOKUP($F86,Utslippsfaktorer!$B$6:$U$332,7,FALSE)*$G86,0) -> 0 | K86: =VLOOKUP($F86,Utslippsfaktorer!$B$6:$U$332,8,FALSE)*$G86 -> 0 | L86: =VLOOKUP($F86,Utslippsfaktorer!$B$6:$U$332,9,FALSE)*$G86 -> 0 | M86: =VLOOKUP($F86,Utslippsfaktorer!$B$6:$U$332,10,FALSE)*$G86 -> 0 | N86: =VLOOKUP($F86,Utslippsfaktorer!$B$6:$U$332,11,FALSE)*$G86 -> 0 | O86: =VLOOKUP($F86,Utslippsfaktorer!$B$6:$U$332,12,FALSE)*$G86 -> 0 | P86: =VLOOKUP($F86,Utslippsfaktorer!$B$6:$U$332,13,FALSE)*$G86 -> 0 | Q86: =VLOOKUP($F86,Utslippsfaktorer!$B$6:$U$332,14,FALSE)*$G86 -> 0 | R86: =VLOOKUP($F86,Utslippsfaktorer!$B$6:$U$332,16,FALSE)*$G86 -> 0 | S86: =VLOOKUP($F86,Utslippsfaktorer!$B$6:$U$332,17,FALSE)*$G86 -> 0 | T86: =VLOOKUP($F86,Utslippsfaktorer!$B$6:$U$332,18,FALSE)*$G86 -> 0 | U86: =VLOOKUP($F86,Utslippsfaktorer!$B$6:$U$332,19,FALSE)*$G86 -> 0 | V86: 0 | W86: 0 | X86: =VLOOKUP($F86,Utslippsfaktorer!$B$6:$U$332,3,FALSE) -> -
C87: 25 | D87: 252 Gulv på grunn, bunnplate | E87: (egen data) | G87: 0 | V87: 0 | W87: 0
C88: 25 | D88: 253 Oppforet gulv og påstøp | E88: (Velg kategori) | F88: (Velg material eller prosesser) | G88: 0 | H88: =VLOOKUP($F88,Utslippsfaktorer!$B$6:$U$332,5,FALSE) -> - | I88: =VLOOKUP($F88,Utslippsfaktorer!$B$6:$U$332,6,FALSE) -> 0 | J88: =IFERROR(VLOOKUP($F88,Utslippsfaktorer!$B$6:$U$332,7,FALSE)*$G88,0) -> 0 | K88: =VLOOKUP($F88,Utslippsfaktorer!$B$6:$U$332,8,FALSE)*$G88 -> 0 | L88: =VLOOKUP($F88,Utslippsfaktorer!$B$6:$U$332,9,FALSE)*$G88 -> 0 | M88: =VLOOKUP($F88,Utslippsfaktorer!$B$6:$U$332,10,FALSE)*$G88 -> 0 | N88: =VLOOKUP($F88,Utslippsfaktorer!$B$6:$U$332,11,FALSE)*$G88 -> 0 | O88: =VLOOKUP($F88,Utslippsfaktorer!$B$6:$U$332,12,FALSE)*$G88 -> 0 | P88: =VLOOKUP($F88,Utslippsfaktorer!$B$6:$U$332,13,FALSE)*$G88 -> 0 | Q88: =VLOOKUP($F88,Utslippsfaktorer!$B$6:$U$332,14,FALSE)*$G88 -> 0 | R88: =VLOOKUP($F88,Utslippsfaktorer!$B$6:$U$332,16,FALSE)*$G88 -> 0 | S88: =VLOOKUP($F88,Utslippsfaktorer!$B$6:$U$332,17,FALSE)*$G88 -> 0 | T88: =VLOOKUP($F88,Utslippsfaktorer!$B$6:$U$332,18,FALSE)*$G88 -> 0 | U88: =VLOOKUP($F88,Utslippsfaktorer!$B$6:$U$332,19,FALSE)*$G88 -> 0 | V88: 0 | W88: 0 | X88: =VLOOKUP($F88,Utslippsfaktorer!$B$6:$U$332,3,FALSE) -> -
C89: 25 | D89: 253 Oppforet gulv og påstøp | E89: (egen data) | G89: 0 | V89: 0 | W89: 0
C90: 25 | D90: 254 Systemgulv | E90: (Velg kategori) | F90: (Velg material eller prosesser) | G90: 0 | H90: =VLOOKUP($F90,Utslippsfaktorer!$B$6:$U$332,5,FALSE) -> - | I90: =VLOOKUP($F90,Utslippsfaktorer!$B$6:$U$332,6,FALSE) -> 0 | J90: =IFERROR(VLOOKUP($F90,Utslippsfaktorer!$B$6:$U$332,7,FALSE)*$G90,0) -> 0 | K90: =VLOOKUP($F90,Utslippsfaktorer!$B$6:$U$332,8,FALSE)*$G90 -> 0 | L90: =VLOOKUP($F90,Utslippsfaktorer!$B$6:$U$332,9,FALSE)*$G90 -> 0 | M90: =VLOOKUP($F90,Utslippsfaktorer!$B$6:$U$332,10,FALSE)*$G90 -> 0 | N90: =VLOOKUP($F90,Utslippsfaktorer!$B$6:$U$332,11,FALSE)*$G90 -> 0 | O90: =VLOOKUP($F90,Utslippsfaktorer!$B$6:$U$332,12,FALSE)*$G90 -> 0 | P90: =VLOOKUP($F90,Utslippsfaktorer!$B$6:$U$332,13,FALSE)*$G90 -> 0 | Q90: =VLOOKUP($F90,Utslippsfaktorer!$B$6:$U$332,14,FALSE)*$G90 -> 0 | R90: =VLOOKUP($F90,Utslippsfaktorer!$B$6:$U$332,16,FALSE)*$G90 -> 0 | S90: =VLOOKUP($F90,Utslippsfaktorer!$B$6:$U$332,17,FALSE)*$G90 -> 0 | T90: =VLOOKUP($F90,Utslippsfaktorer!$B$6:$U$332,18,FALSE)*$G90 -> 0 | U90: =VLOOKUP($F90,Utslippsfaktorer!$B$6:$U$332,19,FALSE)*$G90 -> 0 | V90: 0 | W90: 0 | X90: =VLOOKUP($F90,Utslippsfaktorer!$B$6:$U$332,3,FALSE) -> -
C91: 25 | D91: 254 Systemgulv | E91: (egen data) | G91: 0 | V91: 0 | W91: 0
C92: 25 | D92: 255 Gulvoverflate | E92: Bitumen | F92: Bitumen, EPD snitt | G92: 200 | H92: =VLOOKUP($F92,Utslippsfaktorer!$B$6:$U$332,5,FALSE) -> m2 | I92: =VLOOKUP($F92,Utslippsfaktorer!$B$6:$U$332,6,FALSE) -> 25 | J92: =IFERROR(VLOOKUP($F92,Utslippsfaktorer!$B$6:$U$332,7,FALSE)*$G92,0) -> 945.5 | K92: =VLOOKUP($F92,Utslippsfaktorer!$B$6:$U$332,8,FALSE)*$G92 -> 0.5076 | L92: =VLOOKUP($F92,Utslippsfaktorer!$B$6:$U$332,9,FALSE)*$G92 -> 763 | M92: =VLOOKUP($F92,Utslippsfaktorer!$B$6:$U$332,10,FALSE)*$G92 -> 0 | N92: =VLOOKUP($F92,Utslippsfaktorer!$B$6:$U$332,11,FALSE)*$G92 -> 0 | O92: =VLOOKUP($F92,Utslippsfaktorer!$B$6:$U$332,12,FALSE)*$G92 -> 0 | P92: =VLOOKUP($F92,Utslippsfaktorer!$B$6:$U$332,13,FALSE)*$G92 -> 0 | Q92: =VLOOKUP($F92,Utslippsfaktorer!$B$6:$U$332,14,FALSE)*$G92 -> 0 | R92: =VLOOKUP($F92,Utslippsfaktorer!$B$6:$U$332,16,FALSE)*$G92 -> 0 | S92: =VLOOKUP($F92,Utslippsfaktorer!$B$6:$U$332,17,FALSE)*$G92 -> 0 | T92: =VLOOKUP($F92,Utslippsfaktorer!$B$6:$U$332,18,FALSE)*$G92 -> 0 | U92: =VLOOKUP($F92,Utslippsfaktorer!$B$6:$U$332,19,FALSE)*$G92 -> 0 | V92: 1709.0076 | W92: 1 | X92: =VLOOKUP($F92,Utslippsfaktorer!$B$6:$U$332,3,FALSE) -> 0
C93: 25 | D93: 255 Gulvoverflate | E93: (egen data) | G93: 0 | V93: 0 | W93: 0
C94: 25 | D94: 256 Faste himlinger og overflatebehandling | E94: (Velg kategori) | F94: (Velg material eller prosesser) | G94: 0 | H94: =VLOOKUP($F94,Utslippsfaktorer!$B$6:$U$332,5,FALSE) -> - | I94: =VLOOKUP($F94,Utslippsfaktorer!$B$6:$U$332,6,FALSE) -> 0 | J94: =IFERROR(VLOOKUP($F94,Utslippsfaktorer!$B$6:$U$332,7,FALSE)*$G94,0) -> 0 | K94: =VLOOKUP($F94,Utslippsfaktorer!$B$6:$U$332,8,FALSE)*$G94 -> 0 | L94: =VLOOKUP($F94,Utslippsfaktorer!$B$6:$U$332,9,FALSE)*$G94 -> 0 | M94: =VLOOKUP($F94,Utslippsfaktorer!$B$6:$U$332,10,FALSE)*$G94 -> 0 | N94: =VLOOKUP($F94,Utslippsfaktorer!$B$6:$U$332,11,FALSE)*$G94 -> 0 | O94: =VLOOKUP($F94,Utslippsfaktorer!$B$6:$U$332,12,FALSE)*$G94 -> 0 | P94: =VLOOKUP($F94,Utslippsfaktorer!$B$6:$U$332,13,FALSE)*$G94 -> 0 | Q94: =VLOOKUP($F94,Utslippsfaktorer!$B$6:$U$332,14,FALSE)*$G94 -> 0 | R94: =VLOOKUP($F94,Utslippsfaktorer!$B$6:$U$332,16,FALSE)*$G94 -> 0 | S94: =VLOOKUP($F94,Utslippsfaktorer!$B$6:$U$332,17,FALSE)*$G94 -> 0 | T94: =VLOOKUP($F94,Utslippsfaktorer!$B$6:$U$332,18,FALSE)*$G94 -> 0 | U94: =VLOOKUP($F94,Utslippsfaktorer!$B$6:$U$332,19,FALSE)*$G94 -> 0 | V94: 0 | W94: 0 | X94: =VLOOKUP($F94,Utslippsfaktorer!$B$6:$U$332,3,FALSE) -> -
C95: 25 | D95: 256 Faste himlinger og overflatebehandling | E95: (egen data) | G95: 0 | V95: 0 | W95: 0
C96: 25 | D96: 257 Systemhimlinger | E96: (Velg kategori) | F96: (Velg material eller prosesser) | G96: 0 | H96: =VLOOKUP($F96,Utslippsfaktorer!$B$6:$U$332,5,FALSE) -> - | I96: =VLOOKUP($F96,Utslippsfaktorer!$B$6:$U$332,6,FALSE) -> 0 | J96: =IFERROR(VLOOKUP($F96,Utslippsfaktorer!$B$6:$U$332,7,FALSE)*$G96,0) -> 0 | K96: =VLOOKUP($F96,Utslippsfaktorer!$B$6:$U$332,8,FALSE)*$G96 -> 0 | L96: =VLOOKUP($F96,Utslippsfaktorer!$B$6:$U$332,9,FALSE)*$G96 -> 0 | M96: =VLOOKUP($F96,Utslippsfaktorer!$B$6:$U$332,10,FALSE)*$G96 -> 0 | N96: =VLOOKUP($F96,Utslippsfaktorer!$B$6:$U$332,11,FALSE)*$G96 -> 0 | O96: =VLOOKUP($F96,Utslippsfaktorer!$B$6:$U$332,12,FALSE)*$G96 -> 0 | P96: =VLOOKUP($F96,Utslippsfaktorer!$B$6:$U$332,13,FALSE)*$G96 -> 0 | Q96: =VLOOKUP($F96,Utslippsfaktorer!$B$6:$U$332,14,FALSE)*$G96 -> 0 | R96: =VLOOKUP($F96,Utslippsfaktorer!$B$6:$U$332,16,FALSE)*$G96 -> 0 | S96: =VLOOKUP($F96,Utslippsfaktorer!$B$6:$U$332,17,FALSE)*$G96 -> 0 | T96: =VLOOKUP($F96,Utslippsfaktorer!$B$6:$U$332,18,FALSE)*$G96 -> 0 | U96: =VLOOKUP($F96,Utslippsfaktorer!$B$6:$U$332,19,FALSE)*$G96 -> 0 | V96: 0 | W96: 0 | X96: =VLOOKUP($F96,Utslippsfaktorer!$B$6:$U$332,3,FALSE) -> -
C97: 25 | D97: 257 Systemhimlinger | E97: (egen data) | G97: 0 | V97: 0 | W97: 0
C98: 25 | D98: 258 Utstyr og komplettering for dekker | E98: (Velg kategori) | F98: (Velg material eller prosesser) | G98: 0 | H98: =VLOOKUP($F98,Utslippsfaktorer!$B$6:$U$332,5,FALSE) -> - | I98: =VLOOKUP($F98,Utslippsfaktorer!$B$6:$U$332,6,FALSE) -> 0 | J98: =IFERROR(VLOOKUP($F98,Utslippsfaktorer!$B$6:$U$332,7,FALSE)*$G98,0) -> 0 | K98: =VLOOKUP($F98,Utslippsfaktorer!$B$6:$U$332,8,FALSE)*$G98 -> 0 | L98: =VLOOKUP($F98,Utslippsfaktorer!$B$6:$U$332,9,FALSE)*$G98 -> 0 | M98: =VLOOKUP($F98,Utslippsfaktorer!$B$6:$U$332,10,FALSE)*$G98 -> 0 | N98: =VLOOKUP($F98,Utslippsfaktorer!$B$6:$U$332,11,FALSE)*$G98 -> 0 | O98: =VLOOKUP($F98,Utslippsfaktorer!$B$6:$U$332,12,FALSE)*$G98 -> 0 | P98: =VLOOKUP($F98,Utslippsfaktorer!$B$6:$U$332,13,FALSE)*$G98 -> 0 | Q98: =VLOOKUP($F98,Utslippsfaktorer!$B$6:$U$332,14,FALSE)*$G98 -> 0 | R98: =VLOOKUP($F98,Utslippsfaktorer!$B$6:$U$332,16,FALSE)*$G98 -> 0 | S98: =VLOOKUP($F98,Utslippsfaktorer!$B$6:$U$332,17,FALSE)*$G98 -> 0 | T98: =VLOOKUP($F98,Utslippsfaktorer!$B$6:$U$332,18,FALSE)*$G98 -> 0 | U98: =VLOOKUP($F98,Utslippsfaktorer!$B$6:$U$332,19,FALSE)*$G98 -> 0 | V98: 0 | W98: 0 | X98: =VLOOKUP($F98,Utslippsfaktorer!$B$6:$U$332,3,FALSE) -> -
C99: 25 | D99: 258 Utstyr og komplettering for dekker | E99: (egen data) | G99: 0 | V99: 0 | W99: 0
C100: 25 | D100: 259 Andre deler av dekker | E100: (Velg kategori) | F100: (Velg material eller prosesser) | G100: 0 | H100: =VLOOKUP($F100,Utslippsfaktorer!$B$6:$U$332,5,FALSE) -> - | I100: =VLOOKUP($F100,Utslippsfaktorer!$B$6:$U$332,6,FALSE) -> 0 | J100: =IFERROR(VLOOKUP($F100,Utslippsfaktorer!$B$6:$U$332,7,FALSE)*$G100,0) -> 0 | K100: =VLOOKUP($F100,Utslippsfaktorer!$B$6:$U$332,8,FALSE)*$G100 -> 0 | L100: =VLOOKUP($F100,Utslippsfaktorer!$B$6:$U$332,9,FALSE)*$G100 -> 0 | M100: =VLOOKUP($F100,Utslippsfaktorer!$B$6:$U$332,10,FALSE)*$G100 -> 0 | N100: =VLOOKUP($F100,Utslippsfaktorer!$B$6:$U$332,11,FALSE)*$G100 -> 0 | O100: =VLOOKUP($F100,Utslippsfaktorer!$B$6:$U$332,12,FALSE)*$G100 -> 0 | P100: =VLOOKUP($F100,Utslippsfaktorer!$B$6:$U$332,13,FALSE)*$G100 -> 0 | Q100: =VLOOKUP($F100,Utslippsfaktorer!$B$6:$U$332,14,FALSE)*$G100 -> 0 | R100: =VLOOKUP($F100,Utslippsfaktorer!$B$6:$U$332,16,FALSE)*$G100 -> 0 | S100: =VLOOKUP($F100,Utslippsfaktorer!$B$6:$U$332,17,FALSE)*$G100 -> 0 | T100: =VLOOKUP($F100,Utslippsfaktorer!$B$6:$U$332,18,FALSE)*$G100 -> 0 | U100: =VLOOKUP($F100,Utslippsfaktorer!$B$6:$U$332,19,FALSE)*$G100 -> 0 | V100: 0 | W100: 0 | X100: =VLOOKUP($F100,Utslippsfaktorer!$B$6:$U$332,3,FALSE) -> -
C101: 25 | D101: 259 Andre deler av dekker | E101: (egen data) | G101: 0 | V101: 0 | W101: 0
A103: seksjon6 | C103: 26 | D103: Yttertak | J103: =IFERROR((SUM(J104:J123)),"Not assessed") -> 0 | K103: =IFERROR((SUM(K104:K123)),"Not assessed") -> 0 | L103: =IFERROR((SUM(L104:L123)),"Not assessed") -> 0 | M103: =IFERROR((SUM(M104:M123)),"Not assessed") -> 0 | N103: =IFERROR((SUM(N104:N123)),"Not assessed") -> 0 | O103: =IFERROR((SUM(O104:O123)),"Not assessed") -> 0 | P103: =IFERROR((SUM(P104:P123)),"Not assessed") -> 0 | Q103: =IFERROR((SUM(Q104:Q123)),"Not assessed") -> 0 | R103: =IFERROR((SUM(R104:R123)),"Not assessed") -> 0 | S103: =IFERROR((SUM(S104:S123)),"Not assessed") -> 0 | T103: =IFERROR((SUM(T104:T123)),"Not assessed") -> 0 | U103: =IFERROR((SUM(U104:U123)),"Not assessed") -> 0 | V103: =IFERROR((SUM(V104:V123)),"Not assessed") -> 0 | X103: =IFERROR(V103/$U$2,0) -> 0
C104: 26 | D104: 26 | E104: (egen data) | G104: 0 | V104: =SUM(J104:U104) -> 0 | W104: =IFERROR(V104/$V$82,0) -> 0
C105: 26 | D105: 261 Primærkonstruksjon for yttertak | E105: (Velg kategori) | F105: (Velg material eller prosesser) | G105: 0 | H105: =VLOOKUP($F105,Utslippsfaktorer!$B$6:$U$332,5,FALSE) -> - | I105: =VLOOKUP($F105,Utslippsfaktorer!$B$6:$U$332,6,FALSE) -> 0 | J105: =IFERROR(VLOOKUP($F105,Utslippsfaktorer!$B$6:$U$332,7,FALSE)*$G105,0) -> 0 | K105: =VLOOKUP($F105,Utslippsfaktorer!$B$6:$U$332,8,FALSE)*$G105 -> 0 | L105: =VLOOKUP($F105,Utslippsfaktorer!$B$6:$U$332,9,FALSE)*$G105 -> 0 | M105: =VLOOKUP($F105,Utslippsfaktorer!$B$6:$U$332,10,FALSE)*$G105 -> 0 | N105: =VLOOKUP($F105,Utslippsfaktorer!$B$6:$U$332,11,FALSE)*$G105 -> 0 | O105: =VLOOKUP($F105,Utslippsfaktorer!$B$6:$U$332,12,FALSE)*$G105 -> 0 | P105: =VLOOKUP($F105,Utslippsfaktorer!$B$6:$U$332,13,FALSE)*$G105 -> 0 | Q105: =VLOOKUP($F105,Utslippsfaktorer!$B$6:$U$332,14,FALSE)*$G105 -> 0 | R105: =VLOOKUP($F105,Utslippsfaktorer!$B$6:$U$332,16,FALSE)*$G105 -> 0 | S105: =VLOOKUP($F105,Utslippsfaktorer!$B$6:$U$332,17,FALSE)*$G105 -> 0 | T105: =VLOOKUP($F105,Utslippsfaktorer!$B$6:$U$332,18,FALSE)*$G105 -> 0 | U105: =VLOOKUP($F105,Utslippsfaktorer!$B$6:$U$332,19,FALSE)*$G105 -> 0 | V105: 0 | W105: =IFERROR(V105/$V$82,0) -> 0 | X105: =VLOOKUP($F105,Utslippsfaktorer!$B$6:$U$332,3,FALSE) -> -
C106: 26 | D106: 261 Primærkonstruksjon for yttertak | E106: (egen data) | G106: 0 | V106: 0 | W106: 0
C107: 26 | D107: 262 Taktekking | E107: (Velg kategori) | F107: (Velg material eller prosesser) | G107: 0 | H107: =VLOOKUP($F107,Utslippsfaktorer!$B$6:$U$332,5,FALSE) -> - | I107: =VLOOKUP($F107,Utslippsfaktorer!$B$6:$U$332,6,FALSE) -> 0 | J107: =IFERROR(VLOOKUP($F107,Utslippsfaktorer!$B$6:$U$332,7,FALSE)*$G107,0) -> 0 | K107: =VLOOKUP($F107,Utslippsfaktorer!$B$6:$U$332,8,FALSE)*$G107 -> 0 | L107: =VLOOKUP($F107,Utslippsfaktorer!$B$6:$U$332,9,FALSE)*$G107 -> 0 | M107: =VLOOKUP($F107,Utslippsfaktorer!$B$6:$U$332,10,FALSE)*$G107 -> 0 | N107: =VLOOKUP($F107,Utslippsfaktorer!$B$6:$U$332,11,FALSE)*$G107 -> 0 | O107: =VLOOKUP($F107,Utslippsfaktorer!$B$6:$U$332,12,FALSE)*$G107 -> 0 | P107: =VLOOKUP($F107,Utslippsfaktorer!$B$6:$U$332,13,FALSE)*$G107 -> 0 | Q107: =VLOOKUP($F107,Utslippsfaktorer!$B$6:$U$332,14,FALSE)*$G107 -> 0 | R107: =VLOOKUP($F107,Utslippsfaktorer!$B$6:$U$332,16,FALSE)*$G107 -> 0 | S107: =VLOOKUP($F107,Utslippsfaktorer!$B$6:$U$332,17,FALSE)*$G107 -> 0 | T107: =VLOOKUP($F107,Utslippsfaktorer!$B$6:$U$332,18,FALSE)*$G107 -> 0 | U107: =VLOOKUP($F107,Utslippsfaktorer!$B$6:$U$332,19,FALSE)*$G107 -> 0 | V107: 0 | W107: 0 | X107: =VLOOKUP($F107,Utslippsfaktorer!$B$6:$U$332,3,FALSE) -> -
C108: 26 | D108: 262 Taktekking | E108: (egen data) | G108: 0 | V108: 0 | W108: 0
C109: 26 | D109: 263 Glasstak | E109: (Velg kategori) | F109: (Velg material eller prosesser) | G109: 0 | H109: =VLOOKUP($F109,Utslippsfaktorer!$B$6:$U$332,5,FALSE) -> - | I109: =VLOOKUP($F109,Utslippsfaktorer!$B$6:$U$332,6,FALSE) -> 0 | J109: =IFERROR(VLOOKUP($F109,Utslippsfaktorer!$B$6:$U$332,7,FALSE)*$G109,0) -> 0 | K109: =VLOOKUP($F109,Utslippsfaktorer!$B$6:$U$332,8,FALSE)*$G109 -> 0 | L109: =VLOOKUP($F109,Utslippsfaktorer!$B$6:$U$332,9,FALSE)*$G109 -> 0 | M109: =VLOOKUP($F109,Utslippsfaktorer!$B$6:$U$332,10,FALSE)*$G109 -> 0 | N109: =VLOOKUP($F109,Utslippsfaktorer!$B$6:$U$332,11,FALSE)*$G109 -> 0 | O109: =VLOOKUP($F109,Utslippsfaktorer!$B$6:$U$332,12,FALSE)*$G109 -> 0 | P109: =VLOOKUP($F109,Utslippsfaktorer!$B$6:$U$332,13,FALSE)*$G109 -> 0 | Q109: =VLOOKUP($F109,Utslippsfaktorer!$B$6:$U$332,14,FALSE)*$G109 -> 0 | R109: =VLOOKUP($F109,Utslippsfaktorer!$B$6:$U$332,16,FALSE)*$G109 -> 0 | S109: =VLOOKUP($F109,Utslippsfaktorer!$B$6:$U$332,17,FALSE)*$G109 -> 0 | T109: =VLOOKUP($F109,Utslippsfaktorer!$B$6:$U$332,18,FALSE)*$G109 -> 0 | U109: =VLOOKUP($F109,Utslippsfaktorer!$B$6:$U$332,19,FALSE)*$G109 -> 0 | V109: 0 | W109: 0 | X109: =VLOOKUP($F109,Utslippsfaktorer!$B$6:$U$332,3,FALSE) -> -
C110: 26 | D110: 263 Glasstak | E110: (egen data) | G110: 0 | V110: 0 | W110: 0
C111: 26 | D111: 264 Takoppbygg | E111: (Velg kategori) | F111: (Velg material eller prosesser) | G111: 0 | H111: =VLOOKUP($F111,Utslippsfaktorer!$B$6:$U$332,5,FALSE) -> - | I111: =VLOOKUP($F111,Utslippsfaktorer!$B$6:$U$332,6,FALSE) -> 0 | J111: =IFERROR(VLOOKUP($F111,Utslippsfaktorer!$B$6:$U$332,7,FALSE)*$G111,0) -> 0 | K111: =VLOOKUP($F111,Utslippsfaktorer!$B$6:$U$332,8,FALSE)*$G111 -> 0 | L111: =VLOOKUP($F111,Utslippsfaktorer!$B$6:$U$332,9,FALSE)*$G111 -> 0 | M111: =VLOOKUP($F111,Utslippsfaktorer!$B$6:$U$332,10,FALSE)*$G111 -> 0 | N111: =VLOOKUP($F111,Utslippsfaktorer!$B$6:$U$332,11,FALSE)*$G111 -> 0 | O111: =VLOOKUP($F111,Utslippsfaktorer!$B$6:$U$332,12,FALSE)*$G111 -> 0 | P111: =VLOOKUP($F111,Utslippsfaktorer!$B$6:$U$332,13,FALSE)*$G111 -> 0 | Q111: =VLOOKUP($F111,Utslippsfaktorer!$B$6:$U$332,14,FALSE)*$G111 -> 0 | R111: =VLOOKUP($F111,Utslippsfaktorer!$B$6:$U$332,16,FALSE)*$G111 -> 0 | S111: =VLOOKUP($F111,Utslippsfaktorer!$B$6:$U$332,17,FALSE)*$G111 -> 0 | T111: =VLOOKUP($F111,Utslippsfaktorer!$B$6:$U$332,18,FALSE)*$G111 -> 0 | U111: =VLOOKUP($F111,Utslippsfaktorer!$B$6:$U$332,19,FALSE)*$G111 -> 0 | V111: 0 | W111: 0 | X111: =VLOOKUP($F111,Utslippsfaktorer!$B$6:$U$332,3,FALSE) -> -
C112: 26 | D112: 264 Takoppbygg | E112: (egen data) | G112: 0 | V112: 0 | W112: 0
C113: 26 | D113: 265 Gesimser | E113: (Velg kategori) | F113: (Velg material eller prosesser) | G113: 0 | H113: =VLOOKUP($F113,Utslippsfaktorer!$B$6:$U$332,5,FALSE) -> - | I113: =VLOOKUP($F113,Utslippsfaktorer!$B$6:$U$332,6,FALSE) -> 0 | J113: =IFERROR(VLOOKUP($F113,Utslippsfaktorer!$B$6:$U$332,7,FALSE)*$G113,0) -> 0 | K113: =VLOOKUP($F113,Utslippsfaktorer!$B$6:$U$332,8,FALSE)*$G113 -> 0 | L113: =VLOOKUP($F113,Utslippsfaktorer!$B$6:$U$332,9,FALSE)*$G113 -> 0 | M113: =VLOOKUP($F113,Utslippsfaktorer!$B$6:$U$332,10,FALSE)*$G113 -> 0 | N113: =VLOOKUP($F113,Utslippsfaktorer!$B$6:$U$332,11,FALSE)*$G113 -> 0 | O113: =VLOOKUP($F113,Utslippsfaktorer!$B$6:$U$332,12,FALSE)*$G113 -> 0 | P113: =VLOOKUP($F113,Utslippsfaktorer!$B$6:$U$332,13,FALSE)*$G113 -> 0 | Q113: =VLOOKUP($F113,Utslippsfaktorer!$B$6:$U$332,14,FALSE)*$G113 -> 0 | R113: =VLOOKUP($F113,Utslippsfaktorer!$B$6:$U$332,16,FALSE)*$G113 -> 0 | S113: =VLOOKUP($F113,Utslippsfaktorer!$B$6:$U$332,17,FALSE)*$G113 -> 0 | T113: =VLOOKUP($F113,Utslippsfaktorer!$B$6:$U$332,18,FALSE)*$G113 -> 0 | U113: =VLOOKUP($F113,Utslippsfaktorer!$B$6:$U$332,19,FALSE)*$G113 -> 0 | V113: 0 | W113: 0 | X113: =VLOOKUP($F113,Utslippsfaktorer!$B$6:$U$332,3,FALSE) -> -
C114: 26 | D114: 265 Gesimser | E114: (egen data) | G114: 0 | V114: 0 | W114: 0
C115: 26 | D115: 266 Himling | E115: (Velg kategori) | F115: (Velg material eller prosesser) | G115: 0 | H115: =VLOOKUP($F115,Utslippsfaktorer!$B$6:$U$332,5,FALSE) -> - | I115: =VLOOKUP($F115,Utslippsfaktorer!$B$6:$U$332,6,FALSE) -> 0 | J115: =IFERROR(VLOOKUP($F115,Utslippsfaktorer!$B$6:$U$332,7,FALSE)*$G115,0) -> 0 | K115: =VLOOKUP($F115,Utslippsfaktorer!$B$6:$U$332,8,FALSE)*$G115 -> 0 | L115: =VLOOKUP($F115,Utslippsfaktorer!$B$6:$U$332,9,FALSE)*$G115 -> 0 | M115: =VLOOKUP($F115,Utslippsfaktorer!$B$6:$U$332,10,FALSE)*$G115 -> 0 | N115: =VLOOKUP($F115,Utslippsfaktorer!$B$6:$U$332,11,FALSE)*$G115 -> 0 | O115: =VLOOKUP($F115,Utslippsfaktorer!$B$6:$U$332,12,FALSE)*$G115 -> 0 | P115: =VLOOKUP($F115,Utslippsfaktorer!$B$6:$U$332,13,FALSE)*$G115 -> 0 | Q115: =VLOOKUP($F115,Utslippsfaktorer!$B$6:$U$332,14,FALSE)*$G115 -> 0 | R115: =VLOOKUP($F115,Utslippsfaktorer!$B$6:$U$332,16,FALSE)*$G115 -> 0 | S115: =VLOOKUP($F115,Utslippsfaktorer!$B$6:$U$332,17,FALSE)*$G115 -> 0 | T115: =VLOOKUP($F115,Utslippsfaktorer!$B$6:$U$332,18,FALSE)*$G115 -> 0 | U115: =VLOOKUP($F115,Utslippsfaktorer!$B$6:$U$332,19,FALSE)*$G115 -> 0 | V115: 0 | W115: 0 | X115: =VLOOKUP($F115,Utslippsfaktorer!$B$6:$U$332,3,FALSE) -> -
C116: 26 | D116: 266 Himling | E116: (egen data) | G116: 0 | V116: 0 | W116: 0
C117: 26 | D117: 267 Prefabrikkerte takelementer | E117: (Velg kategori) | F117: (Velg material eller prosesser) | G117: 0 | H117: =VLOOKUP($F117,Utslippsfaktorer!$B$6:$U$332,5,FALSE) -> - | I117: =VLOOKUP($F117,Utslippsfaktorer!$B$6:$U$332,6,FALSE) -> 0 | J117: =IFERROR(VLOOKUP($F117,Utslippsfaktorer!$B$6:$U$332,7,FALSE)*$G117,0) -> 0 | K117: =VLOOKUP($F117,Utslippsfaktorer!$B$6:$U$332,8,FALSE)*$G117 -> 0 | L117: =VLOOKUP($F117,Utslippsfaktorer!$B$6:$U$332,9,FALSE)*$G117 -> 0 | M117: =VLOOKUP($F117,Utslippsfaktorer!$B$6:$U$332,10,FALSE)*$G117 -> 0 | N117: =VLOOKUP($F117,Utslippsfaktorer!$B$6:$U$332,11,FALSE)*$G117 -> 0 | O117: =VLOOKUP($F117,Utslippsfaktorer!$B$6:$U$332,12,FALSE)*$G117 -> 0 | P117: =VLOOKUP($F117,Utslippsfaktorer!$B$6:$U$332,13,FALSE)*$G117 -> 0 | Q117: =VLOOKUP($F117,Utslippsfaktorer!$B$6:$U$332,14,FALSE)*$G117 -> 0 | R117: =VLOOKUP($F117,Utslippsfaktorer!$B$6:$U$332,16,FALSE)*$G117 -> 0 | S117: =VLOOKUP($F117,Utslippsfaktorer!$B$6:$U$332,17,FALSE)*$G117 -> 0 | T117: =VLOOKUP($F117,Utslippsfaktorer!$B$6:$U$332,18,FALSE)*$G117 -> 0 | U117: =VLOOKUP($F117,Utslippsfaktorer!$B$6:$U$332,19,FALSE)*$G117 -> 0 | V117: 0 | W117: 0 | X117: =VLOOKUP($F117,Utslippsfaktorer!$B$6:$U$332,3,FALSE) -> -
C118: 26 | D118: 267 Prefabrikkerte takelementer | E118: (egen data) | G118: 0 | V118: 0 | W118: 0
C119: 26 | D119: 268 Utstyr og komplettering for yttertak | E119: (Velg kategori) | F119: (Velg material eller prosesser) | G119: 0 | H119: =VLOOKUP($F119,Utslippsfaktorer!$B$6:$U$332,5,FALSE) -> - | I119: =VLOOKUP($F119,Utslippsfaktorer!$B$6:$U$332,6,FALSE) -> 0 | J119: =IFERROR(VLOOKUP($F119,Utslippsfaktorer!$B$6:$U$332,7,FALSE)*$G119,0) -> 0 | K119: =VLOOKUP($F119,Utslippsfaktorer!$B$6:$U$332,8,FALSE)*$G119 -> 0 | L119: =VLOOKUP($F119,Utslippsfaktorer!$B$6:$U$332,9,FALSE)*$G119 -> 0 | M119: =VLOOKUP($F119,Utslippsfaktorer!$B$6:$U$332,10,FALSE)*$G119 -> 0 | N119: =VLOOKUP($F119,Utslippsfaktorer!$B$6:$U$332,11,FALSE)*$G119 -> 0 | O119: =VLOOKUP($F119,Utslippsfaktorer!$B$6:$U$332,12,FALSE)*$G119 -> 0 | P119: =VLOOKUP($F119,Utslippsfaktorer!$B$6:$U$332,13,FALSE)*$G119 -> 0 | Q119: =VLOOKUP($F119,Utslippsfaktorer!$B$6:$U$332,14,FALSE)*$G119 -> 0 | R119: =VLOOKUP($F119,Utslippsfaktorer!$B$6:$U$332,16,FALSE)*$G119 -> 0 | S119: =VLOOKUP($F119,Utslippsfaktorer!$B$6:$U$332,17,FALSE)*$G119 -> 0 | T119: =VLOOKUP($F119,Utslippsfaktorer!$B$6:$U$332,18,FALSE)*$G119 -> 0 | U119: =VLOOKUP($F119,Utslippsfaktorer!$B$6:$U$332,19,FALSE)*$G119 -> 0 | V119: 0 | W119: 0 | X119: =VLOOKUP($F119,Utslippsfaktorer!$B$6:$U$332,3,FALSE) -> -
C120: 26 | D120: 268 Utstyr og komplettering for yttertak | E120: (egen data) | G120: 0 | V120: 0 | W120: 0
C121: 26 | D121: 269 Andre deler av yttertak | E121: (Velg kategori) | F121: (Velg material eller prosesser) | G121: 0 | H121: =VLOOKUP($F121,Utslippsfaktorer!$B$6:$U$332,5,FALSE) -> - | I121: =VLOOKUP($F121,Utslippsfaktorer!$B$6:$U$332,6,FALSE) -> 0 | J121: =IFERROR(VLOOKUP($F121,Utslippsfaktorer!$B$6:$U$332,7,FALSE)*$G121,0) -> 0 | K121: =VLOOKUP($F121,Utslippsfaktorer!$B$6:$U$332,8,FALSE)*$G121 -> 0 | L121: =VLOOKUP($F121,Utslippsfaktorer!$B$6:$U$332,9,FALSE)*$G121 -> 0 | M121: =VLOOKUP($F121,Utslippsfaktorer!$B$6:$U$332,10,FALSE)*$G121 -> 0 | N121: =VLOOKUP($F121,Utslippsfaktorer!$B$6:$U$332,11,FALSE)*$G121 -> 0 | O121: =VLOOKUP($F121,Utslippsfaktorer!$B$6:$U$332,12,FALSE)*$G121 -> 0 | P121: =VLOOKUP($F121,Utslippsfaktorer!$B$6:$U$332,13,FALSE)*$G121 -> 0 | Q121: =VLOOKUP($F121,Utslippsfaktorer!$B$6:$U$332,14,FALSE)*$G121 -> 0 | R121: =VLOOKUP($F121,Utslippsfaktorer!$B$6:$U$332,16,FALSE)*$G121 -> 0 | S121: =VLOOKUP($F121,Utslippsfaktorer!$B$6:$U$332,17,FALSE)*$G121 -> 0 | T121: =VLOOKUP($F121,Utslippsfaktorer!$B$6:$U$332,18,FALSE)*$G121 -> 0 | U121: =VLOOKUP($F121,Utslippsfaktorer!$B$6:$U$332,19,FALSE)*$G121 -> 0 | V121: 0 | W121: 0 | X121: =VLOOKUP($F121,Utslippsfaktorer!$B$6:$U$332,3,FALSE) -> -
C122: 26 | D122: 269 Andre deler av yttertak | E122: (egen data) | G122: 0 | V122: 0 | W122: 0
A124: seksjon7 | C124: 28 | D124: Trapper, balkonger, m.m. | J124: =IFERROR((SUM(J125:J144)),"Not assessed") -> 0 | K124: =IFERROR((SUM(K125:K144)),"Not assessed") -> 0 | L124: 0 | M124: 0 | N124: 0 | O124: 0 | P124: 0 | Q124: 0 | R124: 0 | S124: 0 | T124: 0 | U124: 0 | V124: 0 | X124: =IFERROR(V124/$U$2,0) -> 0
C125: 28 | D125: 28 | E125: (egen data) | G125: 0 | V125: =SUM(J125:U125) -> 0 | W125: =IFERROR(V125/$V$82,0) -> 0
C126: 28 | D126: 281 Innvendige trapper | E126: (Velg kategori) | F126: (Velg material eller prosesser) | G126: 0 | H126: =VLOOKUP($F126,Utslippsfaktorer!$B$6:$U$332,5,FALSE) -> - | I126: =VLOOKUP($F126,Utslippsfaktorer!$B$6:$U$332,6,FALSE) -> 0 | J126: =IFERROR(VLOOKUP($F126,Utslippsfaktorer!$B$6:$U$332,7,FALSE)*$G126,0) -> 0 | K126: =VLOOKUP($F126,Utslippsfaktorer!$B$6:$U$332,8,FALSE)*$G126 -> 0 | L126: =VLOOKUP($F126,Utslippsfaktorer!$B$6:$U$332,9,FALSE)*$G126 -> 0 | M126: =VLOOKUP($F126,Utslippsfaktorer!$B$6:$U$332,10,FALSE)*$G126 -> 0 | N126: =VLOOKUP($F126,Utslippsfaktorer!$B$6:$U$332,11,FALSE)*$G126 -> 0 | O126: =VLOOKUP($F126,Utslippsfaktorer!$B$6:$U$332,12,FALSE)*$G126 -> 0 | P126: =VLOOKUP($F126,Utslippsfaktorer!$B$6:$U$332,13,FALSE)*$G126 -> 0 | Q126: =VLOOKUP($F126,Utslippsfaktorer!$B$6:$U$332,14,FALSE)*$G126 -> 0 | R126: =VLOOKUP($F126,Utslippsfaktorer!$B$6:$U$332,16,FALSE)*$G126 -> 0 | S126: =VLOOKUP($F126,Utslippsfaktorer!$B$6:$U$332,17,FALSE)*$G126 -> 0 | T126: =VLOOKUP($F126,Utslippsfaktorer!$B$6:$U$332,18,FALSE)*$G126 -> 0 | U126: =VLOOKUP($F126,Utslippsfaktorer!$B$6:$U$332,19,FALSE)*$G126 -> 0 | V126: 0 | W126: =IFERROR(V126/$V$82,0) -> 0 | X126: =VLOOKUP($F126,Utslippsfaktorer!$B$6:$U$332,3,FALSE) -> -
C127: 28 | D127: 282 Innvendige trapper | E127: (egen data) | G127: 0 | V127: 0 | W127: 0
C128: 28 | D128: 282 Utvendige trapper | E128: (Velg kategori) | F128: (Velg material eller prosesser) | G128: 0 | H128: =VLOOKUP($F128,Utslippsfaktorer!$B$6:$U$332,5,FALSE) -> - | I128: =VLOOKUP($F128,Utslippsfaktorer!$B$6:$U$332,6,FALSE) -> 0 | J128: =IFERROR(VLOOKUP($F128,Utslippsfaktorer!$B$6:$U$332,7,FALSE)*$G128,0) -> 0 | K128: =VLOOKUP($F128,Utslippsfaktorer!$B$6:$U$332,8,FALSE)*$G128 -> 0 | L128: =VLOOKUP($F128,Utslippsfaktorer!$B$6:$U$332,9,FALSE)*$G128 -> 0 | M128: =VLOOKUP($F128,Utslippsfaktorer!$B$6:$U$332,10,FALSE)*$G128 -> 0 | N128: =VLOOKUP($F128,Utslippsfaktorer!$B$6:$U$332,11,FALSE)*$G128 -> 0 | O128: =VLOOKUP($F128,Utslippsfaktorer!$B$6:$U$332,12,FALSE)*$G128 -> 0 | P128: =VLOOKUP($F128,Utslippsfaktorer!$B$6:$U$332,13,FALSE)*$G128 -> 0 | Q128: =VLOOKUP($F128,Utslippsfaktorer!$B$6:$U$332,14,FALSE)*$G128 -> 0 | R128: =VLOOKUP($F128,Utslippsfaktorer!$B$6:$U$332,16,FALSE)*$G128 -> 0 | S128: =VLOOKUP($F128,Utslippsfaktorer!$B$6:$U$332,17,FALSE)*$G128 -> 0 | T128: =VLOOKUP($F128,Utslippsfaktorer!$B$6:$U$332,18,FALSE)*$G128 -> 0 | U128: =VLOOKUP($F128,Utslippsfaktorer!$B$6:$U$332,19,FALSE)*$G128 -> 0 | V128: 0 | W128: 0 | X128: =VLOOKUP($F128,Utslippsfaktorer!$B$6:$U$332,3,FALSE) -> -
C129: 28 | D129: 283 Utvendige trapper | E129: (egen data) | G129: 0 | V129: 0 | W129: 0
C130: 28 | D130: 283 Ramper | E130: (Velg kategori) | F130: (Velg material eller prosesser) | G130: 0 | H130: =VLOOKUP($F130,Utslippsfaktorer!$B$6:$U$332,5,FALSE) -> - | I130: =VLOOKUP($F130,Utslippsfaktorer!$B$6:$U$332,6,FALSE) -> 0 | J130: =IFERROR(VLOOKUP($F130,Utslippsfaktorer!$B$6:$U$332,7,FALSE)*$G130,0) -> 0 | K130: =VLOOKUP($F130,Utslippsfaktorer!$B$6:$U$332,8,FALSE)*$G130 -> 0 | L130: =VLOOKUP($F130,Utslippsfaktorer!$B$6:$U$332,9,FALSE)*$G130 -> 0 | M130: =VLOOKUP($F130,Utslippsfaktorer!$B$6:$U$332,10,FALSE)*$G130 -> 0 | N130: =VLOOKUP($F130,Utslippsfaktorer!$B$6:$U$332,11,FALSE)*$G130 -> 0 | O130: =VLOOKUP($F130,Utslippsfaktorer!$B$6:$U$332,12,FALSE)*$G130 -> 0 | P130: =VLOOKUP($F130,Utslippsfaktorer!$B$6:$U$332,13,FALSE)*$G130 -> 0 | Q130: =VLOOKUP($F130,Utslippsfaktorer!$B$6:$U$332,14,FALSE)*$G130 -> 0 | R130: =VLOOKUP($F130,Utslippsfaktorer!$B$6:$U$332,16,FALSE)*$G130 -> 0 | S130: =VLOOKUP($F130,Utslippsfaktorer!$B$6:$U$332,17,FALSE)*$G130 -> 0 | T130: =VLOOKUP($F130,Utslippsfaktorer!$B$6:$U$332,18,FALSE)*$G130 -> 0 | U130: =VLOOKUP($F130,Utslippsfaktorer!$B$6:$U$332,19,FALSE)*$G130 -> 0 | V130: 0 | W130: 0 | X130: =VLOOKUP($F130,Utslippsfaktorer!$B$6:$U$332,3,FALSE) -> -
C131: 28 | D131: 284 Ramper | E131: (egen data) | G131: 0 | V131: 0 | W131: 0
C132: 28 | D132: 284 Balkonger og verandaer | E132: (Velg kategori) | F132: (Velg material eller prosesser) | G132: 0 | H132: =VLOOKUP($F132,Utslippsfaktorer!$B$6:$U$332,5,FALSE) -> - | I132: =VLOOKUP($F132,Utslippsfaktorer!$B$6:$U$332,6,FALSE) -> 0 | J132: =IFERROR(VLOOKUP($F132,Utslippsfaktorer!$B$6:$U$332,7,FALSE)*$G132,0) -> 0 | K132: =VLOOKUP($F132,Utslippsfaktorer!$B$6:$U$332,8,FALSE)*$G132 -> 0 | L132: =VLOOKUP($F132,Utslippsfaktorer!$B$6:$U$332,9,FALSE)*$G132 -> 0 | M132: =VLOOKUP($F132,Utslippsfaktorer!$B$6:$U$332,10,FALSE)*$G132 -> 0 | N132: =VLOOKUP($F132,Utslippsfaktorer!$B$6:$U$332,11,FALSE)*$G132 -> 0 | O132: =VLOOKUP($F132,Utslippsfaktorer!$B$6:$U$332,12,FALSE)*$G132 -> 0 | P132: =VLOOKUP($F132,Utslippsfaktorer!$B$6:$U$332,13,FALSE)*$G132 -> 0 | Q132: =VLOOKUP($F132,Utslippsfaktorer!$B$6:$U$332,14,FALSE)*$G132 -> 0 | R132: =VLOOKUP($F132,Utslippsfaktorer!$B$6:$U$332,16,FALSE)*$G132 -> 0 | S132: =VLOOKUP($F132,Utslippsfaktorer!$B$6:$U$332,17,FALSE)*$G132 -> 0 | T132: =VLOOKUP($F132,Utslippsfaktorer!$B$6:$U$332,18,FALSE)*$G132 -> 0 | U132: =VLOOKUP($F132,Utslippsfaktorer!$B$6:$U$332,19,FALSE)*$G132 -> 0 | V132: 0 | W132: 0 | X132: =VLOOKUP($F132,Utslippsfaktorer!$B$6:$U$332,3,FALSE) -> -
C133: 28 | D133: 285 Balkonger og verandaer | E133: (egen data) | G133: 0 | V133: 0 | W133: 0
C134: 28 | D134: 285 Tribuner og amfier | E134: (Velg kategori) | F134: (Velg material eller prosesser) | G134: 0 | H134: =VLOOKUP($F134,Utslippsfaktorer!$B$6:$U$332,5,FALSE) -> - | I134: =VLOOKUP($F134,Utslippsfaktorer!$B$6:$U$332,6,FALSE) -> 0 | J134: =IFERROR(VLOOKUP($F134,Utslippsfaktorer!$B$6:$U$332,7,FALSE)*$G134,0) -> 0 | K134: =VLOOKUP($F134,Utslippsfaktorer!$B$6:$U$332,8,FALSE)*$G134 -> 0 | L134: =VLOOKUP($F134,Utslippsfaktorer!$B$6:$U$332,9,FALSE)*$G134 -> 0 | M134: =VLOOKUP($F134,Utslippsfaktorer!$B$6:$U$332,10,FALSE)*$G134 -> 0 | N134: =VLOOKUP($F134,Utslippsfaktorer!$B$6:$U$332,11,FALSE)*$G134 -> 0 | O134: =VLOOKUP($F134,Utslippsfaktorer!$B$6:$U$332,12,FALSE)*$G134 -> 0 | P134: =VLOOKUP($F134,Utslippsfaktorer!$B$6:$U$332,13,FALSE)*$G134 -> 0 | Q134: =VLOOKUP($F134,Utslippsfaktorer!$B$6:$U$332,14,FALSE)*$G134 -> 0 | R134: =VLOOKUP($F134,Utslippsfaktorer!$B$6:$U$332,16,FALSE)*$G134 -> 0 | S134: =VLOOKUP($F134,Utslippsfaktorer!$B$6:$U$332,17,FALSE)*$G134 -> 0 | T134: =VLOOKUP($F134,Utslippsfaktorer!$B$6:$U$332,18,FALSE)*$G134 -> 0 | U134: =VLOOKUP($F134,Utslippsfaktorer!$B$6:$U$332,19,FALSE)*$G134 -> 0 | V134: 0 | W134: 0 | X134: =VLOOKUP($F134,Utslippsfaktorer!$B$6:$U$332,3,FALSE) -> -
C135: 28 | D135: 286 Tribuner og amfier | E135: (egen data) | G135: 0 | V135: 0 | W135: 0
C136: 28 | D136: 286 Baldakiner og skjermtak | E136: (Velg kategori) | F136: (Velg material eller prosesser) | G136: 0 | H136: =VLOOKUP($F136,Utslippsfaktorer!$B$6:$U$332,5,FALSE) -> - | I136: =VLOOKUP($F136,Utslippsfaktorer!$B$6:$U$332,6,FALSE) -> 0 | J136: =IFERROR(VLOOKUP($F136,Utslippsfaktorer!$B$6:$U$332,7,FALSE)*$G136,0) -> 0 | K136: =VLOOKUP($F136,Utslippsfaktorer!$B$6:$U$332,8,FALSE)*$G136 -> 0 | L136: =VLOOKUP($F136,Utslippsfaktorer!$B$6:$U$332,9,FALSE)*$G136 -> 0 | M136: =VLOOKUP($F136,Utslippsfaktorer!$B$6:$U$332,10,FALSE)*$G136 -> 0 | N136: =VLOOKUP($F136,Utslippsfaktorer!$B$6:$U$332,11,FALSE)*$G136 -> 0 | O136: =VLOOKUP($F136,Utslippsfaktorer!$B$6:$U$332,12,FALSE)*$G136 -> 0 | P136: =VLOOKUP($F136,Utslippsfaktorer!$B$6:$U$332,13,FALSE)*$G136 -> 0 | Q136: =VLOOKUP($F136,Utslippsfaktorer!$B$6:$U$332,14,FALSE)*$G136 -> 0 | R136: =VLOOKUP($F136,Utslippsfaktorer!$B$6:$U$332,16,FALSE)*$G136 -> 0 | S136: =VLOOKUP($F136,Utslippsfaktorer!$B$6:$U$332,17,FALSE)*$G136 -> 0 | T136: =VLOOKUP($F136,Utslippsfaktorer!$B$6:$U$332,18,FALSE)*$G136 -> 0 | U136: =VLOOKUP($F136,Utslippsfaktorer!$B$6:$U$332,19,FALSE)*$G136 -> 0 | V136: 0 | W136: 0 | X136: =VLOOKUP($F136,Utslippsfaktorer!$B$6:$U$332,3,FALSE) -> -
C137: 28 | D137: 287 Baldakiner og skjermtak | E137: (egen data) | G137: 0 | V137: 0 | W137: 0
C138: 28 | D138: 287 Andre rekkverk, handlister og fendere | E138: (Velg kategori) | F138: (Velg material eller prosesser) | G138: 0 | H138: =VLOOKUP($F138,Utslippsfaktorer!$B$6:$U$332,5,FALSE) -> - | I138: =VLOOKUP($F138,Utslippsfaktorer!$B$6:$U$332,6,FALSE) -> 0 | J138: =IFERROR(VLOOKUP($F138,Utslippsfaktorer!$B$6:$U$332,7,FALSE)*$G138,0) -> 0 | K138: =VLOOKUP($F138,Utslippsfaktorer!$B$6:$U$332,8,FALSE)*$G138 -> 0 | L138: =VLOOKUP($F138,Utslippsfaktorer!$B$6:$U$332,9,FALSE)*$G138 -> 0 | M138: =VLOOKUP($F138,Utslippsfaktorer!$B$6:$U$332,10,FALSE)*$G138 -> 0 | N138: =VLOOKUP($F138,Utslippsfaktorer!$B$6:$U$332,11,FALSE)*$G138 -> 0 | O138: =VLOOKUP($F138,Utslippsfaktorer!$B$6:$U$332,12,FALSE)*$G138 -> 0 | P138: =VLOOKUP($F138,Utslippsfaktorer!$B$6:$U$332,13,FALSE)*$G138 -> 0 | Q138: =VLOOKUP($F138,Utslippsfaktorer!$B$6:$U$332,14,FALSE)*$G138 -> 0 | R138: =VLOOKUP($F138,Utslippsfaktorer!$B$6:$U$332,16,FALSE)*$G138 -> 0 | S138: =VLOOKUP($F138,Utslippsfaktorer!$B$6:$U$332,17,FALSE)*$G138 -> 0 | T138: =VLOOKUP($F138,Utslippsfaktorer!$B$6:$U$332,18,FALSE)*$G138 -> 0 | U138: =VLOOKUP($F138,Utslippsfaktorer!$B$6:$U$332,19,FALSE)*$G138 -> 0 | V138: 0 | W138: 0 | X138: =VLOOKUP($F138,Utslippsfaktorer!$B$6:$U$332,3,FALSE) -> -
C139: 28 | D139: 288 Andre rekkverk, handlister og fendere | E139: (egen data) | G139: 0 | V139: 0 | W139: 0
C140: 28 | D140: 288 Utstyr og kompletteringer for trapper, balkonger m.m. | E140: (Velg kategori) | F140: (Velg material eller prosesser) | G140: 0 | H140: =VLOOKUP($F140,Utslippsfaktorer!$B$6:$U$332,5,FALSE) -> - | I140: =VLOOKUP($F140,Utslippsfaktorer!$B$6:$U$332,6,FALSE) -> 0 | J140: =IFERROR(VLOOKUP($F140,Utslippsfaktorer!$B$6:$U$332,7,FALSE)*$G140,0) -> 0 | K140: =VLOOKUP($F140,Utslippsfaktorer!$B$6:$U$332,8,FALSE)*$G140 -> 0 | L140: =VLOOKUP($F140,Utslippsfaktorer!$B$6:$U$332,9,FALSE)*$G140 -> 0 | M140: =VLOOKUP($F140,Utslippsfaktorer!$B$6:$U$332,10,FALSE)*$G140 -> 0 | N140: =VLOOKUP($F140,Utslippsfaktorer!$B$6:$U$332,11,FALSE)*$G140 -> 0 | O140: =VLOOKUP($F140,Utslippsfaktorer!$B$6:$U$332,12,FALSE)*$G140 -> 0 | P140: =VLOOKUP($F140,Utslippsfaktorer!$B$6:$U$332,13,FALSE)*$G140 -> 0 | Q140: =VLOOKUP($F140,Utslippsfaktorer!$B$6:$U$332,14,FALSE)*$G140 -> 0 | R140: =VLOOKUP($F140,Utslippsfaktorer!$B$6:$U$332,16,FALSE)*$G140 -> 0 | S140: =VLOOKUP($F140,Utslippsfaktorer!$B$6:$U$332,17,FALSE)*$G140 -> 0 | T140: =VLOOKUP($F140,Utslippsfaktorer!$B$6:$U$332,18,FALSE)*$G140 -> 0 | U140: =VLOOKUP($F140,Utslippsfaktorer!$B$6:$U$332,19,FALSE)*$G140 -> 0 | V140: 0 | W140: 0 | X140: =VLOOKUP($F140,Utslippsfaktorer!$B$6:$U$332,3,FALSE) -> -
C141: 28 | D141: 289 Utstyr og kompletteringer for trapper, balkonger m.m. | E141: (egen data) | G141: 0 | V141: 0 | W141: 0
C142: 28 | D142: 289 Andre trapper, balkonger m.m. | E142: (Velg kategori) | F142: (Velg material eller prosesser) | G142: 0 | H142: =VLOOKUP($F142,Utslippsfaktorer!$B$6:$U$332,5,FALSE) -> - | I142: =VLOOKUP($F142,Utslippsfaktorer!$B$6:$U$332,6,FALSE) -> 0 | J142: =IFERROR(VLOOKUP($F142,Utslippsfaktorer!$B$6:$U$332,7,FALSE)*$G142,0) -> 0 | K142: =VLOOKUP($F142,Utslippsfaktorer!$B$6:$U$332,8,FALSE)*$G142 -> 0 | L142: =VLOOKUP($F142,Utslippsfaktorer!$B$6:$U$332,9,FALSE)*$G142 -> 0 | M142: =VLOOKUP($F142,Utslippsfaktorer!$B$6:$U$332,10,FALSE)*$G142 -> 0 | N142: =VLOOKUP($F142,Utslippsfaktorer!$B$6:$U$332,11,FALSE)*$G142 -> 0 | O142: =VLOOKUP($F142,Utslippsfaktorer!$B$6:$U$332,12,FALSE)*$G142 -> 0 | P142: =VLOOKUP($F142,Utslippsfaktorer!$B$6:$U$332,13,FALSE)*$G142 -> 0 | Q142: =VLOOKUP($F142,Utslippsfaktorer!$B$6:$U$332,14,FALSE)*$G142 -> 0 | R142: =VLOOKUP($F142,Utslippsfaktorer!$B$6:$U$332,16,FALSE)*$G142 -> 0 | S142: =VLOOKUP($F142,Utslippsfaktorer!$B$6:$U$332,17,FALSE)*$G142 -> 0 | T142: =VLOOKUP($F142,Utslippsfaktorer!$B$6:$U$332,18,FALSE)*$G142 -> 0 | U142: =VLOOKUP($F142,Utslippsfaktorer!$B$6:$U$332,19,FALSE)*$G142 -> 0 | V142: 0 | W142: 0 | X142: =VLOOKUP($F142,Utslippsfaktorer!$B$6:$U$332,3,FALSE) -> -
C143: 28 | D143: 289 Andre trapper, balkonger m.m. | E143: (egen data) | G143: 0 | V143: 0 | W143: 0
A145: seksjon8 | C145: 49 | D145: Andre elkraftinstallasjoner | J145: =IFERROR((SUM(J146:J147)),"Not assessed") -> 0 | K145: 0 | L145: 0 | M145: 0 | N145: 0 | O145: 0 | P145: 0 | Q145: 0 | R145: 0 | S145: 0 | T145: 0 | U145: 0 | V145: 0 | X145: =IFERROR(V145/$U$2,0) -> 0
C146: 49 | D146: 49 | E146: (egen data) | G146: 0 | V146: =SUM(J146:U146) -> 0 | W146: =IFERROR(V146/$V$103,0) -> 0
C147: 49 | D147: 49 | E147: (Velg kategori) | F147: (Velg material eller prosesser) | G147: 0 | H147: =VLOOKUP($F147,Utslippsfaktorer!$B$6:$U$332,5,FALSE) -> - | I147: =VLOOKUP($F147,Utslippsfaktorer!$B$6:$U$332,6,FALSE) -> 0 | J147: =IFERROR(VLOOKUP($F147,Utslippsfaktorer!$B$6:$U$332,7,FALSE)*$G147,0) -> 0 | K147: =VLOOKUP($F147,Utslippsfaktorer!$B$6:$U$332,8,FALSE)*$G147 -> 0 | L147: =VLOOKUP($F147,Utslippsfaktorer!$B$6:$U$332,9,FALSE)*$G147 -> 0 | M147: =VLOOKUP($F147,Utslippsfaktorer!$B$6:$U$332,10,FALSE)*$G147 -> 0 | N147: =VLOOKUP($F147,Utslippsfaktorer!$B$6:$U$332,11,FALSE)*$G147 -> 0 | O147: =VLOOKUP($F147,Utslippsfaktorer!$B$6:$U$332,12,FALSE)*$G147 -> 0 | P147: =VLOOKUP($F147,Utslippsfaktorer!$B$6:$U$332,13,FALSE)*$G147 -> 0 | Q147: =VLOOKUP($F147,Utslippsfaktorer!$B$6:$U$332,14,FALSE)*$G147 -> 0 | R147: =VLOOKUP($F147,Utslippsfaktorer!$B$6:$U$332,16,FALSE)*$G147 -> 0 | S147: =VLOOKUP($F147,Utslippsfaktorer!$B$6:$U$332,17,FALSE)*$G147 -> 0 | T147: =VLOOKUP($F147,Utslippsfaktorer!$B$6:$U$332,18,FALSE)*$G147 -> 0 | U147: =VLOOKUP($F147,Utslippsfaktorer!$B$6:$U$332,19,FALSE)*$G147 -> 0 | V147: 0 | W147: =IFERROR(V147/$V$103,0) -> 0 | X147: =VLOOKUP($F147,Utslippsfaktorer!$B$6:$U$332,3,FALSE) -> -
A149: seksjon9
B150: Energibruk på byggeplass (del av A5) | V150: =SUM(V151:V153) -> 2670 | Y150: =IFERROR(V150/$U$2,0) -> 0.02478866006
F151: _Elektrisitet (NO) | G151: 0 | H151: =VLOOKUP($F151,Utslippsfaktorer!$B$6:$U$332,5,FALSE) -> kWh | I151: =_xlfn.IFS(AND(Prosjektbeskrivelse!$C$13="Utslippsfri",H151="liter",G151>0),"Krav for utslippsfri byggeplass!",AND(Prosjektbeskrivelse!$C$13="Fossilfri",OR(ISNUMBER(FIND("Diesel",F151)),ISNUMBER(FIND("LPG",F151))),G151>0),"Krav for fossilfri byggeplass!",TRUE,"") ->  | V151: =IFERROR(VLOOKUP($F151,Utslippsfaktorer!$B$6:$U$332,7,FALSE)*$G151,0) -> 0 | W151: =IFERROR(V151/$V$150,0) -> 0
F152: Diesel | G152: 1000 | H152: =VLOOKUP($F152,Utslippsfaktorer!$B$6:$U$332,5,FALSE) -> liter | I152: =_xlfn.IFS(AND(Prosjektbeskrivelse!$C$13="Utslippsfri",H152="liter",G152>0),"Krav for utslippsfri byggeplass!",AND(Prosjektbeskrivelse!$C$13="Fossilfri",OR(ISNUMBER(FIND("Diesel",F152)),ISNUMBER(FIND("LPG",F152))),G152>0),"Krav for fossilfri byggeplass!",TRUE,"") -> Krav for fossilfri byggeplass! | V152: =IFERROR(VLOOKUP($F152,Utslippsfaktorer!$B$6:$U$332,7,FALSE)*$G152,0) -> 2670 | W152: =IFERROR(V152/$V$150,0) -> 1
F153: Biodiesel | G153: 0 | H153: =VLOOKUP($F153,Utslippsfaktorer!$B$6:$U$332,5,FALSE) -> liter | I153: =_xlfn.IFS(AND(Prosjektbeskrivelse!$C$13="Utslippsfri",H153="liter",G153>0),"Krav for utslippsfri byggeplass!",AND(Prosjektbeskrivelse!$C$13="Fossilfri",OR(ISNUMBER(FIND("Diesel",F153)),ISNUMBER(FIND("LPG",F153))),G153>0),"Krav for fossilfri byggeplass!",TRUE,"") ->  | V153: =IFERROR(VLOOKUP($F153,Utslippsfaktorer!$B$6:$U$332,7,FALSE)*$G153,0) -> 0 | W153: 0
B155: Energibruk i drift (B6) | V155: =SUM(V157:V163) -> 44537.85 | Y155: =IFERROR(V155/$U$2,0) -> 0.4134957391
G156: Nøkkelverdi (PROfet) | J156: Verdier fra egen beregning | M156: Endelige verdier | P156: Totalt energibruk | V156: Utslipp | W156: % per energibehov
E157: Oppvarming | F157: _Elektrisitet (NO) | G157: =VLOOKUP(_xlfn.CONCAT(Prosjektbeskrivelse!$C$16," ",Prosjektbeskrivelse!$C$17),Input_rullegardin!$I$4:$N$39,4,FALSE) -> 102 | H157: kWh/(m2·år) | K157: kWh/(m2·år) | M157: =IF(ISBLANK(J157),G157,J157) -> 102 | N157: kWh/(m2BTA.år) | P157: =M157*Prosjektbeskrivelse!$C$21*Prosjektbeskrivelse!$C$24 -> 688500 | Q157: kWh | V157: =IFERROR(VLOOKUP($F157,Utslippsfaktorer!$B$6:$U$332,7,FALSE)*$P157,0) -> 12393 | W157: =IFERROR(V157/$V$155,0) -> 0.2782577066
F158: _Fjernvarme, Trondheim, NO (snitt 2019-2021) | J158: 102 | K158: kWh/(m2·år) | M158: 102 | N158: kWh/(m2BTA.år) | P158: =M158*Prosjektbeskrivelse!$C$21*Prosjektbeskrivelse!$C$24 -> 688500 | Q158: kWh | V158: =IFERROR(VLOOKUP($F158,Utslippsfaktorer!$B$6:$U$332,7,FALSE)*$P158,0) -> 20723.85 | W158: =IFERROR(V158/$V$155,0) -> 0.4653087206
E159: Vannoppvarming | F159: _Elektrisitet (NO) | G159: =VLOOKUP(_xlfn.CONCAT(Prosjektbeskrivelse!$C$16," ",Prosjektbeskrivelse!$C$17),Input_rullegardin!$I$4:$N$39,5,FALSE) -> 19 | H159: kWh/(m2·år) | K159: kWh/(m2·år) | M159: 19 | N159: kWh/(m2BTA.år) | P159: =M159*Prosjektbeskrivelse!$C$21*Prosjektbeskrivelse!$C$24 -> 128250 | Q159: kWh | V159: =IFERROR(VLOOKUP($F159,Utslippsfaktorer!$B$6:$U$332,7,FALSE)*$P159,0) -> 2308.5 | W159: =IFERROR(V159/$V$155,0) -> 0.0518323179
E160: Elektriske apparater | F160: _Elektrisitet (NO) | G160: =VLOOKUP(_xlfn.CONCAT(Prosjektbeskrivelse!$C$16," ",Prosjektbeskrivelse!$C$17),Input_rullegardin!$I$4:$N$39,6,FALSE) -> 75 | H160: kWh/(m2·år) | K160: kWh/(m2·år) | M160: 75 | N160: kWh/(m2BTA.år) | P160: =M160*Prosjektbeskrivelse!$C$21*Prosjektbeskrivelse!$C$24 -> 506250 | Q160: kWh | V160: =IFERROR(VLOOKUP($F160,Utslippsfaktorer!$B$6:$U$332,7,FALSE)*$P160,0) -> 9112.5 | W160: 0.2046012549
E161: Kjøling | F161: _Elektrisitet (NO) | H161: kWh/(m2·år) | K161: kWh/(m2·år) | M161: 0 | N161: kWh/(m2BTA.år) | P161: =M161*Prosjektbeskrivelse!$C$21*Prosjektbeskrivelse!$C$24 -> 0 | Q161: kWh | V161: =IFERROR(VLOOKUP($F161,Utslippsfaktorer!$B$6:$U$332,7,FALSE)*$P161,0) -> 0 | W161: 0
E162: Luftbehandling | F162: _Elektrisitet (NO) | H162: kWh/(m2·år) | K162: kWh/(m2·år) | M162: 0 | N162: kWh/(m2BTA.år) | P162: =M162*Prosjektbeskrivelse!$C$21*Prosjektbeskrivelse!$C$24 -> 0 | Q162: kWh | V162: =IFERROR(VLOOKUP($F162,Utslippsfaktorer!$B$6:$U$332,7,FALSE)*$P162,0) -> 0 | W162: 0
E163: Annet | F163: _Elektrisitet (NO) | H163: kWh/(m2·år) | K163: kWh/(m2·år) | M163: 0 | N163: kWh/(m2BTA.år) | P163: =M163*Prosjektbeskrivelse!$C$21*Prosjektbeskrivelse!$C$24 -> 0 | Q163: kWh | V163: =IFERROR(VLOOKUP($F163,Utslippsfaktorer!$B$6:$U$332,7,FALSE)*$P163,0) -> 0 | W163: 0
A166: =Veiledning!B2 -> Versjon 2023-04-13. Utviklet av SINTEF AS.

Sheet Som bygget
B2: Som bygget | Q2: Utslipp A1-C4 | U2: =SUM(V4,V151,V156) -> 98766.14397 | W2: kgCO2e
B4: Bygningselementer | V4: =SUM(V8,V18,V37,V62,V83,V104) -> 72282.14397 | Y4: =IFERROR(V4/$U$2,0) -> 0.7318514327
J5: Produktstadiet | K5: Transport | L5: Monterings-arbeid | M5: Bruk | N5: Vedlikehold | O5: Reparasjon | P5: Utskiftning | Q5: Ombygging | R5: Riving | S5: Transport | T5: Avfalls-behandling | U5: Avhending
C6: Bygningselement | E6: Kategori | F6: Materialer eller prosesser | G6: Mengde | H6: Enhet | I6: Levetid | J6: A1-A3 | K6: A4 | L6: A5-svinn | M6: B1 | N6: B2 | O6: B3 | P6: B4 | Q6: B5 | R6: C1 | S6: C2 | T6: C3 | U6: C4 | V6: Klimagassutslipp | W6: Andel % per bygningselement | X6: Kilde
I7: år | J7: kgCO2e | K7: kgCO2e | L7: kgCO2e | M7: kgCO2e | N7: kgCO2e | O7: kgCO2e | P7: kgCO2e | Q7: kgCO2e | R7: kgCO2e | S7: kgCO2e | T7: kgCO2e | U7: kgCO2e | V7: kgCO2e | W7: -
A8: seksjon1 | C8: 21 | D8: Fundamentering | J8: =IFERROR(SUM(J9:J17),"Not assessed") -> 8775.099015 | K8: 3.53886 | L8: 152.6 | M8: 0 | N8: 0 | O8: 0 | P8: 0 | Q8: 0 | R8: 0 | S8: 0 | T8: 0 | U8: 0 | V8: 8931.237875 | X8: =IFERROR(V8/$U$2,0) -> 0.0904281317
C9: 21 | D9: 21 | E9: (egen data) | G9: 0 | V9: =SUM(J9:U9) -> 0 | W9: =IFERROR(V9/$V$8,0) -> 0
C10: 21 | D10: 215 Pelefundamentering | E10: Betong | F10: Betong B30, lavkarbon A | G10: 10 | H10: =VLOOKUP($F10,Utslippsfaktorer!$B$6:$U$332,5,FALSE) -> m3 | I10: =VLOOKUP($F10,Utslippsfaktorer!$B$6:$U$332,6,FALSE) -> 60 | J10: =IFERROR(VLOOKUP($F10,Utslippsfaktorer!$B$6:$U$332,7,FALSE)*$G10,0) -> 2000 | K10: =VLOOKUP($F10,Utslippsfaktorer!$B$6:$U$332,8,FALSE)*$G10 -> 3.192 | L10: =VLOOKUP($F10,Utslippsfaktorer!$B$6:$U$332,9,FALSE)*$G10 -> 0 | M10: =VLOOKUP($F10,Utslippsfaktorer!$B$6:$U$332,10,FALSE)*$G10 -> 0 | N10: =VLOOKUP($F10,Utslippsfaktorer!$B$6:$U$332,11,FALSE)*$G10 -> 0 | O10: =VLOOKUP($F10,Utslippsfaktorer!$B$6:$U$332,12,FALSE)*$G10 -> 0 | P10: =VLOOKUP($F10,Utslippsfaktorer!$B$6:$U$332,13,FALSE)*$G10 -> 0 | Q10: =VLOOKUP($F10,Utslippsfaktorer!$B$6:$U$332,14,FALSE)*$G10 -> 0 | R10: =VLOOKUP($F10,Utslippsfaktorer!$B$6:$U$332,16,FALSE)*$G10 -> 0 | S10: =VLOOKUP($F10,Utslippsfaktorer!$B$6:$U$332,17,FALSE)*$G10 -> 0 | T10: =VLOOKUP($F10,Utslippsfaktorer!$B$6:$U$332,18,FALSE)*$G10 -> 0 | U10: =VLOOKUP($F10,Utslippsfaktorer!$B$6:$U$332,19,FALSE)*$G10 -> 0 | V10: =SUM(J10:U10) -> 2003.192 | W10: =IFERROR(V10/$V$8,0) -> 0.2242905214 | X10: =VLOOKUP($F10,Utslippsfaktorer!$B$6:$U$332,3,FALSE) -> 0
C11: 21 | D11: 215 Pelefundamentering | E11: Stål | F11: Stål, konstruksjon m/resirk | G11: 1700 | H11: =VLOOKUP($F11,Utslippsfaktorer!$B$6:$U$332,5,FALSE) -> kg | I11: =VLOOKUP($F11,Utslippsfaktorer!$B$6:$U$332,6,FALSE) -> 60 | J11: =IFERROR(VLOOKUP($F11,Utslippsfaktorer!$B$6:$U$332,7,FALSE)*$G11,0) -> 2112.327273 | K11: =VLOOKUP($F11,Utslippsfaktorer!$B$6:$U$332,8,FALSE)*$G11 -> 0.14382 | L11: =VLOOKUP($F11,Utslippsfaktorer!$B$6:$U$332,9,FALSE)*$G11 -> 0 | M11: =VLOOKUP($F11,Utslippsfaktorer!$B$6:$U$332,10,FALSE)*$G11 -> 0 | N11: =VLOOKUP($F11,Utslippsfaktorer!$B$6:$U$332,11,FALSE)*$G11 -> 0 | O11: =VLOOKUP($F11,Utslippsfaktorer!$B$6:$U$332,12,FALSE)*$G11 -> 0 | P11: =VLOOKUP($F11,Utslippsfaktorer!$B$6:$U$332,13,FALSE)*$G11 -> 0 | Q11: =VLOOKUP($F11,Utslippsfaktorer!$B$6:$U$332,14,FALSE)*$G11 -> 0 | R11: =VLOOKUP($F11,Utslippsfaktorer!$B$6:$U$332,16,FALSE)*$G11 -> 0 | S11: =VLOOKUP($F11,Utslippsfaktorer!$B$6:$U$332,17,FALSE)*$G11 -> 0 | T11: =VLOOKUP($F11,Utslippsfaktorer!$B$6:$U$332,18,FALSE)*$G11 -> 0 | U11: =VLOOKUP($F11,Utslippsfaktorer!$B$6:$U$332,19,FALSE)*$G11 -> 0 | V11: 2112.471093 | W11: 0.2365261258 | X11: =VLOOKUP($F11,Utslippsfaktorer!$B$6:$U$332,3,FALSE) -> 0
C12: 21 | D12: 215 Pelefundamentering | E12: Isolasjon | F12: Ekstrudert polystyren (XPS 400) | G12: 40 | H12: =VLOOKUP($F12,Utslippsfaktorer!$B$6:$U$332,5,FALSE) -> m3 | I12: =VLOOKUP($F12,Utslippsfaktorer!$B$6:$U$332,6,FALSE) -> 20 | J12: =IFERROR(VLOOKUP($F12,Utslippsfaktorer!$B$6:$U$332,7,FALSE)*$G12,0) -> 4473.671742 | K12: =VLOOKUP($F12,Utslippsfaktorer!$B$6:$U$332,8,FALSE)*$G12 -> 0.10152 | L12: =VLOOKUP($F12,Utslippsfaktorer!$B$6:$U$332,9,FALSE)*$G12 -> 0 | M12: =VLOOKUP($F12,Utslippsfaktorer!$B$6:$U$332,10,FALSE)*$G12 -> 0 | N12: =VLOOKUP($F12,Utslippsfaktorer!$B$6:$U$332,11,FALSE)*$G12 -> 0 | O12: =VLOOKUP($F12,Utslippsfaktorer!$B$6:$U$332,12,FALSE)*$G12 -> 0 | P12: =VLOOKUP($F12,Utslippsfaktorer!$B$6:$U$332,13,FALSE)*$G12 -> 0 | Q12: =VLOOKUP($F12,Utslippsfaktorer!$B$6:$U$332,14,FALSE)*$G12 -> 0 | R12: =VLOOKUP($F12,Utslippsfaktorer!$B$6:$U$332,16,FALSE)*$G12 -> 0 | S12: =VLOOKUP($F12,Utslippsfaktorer!$B$6:$U$332,17,FALSE)*$G12 -> 0 | T12: =VLOOKUP($F12,Utslippsfaktorer!$B$6:$U$332,18,FALSE)*$G12 -> 0 | U12: =VLOOKUP($F12,Utslippsfaktorer!$B$6:$U$332,19,FALSE)*$G12 -> 0 | V12: 4473.773262 | W12: 0.5009130117 | X12: =VLOOKUP($F12,Utslippsfaktorer!$B$6:$U$332,3,FALSE) -> 0
C13: 21 | D13: 215 Pelefundamentering | E13: Bitumen | F13: Bitumen, EPD snitt | G13: 40 | H13: =VLOOKUP($F13,Utslippsfaktorer!$B$6:$U$332,5,FALSE) -> m2 | I13: =VLOOKUP($F13,Utslippsfaktorer!$B$6:$U$332,6,FALSE) -> 25 | J13: =IFERROR(VLOOKUP($F13,Utslippsfaktorer!$B$6:$U$332,7,FALSE)*$G13,0) -> 189.1 | K13: =VLOOKUP($F13,Utslippsfaktorer!$B$6:$U$332,8,FALSE)*$G13 -> 0.10152 | L13: =VLOOKUP($F13,Utslippsfaktorer!$B$6:$U$332,9,FALSE)*$G13 -> 152.6 | M13: =VLOOKUP($F13,Utslippsfaktorer!$B$6:$U$332,10,FALSE)*$G13 -> 0 | N13: =VLOOKUP($F13,Utslippsfaktorer!$B$6:$U$332,11,FALSE)*$G13 -> 0 | O13: =VLOOKUP($F13,Utslippsfaktorer!$B$6:$U$332,12,FALSE)*$G13 -> 0 | P13: =VLOOKUP($F13,Utslippsfaktorer!$B$6:$U$332,13,FALSE)*$G13 -> 0 | Q13: =VLOOKUP($F13,Utslippsfaktorer!$B$6:$U$332,14,FALSE)*$G13 -> 0 | R13: =VLOOKUP($F13,Utslippsfaktorer!$B$6:$U$332,16,FALSE)*$G13 -> 0 | S13: =VLOOKUP($F13,Utslippsfaktorer!$B$6:$U$332,17,FALSE)*$G13 -> 0 | T13: =VLOOKUP($F13,Utslippsfaktorer!$B$6:$U$332,18,FALSE)*$G13 -> 0 | U13: =VLOOKUP($F13,Utslippsfaktorer!$B$6:$U$332,19,FALSE)*$G13 -> 0 | V13: 341.80152 | W13: 0.03827034111 | X13: =VLOOKUP($F13,Utslippsfaktorer!$B$6:$U$332,3,FALSE) -> 0
C14: 21 | D14: 216 Pelefundamentering | E14: (egen data) | G14: 0 | V14: 0 | W14: =IFERROR(V14/$V$8,0) -> 0
C15: 21 | D15: 216 Direkte fundamentering | E15: (Velg kategori) | F15: (Velg material eller prosesser) | G15: 0 | H15: =VLOOKUP($F15,Utslippsfaktorer!$B$6:$U$332,5,FALSE) -> - | I15: =VLOOKUP($F15,Utslippsfaktorer!$B$6:$U$332,6,FALSE) -> 0 | J15: =IFERROR(VLOOKUP($F15,Utslippsfaktorer!$B$6:$U$332,7,FALSE)*$G15,0) -> 0 | K15: =VLOOKUP($F15,Utslippsfaktorer!$B$6:$U$332,8,FALSE)*$G15 -> 0 | L15: =VLOOKUP($F15,Utslippsfaktorer!$B$6:$U$332,9,FALSE)*$G15 -> 0 | M15: =VLOOKUP($F15,Utslippsfaktorer!$B$6:$U$332,10,FALSE)*$G15 -> 0 | N15: =VLOOKUP($F15,Utslippsfaktorer!$B$6:$U$332,11,FALSE)*$G15 -> 0 | O15: =VLOOKUP($F15,Utslippsfaktorer!$B$6:$U$332,12,FALSE)*$G15 -> 0 | P15: =VLOOKUP($F15,Utslippsfaktorer!$B$6:$U$332,13,FALSE)*$G15 -> 0 | Q15: =VLOOKUP($F15,Utslippsfaktorer!$B$6:$U$332,14,FALSE)*$G15 -> 0 | R15: =VLOOKUP($F15,Utslippsfaktorer!$B$6:$U$332,16,FALSE)*$G15 -> 0 | S15: =VLOOKUP($F15,Utslippsfaktorer!$B$6:$U$332,17,FALSE)*$G15 -> 0 | T15: =VLOOKUP($F15,Utslippsfaktorer!$B$6:$U$332,18,FALSE)*$G15 -> 0 | U15: =VLOOKUP($F15,Utslippsfaktorer!$B$6:$U$332,19,FALSE)*$G15 -> 0 | V15: 0 | W15: =IFERROR(V15/$V$8,0) -> 0 | X15: =VLOOKUP($F15,Utslippsfaktorer!$B$6:$U$332,3,FALSE) -> -
C16: 21 | D16: 216 Direkte fundamentering | E16: (egen data) | G16: 0 | V16: 0 | W16: =IFERROR(V16/$V$8,0) -> 0
A18: seksjon2 | C18: 22 | D18: Bæresystemer | J18: =IFERROR((SUM(J19:J36)),"Not assessed") -> 0 | K18: 0 | L18: 0 | M18: 0 | N18: 0 | O18: 0 | P18: 0 | Q18: 0 | R18: 0 | S18: 0 | T18: 0 | U18: 0 | V18: =IFERROR((SUM(V19:V36)),"Not assessed") -> 0 | X18: =IFERROR(V18/$U$2,0) -> 0
C19: 22 | D19: 22 | E19: (egen data) | G19: 0 | V19: =SUM(J19:U19) -> 0 | W19: =IFERROR(V19/$V$18,0) -> 0
C20: 22 | D20: 221 Rammer | E20: (Velg kategori) | F20: (Velg material eller prosesser) | G20: 0 | H20: =VLOOKUP($F20,Utslippsfaktorer!$B$6:$U$332,5,FALSE) -> - | I20: =VLOOKUP($F20,Utslippsfaktorer!$B$6:$U$332,6,FALSE) -> 0 | J20: =IFERROR(VLOOKUP($F20,Utslippsfaktorer!$B$6:$U$332,7,FALSE)*$G20,0) -> 0 | K20: =VLOOKUP($F20,Utslippsfaktorer!$B$6:$U$332,8,FALSE)*$G20 -> 0 | L20: =VLOOKUP($F20,Utslippsfaktorer!$B$6:$U$332,9,FALSE)*$G20 -> 0 | M20: =VLOOKUP($F20,Utslippsfaktorer!$B$6:$U$332,10,FALSE)*$G20 -> 0 | N20: =VLOOKUP($F20,Utslippsfaktorer!$B$6:$U$332,11,FALSE)*$G20 -> 0 | O20: =VLOOKUP($F20,Utslippsfaktorer!$B$6:$U$332,12,FALSE)*$G20 -> 0 | P20: =VLOOKUP($F20,Utslippsfaktorer!$B$6:$U$332,13,FALSE)*$G20 -> 0 | Q20: =VLOOKUP($F20,Utslippsfaktorer!$B$6:$U$332,14,FALSE)*$G20 -> 0 | R20: =VLOOKUP($F20,Utslippsfaktorer!$B$6:$U$332,16,FALSE)*$G20 -> 0 | S20: =VLOOKUP($F20,Utslippsfaktorer!$B$6:$U$332,17,FALSE)*$G20 -> 0 | T20: =VLOOKUP($F20,Utslippsfaktorer!$B$6:$U$332,18,FALSE)*$G20 -> 0 | U20: =VLOOKUP($F20,Utslippsfaktorer!$B$6:$U$332,19,FALSE)*$G20 -> 0 | V20: 0 | W20: =IFERROR(V20/$V$18,0) -> 0 | X20: =VLOOKUP($F20,Utslippsfaktorer!$B$6:$U$332,3,FALSE) -> -
C21: 22 | D21: 221 Rammer | E21: (egen data) | G21: 0 | V21: 0 | W21: 0
C22: 22 | D22: 222 Søyler | E22: (Velg kategori) | F22: (Velg material eller prosesser) | G22: 0 | H22: =VLOOKUP($F22,Utslippsfaktorer!$B$6:$U$332,5,FALSE) -> - | I22: =VLOOKUP($F22,Utslippsfaktorer!$B$6:$U$332,6,FALSE) -> 0 | J22: =IFERROR(VLOOKUP($F22,Utslippsfaktorer!$B$6:$U$332,7,FALSE)*$G22,0) -> 0 | K22: =VLOOKUP($F22,Utslippsfaktorer!$B$6:$U$332,8,FALSE)*$G22 -> 0 | L22: =VLOOKUP($F22,Utslippsfaktorer!$B$6:$U$332,9,FALSE)*$G22 -> 0 | M22: =VLOOKUP($F22,Utslippsfaktorer!$B$6:$U$332,10,FALSE)*$G22 -> 0 | N22: =VLOOKUP($F22,Utslippsfaktorer!$B$6:$U$332,11,FALSE)*$G22 -> 0 | O22: =VLOOKUP($F22,Utslippsfaktorer!$B$6:$U$332,12,FALSE)*$G22 -> 0 | P22: =VLOOKUP($F22,Utslippsfaktorer!$B$6:$U$332,13,FALSE)*$G22 -> 0 | Q22: =VLOOKUP($F22,Utslippsfaktorer!$B$6:$U$332,14,FALSE)*$G22 -> 0 | R22: =VLOOKUP($F22,Utslippsfaktorer!$B$6:$U$332,16,FALSE)*$G22 -> 0 | S22: =VLOOKUP($F22,Utslippsfaktorer!$B$6:$U$332,17,FALSE)*$G22 -> 0 | T22: =VLOOKUP($F22,Utslippsfaktorer!$B$6:$U$332,18,FALSE)*$G22 -> 0 | U22: =VLOOKUP($F22,Utslippsfaktorer!$B$6:$U$332,19,FALSE)*$G22 -> 0 | V22: 0 | W22: 0 | X22: =VLOOKUP($F22,Utslippsfaktorer!$B$6:$U$332,3,FALSE) -> -
C23: 22 | D23: 222 Søyler | E23: (egen data) | G23: 0 | V23: 0 | W23: 0
C24: 22 | D24: 223 Bjelker | E24: (Velg kategori) | F24: (Velg material eller prosesser) | G24: 0 | H24: =VLOOKUP($F24,Utslippsfaktorer!$B$6:$U$332,5,FALSE) -> - | I24: =VLOOKUP($F24,Utslippsfaktorer!$B$6:$U$332,6,FALSE) -> 0 | J24: =IFERROR(VLOOKUP($F24,Utslippsfaktorer!$B$6:$U$332,7,FALSE)*$G24,0) -> 0 | K24: =VLOOKUP($F24,Utslippsfaktorer!$B$6:$U$332,8,FALSE)*$G24 -> 0 | L24: =VLOOKUP($F24,Utslippsfaktorer!$B$6:$U$332,9,FALSE)*$G24 -> 0 | M24: =VLOOKUP($F24,Utslippsfaktorer!$B$6:$U$332,10,FALSE)*$G24 -> 0 | N24: =VLOOKUP($F24,Utslippsfaktorer!$B$6:$U$332,11,FALSE)*$G24 -> 0 | O24: =VLOOKUP($F24,Utslippsfaktorer!$B$6:$U$332,12,FALSE)*$G24 -> 0 | P24: =VLOOKUP($F24,Utslippsfaktorer!$B$6:$U$332,13,FALSE)*$G24 -> 0 | Q24: =VLOOKUP($F24,Utslippsfaktorer!$B$6:$U$332,14,FALSE)*$G24 -> 0 | R24: =VLOOKUP($F24,Utslippsfaktorer!$B$6:$U$332,16,FALSE)*$G24 -> 0 | S24: =VLOOKUP($F24,Utslippsfaktorer!$B$6:$U$332,17,FALSE)*$G24 -> 0 | T24: =VLOOKUP($F24,Utslippsfaktorer!$B$6:$U$332,18,FALSE)*$G24 -> 0 | U24: =VLOOKUP($F24,Utslippsfaktorer!$B$6:$U$332,19,FALSE)*$G24 -> 0 | V24: 0 | W24: 0 | X24: =VLOOKUP($F24,Utslippsfaktorer!$B$6:$U$332,3,FALSE) -> -
C25: 22 | D25: 223 Bjelker | E25: (egen data) | G25: 0 | V25: 0 | W25: 0
C26: 22 | D26: 224 Avstivende konstruksjoner | E26: (Velg kategori) | F26: (Velg material eller prosesser) | G26: 0 | H26: =VLOOKUP($F26,Utslippsfaktorer!$B$6:$U$332,5,FALSE) -> - | I26: =VLOOKUP($F26,Utslippsfaktorer!$B$6:$U$332,6,FALSE) -> 0 | J26: =IFERROR(VLOOKUP($F26,Utslippsfaktorer!$B$6:$U$332,7,FALSE)*$G26,0) -> 0 | K26: =VLOOKUP($F26,Utslippsfaktorer!$B$6:$U$332,8,FALSE)*$G26 -> 0 | L26: =VLOOKUP($F26,Utslippsfaktorer!$B$6:$U$332,9,FALSE)*$G26 -> 0 | M26: =VLOOKUP($F26,Utslippsfaktorer!$B$6:$U$332,10,FALSE)*$G26 -> 0 | N26: =VLOOKUP($F26,Utslippsfaktorer!$B$6:$U$332,11,FALSE)*$G26 -> 0 | O26: =VLOOKUP($F26,Utslippsfaktorer!$B$6:$U$332,12,FALSE)*$G26 -> 0 | P26: =VLOOKUP($F26,Utslippsfaktorer!$B$6:$U$332,13,FALSE)*$G26 -> 0 | Q26: =VLOOKUP($F26,Utslippsfaktorer!$B$6:$U$332,14,FALSE)*$G26 -> 0 | R26: =VLOOKUP($F26,Utslippsfaktorer!$B$6:$U$332,16,FALSE)*$G26 -> 0 | S26: =VLOOKUP($F26,Utslippsfaktorer!$B$6:$U$332,17,FALSE)*$G26 -> 0 | T26: =VLOOKUP($F26,Utslippsfaktorer!$B$6:$U$332,18,FALSE)*$G26 -> 0 | U26: =VLOOKUP($F26,Utslippsfaktorer!$B$6:$U$332,19,FALSE)*$G26 -> 0 | V26: 0 | W26: 0 | X26: =VLOOKUP($F26,Utslippsfaktorer!$B$6:$U$332,3,FALSE) -> -
C27: 22 | D27: 224 Avstivende konstruksjoner | E27: (egen data) | G27: 0 | V27: 0 | W27: 0
C28: 22 | D28: 225 Brannbeskyttelse av bærende konstruksjoner | E28: (Velg kategori) | F28: (Velg material eller prosesser) | G28: 0 | H28: =VLOOKUP($F28,Utslippsfaktorer!$B$6:$U$332,5,FALSE) -> - | I28: =VLOOKUP($F28,Utslippsfaktorer!$B$6:$U$332,6,FALSE) -> 0 | J28: =IFERROR(VLOOKUP($F28,Utslippsfaktorer!$B$6:$U$332,7,FALSE)*$G28,0) -> 0 | K28: =VLOOKUP($F28,Utslippsfaktorer!$B$6:$U$332,8,FALSE)*$G28 -> 0 | L28: =VLOOKUP($F28,Utslippsfaktorer!$B$6:$U$332,9,FALSE)*$G28 -> 0 | M28: =VLOOKUP($F28,Utslippsfaktorer!$B$6:$U$332,10,FALSE)*$G28 -> 0 | N28: =VLOOKUP($F28,Utslippsfaktorer!$B$6:$U$332,11,FALSE)*$G28 -> 0 | O28: =VLOOKUP($F28,Utslippsfaktorer!$B$6:$U$332,12,FALSE)*$G28 -> 0 | P28: =VLOOKUP($F28,Utslippsfaktorer!$B$6:$U$332,13,FALSE)*$G28 -> 0 | Q28: =VLOOKUP($F28,Utslippsfaktorer!$B$6:$U$332,14,FALSE)*$G28 -> 0 | R28: =VLOOKUP($F28,Utslippsfaktorer!$B$6:$U$332,16,FALSE)*$G28 -> 0 | S28: =VLOOKUP($F28,Utslippsfaktorer!$B$6:$U$332,17,FALSE)*$G28 -> 0 | T28: =VLOOKUP($F28,Utslippsfaktorer!$B$6:$U$332,18,FALSE)*$G28 -> 0 | U28: =VLOOKUP($F28,Utslippsfaktorer!$B$6:$U$332,19,FALSE)*$G28 -> 0 | V28: 0 | W28: 0 | X28: =VLOOKUP($F28,Utslippsfaktorer!$B$6:$U$332,3,FALSE) -> -
C29: 22 | D29: 225 Brannbeskyttelse av bærende konstruksjoner | E29: (egen data) | G29: 0 | V29: 0 | W29: 0
C30: 22 | D30: 226 Kleding og overflate | E30: (Velg kategori) | F30: (Velg material eller prosesser) | G30: 0 | H30: =VLOOKUP($F30,Utslippsfaktorer!$B$6:$U$332,5,FALSE) -> - | I30: =VLOOKUP($F30,Utslippsfaktorer!$B$6:$U$332,6,FALSE) -> 0 | J30: =IFERROR(VLOOKUP($F30,Utslippsfaktorer!$B$6:$U$332,7,FALSE)*$G30,0) -> 0 | K30: =VLOOKUP($F30,Utslippsfaktorer!$B$6:$U$332,8,FALSE)*$G30 -> 0 | L30: =VLOOKUP($F30,Utslippsfaktorer!$B$6:$U$332,9,FALSE)*$G30 -> 0 | M30: =VLOOKUP($F30,Utslippsfaktorer!$B$6:$U$332,10,FALSE)*$G30 -> 0 | N30: =VLOOKUP($F30,Utslippsfaktorer!$B$6:$U$332,11,FALSE)*$G30 -> 0 | O30: =VLOOKUP($F30,Utslippsfaktorer!$B$6:$U$332,12,FALSE)*$G30 -> 0 | P30: =VLOOKUP($F30,Utslippsfaktorer!$B$6:$U$332,13,FALSE)*$G30 -> 0 | Q30: =VLOOKUP($F30,Utslippsfaktorer!$B$6:$U$332,14,FALSE)*$G30 -> 0 | R30: =VLOOKUP($F30,Utslippsfaktorer!$B$6:$U$332,16,FALSE)*$G30 -> 0 | S30: =VLOOKUP($F30,Utslippsfaktorer!$B$6:$U$332,17,FALSE)*$G30 -> 0 | T30: =VLOOKUP($F30,Utslippsfaktorer!$B$6:$U$332,18,FALSE)*$G30 -> 0 | U30: =VLOOKUP($F30,Utslippsfaktorer!$B$6:$U$332,19,FALSE)*$G30 -> 0 | V30: 0 | W30: 0 | X30: =VLOOKUP($F30,Utslippsfaktorer!$B$6:$U$332,3,FALSE) -> -
C31: 22 | D31: 226 Kleding og overflate | E31: (egen data) | G31: 0 | V31: 0 | W31: 0
C32: 22 | D32: 228 Utstyr og komplettering | E32: (Velg kategori) | F32: (Velg material eller prosesser) | G32: 0 | H32: =VLOOKUP($F32,Utslippsfaktorer!$B$6:$U$332,5,FALSE) -> - | I32: =VLOOKUP($F32,Utslippsfaktorer!$B$6:$U$332,6,FALSE) -> 0 | J32: =IFERROR(VLOOKUP($F32,Utslippsfaktorer!$B$6:$U$332,7,FALSE)*$G32,0) -> 0 | K32: =VLOOKUP($F32,Utslippsfaktorer!$B$6:$U$332,8,FALSE)*$G32 -> 0 | L32: =VLOOKUP($F32,Utslippsfaktorer!$B$6:$U$332,9,FALSE)*$G32 -> 0 | M32: =VLOOKUP($F32,Utslippsfaktorer!$B$6:$U$332,10,FALSE)*$G32 -> 0 | N32: =VLOOKUP($F32,Utslippsfaktorer!$B$6:$U$332,11,FALSE)*$G32 -> 0 | O32: =VLOOKUP($F32,Utslippsfaktorer!$B$6:$U$332,12,FALSE)*$G32 -> 0 | P32: =VLOOKUP($F32,Utslippsfaktorer!$B$6:$U$332,13,FALSE)*$G32 -> 0 | Q32: =VLOOKUP($F32,Utslippsfaktorer!$B$6:$U$332,14,FALSE)*$G32 -> 0 | R32: =VLOOKUP($F32,Utslippsfaktorer!$B$6:$U$332,16,FALSE)*$G32 -> 0 | S32: =VLOOKUP($F32,Utslippsfaktorer!$B$6:$U$332,17,FALSE)*$G32 -> 0 | T32: =VLOOKUP($F32,Utslippsfaktorer!$B$6:$U$332,18,FALSE)*$G32 -> 0 | U32: =VLOOKUP($F32,Utslippsfaktorer!$B$6:$U$332,19,FALSE)*$G32 -> 0 | V32: 0 | W32: 0 | X32: =VLOOKUP($F32,Utslippsfaktorer!$B$6:$U$332,3,FALSE) -> -
C33: 22 | D33: 228 Utstyr og komplettering | E33: (egen data) | G33: 0 | V33: 0 | W33: 0
C34: 22 | D34: 229 Andre deler av bærende konstruksjoner | E34: (Velg kategori) | F34: (Velg material eller prosesser) | G34: 0 | H34: =VLOOKUP($F34,Utslippsfaktorer!$B$6:$U$332,5,FALSE) -> - | I34: =VLOOKUP($F34,Utslippsfaktorer!$B$6:$U$332,6,FALSE) -> 0 | J34: =IFERROR(VLOOKUP($F34,Utslippsfaktorer!$B$6:$U$332,7,FALSE)*$G34,0) -> 0 | K34: =VLOOKUP($F34,Utslippsfaktorer!$B$6:$U$332,8,FALSE)*$G34 -> 0 | L34: =VLOOKUP($F34,Utslippsfaktorer!$B$6:$U$332,9,FALSE)*$G34 -> 0 | M34: =VLOOKUP($F34,Utslippsfaktorer!$B$6:$U$332,10,FALSE)*$G34 -> 0 | N34: =VLOOKUP($F34,Utslippsfaktorer!$B$6:$U$332,11,FALSE)*$G34 -> 0 | O34: =VLOOKUP($F34,Utslippsfaktorer!$B$6:$U$332,12,FALSE)*$G34 -> 0 | P34: =VLOOKUP($F34,Utslippsfaktorer!$B$6:$U$332,13,FALSE)*$G34 -> 0 | Q34: =VLOOKUP($F34,Utslippsfaktorer!$B$6:$U$332,14,FALSE)*$G34 -> 0 | R34: =VLOOKUP($F34,Utslippsfaktorer!$B$6:$U$332,16,FALSE)*$G34 -> 0 | S34: =VLOOKUP($F34,Utslippsfaktorer!$B$6:$U$332,17,FALSE)*$G34 -> 0 | T34: =VLOOKUP($F34,Utslippsfaktorer!$B$6:$U$332,18,FALSE)*$G34 -> 0 | U34: =VLOOKUP($F34,Utslippsfaktorer!$B$6:$U$332,19,FALSE)*$G34 -> 0 | V34: 0 | W34: 0 | X34: =VLOOKUP($F34,Utslippsfaktorer!$B$6:$U$332,3,FALSE) -> -
C35: 22 | D35: 229 Andre deler av bærende konstruksjoner | E35: (egen data) | G35: 0 | V35: 0 | W35: 0
A37: seksjon3 | C37: 23 | D37: Yttervegger | J37: =IFERROR((SUM(J38:J60)),"Not assessed") -> 35921 | K37: 21.4461 | L37: 0 | M37: 0 | N37: 0 | O37: 0 | P37: 0 | Q37: 0 | R37: 0 | S37: 0 | T37: 0 | U37: 0 | V37: 35942.4461 | X37: =IFERROR(V37/$U$2,0) -> 0.3639146438
C38: 23 | D38: 23 | E38: (egen data) | G38: 0 | V38: =SUM(J38:U38) -> 0 | W38: =IFERROR(V38/$V$37,0) -> 0
C39: 23 | D39: 231 Bærende ytterveggen | E39: Bygningsplater | F39: Bygningsplater - Gipsplater (12-15 mm) | G39: 50 | H39: =VLOOKUP($F39,Utslippsfaktorer!$B$6:$U$332,5,FALSE) -> m2 | I39: =VLOOKUP($F39,Utslippsfaktorer!$B$6:$U$332,6,FALSE) -> 40 | J39: =IFERROR(VLOOKUP($F39,Utslippsfaktorer!$B$6:$U$332,7,FALSE)*$G39,0) -> 141 | K39: =VLOOKUP($F39,Utslippsfaktorer!$B$6:$U$332,8,FALSE)*$G39 -> 0.1269 | L39: =VLOOKUP($F39,Utslippsfaktorer!$B$6:$U$332,9,FALSE)*$G39 -> 0 | M39: =VLOOKUP($F39,Utslippsfaktorer!$B$6:$U$332,10,FALSE)*$G39 -> 0 | N39: =VLOOKUP($F39,Utslippsfaktorer!$B$6:$U$332,11,FALSE)*$G39 -> 0 | O39: =VLOOKUP($F39,Utslippsfaktorer!$B$6:$U$332,12,FALSE)*$G39 -> 0 | P39: =VLOOKUP($F39,Utslippsfaktorer!$B$6:$U$332,13,FALSE)*$G39 -> 0 | Q39: =VLOOKUP($F39,Utslippsfaktorer!$B$6:$U$332,14,FALSE)*$G39 -> 0 | R39: =VLOOKUP($F39,Utslippsfaktorer!$B$6:$U$332,16,FALSE)*$G39 -> 0 | S39: =VLOOKUP($F39,Utslippsfaktorer!$B$6:$U$332,17,FALSE)*$G39 -> 0 | T39: =VLOOKUP($F39,Utslippsfaktorer!$B$6:$U$332,18,FALSE)*$G39 -> 0 | U39: =VLOOKUP($F39,Utslippsfaktorer!$B$6:$U$332,19,FALSE)*$G39 -> 0 | V39: 141.1269 | W39: =IFERROR(V39/$V$37,0) -> 0.003926468989 | X39: =VLOOKUP($F39,Utslippsfaktorer!$B$6:$U$332,3,FALSE) -> Grønn materialguide
C40: 23 | D40: 231 Bærende ytterveggen | E40: Konstruktive materialer | F40: Konstruktive materialer - Betong (lavkarbon A, B30) | G40: 100 | H40: =VLOOKUP($F40,Utslippsfaktorer!$B$6:$U$332,5,FALSE) -> m3 | I40: =VLOOKUP($F40,Utslippsfaktorer!$B$6:$U$332,6,FALSE) -> 60 | J40: =IFERROR(VLOOKUP($F40,Utslippsfaktorer!$B$6:$U$332,7,FALSE)*$G40,0) -> 20000 | K40: =VLOOKUP($F40,Utslippsfaktorer!$B$6:$U$332,8,FALSE)*$G40 -> 20.304 | L40: =VLOOKUP($F40,Utslippsfaktorer!$B$6:$U$332,9,FALSE)*$G40 -> 0 | M40: =VLOOKUP($F40,Utslippsfaktorer!$B$6:$U$332,10,FALSE)*$G40 -> 0 | N40: =VLOOKUP($F40,Utslippsfaktorer!$B$6:$U$332,11,FALSE)*$G40 -> 0 | O40: =VLOOKUP($F40,Utslippsfaktorer!$B$6:$U$332,12,FALSE)*$G40 -> 0 | P40: =VLOOKUP($F40,Utslippsfaktorer!$B$6:$U$332,13,FALSE)*$G40 -> 0 | Q40: =VLOOKUP($F40,Utslippsfaktorer!$B$6:$U$332,14,FALSE)*$G40 -> 0 | R40: =VLOOKUP($F40,Utslippsfaktorer!$B$6:$U$332,16,FALSE)*$G40 -> 0 | S40: =VLOOKUP($F40,Utslippsfaktorer!$B$6:$U$332,17,FALSE)*$G40 -> 0 | T40: =VLOOKUP($F40,Utslippsfaktorer!$B$6:$U$332,18,FALSE)*$G40 -> 0 | U40: =VLOOKUP($F40,Utslippsfaktorer!$B$6:$U$332,19,FALSE)*$G40 -> 0 | V40: =SUM(J40:U40) -> 20020.304 | W40: 0.5570100584
C41: 23 | D41: 231 Bærende ytterveggen | E41: Murstein | F41: Fasadesystem med resirkulert murstein | G41: 200 | H41: =VLOOKUP($F41,Utslippsfaktorer!$B$6:$U$332,5,FALSE) -> m2 | I41: =VLOOKUP($F41,Utslippsfaktorer!$B$6:$U$332,6,FALSE) -> 60 | J41: =IFERROR(VLOOKUP($F41,Utslippsfaktorer!$B$6:$U$332,7,FALSE)*$G41,0) -> 11100 | K41: =VLOOKUP($F41,Utslippsfaktorer!$B$6:$U$332,8,FALSE)*$G41 -> 0.5076 | L41: =VLOOKUP($F41,Utslippsfaktorer!$B$6:$U$332,9,FALSE)*$G41 -> 0 | M41: =VLOOKUP($F41,Utslippsfaktorer!$B$6:$U$332,10,FALSE)*$G41 -> 0 | N41: =VLOOKUP($F41,Utslippsfaktorer!$B$6:$U$332,11,FALSE)*$G41 -> 0 | O41: =VLOOKUP($F41,Utslippsfaktorer!$B$6:$U$332,12,FALSE)*$G41 -> 0 | P41: =VLOOKUP($F41,Utslippsfaktorer!$B$6:$U$332,13,FALSE)*$G41 -> 0 | Q41: =VLOOKUP($F41,Utslippsfaktorer!$B$6:$U$332,14,FALSE)*$G41 -> 0 | R41: =VLOOKUP($F41,Utslippsfaktorer!$B$6:$U$332,16,FALSE)*$G41 -> 0 | S41: =VLOOKUP($F41,Utslippsfaktorer!$B$6:$U$332,17,FALSE)*$G41 -> 0 | T41: =VLOOKUP($F41,Utslippsfaktorer!$B$6:$U$332,18,FALSE)*$G41 -> 0 | U41: =VLOOKUP($F41,Utslippsfaktorer!$B$6:$U$332,19,FALSE)*$G41 -> 0 | V41: 11100.5076 | W41: 0.3088411837 | X41: =VLOOKUP($F41,Utslippsfaktorer!$B$6:$U$332,3,FALSE) -> NEPD nr.: 1675-673-EN (2018)
C42: 23 | D42: 231 Bærende ytterveggen | E42: Isolasjon | F42: Isolasjon - Glassull | G42: 200 | H42: =VLOOKUP($F42,Utslippsfaktorer!$B$6:$U$332,5,FALSE) -> m3 | I42: =VLOOKUP($F42,Utslippsfaktorer!$B$6:$U$332,6,FALSE) -> 20 | J42: =IFERROR(VLOOKUP($F42,Utslippsfaktorer!$B$6:$U$332,7,FALSE)*$G42,0) -> 4680 | K42: =VLOOKUP($F42,Utslippsfaktorer!$B$6:$U$332,8,FALSE)*$G42 -> 0.5076 | L42: =VLOOKUP($F42,Utslippsfaktorer!$B$6:$U$332,9,FALSE)*$G42 -> 0 | M42: =VLOOKUP($F42,Utslippsfaktorer!$B$6:$U$332,10,FALSE)*$G42 -> 0 | N42: =VLOOKUP($F42,Utslippsfaktorer!$B$6:$U$332,11,FALSE)*$G42 -> 0 | O42: =VLOOKUP($F42,Utslippsfaktorer!$B$6:$U$332,12,FALSE)*$G42 -> 0 | P42: =VLOOKUP($F42,Utslippsfaktorer!$B$6:$U$332,13,FALSE)*$G42 -> 0 | Q42: =VLOOKUP($F42,Utslippsfaktorer!$B$6:$U$332,14,FALSE)*$G42 -> 0 | R42: =VLOOKUP($F42,Utslippsfaktorer!$B$6:$U$332,16,FALSE)*$G42 -> 0 | S42: =VLOOKUP($F42,Utslippsfaktorer!$B$6:$U$332,17,FALSE)*$G42 -> 0 | T42: =VLOOKUP($F42,Utslippsfaktorer!$B$6:$U$332,18,FALSE)*$G42 -> 0 | U42: =VLOOKUP($F42,Utslippsfaktorer!$B$6:$U$332,19,FALSE)*$G42 -> 0 | V42: 4680.5076 | W42: 0.1302222889 | X42: =VLOOKUP($F42,Utslippsfaktorer!$B$6:$U$332,3,FALSE) -> Grønn materialguide
C43: 23 | D43: 231 Bærende ytterveggen | E43: (egen data) | G43: 0 | V43: 0 | W43: 0
C44: 23 | D44: 232 Ikke-bærende ytterveggen | E44: (Velg kategori) | F44: (Velg material eller prosesser) | G44: 0 | H44: =VLOOKUP($F44,Utslippsfaktorer!$B$6:$U$332,5,FALSE) -> - | I44: =VLOOKUP($F44,Utslippsfaktorer!$B$6:$U$332,6,FALSE) -> 0 | J44: =IFERROR(VLOOKUP($F44,Utslippsfaktorer!$B$6:$U$332,7,FALSE)*$G44,0) -> 0 | K44: =VLOOKUP($F44,Utslippsfaktorer!$B$6:$U$332,8,FALSE)*$G44 -> 0 | L44: =VLOOKUP($F44,Utslippsfaktorer!$B$6:$U$332,9,FALSE)*$G44 -> 0 | M44: =VLOOKUP($F44,Utslippsfaktorer!$B$6:$U$332,10,FALSE)*$G44 -> 0 | N44: =VLOOKUP($F44,Utslippsfaktorer!$B$6:$U$332,11,FALSE)*$G44 -> 0 | O44: =VLOOKUP($F44,Utslippsfaktorer!$B$6:$U$332,12,FALSE)*$G44 -> 0 | P44: =VLOOKUP($F44,Utslippsfaktorer!$B$6:$U$332,13,FALSE)*$G44 -> 0 | Q44: =VLOOKUP($F44,Utslippsfaktorer!$B$6:$U$332,14,FALSE)*$G44 -> 0 | R44: =VLOOKUP($F44,Utslippsfaktorer!$B$6:$U$332,16,FALSE)*$G44 -> 0 | S44: =VLOOKUP($F44,Utslippsfaktorer!$B$6:$U$332,17,FALSE)*$G44 -> 0 | T44: =VLOOKUP($F44,Utslippsfaktorer!$B$6:$U$332,18,FALSE)*$G44 -> 0 | U44: =VLOOKUP($F44,Utslippsfaktorer!$B$6:$U$332,19,FALSE)*$G44 -> 0 | V44: 0 | W44: 0 | X44: =VLOOKUP($F44,Utslippsfaktorer!$B$6:$U$332,3,FALSE) -> -
C45: 23 | D45: 232 Ikke-bærende ytterveggen | E45: (Velg kategori) | F45: (Velg material eller prosesser) | G45: 0 | H45: =VLOOKUP($F45,Utslippsfaktorer!$B$6:$U$332,5,FALSE) -> - | I45: =VLOOKUP($F45,Utslippsfaktorer!$B$6:$U$332,6,FALSE) -> 0 | J45: =IFERROR(VLOOKUP($F45,Utslippsfaktorer!$B$6:$U$332,7,FALSE)*$G45,0) -> 0 | K45: =VLOOKUP($F45,Utslippsfaktorer!$B$6:$U$332,8,FALSE)*$G45 -> 0 | L45: =VLOOKUP($F45,Utslippsfaktorer!$B$6:$U$332,9,FALSE)*$G45 -> 0 | M45: =VLOOKUP($F45,Utslippsfaktorer!$B$6:$U$332,10,FALSE)*$G45 -> 0 | N45: =VLOOKUP($F45,Utslippsfaktorer!$B$6:$U$332,11,FALSE)*$G45 -> 0 | O45: =VLOOKUP($F45,Utslippsfaktorer!$B$6:$U$332,12,FALSE)*$G45 -> 0 | P45: =VLOOKUP($F45,Utslippsfaktorer!$B$6:$U$332,13,FALSE)*$G45 -> 0 | Q45: =VLOOKUP($F45,Utslippsfaktorer!$B$6:$U$332,14,FALSE)*$G45 -> 0 | R45: =VLOOKUP($F45,Utslippsfaktorer!$B$6:$U$332,16,FALSE)*$G45 -> 0 | S45: =VLOOKUP($F45,Utslippsfaktorer!$B$6:$U$332,17,FALSE)*$G45 -> 0 | T45: =VLOOKUP($F45,Utslippsfaktorer!$B$6:$U$332,18,FALSE)*$G45 -> 0 | U45: =VLOOKUP($F45,Utslippsfaktorer!$B$6:$U$332,19,FALSE)*$G45 -> 0 | V45: =SUM(J45:U45) -> 0 | W45: 0 | X45: =VLOOKUP($F45,Utslippsfaktorer!$B$6:$U$332,3,FALSE) -> -
C46: 23 | D46: 232 Ikke-bærende ytterveggen | E46: (egen data) | G46: 0 | V46: 0 | W46: 0
C47: 23 | D47: 233 Glassfasader | E47: (Velg kategori) | F47: (Velg material eller prosesser) | G47: 0 | H47: =VLOOKUP($F47,Utslippsfaktorer!$B$6:$U$332,5,FALSE) -> - | I47: =VLOOKUP($F47,Utslippsfaktorer!$B$6:$U$332,6,FALSE) -> 0 | J47: =IFERROR(VLOOKUP($F47,Utslippsfaktorer!$B$6:$U$332,7,FALSE)*$G47,0) -> 0 | K47: =VLOOKUP($F47,Utslippsfaktorer!$B$6:$U$332,8,FALSE)*$G47 -> 0 | L47: =VLOOKUP($F47,Utslippsfaktorer!$B$6:$U$332,9,FALSE)*$G47 -> 0 | M47: =VLOOKUP($F47,Utslippsfaktorer!$B$6:$U$332,10,FALSE)*$G47 -> 0 | N47: =VLOOKUP($F47,Utslippsfaktorer!$B$6:$U$332,11,FALSE)*$G47 -> 0 | O47: =VLOOKUP($F47,Utslippsfaktorer!$B$6:$U$332,12,FALSE)*$G47 -> 0 | P47: =VLOOKUP($F47,Utslippsfaktorer!$B$6:$U$332,13,FALSE)*$G47 -> 0 | Q47: =VLOOKUP($F47,Utslippsfaktorer!$B$6:$U$332,14,FALSE)*$G47 -> 0 | R47: =VLOOKUP($F47,Utslippsfaktorer!$B$6:$U$332,16,FALSE)*$G47 -> 0 | S47: =VLOOKUP($F47,Utslippsfaktorer!$B$6:$U$332,17,FALSE)*$G47 -> 0 | T47: =VLOOKUP($F47,Utslippsfaktorer!$B$6:$U$332,18,FALSE)*$G47 -> 0 | U47: =VLOOKUP($F47,Utslippsfaktorer!$B$6:$U$332,19,FALSE)*$G47 -> 0 | V47: 0 | W47: 0 | X47: =VLOOKUP($F47,Utslippsfaktorer!$B$6:$U$332,3,FALSE) -> -
C48: 23 | D48: 233 Glassfasader | E48: (egen data) | G48: 0 | V48: 0 | W48: 0
C49: 23 | D49: 234 Vinduer, dører, porter | E49: (Velg kategori) | F49: (Velg material eller prosesser) | G49: 0 | H49: =VLOOKUP($F49,Utslippsfaktorer!$B$6:$U$332,5,FALSE) -> - | I49: =VLOOKUP($F49,Utslippsfaktorer!$B$6:$U$332,6,FALSE) -> 0 | J49: =IFERROR(VLOOKUP($F49,Utslippsfaktorer!$B$6:$U$332,7,FALSE)*$G49,0) -> 0 | K49: =VLOOKUP($F49,Utslippsfaktorer!$B$6:$U$332,8,FALSE)*$G49 -> 0 | L49: =VLOOKUP($F49,Utslippsfaktorer!$B$6:$U$332,9,FALSE)*$G49 -> 0 | M49: =VLOOKUP($F49,Utslippsfaktorer!$B$6:$U$332,10,FALSE)*$G49 -> 0 | N49: =VLOOKUP($F49,Utslippsfaktorer!$B$6:$U$332,11,FALSE)*$G49 -> 0 | O49: =VLOOKUP($F49,Utslippsfaktorer!$B$6:$U$332,12,FALSE)*$G49 -> 0 | P49: =VLOOKUP($F49,Utslippsfaktorer!$B$6:$U$332,13,FALSE)*$G49 -> 0 | Q49: =VLOOKUP($F49,Utslippsfaktorer!$B$6:$U$332,14,FALSE)*$G49 -> 0 | R49: =VLOOKUP($F49,Utslippsfaktorer!$B$6:$U$332,16,FALSE)*$G49 -> 0 | S49: =VLOOKUP($F49,Utslippsfaktorer!$B$6:$U$332,17,FALSE)*$G49 -> 0 | T49: =VLOOKUP($F49,Utslippsfaktorer!$B$6:$U$332,18,FALSE)*$G49 -> 0 | U49: =VLOOKUP($F49,Utslippsfaktorer!$B$6:$U$332,19,FALSE)*$G49 -> 0 | V49: 0 | W49: 0 | X49: =VLOOKUP($F49,Utslippsfaktorer!$B$6:$U$332,3,FALSE) -> -
C50: 23 | D50: 234 Vinduer, dører, porter | E50: (egen data) | G50: 0 | V50: 0 | W50: 0
C51: 23 | D51: 235 Utvending kleding og overflate | E51: (Velg kategori) | F51: (Velg material eller prosesser) | G51: 0 | H51: =VLOOKUP($F51,Utslippsfaktorer!$B$6:$U$332,5,FALSE) -> - | I51: =VLOOKUP($F51,Utslippsfaktorer!$B$6:$U$332,6,FALSE) -> 0 | J51: =IFERROR(VLOOKUP($F51,Utslippsfaktorer!$B$6:$U$332,7,FALSE)*$G51,0) -> 0 | K51: =VLOOKUP($F51,Utslippsfaktorer!$B$6:$U$332,8,FALSE)*$G51 -> 0 | L51: =VLOOKUP($F51,Utslippsfaktorer!$B$6:$U$332,9,FALSE)*$G51 -> 0 | M51: =VLOOKUP($F51,Utslippsfaktorer!$B$6:$U$332,10,FALSE)*$G51 -> 0 | N51: =VLOOKUP($F51,Utslippsfaktorer!$B$6:$U$332,11,FALSE)*$G51 -> 0 | O51: =VLOOKUP($F51,Utslippsfaktorer!$B$6:$U$332,12,FALSE)*$G51 -> 0 | P51: =VLOOKUP($F51,Utslippsfaktorer!$B$6:$U$332,13,FALSE)*$G51 -> 0 | Q51: =VLOOKUP($F51,Utslippsfaktorer!$B$6:$U$332,14,FALSE)*$G51 -> 0 | R51: =VLOOKUP($F51,Utslippsfaktorer!$B$6:$U$332,16,FALSE)*$G51 -> 0 | S51: =VLOOKUP($F51,Utslippsfaktorer!$B$6:$U$332,17,FALSE)*$G51 -> 0 | T51: =VLOOKUP($F51,Utslippsfaktorer!$B$6:$U$332,18,FALSE)*$G51 -> 0 | U51: =VLOOKUP($F51,Utslippsfaktorer!$B$6:$U$332,19,FALSE)*$G51 -> 0 | V51: 0 | W51: 0 | X51: =VLOOKUP($F51,Utslippsfaktorer!$B$6:$U$332,3,FALSE) -> -
C52: 23 | D52: 235 Utvending kleding og overflate | E52: (egen data) | G52: 0 | V52: 0 | W52: 0
C53: 23 | D53: 236 Innvending overflate | E53: (Velg kategori) | F53: (Velg material eller prosesser) | G53: 0 | H53: =VLOOKUP($F53,Utslippsfaktorer!$B$6:$U$332,5,FALSE) -> - | I53: =VLOOKUP($F53,Utslippsfaktorer!$B$6:$U$332,6,FALSE) -> 0 | J53: =IFERROR(VLOOKUP($F53,Utslippsfaktorer!$B$6:$U$332,7,FALSE)*$G53,0) -> 0 | K53: =VLOOKUP($F53,Utslippsfaktorer!$B$6:$U$332,8,FALSE)*$G53 -> 0 | L53: =VLOOKUP($F53,Utslippsfaktorer!$B$6:$U$332,9,FALSE)*$G53 -> 0 | M53: =VLOOKUP($F53,Utslippsfaktorer!$B$6:$U$332,10,FALSE)*$G53 -> 0 | N53: =VLOOKUP($F53,Utslippsfaktorer!$B$6:$U$332,11,FALSE)*$G53 -> 0 | O53: =VLOOKUP($F53,Utslippsfaktorer!$B$6:$U$332,12,FALSE)*$G53 -> 0 | P53: =VLOOKUP($F53,Utslippsfaktorer!$B$6:$U$332,13,FALSE)*$G53 -> 0 | Q53: =VLOOKUP($F53,Utslippsfaktorer!$B$6:$U$332,14,FALSE)*$G53 -> 0 | R53: =VLOOKUP($F53,Utslippsfaktorer!$B$6:$U$332,16,FALSE)*$G53 -> 0 | S53: =VLOOKUP($F53,Utslippsfaktorer!$B$6:$U$332,17,FALSE)*$G53 -> 0 | T53: =VLOOKUP($F53,Utslippsfaktorer!$B$6:$U$332,18,FALSE)*$G53 -> 0 | U53: =VLOOKUP($F53,Utslippsfaktorer!$B$6:$U$332,19,FALSE)*$G53 -> 0 | V53: 0 | W53: 0 | X53: =VLOOKUP($F53,Utslippsfaktorer!$B$6:$U$332,3,FALSE) -> -
C54: 23 | D54: 236 Innvending overflate | E54: (egen data) | G54: 0 | V54: 0 | W54: 0
C55: 23 | D55: 237 Solavskjerming | E55: (Velg kategori) | F55: (Velg material eller prosesser) | G55: 0 | H55: =VLOOKUP($F55,Utslippsfaktorer!$B$6:$U$332,5,FALSE) -> - | I55: =VLOOKUP($F55,Utslippsfaktorer!$B$6:$U$332,6,FALSE) -> 0 | J55: =IFERROR(VLOOKUP($F55,Utslippsfaktorer!$B$6:$U$332,7,FALSE)*$G55,0) -> 0 | K55: =VLOOKUP($F55,Utslippsfaktorer!$B$6:$U$332,8,FALSE)*$G55 -> 0 | L55: =VLOOKUP($F55,Utslippsfaktorer!$B$6:$U$332,9,FALSE)*$G55 -> 0 | M55: =VLOOKUP($F55,Utslippsfaktorer!$B$6:$U$332,10,FALSE)*$G55 -> 0 | N55: =VLOOKUP($F55,Utslippsfaktorer!$B$6:$U$332,11,FALSE)*$G55 -> 0 | O55: =VLOOKUP($F55,Utslippsfaktorer!$B$6:$U$332,12,FALSE)*$G55 -> 0 | P55: =VLOOKUP($F55,Utslippsfaktorer!$B$6:$U$332,13,FALSE)*$G55 -> 0 | Q55: =VLOOKUP($F55,Utslippsfaktorer!$B$6:$U$332,14,FALSE)*$G55 -> 0 | R55: =VLOOKUP($F55,Utslippsfaktorer!$B$6:$U$332,16,FALSE)*$G55 -> 0 | S55: =VLOOKUP($F55,Utslippsfaktorer!$B$6:$U$332,17,FALSE)*$G55 -> 0 | T55: =VLOOKUP($F55,Utslippsfaktorer!$B$6:$U$332,18,FALSE)*$G55 -> 0 | U55: =VLOOKUP($F55,Utslippsfaktorer!$B$6:$U$332,19,FALSE)*$G55 -> 0 | V55: 0 | W55: 0 | X55: =VLOOKUP($F55,Utslippsfaktorer!$B$6:$U$332,3,FALSE) -> -
C56: 23 | D56: 237 Solavskjerming | E56: (egen data) | G56: 0 | V56: 0 | W56: 0
C57: 23 | D57: 238 Utstyr og komplettering for yttervegger | E57: (Velg kategori) | F57: (Velg material eller prosesser) | G57: 0 | H57: =VLOOKUP($F57,Utslippsfaktorer!$B$6:$U$332,5,FALSE) -> - | I57: =VLOOKUP($F57,Utslippsfaktorer!$B$6:$U$332,6,FALSE) -> 0 | J57: =IFERROR(VLOOKUP($F57,Utslippsfaktorer!$B$6:$U$332,7,FALSE)*$G57,0) -> 0 | K57: =VLOOKUP($F57,Utslippsfaktorer!$B$6:$U$332,8,FALSE)*$G57 -> 0 | L57: =VLOOKUP($F57,Utslippsfaktorer!$B$6:$U$332,9,FALSE)*$G57 -> 0 | M57: =VLOOKUP($F57,Utslippsfaktorer!$B$6:$U$332,10,FALSE)*$G57 -> 0 | N57: =VLOOKUP($F57,Utslippsfaktorer!$B$6:$U$332,11,FALSE)*$G57 -> 0 | O57: =VLOOKUP($F57,Utslippsfaktorer!$B$6:$U$332,12,FALSE)*$G57 -> 0 | P57: =VLOOKUP($F57,Utslippsfaktorer!$B$6:$U$332,13,FALSE)*$G57 -> 0 | Q57: =VLOOKUP($F57,Utslippsfaktorer!$B$6:$U$332,14,FALSE)*$G57 -> 0 | R57: =VLOOKUP($F57,Utslippsfaktorer!$B$6:$U$332,16,FALSE)*$G57 -> 0 | S57: =VLOOKUP($F57,Utslippsfaktorer!$B$6:$U$332,17,FALSE)*$G57 -> 0 | T57: =VLOOKUP($F57,Utslippsfaktorer!$B$6:$U$332,18,FALSE)*$G57 -> 0 | U57: =VLOOKUP($F57,Utslippsfaktorer!$B$6:$U$332,19,FALSE)*$G57 -> 0 | V57: 0 | W57: 0 | X57: =VLOOKUP($F57,Utslippsfaktorer!$B$6:$U$332,3,FALSE) -> -
C58: 23 | D58: 238 Utstyr og komplettering for yttervegger | E58: (egen data) | G58: 0 | V58: 0 | W58: 0
C59: 23 | D59: 239 Ander deler av yttervegg | E59: (Velg kategori) | F59: (Velg material eller prosesser) | G59: 0 | H59: =VLOOKUP($F59,Utslippsfaktorer!$B$6:$U$332,5,FALSE) -> - | I59: =VLOOKUP($F59,Utslippsfaktorer!$B$6:$U$332,6,FALSE) -> 0 | J59: =IFERROR(VLOOKUP($F59,Utslippsfaktorer!$B$6:$U$332,7,FALSE)*$G59,0) -> 0 | K59: =VLOOKUP($F59,Utslippsfaktorer!$B$6:$U$332,8,FALSE)*$G59 -> 0 | L59: =VLOOKUP($F59,Utslippsfaktorer!$B$6:$U$332,9,FALSE)*$G59 -> 0 | M59: =VLOOKUP($F59,Utslippsfaktorer!$B$6:$U$332,10,FALSE)*$G59 -> 0 | N59: =VLOOKUP($F59,Utslippsfaktorer!$B$6:$U$332,11,FALSE)*$G59 -> 0 | O59: =VLOOKUP($F59,Utslippsfaktorer!$B$6:$U$332,12,FALSE)*$G59 -> 0 | P59: =VLOOKUP($F59,Utslippsfaktorer!$B$6:$U$332,13,FALSE)*$G59 -> 0 | Q59: =VLOOKUP($F59,Utslippsfaktorer!$B$6:$U$332,14,FALSE)*$G59 -> 0 | R59: =VLOOKUP($F59,Utslippsfaktorer!$B$6:$U$332,16,FALSE)*$G59 -> 0 | S59: =VLOOKUP($F59,Utslippsfaktorer!$B$6:$U$332,17,FALSE)*$G59 -> 0 | T59: =VLOOKUP($F59,Utslippsfaktorer!$B$6:$U$332,18,FALSE)*$G59 -> 0 | U59: =VLOOKUP($F59,Utslippsfaktorer!$B$6:$U$332,19,FALSE)*$G59 -> 0 | V59: 0 | W59: 0 | X59: =VLOOKUP($F59,Utslippsfaktorer!$B$6:$U$332,3,FALSE) -> -
C60: 23 | D60: 239 Ander deler av yttervegg | E60: (egen data) | G60: 0 | V60: 0 | W60: 0
A62: seksjon4 | C62: 24 | D62: Innervegger | J62: =IFERROR((SUM(J63:J82)),"Not assessed") -> 27400 | K62: 8.46 | L62: 0 | M62: 0 | N62: 0 | O62: 0 | P62: 0 | Q62: 0 | R62: 0 | S62: 0 | T62: 0 | U62: 0 | V62: 27408.46 | X62: =IFERROR(V62/$U$2,0) -> 0.2775086573
C63: 24 | D63: 24 | E63: (egen data) | G63: 0 | V63: =SUM(J63:U63) -> 0 | W63: =IFERROR(V63/$V$62,0) -> 0
C64: 24 | D64: 241 Bærende innervegger | E64: (Velg kategori) | F64: (Velg material eller prosesser) | G64: 0 | H64: =VLOOKUP($F64,Utslippsfaktorer!$B$6:$U$332,5,FALSE) -> - | I64: =VLOOKUP($F64,Utslippsfaktorer!$B$6:$U$332,6,FALSE) -> 0 | J64: =IFERROR(VLOOKUP($F64,Utslippsfaktorer!$B$6:$U$332,7,FALSE)*$G64,0) -> 0 | K64: =VLOOKUP($F64,Utslippsfaktorer!$B$6:$U$332,8,FALSE)*$G64 -> 0 | L64: =VLOOKUP($F64,Utslippsfaktorer!$B$6:$U$332,9,FALSE)*$G64 -> 0 | M64: =VLOOKUP($F64,Utslippsfaktorer!$B$6:$U$332,10,FALSE)*$G64 -> 0 | N64: =VLOOKUP($F64,Utslippsfaktorer!$B$6:$U$332,11,FALSE)*$G64 -> 0 | O64: =VLOOKUP($F64,Utslippsfaktorer!$B$6:$U$332,12,FALSE)*$G64 -> 0 | P64: =VLOOKUP($F64,Utslippsfaktorer!$B$6:$U$332,13,FALSE)*$G64 -> 0 | Q64: =VLOOKUP($F64,Utslippsfaktorer!$B$6:$U$332,14,FALSE)*$G64 -> 0 | R64: =VLOOKUP($F64,Utslippsfaktorer!$B$6:$U$332,16,FALSE)*$G64 -> 0 | S64: =VLOOKUP($F64,Utslippsfaktorer!$B$6:$U$332,17,FALSE)*$G64 -> 0 | T64: =VLOOKUP($F64,Utslippsfaktorer!$B$6:$U$332,18,FALSE)*$G64 -> 0 | U64: =VLOOKUP($F64,Utslippsfaktorer!$B$6:$U$332,19,FALSE)*$G64 -> 0 | V64: 0 | W64: =IFERROR(V64/$V$62,0) -> 0 | X64: =VLOOKUP($F64,Utslippsfaktorer!$B$6:$U$332,3,FALSE) -> -
C65: 24 | D65: 241 Bærende innervegger | E65: (egen data) | G65: 0 | V65: 0 | W65: 0
C66: 24 | D66: 242 Ikke-bærende innervegger | E66: Konstruktive materialer | F66: Konstruktive materialer - Massivtre | G66: 200 | H66: =VLOOKUP($F66,Utslippsfaktorer!$B$6:$U$332,5,FALSE) -> m3 | I66: =VLOOKUP($F66,Utslippsfaktorer!$B$6:$U$332,6,FALSE) -> 60 | J66: =IFERROR(VLOOKUP($F66,Utslippsfaktorer!$B$6:$U$332,7,FALSE)*$G66,0) -> 27400 | K66: =VLOOKUP($F66,Utslippsfaktorer!$B$6:$U$332,8,FALSE)*$G66 -> 8.46 | L66: =VLOOKUP($F66,Utslippsfaktorer!$B$6:$U$332,9,FALSE)*$G66 -> 0 | M66: =VLOOKUP($F66,Utslippsfaktorer!$B$6:$U$332,10,FALSE)*$G66 -> 0 | N66: =VLOOKUP($F66,Utslippsfaktorer!$B$6:$U$332,11,FALSE)*$G66 -> 0 | O66: =VLOOKUP($F66,Utslippsfaktorer!$B$6:$U$332,12,FALSE)*$G66 -> 0 | P66: =VLOOKUP($F66,Utslippsfaktorer!$B$6:$U$332,13,FALSE)*$G66 -> 0 | Q66: =VLOOKUP($F66,Utslippsfaktorer!$B$6:$U$332,14,FALSE)*$G66 -> 0 | R66: =VLOOKUP($F66,Utslippsfaktorer!$B$6:$U$332,16,FALSE)*$G66 -> 0 | S66: =VLOOKUP($F66,Utslippsfaktorer!$B$6:$U$332,17,FALSE)*$G66 -> 0 | T66: =VLOOKUP($F66,Utslippsfaktorer!$B$6:$U$332,18,FALSE)*$G66 -> 0 | U66: =VLOOKUP($F66,Utslippsfaktorer!$B$6:$U$332,19,FALSE)*$G66 -> 0 | V66: =SUM(J66:U66) -> 27408.46 | W66: 1 | X66: =VLOOKUP($F66,Utslippsfaktorer!$B$6:$U$332,3,FALSE) -> Grønn materialguide
C67: 24 | D67: 242 Ikke-bærende innervegger | E67: (egen data) | G67: 0 | V67: 0 | W67: 0
C68: 24 | D68: 243 Systemvegger og glassfelt | E68: (Velg kategori) | F68: (Velg material eller prosesser) | G68: 0 | H68: =VLOOKUP($F68,Utslippsfaktorer!$B$6:$U$332,5,FALSE) -> - | I68: =VLOOKUP($F68,Utslippsfaktorer!$B$6:$U$332,6,FALSE) -> 0 | J68: =IFERROR(VLOOKUP($F68,Utslippsfaktorer!$B$6:$U$332,7,FALSE)*$G68,0) -> 0 | K68: =VLOOKUP($F68,Utslippsfaktorer!$B$6:$U$332,8,FALSE)*$G68 -> 0 | L68: =VLOOKUP($F68,Utslippsfaktorer!$B$6:$U$332,9,FALSE)*$G68 -> 0 | M68: =VLOOKUP($F68,Utslippsfaktorer!$B$6:$U$332,10,FALSE)*$G68 -> 0 | N68: =VLOOKUP($F68,Utslippsfaktorer!$B$6:$U$332,11,FALSE)*$G68 -> 0 | O68: =VLOOKUP($F68,Utslippsfaktorer!$B$6:$U$332,12,FALSE)*$G68 -> 0 | P68: =VLOOKUP($F68,Utslippsfaktorer!$B$6:$U$332,13,FALSE)*$G68 -> 0 | Q68: =VLOOKUP($F68,Utslippsfaktorer!$B$6:$U$332,14,FALSE)*$G68 -> 0 | R68: =VLOOKUP($F68,Utslippsfaktorer!$B$6:$U$332,16,FALSE)*$G68 -> 0 | S68: =VLOOKUP($F68,Utslippsfaktorer!$B$6:$U$332,17,FALSE)*$G68 -> 0 | T68: =VLOOKUP($F68,Utslippsfaktorer!$B$6:$U$332,18,FALSE)*$G68 -> 0 | U68: =VLOOKUP($F68,Utslippsfaktorer!$B$6:$U$332,19,FALSE)*$G68 -> 0 | V68: 0 | W68: 0 | X68: =VLOOKUP($F68,Utslippsfaktorer!$B$6:$U$332,3,FALSE) -> -
C69: 24 | D69: 243 Systemvegger og glassfelt | E69: (egen data) | G69: 0 | V69: 0 | W69: 0
C70: 24 | D70: 244 Vinduer, dører, foldevegger | E70: (Velg kategori) | F70: (Velg material eller prosesser) | G70: 0 | H70: =VLOOKUP($F70,Utslippsfaktorer!$B$6:$U$332,5,FALSE) -> - | I70: =VLOOKUP($F70,Utslippsfaktorer!$B$6:$U$332,6,FALSE) -> 0 | J70: =IFERROR(VLOOKUP($F70,Utslippsfaktorer!$B$6:$U$332,7,FALSE)*$G70,0) -> 0 | K70: =VLOOKUP($F70,Utslippsfaktorer!$B$6:$U$332,8,FALSE)*$G70 -> 0 | L70: =VLOOKUP($F70,Utslippsfaktorer!$B$6:$U$332,9,FALSE)*$G70 -> 0 | M70: =VLOOKUP($F70,Utslippsfaktorer!$B$6:$U$332,10,FALSE)*$G70 -> 0 | N70: =VLOOKUP($F70,Utslippsfaktorer!$B$6:$U$332,11,FALSE)*$G70 -> 0 | O70: =VLOOKUP($F70,Utslippsfaktorer!$B$6:$U$332,12,FALSE)*$G70 -> 0 | P70: =VLOOKUP($F70,Utslippsfaktorer!$B$6:$U$332,13,FALSE)*$G70 -> 0 | Q70: =VLOOKUP($F70,Utslippsfaktorer!$B$6:$U$332,14,FALSE)*$G70 -> 0 | R70: =VLOOKUP($F70,Utslippsfaktorer!$B$6:$U$332,16,FALSE)*$G70 -> 0 | S70: =VLOOKUP($F70,Utslippsfaktorer!$B$6:$U$332,17,FALSE)*$G70 -> 0 | T70: =VLOOKUP($F70,Utslippsfaktorer!$B$6:$U$332,18,FALSE)*$G70 -> 0 | U70: =VLOOKUP($F70,Utslippsfaktorer!$B$6:$U$332,19,FALSE)*$G70 -> 0 | V70: 0 | W70: 0 | X70: =VLOOKUP($F70,Utslippsfaktorer!$B$6:$U$332,3,FALSE) -> -
C71: 24 | D71: 244 Vinduer, dører, foldevegger | E71: (egen data) | G71: 0 | V71: 0 | W71: 0
C72: 24 | D72: 245 Skjørt | E72: (Velg kategori) | F72: (Velg material eller prosesser) | G72: 0 | H72: =VLOOKUP($F72,Utslippsfaktorer!$B$6:$U$332,5,FALSE) -> - | I72: =VLOOKUP($F72,Utslippsfaktorer!$B$6:$U$332,6,FALSE) -> 0 | J72: =IFERROR(VLOOKUP($F72,Utslippsfaktorer!$B$6:$U$332,7,FALSE)*$G72,0) -> 0 | K72: =VLOOKUP($F72,Utslippsfaktorer!$B$6:$U$332,8,FALSE)*$G72 -> 0 | L72: =VLOOKUP($F72,Utslippsfaktorer!$B$6:$U$332,9,FALSE)*$G72 -> 0 | M72: =VLOOKUP($F72,Utslippsfaktorer!$B$6:$U$332,10,FALSE)*$G72 -> 0 | N72: =VLOOKUP($F72,Utslippsfaktorer!$B$6:$U$332,11,FALSE)*$G72 -> 0 | O72: =VLOOKUP($F72,Utslippsfaktorer!$B$6:$U$332,12,FALSE)*$G72 -> 0 | P72: =VLOOKUP($F72,Utslippsfaktorer!$B$6:$U$332,13,FALSE)*$G72 -> 0 | Q72: =VLOOKUP($F72,Utslippsfaktorer!$B$6:$U$332,14,FALSE)*$G72 -> 0 | R72: =VLOOKUP($F72,Utslippsfaktorer!$B$6:$U$332,16,FALSE)*$G72 -> 0 | S72: =VLOOKUP($F72,Utslippsfaktorer!$B$6:$U$332,17,FALSE)*$G72 -> 0 | T72: =VLOOKUP($F72,Utslippsfaktorer!$B$6:$U$332,18,FALSE)*$G72 -> 0 | U72: =VLOOKUP($F72,Utslippsfaktorer!$B$6:$U$332,19,FALSE)*$G72 -> 0 | V72: 0 | W72: 0 | X72: =VLOOKUP($F72,Utslippsfaktorer!$B$6:$U$332,3,FALSE) -> -
C73: 24 | D73: 245 Skjørt | E73: (egen data) | G73: 0 | V73: 0 | W73: 0
C74: 24 | D74: 246 Kledning og overflate | E74: (Velg kategori) | F74: (Velg material eller prosesser) | G74: 0 | H74: =VLOOKUP($F74,Utslippsfaktorer!$B$6:$U$332,5,FALSE) -> - | I74: =VLOOKUP($F74,Utslippsfaktorer!$B$6:$U$332,6,FALSE) -> 0 | J74: =IFERROR(VLOOKUP($F74,Utslippsfaktorer!$B$6:$U$332,7,FALSE)*$G74,0) -> 0 | K74: =VLOOKUP($F74,Utslippsfaktorer!$B$6:$U$332,8,FALSE)*$G74 -> 0 | L74: =VLOOKUP($F74,Utslippsfaktorer!$B$6:$U$332,9,FALSE)*$G74 -> 0 | M74: =VLOOKUP($F74,Utslippsfaktorer!$B$6:$U$332,10,FALSE)*$G74 -> 0 | N74: =VLOOKUP($F74,Utslippsfaktorer!$B$6:$U$332,11,FALSE)*$G74 -> 0 | O74: =VLOOKUP($F74,Utslippsfaktorer!$B$6:$U$332,12,FALSE)*$G74 -> 0 | P74: =VLOOKUP($F74,Utslippsfaktorer!$B$6:$U$332,13,FALSE)*$G74 -> 0 | Q74: =VLOOKUP($F74,Utslippsfaktorer!$B$6:$U$332,14,FALSE)*$G74 -> 0 | R74: =VLOOKUP($F74,Utslippsfaktorer!$B$6:$U$332,16,FALSE)*$G74 -> 0 | S74: =VLOOKUP($F74,Utslippsfaktorer!$B$6:$U$332,17,FALSE)*$G74 -> 0 | T74: =VLOOKUP($F74,Utslippsfaktorer!$B$6:$U$332,18,FALSE)*$G74 -> 0 | U74: =VLOOKUP($F74,Utslippsfaktorer!$B$6:$U$332,19,FALSE)*$G74 -> 0 | V74: 0 | W74: 0 | X74: =VLOOKUP($F74,Utslippsfaktorer!$B$6:$U$332,3,FALSE) -> -
C75: 24 | D75: 246 Kledning og overflate | E75: (egen data) | G75: 0 | V75: 0 | W75: 0
C76: 24 | D76: 248 Utstyr og komplettering for innervegger | E76: (Velg kategori) | F76: (Velg material eller prosesser) | G76: 0 | H76: =VLOOKUP($F76,Utslippsfaktorer!$B$6:$U$332,5,FALSE) -> - | I76: =VLOOKUP($F76,Utslippsfaktorer!$B$6:$U$332,6,FALSE) -> 0 | J76: =IFERROR(VLOOKUP($F76,Utslippsfaktorer!$B$6:$U$332,7,FALSE)*$G76,0) -> 0 | K76: =VLOOKUP($F76,Utslippsfaktorer!$B$6:$U$332,8,FALSE)*$G76 -> 0 | L76: =VLOOKUP($F76,Utslippsfaktorer!$B$6:$U$332,9,FALSE)*$G76 -> 0 | M76: =VLOOKUP($F76,Utslippsfaktorer!$B$6:$U$332,10,FALSE)*$G76 -> 0 | N76: =VLOOKUP($F76,Utslippsfaktorer!$B$6:$U$332,11,FALSE)*$G76 -> 0 | O76: =VLOOKUP($F76,Utslippsfaktorer!$B$6:$U$332,12,FALSE)*$G76 -> 0 | P76: =VLOOKUP($F76,Utslippsfaktorer!$B$6:$U$332,13,FALSE)*$G76 -> 0 | Q76: =VLOOKUP($F76,Utslippsfaktorer!$B$6:$U$332,14,FALSE)*$G76 -> 0 | R76: =VLOOKUP($F76,Utslippsfaktorer!$B$6:$U$332,16,FALSE)*$G76 -> 0 | S76: =VLOOKUP($F76,Utslippsfaktorer!$B$6:$U$332,17,FALSE)*$G76 -> 0 | T76: =VLOOKUP($F76,Utslippsfaktorer!$B$6:$U$332,18,FALSE)*$G76 -> 0 | U76: =VLOOKUP($F76,Utslippsfaktorer!$B$6:$U$332,19,FALSE)*$G76 -> 0 | V76: 0 | W76: 0 | X76: =VLOOKUP($F76,Utslippsfaktorer!$B$6:$U$332,3,FALSE) -> -
C77: 24 | D77: 248 Utstyr og komplettering for innervegger | E77: (egen data) | G77: 0 | V77: 0 | W77: 0
C78: 24 | D78: 249 Andre deler av innervegg | E78: (Velg kategori) | F78: (Velg material eller prosesser) | G78: 0 | H78: =VLOOKUP($F78,Utslippsfaktorer!$B$6:$U$332,5,FALSE) -> - | I78: =VLOOKUP($F78,Utslippsfaktorer!$B$6:$U$332,6,FALSE) -> 0 | J78: =IFERROR(VLOOKUP($F78,Utslippsfaktorer!$B$6:$U$332,7,FALSE)*$G78,0) -> 0 | K78: =VLOOKUP($F78,Utslippsfaktorer!$B$6:$U$332,8,FALSE)*$G78 -> 0 | L78: =VLOOKUP($F78,Utslippsfaktorer!$B$6:$U$332,9,FALSE)*$G78 -> 0 | M78: =VLOOKUP($F78,Utslippsfaktorer!$B$6:$U$332,10,FALSE)*$G78 -> 0 | N78: =VLOOKUP($F78,Utslippsfaktorer!$B$6:$U$332,11,FALSE)*$G78 -> 0 | O78: =VLOOKUP($F78,Utslippsfaktorer!$B$6:$U$332,12,FALSE)*$G78 -> 0 | P78: =VLOOKUP($F78,Utslippsfaktorer!$B$6:$U$332,13,FALSE)*$G78 -> 0 | Q78: =VLOOKUP($F78,Utslippsfaktorer!$B$6:$U$332,14,FALSE)*$G78 -> 0 | R78: =VLOOKUP($F78,Utslippsfaktorer!$B$6:$U$332,16,FALSE)*$G78 -> 0 | S78: =VLOOKUP($F78,Utslippsfaktorer!$B$6:$U$332,17,FALSE)*$G78 -> 0 | T78: =VLOOKUP($F78,Utslippsfaktorer!$B$6:$U$332,18,FALSE)*$G78 -> 0 | U78: =VLOOKUP($F78,Utslippsfaktorer!$B$6:$U$332,19,FALSE)*$G78 -> 0 | V78: 0 | W78: 0 | X78: =VLOOKUP($F78,Utslippsfaktorer!$B$6:$U$332,3,FALSE) -> -
C79: 24 | D79: 249 Andre deler av innervegg | E79: (egen data) | G79: 0 | V79: 0 | W79: 0
C80: 24 | D80: 239 Andre deler av yttervegg | E80: (Velg kategori) | F80: (Velg material eller prosesser) | G80: 0 | H80: =VLOOKUP($F80,Utslippsfaktorer!$B$6:$U$332,5,FALSE) -> - | I80: =VLOOKUP($F80,Utslippsfaktorer!$B$6:$U$332,6,FALSE) -> 0 | J80: =IFERROR(VLOOKUP($F80,Utslippsfaktorer!$B$6:$U$332,7,FALSE)*$G80,0) -> 0 | K80: =VLOOKUP($F80,Utslippsfaktorer!$B$6:$U$332,8,FALSE)*$G80 -> 0 | L80: =VLOOKUP($F80,Utslippsfaktorer!$B$6:$U$332,9,FALSE)*$G80 -> 0 | M80: =VLOOKUP($F80,Utslippsfaktorer!$B$6:$U$332,10,FALSE)*$G80 -> 0 | N80: =VLOOKUP($F80,Utslippsfaktorer!$B$6:$U$332,11,FALSE)*$G80 -> 0 | O80: =VLOOKUP($F80,Utslippsfaktorer!$B$6:$U$332,12,FALSE)*$G80 -> 0 | P80: =VLOOKUP($F80,Utslippsfaktorer!$B$6:$U$332,13,FALSE)*$G80 -> 0 | Q80: =VLOOKUP($F80,Utslippsfaktorer!$B$6:$U$332,14,FALSE)*$G80 -> 0 | R80: =VLOOKUP($F80,Utslippsfaktorer!$B$6:$U$332,16,FALSE)*$G80 -> 0 | S80: =VLOOKUP($F80,Utslippsfaktorer!$B$6:$U$332,17,FALSE)*$G80 -> 0 | T80: =VLOOKUP($F80,Utslippsfaktorer!$B$6:$U$332,18,FALSE)*$G80 -> 0 | U80: =VLOOKUP($F80,Utslippsfaktorer!$B$6:$U$332,19,FALSE)*$G80 -> 0 | V80: 0 | W80: 0 | X80: =VLOOKUP($F80,Utslippsfaktorer!$B$6:$U$332,3,FALSE) -> -
C81: 24 | D81: 239 Andre deler av yttervegg | E81: (egen data) | G81: 0 | V81: 0 | W81: 0
A83: seksjon5 | C83: 25 | D83: Dekker | J83: =IFERROR((SUM(J84:J103)),"Not assessed") -> 0 | K83: =IFERROR((SUM(K84:K103)),"Not assessed") -> 0 | L83: 0 | M83: 0 | N83: 0 | O83: 0 | P83: 0 | Q83: 0 | R83: 0 | S83: 0 | T83: 0 | U83: 0 | V83: 0 | X83: =IFERROR(V83/$U$2,0) -> 0
C84: 25 | D84: 25 | E84: (egen data) | G84: 0 | V84: =SUM(J84:U84) -> 0 | W84: =IFERROR(V84/$V$83,0) -> 0
C85: 25 | D85: 251 Frittbærende dekker | E85: (Velg kategori) | F85: (Velg material eller prosesser) | G85: 0 | H85: =VLOOKUP($F85,Utslippsfaktorer!$B$6:$U$332,5,FALSE) -> - | I85: =VLOOKUP($F85,Utslippsfaktorer!$B$6:$U$332,6,FALSE) -> 0 | J85: =IFERROR(VLOOKUP($F85,Utslippsfaktorer!$B$6:$U$332,7,FALSE)*$G85,0) -> 0 | K85: =VLOOKUP($F85,Utslippsfaktorer!$B$6:$U$332,8,FALSE)*$G85 -> 0 | L85: =VLOOKUP($F85,Utslippsfaktorer!$B$6:$U$332,9,FALSE)*$G85 -> 0 | M85: =VLOOKUP($F85,Utslippsfaktorer!$B$6:$U$332,10,FALSE)*$G85 -> 0 | N85: =VLOOKUP($F85,Utslippsfaktorer!$B$6:$U$332,11,FALSE)*$G85 -> 0 | O85: =VLOOKUP($F85,Utslippsfaktorer!$B$6:$U$332,12,FALSE)*$G85 -> 0 | P85: =VLOOKUP($F85,Utslippsfaktorer!$B$6:$U$332,13,FALSE)*$G85 -> 0 | Q85: =VLOOKUP($F85,Utslippsfaktorer!$B$6:$U$332,14,FALSE)*$G85 -> 0 | R85: =VLOOKUP($F85,Utslippsfaktorer!$B$6:$U$332,16,FALSE)*$G85 -> 0 | S85: =VLOOKUP($F85,Utslippsfaktorer!$B$6:$U$332,17,FALSE)*$G85 -> 0 | T85: =VLOOKUP($F85,Utslippsfaktorer!$B$6:$U$332,18,FALSE)*$G85 -> 0 | U85: =VLOOKUP($F85,Utslippsfaktorer!$B$6:$U$332,19,FALSE)*$G85 -> 0 | V85: 0 | W85: =IFERROR(V85/$V$83,0) -> 0 | X85: =VLOOKUP($F85,Utslippsfaktorer!$B$6:$U$332,3,FALSE) -> -
C86: 25 | D86: 251 Frittbærende dekker | E86: (egen data) | G86: 0 | V86: 0 | W86: 0
C87: 25 | D87: 252 Gulv på grunn, bunnplate | E87: (Velg kategori) | F87: (Velg material eller prosesser) | G87: 0 | H87: =VLOOKUP($F87,Utslippsfaktorer!$B$6:$U$332,5,FALSE) -> - | I87: =VLOOKUP($F87,Utslippsfaktorer!$B$6:$U$332,6,FALSE) -> 0 | J87: =IFERROR(VLOOKUP($F87,Utslippsfaktorer!$B$6:$U$332,7,FALSE)*$G87,0) -> 0 | K87: =VLOOKUP($F87,Utslippsfaktorer!$B$6:$U$332,8,FALSE)*$G87 -> 0 | L87: =VLOOKUP($F87,Utslippsfaktorer!$B$6:$U$332,9,FALSE)*$G87 -> 0 | M87: =VLOOKUP($F87,Utslippsfaktorer!$B$6:$U$332,10,FALSE)*$G87 -> 0 | N87: =VLOOKUP($F87,Utslippsfaktorer!$B$6:$U$332,11,FALSE)*$G87 -> 0 | O87: =VLOOKUP($F87,Utslippsfaktorer!$B$6:$U$332,12,FALSE)*$G87 -> 0 | P87: =VLOOKUP($F87,Utslippsfaktorer!$B$6:$U$332,13,FALSE)*$G87 -> 0 | Q87: =VLOOKUP($F87,Utslippsfaktorer!$B$6:$U$332,14,FALSE)*$G87 -> 0 | R87: =VLOOKUP($F87,Utslippsfaktorer!$B$6:$U$332,16,FALSE)*$G87 -> 0 | S87: =VLOOKUP($F87,Utslippsfaktorer!$B$6:$U$332,17,FALSE)*$G87 -> 0 | T87: =VLOOKUP($F87,Utslippsfaktorer!$B$6:$U$332,18,FALSE)*$G87 -> 0 | U87: =VLOOKUP($F87,Utslippsfaktorer!$B$6:$U$332,19,FALSE)*$G87 -> 0 | V87: 0 | W87: 0 | X87: =VLOOKUP($F87,Utslippsfaktorer!$B$6:$U$332,3,FALSE) -> -
C88: 25 | D88: 252 Gulv på grunn, bunnplate | E88: (egen data) | G88: 0 | V88: 0 | W88: 0
C89: 25 | D89: 253 Oppforet gulv og påstøp | E89: (Velg kategori) | F89: (Velg material eller prosesser) | G89: 0 | H89: =VLOOKUP($F89,Utslippsfaktorer!$B$6:$U$332,5,FALSE) -> - | I89: =VLOOKUP($F89,Utslippsfaktorer!$B$6:$U$332,6,FALSE) -> 0 | J89: =IFERROR(VLOOKUP($F89,Utslippsfaktorer!$B$6:$U$332,7,FALSE)*$G89,0) -> 0 | K89: =VLOOKUP($F89,Utslippsfaktorer!$B$6:$U$332,8,FALSE)*$G89 -> 0 | L89: =VLOOKUP($F89,Utslippsfaktorer!$B$6:$U$332,9,FALSE)*$G89 -> 0 | M89: =VLOOKUP($F89,Utslippsfaktorer!$B$6:$U$332,10,FALSE)*$G89 -> 0 | N89: =VLOOKUP($F89,Utslippsfaktorer!$B$6:$U$332,11,FALSE)*$G89 -> 0 | O89: =VLOOKUP($F89,Utslippsfaktorer!$B$6:$U$332,12,FALSE)*$G89 -> 0 | P89: =VLOOKUP($F89,Utslippsfaktorer!$B$6:$U$332,13,FALSE)*$G89 -> 0 | Q89: =VLOOKUP($F89,Utslippsfaktorer!$B$6:$U$332,14,FALSE)*$G89 -> 0 | R89: =VLOOKUP($F89,Utslippsfaktorer!$B$6:$U$332,16,FALSE)*$G89 -> 0 | S89: =VLOOKUP($F89,Utslippsfaktorer!$B$6:$U$332,17,FALSE)*$G89 -> 0 | T89: =VLOOKUP($F89,Utslippsfaktorer!$B$6:$U$332,18,FALSE)*$G89 -> 0 | U89: =VLOOKUP($F89,Utslippsfaktorer!$B$6:$U$332,19,FALSE)*$G89 -> 0 | V89: 0 | W89: 0 | X89: =VLOOKUP($F89,Utslippsfaktorer!$B$6:$U$332,3,FALSE) -> -
C90: 25 | D90: 253 Oppforet gulv og påstøp | E90: (egen data) | G90: 0 | V90: 0 | W90: 0
C91: 25 | D91: 254 Systemgulv | E91: (Velg kategori) | F91: (Velg material eller prosesser) | G91: 0 | H91: =VLOOKUP($F91,Utslippsfaktorer!$B$6:$U$332,5,FALSE) -> - | I91: =VLOOKUP($F91,Utslippsfaktorer!$B$6:$U$332,6,FALSE) -> 0 | J91: =IFERROR(VLOOKUP($F91,Utslippsfaktorer!$B$6:$U$332,7,FALSE)*$G91,0) -> 0 | K91: =VLOOKUP($F91,Utslippsfaktorer!$B$6:$U$332,8,FALSE)*$G91 -> 0 | L91: =VLOOKUP($F91,Utslippsfaktorer!$B$6:$U$332,9,FALSE)*$G91 -> 0 | M91: =VLOOKUP($F91,Utslippsfaktorer!$B$6:$U$332,10,FALSE)*$G91 -> 0 | N91: =VLOOKUP($F91,Utslippsfaktorer!$B$6:$U$332,11,FALSE)*$G91 -> 0 | O91: =VLOOKUP($F91,Utslippsfaktorer!$B$6:$U$332,12,FALSE)*$G91 -> 0 | P91: =VLOOKUP($F91,Utslippsfaktorer!$B$6:$U$332,13,FALSE)*$G91 -> 0 | Q91: =VLOOKUP($F91,Utslippsfaktorer!$B$6:$U$332,14,FALSE)*$G91 -> 0 | R91: =VLOOKUP($F91,Utslippsfaktorer!$B$6:$U$332,16,FALSE)*$G91 -> 0 | S91: =VLOOKUP($F91,Utslippsfaktorer!$B$6:$U$332,17,FALSE)*$G91 -> 0 | T91: =VLOOKUP($F91,Utslippsfaktorer!$B$6:$U$332,18,FALSE)*$G91 -> 0 | U91: =VLOOKUP($F91,Utslippsfaktorer!$B$6:$U$332,19,FALSE)*$G91 -> 0 | V91: 0 | W91: 0 | X91: =VLOOKUP($F91,Utslippsfaktorer!$B$6:$U$332,3,FALSE) -> -
C92: 25 | D92: 254 Systemgulv | E92: (egen data) | G92: 0 | V92: 0 | W92: 0
C93: 25 | D93: 255 Gulvoverflate | E93: Bitumen | F93: (Velg material eller prosesser) | G93: 200 | H93: =VLOOKUP($F93,Utslippsfaktorer!$B$6:$U$332,5,FALSE) -> - | I93: =VLOOKUP($F93,Utslippsfaktorer!$B$6:$U$332,6,FALSE) -> 0 | J93: =IFERROR(VLOOKUP($F93,Utslippsfaktorer!$B$6:$U$332,7,FALSE)*$G93,0) -> 0 | K93: =VLOOKUP($F93,Utslippsfaktorer!$B$6:$U$332,8,FALSE)*$G93 -> 0 | L93: =VLOOKUP($F93,Utslippsfaktorer!$B$6:$U$332,9,FALSE)*$G93 -> 0 | M93: =VLOOKUP($F93,Utslippsfaktorer!$B$6:$U$332,10,FALSE)*$G93 -> 0 | N93: =VLOOKUP($F93,Utslippsfaktorer!$B$6:$U$332,11,FALSE)*$G93 -> 0 | O93: =VLOOKUP($F93,Utslippsfaktorer!$B$6:$U$332,12,FALSE)*$G93 -> 0 | P93: =VLOOKUP($F93,Utslippsfaktorer!$B$6:$U$332,13,FALSE)*$G93 -> 0 | Q93: =VLOOKUP($F93,Utslippsfaktorer!$B$6:$U$332,14,FALSE)*$G93 -> 0 | R93: =VLOOKUP($F93,Utslippsfaktorer!$B$6:$U$332,16,FALSE)*$G93 -> 0 | S93: =VLOOKUP($F93,Utslippsfaktorer!$B$6:$U$332,17,FALSE)*$G93 -> 0 | T93: =VLOOKUP($F93,Utslippsfaktorer!$B$6:$U$332,18,FALSE)*$G93 -> 0 | U93: =VLOOKUP($F93,Utslippsfaktorer!$B$6:$U$332,19,FALSE)*$G93 -> 0 | V93: 0 | W93: 0 | X93: =VLOOKUP($F93,Utslippsfaktorer!$B$6:$U$332,3,FALSE) -> -
C94: 25 | D94: 255 Gulvoverflate | E94: (egen data) | G94: 0 | V94: 0 | W94: 0
C95: 25 | D95: 256 Faste himlinger og overflatebehandling | E95: (Velg kategori) | F95: (Velg material eller prosesser) | G95: 0 | H95: =VLOOKUP($F95,Utslippsfaktorer!$B$6:$U$332,5,FALSE) -> - | I95: =VLOOKUP($F95,Utslippsfaktorer!$B$6:$U$332,6,FALSE) -> 0 | J95: =IFERROR(VLOOKUP($F95,Utslippsfaktorer!$B$6:$U$332,7,FALSE)*$G95,0) -> 0 | K95: =VLOOKUP($F95,Utslippsfaktorer!$B$6:$U$332,8,FALSE)*$G95 -> 0 | L95: =VLOOKUP($F95,Utslippsfaktorer!$B$6:$U$332,9,FALSE)*$G95 -> 0 | M95: =VLOOKUP($F95,Utslippsfaktorer!$B$6:$U$332,10,FALSE)*$G95 -> 0 | N95: =VLOOKUP($F95,Utslippsfaktorer!$B$6:$U$332,11,FALSE)*$G95 -> 0 | O95: =VLOOKUP($F95,Utslippsfaktorer!$B$6:$U$332,12,FALSE)*$G95 -> 0 | P95: =VLOOKUP($F95,Utslippsfaktorer!$B$6:$U$332,13,FALSE)*$G95 -> 0 | Q95: =VLOOKUP($F95,Utslippsfaktorer!$B$6:$U$332,14,FALSE)*$G95 -> 0 | R95: =VLOOKUP($F95,Utslippsfaktorer!$B$6:$U$332,16,FALSE)*$G95 -> 0 | S95: =VLOOKUP($F95,Utslippsfaktorer!$B$6:$U$332,17,FALSE)*$G95 -> 0 | T95: =VLOOKUP($F95,Utslippsfaktorer!$B$6:$U$332,18,FALSE)*$G95 -> 0 | U95: =VLOOKUP($F95,Utslippsfaktorer!$B$6:$U$332,19,FALSE)*$G95 -> 0 | V95: 0 | W95: 0 | X95: =VLOOKUP($F95,Utslippsfaktorer!$B$6:$U$332,3,FALSE) -> -
C96: 25 | D96: 256 Faste himlinger og overflatebehandling | E96: (egen data) | G96: 0 | V96: 0 | W96: 0
C97: 25 | D97: 257 Systemhimlinger | E97: (Velg kategori) | F97: (Velg material eller prosesser) | G97: 0 | H97: =VLOOKUP($F97,Utslippsfaktorer!$B$6:$U$332,5,FALSE) -> - | I97: =VLOOKUP($F97,Utslippsfaktorer!$B$6:$U$332,6,FALSE) -> 0 | J97: =IFERROR(VLOOKUP($F97,Utslippsfaktorer!$B$6:$U$332,7,FALSE)*$G97,0) -> 0 | K97: =VLOOKUP($F97,Utslippsfaktorer!$B$6:$U$332,8,FALSE)*$G97 -> 0 | L97: =VLOOKUP($F97,Utslippsfaktorer!$B$6:$U$332,9,FALSE)*$G97 -> 0 | M97: =VLOOKUP($F97,Utslippsfaktorer!$B$6:$U$332,10,FALSE)*$G97 -> 0 | N97: =VLOOKUP($F97,Utslippsfaktorer!$B$6:$U$332,11,FALSE)*$G97 -> 0 | O97: =VLOOKUP($F97,Utslippsfaktorer!$B$6:$U$332,12,FALSE)*$G97 -> 0 | P97: =VLOOKUP($F97,Utslippsfaktorer!$B$6:$U$332,13,FALSE)*$G97 -> 0 | Q97: =VLOOKUP($F97,Utslippsfaktorer!$B$6:$U$332,14,FALSE)*$G97 -> 0 | R97: =VLOOKUP($F97,Utslippsfaktorer!$B$6:$U$332,16,FALSE)*$G97 -> 0 | S97: =VLOOKUP($F97,Utslippsfaktorer!$B$6:$U$332,17,FALSE)*$G97 -> 0 | T97: =VLOOKUP($F97,Utslippsfaktorer!$B$6:$U$332,18,FALSE)*$G97 -> 0 | U97: =VLOOKUP($F97,Utslippsfaktorer!$B$6:$U$332,19,FALSE)*$G97 -> 0 | V97: 0 | W97: 0 | X97: =VLOOKUP($F97,Utslippsfaktorer!$B$6:$U$332,3,FALSE) -> -
C98: 25 | D98: 257 Systemhimlinger | E98: (egen data) | G98: 0 | V98: 0 | W98: 0
C99: 25 | D99: 258 Utstyr og komplettering for dekker | E99: (Velg kategori) | F99: (Velg material eller prosesser) | G99: 0 | H99: =VLOOKUP($F99,Utslippsfaktorer!$B$6:$U$332,5,FALSE) -> - | I99: =VLOOKUP($F99,Utslippsfaktorer!$B$6:$U$332,6,FALSE) -> 0 | J99: =IFERROR(VLOOKUP($F99,Utslippsfaktorer!$B$6:$U$332,7,FALSE)*$G99,0) -> 0 | K99: =VLOOKUP($F99,Utslippsfaktorer!$B$6:$U$332,8,FALSE)*$G99 -> 0 | L99: =VLOOKUP($F99,Utslippsfaktorer!$B$6:$U$332,9,FALSE)*$G99 -> 0 | M99: =VLOOKUP($F99,Utslippsfaktorer!$B$6:$U$332,10,FALSE)*$G99 -> 0 | N99: =VLOOKUP($F99,Utslippsfaktorer!$B$6:$U$332,11,FALSE)*$G99 -> 0 | O99: =VLOOKUP($F99,Utslippsfaktorer!$B$6:$U$332,12,FALSE)*$G99 -> 0 | P99: =VLOOKUP($F99,Utslippsfaktorer!$B$6:$U$332,13,FALSE)*$G99 -> 0 | Q99: =VLOOKUP($F99,Utslippsfaktorer!$B$6:$U$332,14,FALSE)*$G99 -> 0 | R99: =VLOOKUP($F99,Utslippsfaktorer!$B$6:$U$332,16,FALSE)*$G99 -> 0 | S99: =VLOOKUP($F99,Utslippsfaktorer!$B$6:$U$332,17,FALSE)*$G99 -> 0 | T99: =VLOOKUP($F99,Utslippsfaktorer!$B$6:$U$332,18,FALSE)*$G99 -> 0 | U99: =VLOOKUP($F99,Utslippsfaktorer!$B$6:$U$332,19,FALSE)*$G99 -> 0 | V99: 0 | W99: 0 | X99: =VLOOKUP($F99,Utslippsfaktorer!$B$6:$U$332,3,FALSE) -> -
C100: 25 | D100: 258 Utstyr og komplettering for dekker | E100: (egen data) | G100: 0 | V100: 0 | W100: 0
C101: 25 | D101: 259 Andre deler av dekker | E101: (Velg kategori) | F101: (Velg material eller prosesser) | G101: 0 | H101: =VLOOKUP($F101,Utslippsfaktorer!$B$6:$U$332,5,FALSE) -> - | I101: =VLOOKUP($F101,Utslippsfaktorer!$B$6:$U$332,6,FALSE) -> 0 | J101: =IFERROR(VLOOKUP($F101,Utslippsfaktorer!$B$6:$U$332,7,FALSE)*$G101,0) -> 0 | K101: =VLOOKUP($F101,Utslippsfaktorer!$B$6:$U$332,8,FALSE)*$G101 -> 0 | L101: =VLOOKUP($F101,Utslippsfaktorer!$B$6:$U$332,9,FALSE)*$G101 -> 0 | M101: =VLOOKUP($F101,Utslippsfaktorer!$B$6:$U$332,10,FALSE)*$G101 -> 0 | N101: =VLOOKUP($F101,Utslippsfaktorer!$B$6:$U$332,11,FALSE)*$G101 -> 0 | O101: =VLOOKUP($F101,Utslippsfaktorer!$B$6:$U$332,12,FALSE)*$G101 -> 0 | P101: =VLOOKUP($F101,Utslippsfaktorer!$B$6:$U$332,13,FALSE)*$G101 -> 0 | Q101: =VLOOKUP($F101,Utslippsfaktorer!$B$6:$U$332,14,FALSE)*$G101 -> 0 | R101: =VLOOKUP($F101,Utslippsfaktorer!$B$6:$U$332,16,FALSE)*$G101 -> 0 | S101: =VLOOKUP($F101,Utslippsfaktorer!$B$6:$U$332,17,FALSE)*$G101 -> 0 | T101: =VLOOKUP($F101,Utslippsfaktorer!$B$6:$U$332,18,FALSE)*$G101 -> 0 | U101: =VLOOKUP($F101,Utslippsfaktorer!$B$6:$U$332,19,FALSE)*$G101 -> 0 | V101: 0 | W101: 0 | X101: =VLOOKUP($F101,Utslippsfaktorer!$B$6:$U$332,3,FALSE) -> -
C102: 25 | D102: 259 Andre deler av dekker | E102: (egen data) | G102: 0 | V102: 0 | W102: 0
A104: seksjon6 | C104: 26 | D104: Yttertak | J104: =IFERROR((SUM(J105:J124)),"Not assessed") -> 0 | K104: =IFERROR((SUM(K105:K124)),"Not assessed") -> 0 | L104: 0 | M104: 0 | N104: 0 | O104: 0 | P104: 0 | Q104: 0 | R104: 0 | S104: 0 | T104: 0 | U104: 0 | V104: 0 | X104: =IFERROR(V104/$U$2,0) -> 0
C105: 26 | D105: 26 | E105: (egen data) | G105: 0 | V105: =SUM(J105:U105) -> 0 | W105: =IFERROR(V105/$V$83,0) -> 0
C106: 26 | D106: 261 Primærkonstruksjon for yttertak | E106: (Velg kategori) | F106: (Velg material eller prosesser) | G106: 0 | H106: =VLOOKUP($F106,Utslippsfaktorer!$B$6:$U$332,5,FALSE) -> - | I106: =VLOOKUP($F106,Utslippsfaktorer!$B$6:$U$332,6,FALSE) -> 0 | J106: =IFERROR(VLOOKUP($F106,Utslippsfaktorer!$B$6:$U$332,7,FALSE)*$G106,0) -> 0 | K106: =VLOOKUP($F106,Utslippsfaktorer!$B$6:$U$332,8,FALSE)*$G106 -> 0 | L106: =VLOOKUP($F106,Utslippsfaktorer!$B$6:$U$332,9,FALSE)*$G106 -> 0 | M106: =VLOOKUP($F106,Utslippsfaktorer!$B$6:$U$332,10,FALSE)*$G106 -> 0 | N106: =VLOOKUP($F106,Utslippsfaktorer!$B$6:$U$332,11,FALSE)*$G106 -> 0 | O106: =VLOOKUP($F106,Utslippsfaktorer!$B$6:$U$332,12,FALSE)*$G106 -> 0 | P106: =VLOOKUP($F106,Utslippsfaktorer!$B$6:$U$332,13,FALSE)*$G106 -> 0 | Q106: =VLOOKUP($F106,Utslippsfaktorer!$B$6:$U$332,14,FALSE)*$G106 -> 0 | R106: =VLOOKUP($F106,Utslippsfaktorer!$B$6:$U$332,16,FALSE)*$G106 -> 0 | S106: =VLOOKUP($F106,Utslippsfaktorer!$B$6:$U$332,17,FALSE)*$G106 -> 0 | T106: =VLOOKUP($F106,Utslippsfaktorer!$B$6:$U$332,18,FALSE)*$G106 -> 0 | U106: =VLOOKUP($F106,Utslippsfaktorer!$B$6:$U$332,19,FALSE)*$G106 -> 0 | V106: 0 | W106: =IFERROR(V106/$V$83,0) -> 0 | X106: =VLOOKUP($F106,Utslippsfaktorer!$B$6:$U$332,3,FALSE) -> -
C107: 26 | D107: 261 Primærkonstruksjon for yttertak | E107: (egen data) | G107: 0 | V107: 0 | W107: 0
C108: 26 | D108: 262 Taktekking | E108: (Velg kategori) | F108: (Velg material eller prosesser) | G108: 0 | H108: =VLOOKUP($F108,Utslippsfaktorer!$B$6:$U$332,5,FALSE) -> - | I108: =VLOOKUP($F108,Utslippsfaktorer!$B$6:$U$332,6,FALSE) -> 0 | J108: =IFERROR(VLOOKUP($F108,Utslippsfaktorer!$B$6:$U$332,7,FALSE)*$G108,0) -> 0 | K108: =VLOOKUP($F108,Utslippsfaktorer!$B$6:$U$332,8,FALSE)*$G108 -> 0 | L108: =VLOOKUP($F108,Utslippsfaktorer!$B$6:$U$332,9,FALSE)*$G108 -> 0 | M108: =VLOOKUP($F108,Utslippsfaktorer!$B$6:$U$332,10,FALSE)*$G108 -> 0 | N108: =VLOOKUP($F108,Utslippsfaktorer!$B$6:$U$332,11,FALSE)*$G108 -> 0 | O108: =VLOOKUP($F108,Utslippsfaktorer!$B$6:$U$332,12,FALSE)*$G108 -> 0 | P108: =VLOOKUP($F108,Utslippsfaktorer!$B$6:$U$332,13,FALSE)*$G108 -> 0 | Q108: =VLOOKUP($F108,Utslippsfaktorer!$B$6:$U$332,14,FALSE)*$G108 -> 0 | R108: =VLOOKUP($F108,Utslippsfaktorer!$B$6:$U$332,16,FALSE)*$G108 -> 0 | S108: =VLOOKUP($F108,Utslippsfaktorer!$B$6:$U$332,17,FALSE)*$G108 -> 0 | T108: =VLOOKUP($F108,Utslippsfaktorer!$B$6:$U$332,18,FALSE)*$G108 -> 0 | U108: =VLOOKUP($F108,Utslippsfaktorer!$B$6:$U$332,19,FALSE)*$G108 -> 0 | V108: 0 | W108: 0 | X108: =VLOOKUP($F108,Utslippsfaktorer!$B$6:$U$332,3,FALSE) -> -
C109: 26 | D109: 262 Taktekking | E109: (egen data) | G109: 0 | V109: 0 | W109: 0
C110: 26 | D110: 263 Glasstak | E110: (Velg kategori) | F110: (Velg material eller prosesser) | G110: 0 | H110: =VLOOKUP($F110,Utslippsfaktorer!$B$6:$U$332,5,FALSE) -> - | I110: =VLOOKUP($F110,Utslippsfaktorer!$B$6:$U$332,6,FALSE) -> 0 | J110: =IFERROR(VLOOKUP($F110,Utslippsfaktorer!$B$6:$U$332,7,FALSE)*$G110,0) -> 0 | K110: =VLOOKUP($F110,Utslippsfaktorer!$B$6:$U$332,8,FALSE)*$G110 -> 0 | L110: =VLOOKUP($F110,Utslippsfaktorer!$B$6:$U$332,9,FALSE)*$G110 -> 0 | M110: =VLOOKUP($F110,Utslippsfaktorer!$B$6:$U$332,10,FALSE)*$G110 -> 0 | N110: =VLOOKUP($F110,Utslippsfaktorer!$B$6:$U$332,11,FALSE)*$G110 -> 0 | O110: =VLOOKUP($F110,Utslippsfaktorer!$B$6:$U$332,12,FALSE)*$G110 -> 0 | P110: =VLOOKUP($F110,Utslippsfaktorer!$B$6:$U$332,13,FALSE)*$G110 -> 0 | Q110: =VLOOKUP($F110,Utslippsfaktorer!$B$6:$U$332,14,FALSE)*$G110 -> 0 | R110: =VLOOKUP($F110,Utslippsfaktorer!$B$6:$U$332,16,FALSE)*$G110 -> 0 | S110: =VLOOKUP($F110,Utslippsfaktorer!$B$6:$U$332,17,FALSE)*$G110 -> 0 | T110: =VLOOKUP($F110,Utslippsfaktorer!$B$6:$U$332,18,FALSE)*$G110 -> 0 | U110: =VLOOKUP($F110,Utslippsfaktorer!$B$6:$U$332,19,FALSE)*$G110 -> 0 | V110: 0 | W110: 0 | X110: =VLOOKUP($F110,Utslippsfaktorer!$B$6:$U$332,3,FALSE) -> -
C111: 26 | D111: 263 Glasstak | E111: (egen data) | G111: 0 | V111: 0 | W111: 0
C112: 26 | D112: 264 Takoppbygg | E112: (Velg kategori) | F112: (Velg material eller prosesser) | G112: 0 | H112: =VLOOKUP($F112,Utslippsfaktorer!$B$6:$U$332,5,FALSE) -> - | I112: =VLOOKUP($F112,Utslippsfaktorer!$B$6:$U$332,6,FALSE) -> 0 | J112: =IFERROR(VLOOKUP($F112,Utslippsfaktorer!$B$6:$U$332,7,FALSE)*$G112,0) -> 0 | K112: =VLOOKUP($F112,Utslippsfaktorer!$B$6:$U$332,8,FALSE)*$G112 -> 0 | L112: =VLOOKUP($F112,Utslippsfaktorer!$B$6:$U$332,9,FALSE)*$G112 -> 0 | M112: =VLOOKUP($F112,Utslippsfaktorer!$B$6:$U$332,10,FALSE)*$G112 -> 0 | N112: =VLOOKUP($F112,Utslippsfaktorer!$B$6:$U$332,11,FALSE)*$G112 -> 0 | O112: =VLOOKUP($F112,Utslippsfaktorer!$B$6:$U$332,12,FALSE)*$G112 -> 0 | P112: =VLOOKUP($F112,Utslippsfaktorer!$B$6:$U$332,13,FALSE)*$G112 -> 0 | Q112: =VLOOKUP($F112,Utslippsfaktorer!$B$6:$U$332,14,FALSE)*$G112 -> 0 | R112: =VLOOKUP($F112,Utslippsfaktorer!$B$6:$U$332,16,FALSE)*$G112 -> 0 | S112: =VLOOKUP($F112,Utslippsfaktorer!$B$6:$U$332,17,FALSE)*$G112 -> 0 | T112: =VLOOKUP($F112,Utslippsfaktorer!$B$6:$U$332,18,FALSE)*$G112 -> 0 | U112: =VLOOKUP($F112,Utslippsfaktorer!$B$6:$U$332,19,FALSE)*$G112 -> 0 | V112: 0 | W112: 0 | X112: =VLOOKUP($F112,Utslippsfaktorer!$B$6:$U$332,3,FALSE) -> -
C113: 26 | D113: 264 Takoppbygg | E113: (egen data) | G113: 0 | V113: 0 | W113: 0
C114: 26 | D114: 265 Gesimser | E114: (Velg kategori) | F114: (Velg material eller prosesser) | G114: 0 | H114: =VLOOKUP($F114,Utslippsfaktorer!$B$6:$U$332,5,FALSE) -> - | I114: =VLOOKUP($F114,Utslippsfaktorer!$B$6:$U$332,6,FALSE) -> 0 | J114: =IFERROR(VLOOKUP($F114,Utslippsfaktorer!$B$6:$U$332,7,FALSE)*$G114,0) -> 0 | K114: =VLOOKUP($F114,Utslippsfaktorer!$B$6:$U$332,8,FALSE)*$G114 -> 0 | L114: =VLOOKUP($F114,Utslippsfaktorer!$B$6:$U$332,9,FALSE)*$G114 -> 0 | M114: =VLOOKUP($F114,Utslippsfaktorer!$B$6:$U$332,10,FALSE)*$G114 -> 0 | N114: =VLOOKUP($F114,Utslippsfaktorer!$B$6:$U$332,11,FALSE)*$G114 -> 0 | O114: =VLOOKUP($F114,Utslippsfaktorer!$B$6:$U$332,12,FALSE)*$G114 -> 0 | P114: =VLOOKUP($F114,Utslippsfaktorer!$B$6:$U$332,13,FALSE)*$G114 -> 0 | Q114: =VLOOKUP($F114,Utslippsfaktorer!$B$6:$U$332,14,FALSE)*$G114 -> 0 | R114: =VLOOKUP($F114,Utslippsfaktorer!$B$6:$U$332,16,FALSE)*$G114 -> 0 | S114: =VLOOKUP($F114,Utslippsfaktorer!$B$6:$U$332,17,FALSE)*$G114 -> 0 | T114: =VLOOKUP($F114,Utslippsfaktorer!$B$6:$U$332,18,FALSE)*$G114 -> 0 | U114: =VLOOKUP($F114,Utslippsfaktorer!$B$6:$U$332,19,FALSE)*$G114 -> 0 | V114: 0 | W114: 0 | X114: =VLOOKUP($F114,Utslippsfaktorer!$B$6:$U$332,3,FALSE) -> -
C115: 26 | D115: 265 Gesimser | E115: (egen data) | G115: 0 | V115: 0 | W115: 0
C116: 26 | D116: 266 Himling | E116: (Velg kategori) | F116: (Velg material eller prosesser) | G116: 0 | H116: =VLOOKUP($F116,Utslippsfaktorer!$B$6:$U$332,5,FALSE) -> - | I116: =VLOOKUP($F116,Utslippsfaktorer!$B$6:$U$332,6,FALSE) -> 0 | J116: =IFERROR(VLOOKUP($F116,Utslippsfaktorer!$B$6:$U$332,7,FALSE)*$G116,0) -> 0 | K116: =VLOOKUP($F116,Utslippsfaktorer!$B$6:$U$332,8,FALSE)*$G116 -> 0 | L116: =VLOOKUP($F116,Utslippsfaktorer!$B$6:$U$332,9,FALSE)*$G116 -> 0 | M116: =VLOOKUP($F116,Utslippsfaktorer!$B$6:$U$332,10,FALSE)*$G116 -> 0 | N116: =VLOOKUP($F116,Utslippsfaktorer!$B$6:$U$332,11,FALSE)*$G116 -> 0 | O116: =VLOOKUP($F116,Utslippsfaktorer!$B$6:$U$332,12,FALSE)*$G116 -> 0 | P116: =VLOOKUP($F116,Utslippsfaktorer!$B$6:$U$332,13,FALSE)*$G116 -> 0 | Q116: =VLOOKUP($F116,Utslippsfaktorer!$B$6:$U$332,14,FALSE)*$G116 -> 0 | R116: =VLOOKUP($F116,Utslippsfaktorer!$B$6:$U$332,16,FALSE)*$G116 -> 0 | S116: =VLOOKUP($F116,Utslippsfaktorer!$B$6:$U$332,17,FALSE)*$G116 -> 0 | T116: =VLOOKUP($F116,Utslippsfaktorer!$B$6:$U$332,18,FALSE)*$G116 -> 0 | U116: =VLOOKUP($F116,Utslippsfaktorer!$B$6:$U$332,19,FALSE)*$G116 -> 0 | V116: 0 | W116: 0 | X116: =VLOOKUP($F116,Utslippsfaktorer!$B$6:$U$332,3,FALSE) -> -
C117: 26 | D117: 266 Himling | E117: (egen data) | G117: 0 | V117: 0 | W117: 0
C118: 26 | D118: 267 Prefabrikkerte takelementer | E118: (Velg kategori) | F118: (Velg material eller prosesser) | G118: 0 | H118: =VLOOKUP($F118,Utslippsfaktorer!$B$6:$U$332,5,FALSE) -> - | I118: =VLOOKUP($F118,Utslippsfaktorer!$B$6:$U$332,6,FALSE) -> 0 | J118: =IFERROR(VLOOKUP($F118,Utslippsfaktorer!$B$6:$U$332,7,FALSE)*$G118,0) -> 0 | K118: =VLOOKUP($F118,Utslippsfaktorer!$B$6:$U$332,8,FALSE)*$G118 -> 0 | L118: =VLOOKUP($F118,Utslippsfaktorer!$B$6:$U$332,9,FALSE)*$G118 -> 0 | M118: =VLOOKUP($F118,Utslippsfaktorer!$B$6:$U$332,10,FALSE)*$G118 -> 0 | N118: =VLOOKUP($F118,Utslippsfaktorer!$B$6:$U$332,11,FALSE)*$G118 -> 0 | O118: =VLOOKUP($F118,Utslippsfaktorer!$B$6:$U$332,12,FALSE)*$G118 -> 0 | P118: =VLOOKUP($F118,Utslippsfaktorer!$B$6:$U$332,13,FALSE)*$G118 -> 0 | Q118: =VLOOKUP($F118,Utslippsfaktorer!$B$6:$U$332,14,FALSE)*$G118 -> 0 | R118: =VLOOKUP($F118,Utslippsfaktorer!$B$6:$U$332,16,FALSE)*$G118 -> 0 | S118: =VLOOKUP($F118,Utslippsfaktorer!$B$6:$U$332,17,FALSE)*$G118 -> 0 | T118: =VLOOKUP($F118,Utslippsfaktorer!$B$6:$U$332,18,FALSE)*$G118 -> 0 | U118: =VLOOKUP($F118,Utslippsfaktorer!$B$6:$U$332,19,FALSE)*$G118 -> 0 | V118: 0 | W118: 0 | X118: =VLOOKUP($F118,Utslippsfaktorer!$B$6:$U$332,3,FALSE) -> -
C119: 26 | D119: 267 Prefabrikkerte takelementer | E119: (egen data) | G119: 0 | V119: 0 | W119: 0
C120: 26 | D120: 268 Utstyr og komplettering for yttertak | E120: (Velg kategori) | F120: (Velg material eller prosesser) | G120: 0 | H120: =VLOOKUP($F120,Utslippsfaktorer!$B$6:$U$332,5,FALSE) -> - | I120: =VLOOKUP($F120,Utslippsfaktorer!$B$6:$U$332,6,FALSE) -> 0 | J120: =IFERROR(VLOOKUP($F120,Utslippsfaktorer!$B$6:$U$332,7,FALSE)*$G120,0) -> 0 | K120: =VLOOKUP($F120,Utslippsfaktorer!$B$6:$U$332,8,FALSE)*$G120 -> 0 | L120: =VLOOKUP($F120,Utslippsfaktorer!$B$6:$U$332,9,FALSE)*$G120 -> 0 | M120: =VLOOKUP($F120,Utslippsfaktorer!$B$6:$U$332,10,FALSE)*$G120 -> 0 | N120: =VLOOKUP($F120,Utslippsfaktorer!$B$6:$U$332,11,FALSE)*$G120 -> 0 | O120: =VLOOKUP($F120,Utslippsfaktorer!$B$6:$U$332,12,FALSE)*$G120 -> 0 | P120: =VLOOKUP($F120,Utslippsfaktorer!$B$6:$U$332,13,FALSE)*$G120 -> 0 | Q120: =VLOOKUP($F120,Utslippsfaktorer!$B$6:$U$332,14,FALSE)*$G120 -> 0 | R120: =VLOOKUP($F120,Utslippsfaktorer!$B$6:$U$332,16,FALSE)*$G120 -> 0 | S120: =VLOOKUP($F120,Utslippsfaktorer!$B$6:$U$332,17,FALSE)*$G120 -> 0 | T120: =VLOOKUP($F120,Utslippsfaktorer!$B$6:$U$332,18,FALSE)*$G120 -> 0 | U120: =VLOOKUP($F120,Utslippsfaktorer!$B$6:$U$332,19,FALSE)*$G120 -> 0 | V120: 0 | W120: 0 | X120: =VLOOKUP($F120,Utslippsfaktorer!$B$6:$U$332,3,FALSE) -> -
C121: 26 | D121: 268 Utstyr og komplettering for yttertak | E121: (egen data) | G121: 0 | V121: 0 | W121: 0
C122: 26 | D122: 269 Andre deler av yttertak | E122: (Velg kategori) | F122: (Velg material eller prosesser) | G122: 0 | H122: =VLOOKUP($F122,Utslippsfaktorer!$B$6:$U$332,5,FALSE) -> - | I122: =VLOOKUP($F122,Utslippsfaktorer!$B$6:$U$332,6,FALSE) -> 0 | J122: =IFERROR(VLOOKUP($F122,Utslippsfaktorer!$B$6:$U$332,7,FALSE)*$G122,0) -> 0 | K122: =VLOOKUP($F122,Utslippsfaktorer!$B$6:$U$332,8,FALSE)*$G122 -> 0 | L122: =VLOOKUP($F122,Utslippsfaktorer!$B$6:$U$332,9,FALSE)*$G122 -> 0 | M122: =VLOOKUP($F122,Utslippsfaktorer!$B$6:$U$332,10,FALSE)*$G122 -> 0 | N122: =VLOOKUP($F122,Utslippsfaktorer!$B$6:$U$332,11,FALSE)*$G122 -> 0 | O122: =VLOOKUP($F122,Utslippsfaktorer!$B$6:$U$332,12,FALSE)*$G122 -> 0 | P122: =VLOOKUP($F122,Utslippsfaktorer!$B$6:$U$332,13,FALSE)*$G122 -> 0 | Q122: =VLOOKUP($F122,Utslippsfaktorer!$B$6:$U$332,14,FALSE)*$G122 -> 0 | R122: =VLOOKUP($F122,Utslippsfaktorer!$B$6:$U$332,16,FALSE)*$G122 -> 0 | S122: =VLOOKUP($F122,Utslippsfaktorer!$B$6:$U$332,17,FALSE)*$G122 -> 0 | T122: =VLOOKUP($F122,Utslippsfaktorer!$B$6:$U$332,18,FALSE)*$G122 -> 0 | U122: =VLOOKUP($F122,Utslippsfaktorer!$B$6:$U$332,19,FALSE)*$G122 -> 0 | V122: 0 | W122: 0 | X122: =VLOOKUP($F122,Utslippsfaktorer!$B$6:$U$332,3,FALSE) -> -
C123: 26 | D123: 269 Andre deler av yttertak | E123: (egen data) | G123: 0 | V123: 0 | W123: 0
A125: seksjon7 | C125: 28 | D125: Trapper, balkonger, m.m. | J125: =IFERROR((SUM(J126:J145)),"Not assessed") -> 0 | K125: =IFERROR((SUM(K126:K145)),"Not assessed") -> 0 | L125: 0 | M125: 0 | N125: 0 | O125: 0 | P125: 0 | Q125: 0 | R125: 0 | S125: 0 | T125: 0 | U125: 0 | V125: 0 | X125: =IFERROR(V125/$U$2,0) -> 0
C126: 28 | D126: 28 | E126: (egen data) | G126: 0 | V126: =SUM(J126:U126) -> 0 | W126: =IFERROR(V126/$V$83,0) -> 0
C127: 28 | D127: 281 Innvendige trapper | E127: (Velg kategori) | F127: (Velg material eller prosesser) | G127: 0 | H127: =VLOOKUP($F127,Utslippsfaktorer!$B$6:$U$332,5,FALSE) -> - | I127: =VLOOKUP($F127,Utslippsfaktorer!$B$6:$U$332,6,FALSE) -> 0 | J127: =IFERROR(VLOOKUP($F127,Utslippsfaktorer!$B$6:$U$332,7,FALSE)*$G127,0) -> 0 | K127: =VLOOKUP($F127,Utslippsfaktorer!$B$6:$U$332,8,FALSE)*$G127 -> 0 | L127: =VLOOKUP($F127,Utslippsfaktorer!$B$6:$U$332,9,FALSE)*$G127 -> 0 | M127: =VLOOKUP($F127,Utslippsfaktorer!$B$6:$U$332,10,FALSE)*$G127 -> 0 | N127: =VLOOKUP($F127,Utslippsfaktorer!$B$6:$U$332,11,FALSE)*$G127 -> 0 | O127: =VLOOKUP($F127,Utslippsfaktorer!$B$6:$U$332,12,FALSE)*$G127 -> 0 | P127: =VLOOKUP($F127,Utslippsfaktorer!$B$6:$U$332,13,FALSE)*$G127 -> 0 | Q127: =VLOOKUP($F127,Utslippsfaktorer!$B$6:$U$332,14,FALSE)*$G127 -> 0 | R127: =VLOOKUP($F127,Utslippsfaktorer!$B$6:$U$332,16,FALSE)*$G127 -> 0 | S127: =VLOOKUP($F127,Utslippsfaktorer!$B$6:$U$332,17,FALSE)*$G127 -> 0 | T127: =VLOOKUP($F127,Utslippsfaktorer!$B$6:$U$332,18,FALSE)*$G127 -> 0 | U127: =VLOOKUP($F127,Utslippsfaktorer!$B$6:$U$332,19,FALSE)*$G127 -> 0 | V127: 0 | W127: =IFERROR(V127/$V$83,0) -> 0 | X127: =VLOOKUP($F127,Utslippsfaktorer!$B$6:$U$332,3,FALSE) -> -
C128: 28 | D128: 282 Innvendige trapper | E128: (egen data) | G128: 0 | V128: 0 | W128: 0
C129: 28 | D129: 282 Utvendige trapper | E129: (Velg kategori) | F129: (Velg material eller prosesser) | G129: 0 | H129: =VLOOKUP($F129,Utslippsfaktorer!$B$6:$U$332,5,FALSE) -> - | I129: =VLOOKUP($F129,Utslippsfaktorer!$B$6:$U$332,6,FALSE) -> 0 | J129: =IFERROR(VLOOKUP($F129,Utslippsfaktorer!$B$6:$U$332,7,FALSE)*$G129,0) -> 0 | K129: =VLOOKUP($F129,Utslippsfaktorer!$B$6:$U$332,8,FALSE)*$G129 -> 0 | L129: =VLOOKUP($F129,Utslippsfaktorer!$B$6:$U$332,9,FALSE)*$G129 -> 0 | M129: =VLOOKUP($F129,Utslippsfaktorer!$B$6:$U$332,10,FALSE)*$G129 -> 0 | N129: =VLOOKUP($F129,Utslippsfaktorer!$B$6:$U$332,11,FALSE)*$G129 -> 0 | O129: =VLOOKUP($F129,Utslippsfaktorer!$B$6:$U$332,12,FALSE)*$G129 -> 0 | P129: =VLOOKUP($F129,Utslippsfaktorer!$B$6:$U$332,13,FALSE)*$G129 -> 0 | Q129: =VLOOKUP($F129,Utslippsfaktorer!$B$6:$U$332,14,FALSE)*$G129 -> 0 | R129: =VLOOKUP($F129,Utslippsfaktorer!$B$6:$U$332,16,FALSE)*$G129 -> 0 | S129: =VLOOKUP($F129,Utslippsfaktorer!$B$6:$U$332,17,FALSE)*$G129 -> 0 | T129: =VLOOKUP($F129,Utslippsfaktorer!$B$6:$U$332,18,FALSE)*$G129 -> 0 | U129: =VLOOKUP($F129,Utslippsfaktorer!$B$6:$U$332,19,FALSE)*$G129 -> 0 | V129: 0 | W129: 0 | X129: =VLOOKUP($F129,Utslippsfaktorer!$B$6:$U$332,3,FALSE) -> -
C130: 28 | D130: 283 Utvendige trapper | E130: (egen data) | G130: 0 | V130: 0 | W130: 0
C131: 28 | D131: 283 Ramper | E131: (Velg kategori) | F131: (Velg material eller prosesser) | G131: 0 | H131: =VLOOKUP($F131,Utslippsfaktorer!$B$6:$U$332,5,FALSE) -> - | I131: =VLOOKUP($F131,Utslippsfaktorer!$B$6:$U$332,6,FALSE) -> 0 | J131: =IFERROR(VLOOKUP($F131,Utslippsfaktorer!$B$6:$U$332,7,FALSE)*$G131,0) -> 0 | K131: =VLOOKUP($F131,Utslippsfaktorer!$B$6:$U$332,8,FALSE)*$G131 -> 0 | L131: =VLOOKUP($F131,Utslippsfaktorer!$B$6:$U$332,9,FALSE)*$G131 -> 0 | M131: =VLOOKUP($F131,Utslippsfaktorer!$B$6:$U$332,10,FALSE)*$G131 -> 0 | N131: =VLOOKUP($F131,Utslippsfaktorer!$B$6:$U$332,11,FALSE)*$G131 -> 0 | O131: =VLOOKUP($F131,Utslippsfaktorer!$B$6:$U$332,12,FALSE)*$G131 -> 0 | P131: =VLOOKUP($F131,Utslippsfaktorer!$B$6:$U$332,13,FALSE)*$G131 -> 0 | Q131: =VLOOKUP($F131,Utslippsfaktorer!$B$6:$U$332,14,FALSE)*$G131 -> 0 | R131: =VLOOKUP($F131,Utslippsfaktorer!$B$6:$U$332,16,FALSE)*$G131 -> 0 | S131: =VLOOKUP($F131,Utslippsfaktorer!$B$6:$U$332,17,FALSE)*$G131 -> 0 | T131: =VLOOKUP($F131,Utslippsfaktorer!$B$6:$U$332,18,FALSE)*$G131 -> 0 | U131: =VLOOKUP($F131,Utslippsfaktorer!$B$6:$U$332,19,FALSE)*$G131 -> 0 | V131: 0 | W131: 0 | X131: =VLOOKUP($F131,Utslippsfaktorer!$B$6:$U$332,3,FALSE) -> -
C132: 28 | D132: 284 Ramper | E132: (egen data) | G132: 0 | V132: 0 | W132: 0
C133: 28 | D133: 284 Balkonger og verandaer | E133: (Velg kategori) | F133: (Velg material eller prosesser) | G133: 0 | H133: =VLOOKUP($F133,Utslippsfaktorer!$B$6:$U$332,5,FALSE) -> - | I133: =VLOOKUP($F133,Utslippsfaktorer!$B$6:$U$332,6,FALSE) -> 0 | J133: =IFERROR(VLOOKUP($F133,Utslippsfaktorer!$B$6:$U$332,7,FALSE)*$G133,0) -> 0 | K133: =VLOOKUP($F133,Utslippsfaktorer!$B$6:$U$332,8,FALSE)*$G133 -> 0 | L133: =VLOOKUP($F133,Utslippsfaktorer!$B$6:$U$332,9,FALSE)*$G133 -> 0 | M133: =VLOOKUP($F133,Utslippsfaktorer!$B$6:$U$332,10,FALSE)*$G133 -> 0 | N133: =VLOOKUP($F133,Utslippsfaktorer!$B$6:$U$332,11,FALSE)*$G133 -> 0 | O133: =VLOOKUP($F133,Utslippsfaktorer!$B$6:$U$332,12,FALSE)*$G133 -> 0 | P133: =VLOOKUP($F133,Utslippsfaktorer!$B$6:$U$332,13,FALSE)*$G133 -> 0 | Q133: =VLOOKUP($F133,Utslippsfaktorer!$B$6:$U$332,14,FALSE)*$G133 -> 0 | R133: =VLOOKUP($F133,Utslippsfaktorer!$B$6:$U$332,16,FALSE)*$G133 -> 0 | S133: =VLOOKUP($F133,Utslippsfaktorer!$B$6:$U$332,17,FALSE)*$G133 -> 0 | T133: =VLOOKUP($F133,Utslippsfaktorer!$B$6:$U$332,18,FALSE)*$G133 -> 0 | U133: =VLOOKUP($F133,Utslippsfaktorer!$B$6:$U$332,19,FALSE)*$G133 -> 0 | V133: 0 | W133: 0 | X133: =VLOOKUP($F133,Utslippsfaktorer!$B$6:$U$332,3,FALSE) -> -
C134: 28 | D134: 285 Balkonger og verandaer | E134: (egen data) | G134: 0 | V134: 0 | W134: 0
C135: 28 | D135: 285 Tribuner og amfier | E135: (Velg kategori) | F135: (Velg material eller prosesser) | G135: 0 | H135: =VLOOKUP($F135,Utslippsfaktorer!$B$6:$U$332,5,FALSE) -> - | I135: =VLOOKUP($F135,Utslippsfaktorer!$B$6:$U$332,6,FALSE) -> 0 | J135: =IFERROR(VLOOKUP($F135,Utslippsfaktorer!$B$6:$U$332,7,FALSE)*$G135,0) -> 0 | K135: =VLOOKUP($F135,Utslippsfaktorer!$B$6:$U$332,8,FALSE)*$G135 -> 0 | L135: =VLOOKUP($F135,Utslippsfaktorer!$B$6:$U$332,9,FALSE)*$G135 -> 0 | M135: =VLOOKUP($F135,Utslippsfaktorer!$B$6:$U$332,10,FALSE)*$G135 -> 0 | N135: =VLOOKUP($F135,Utslippsfaktorer!$B$6:$U$332,11,FALSE)*$G135 -> 0 | O135: =VLOOKUP($F135,Utslippsfaktorer!$B$6:$U$332,12,FALSE)*$G135 -> 0 | P135: =VLOOKUP($F135,Utslippsfaktorer!$B$6:$U$332,13,FALSE)*$G135 -> 0 | Q135: =VLOOKUP($F135,Utslippsfaktorer!$B$6:$U$332,14,FALSE)*$G135 -> 0 | R135: =VLOOKUP($F135,Utslippsfaktorer!$B$6:$U$332,16,FALSE)*$G135 -> 0 | S135: =VLOOKUP($F135,Utslippsfaktorer!$B$6:$U$332,17,FALSE)*$G135 -> 0 | T135: =VLOOKUP($F135,Utslippsfaktorer!$B$6:$U$332,18,FALSE)*$G135 -> 0 | U135: =VLOOKUP($F135,Utslippsfaktorer!$B$6:$U$332,19,FALSE)*$G135 -> 0 | V135: 0 | W135: 0 | X135: =VLOOKUP($F135,Utslippsfaktorer!$B$6:$U$332,3,FALSE) -> -
C136: 28 | D136: 286 Tribuner og amfier | E136: (egen data) | G136: 0 | V136: 0 | W136: 0
C137: 28 | D137: 286 Baldakiner og skjermtak | E137: (Velg kategori) | F137: (Velg material eller prosesser) | G137: 0 | H137: =VLOOKUP($F137,Utslippsfaktorer!$B$6:$U$332,5,FALSE) -> - | I137: =VLOOKUP($F137,Utslippsfaktorer!$B$6:$U$332,6,FALSE) -> 0 | J137: =IFERROR(VLOOKUP($F137,Utslippsfaktorer!$B$6:$U$332,7,FALSE)*$G137,0) -> 0 | K137: =VLOOKUP($F137,Utslippsfaktorer!$B$6:$U$332,8,FALSE)*$G137 -> 0 | L137: =VLOOKUP($F137,Utslippsfaktorer!$B$6:$U$332,9,FALSE)*$G137 -> 0 | M137: =VLOOKUP($F137,Utslippsfaktorer!$B$6:$U$332,10,FALSE)*$G137 -> 0 | N137: =VLOOKUP($F137,Utslippsfaktorer!$B$6:$U$332,11,FALSE)*$G137 -> 0 | O137: =VLOOKUP($F137,Utslippsfaktorer!$B$6:$U$332,12,FALSE)*$G137 -> 0 | P137: =VLOOKUP($F137,Utslippsfaktorer!$B$6:$U$332,13,FALSE)*$G137 -> 0 | Q137: =VLOOKUP($F137,Utslippsfaktorer!$B$6:$U$332,14,FALSE)*$G137 -> 0 | R137: =VLOOKUP($F137,Utslippsfaktorer!$B$6:$U$332,16,FALSE)*$G137 -> 0 | S137: =VLOOKUP($F137,Utslippsfaktorer!$B$6:$U$332,17,FALSE)*$G137 -> 0 | T137: =VLOOKUP($F137,Utslippsfaktorer!$B$6:$U$332,18,FALSE)*$G137 -> 0 | U137: =VLOOKUP($F137,Utslippsfaktorer!$B$6:$U$332,19,FALSE)*$G137 -> 0 | V137: 0 | W137: 0 | X137: =VLOOKUP($F137,Utslippsfaktorer!$B$6:$U$332,3,FALSE) -> -
C138: 28 | D138: 287 Baldakiner og skjermtak | E138: (egen data) | G138: 0 | V138: 0 | W138: 0
C139: 28 | D139: 287 Andre rekkverk, handlister og fendere | E139: (Velg kategori) | F139: (Velg material eller prosesser) | G139: 0 | H139: =VLOOKUP($F139,Utslippsfaktorer!$B$6:$U$332,5,FALSE) -> - | I139: =VLOOKUP($F139,Utslippsfaktorer!$B$6:$U$332,6,FALSE) -> 0 | J139: =IFERROR(VLOOKUP($F139,Utslippsfaktorer!$B$6:$U$332,7,FALSE)*$G139,0) -> 0 | K139: =VLOOKUP($F139,Utslippsfaktorer!$B$6:$U$332,8,FALSE)*$G139 -> 0 | L139: =VLOOKUP($F139,Utslippsfaktorer!$B$6:$U$332,9,FALSE)*$G139 -> 0 | M139: =VLOOKUP($F139,Utslippsfaktorer!$B$6:$U$332,10,FALSE)*$G139 -> 0 | N139: =VLOOKUP($F139,Utslippsfaktorer!$B$6:$U$332,11,FALSE)*$G139 -> 0 | O139: =VLOOKUP($F139,Utslippsfaktorer!$B$6:$U$332,12,FALSE)*$G139 -> 0 | P139: =VLOOKUP($F139,Utslippsfaktorer!$B$6:$U$332,13,FALSE)*$G139 -> 0 | Q139: =VLOOKUP($F139,Utslippsfaktorer!$B$6:$U$332,14,FALSE)*$G139 -> 0 | R139: =VLOOKUP($F139,Utslippsfaktorer!$B$6:$U$332,16,FALSE)*$G139 -> 0 | S139: =VLOOKUP($F139,Utslippsfaktorer!$B$6:$U$332,17,FALSE)*$G139 -> 0 | T139: =VLOOKUP($F139,Utslippsfaktorer!$B$6:$U$332,18,FALSE)*$G139 -> 0 | U139: =VLOOKUP($F139,Utslippsfaktorer!$B$6:$U$332,19,FALSE)*$G139 -> 0 | V139: 0 | W139: 0 | X139: =VLOOKUP($F139,Utslippsfaktorer!$B$6:$U$332,3,FALSE) -> -
C140: 28 | D140: 288 Andre rekkverk, handlister og fendere | E140: (egen data) | G140: 0 | V140: 0 | W140: 0
C141: 28 | D141: 288 Utstyr og kompletteringer for trapper, balkonger m.m. | E141: (Velg kategori) | F141: (Velg material eller prosesser) | G141: 0 | H141: =VLOOKUP($F141,Utslippsfaktorer!$B$6:$U$332,5,FALSE) -> - | I141: =VLOOKUP($F141,Utslippsfaktorer!$B$6:$U$332,6,FALSE) -> 0 | J141: =IFERROR(VLOOKUP($F141,Utslippsfaktorer!$B$6:$U$332,7,FALSE)*$G141,0) -> 0 | K141: =VLOOKUP($F141,Utslippsfaktorer!$B$6:$U$332,8,FALSE)*$G141 -> 0 | L141: =VLOOKUP($F141,Utslippsfaktorer!$B$6:$U$332,9,FALSE)*$G141 -> 0 | M141: =VLOOKUP($F141,Utslippsfaktorer!$B$6:$U$332,10,FALSE)*$G141 -> 0 | N141: =VLOOKUP($F141,Utslippsfaktorer!$B$6:$U$332,11,FALSE)*$G141 -> 0 | O141: =VLOOKUP($F141,Utslippsfaktorer!$B$6:$U$332,12,FALSE)*$G141 -> 0 | P141: =VLOOKUP($F141,Utslippsfaktorer!$B$6:$U$332,13,FALSE)*$G141 -> 0 | Q141: =VLOOKUP($F141,Utslippsfaktorer!$B$6:$U$332,14,FALSE)*$G141 -> 0 | R141: =VLOOKUP($F141,Utslippsfaktorer!$B$6:$U$332,16,FALSE)*$G141 -> 0 | S141: =VLOOKUP($F141,Utslippsfaktorer!$B$6:$U$332,17,FALSE)*$G141 -> 0 | T141: =VLOOKUP($F141,Utslippsfaktorer!$B$6:$U$332,18,FALSE)*$G141 -> 0 | U141: =VLOOKUP($F141,Utslippsfaktorer!$B$6:$U$332,19,FALSE)*$G141 -> 0 | V141: 0 | W141: 0 | X141: =VLOOKUP($F141,Utslippsfaktorer!$B$6:$U$332,3,FALSE) -> -
C142: 28 | D142: 289 Utstyr og kompletteringer for trapper, balkonger m.m. | E142: (egen data) | G142: 0 | V142: 0 | W142: 0
C143: 28 | D143: 289 Andre trapper, balkonger m.m. | E143: (Velg kategori) | F143: (Velg material eller prosesser) | G143: 0 | H143: =VLOOKUP($F143,Utslippsfaktorer!$B$6:$U$332,5,FALSE) -> - | I143: =VLOOKUP($F143,Utslippsfaktorer!$B$6:$U$332,6,FALSE) -> 0 | J143: =IFERROR(VLOOKUP($F143,Utslippsfaktorer!$B$6:$U$332,7,FALSE)*$G143,0) -> 0 | K143: =VLOOKUP($F143,Utslippsfaktorer!$B$6:$U$332,8,FALSE)*$G143 -> 0 | L143: =VLOOKUP($F143,Utslippsfaktorer!$B$6:$U$332,9,FALSE)*$G143 -> 0 | M143: =VLOOKUP($F143,Utslippsfaktorer!$B$6:$U$332,10,FALSE)*$G143 -> 0 | N143: =VLOOKUP($F143,Utslippsfaktorer!$B$6:$U$332,11,FALSE)*$G143 -> 0 | O143: =VLOOKUP($F143,Utslippsfaktorer!$B$6:$U$332,12,FALSE)*$G143 -> 0 | P143: =VLOOKUP($F143,Utslippsfaktorer!$B$6:$U$332,13,FALSE)*$G143 -> 0 | Q143: =VLOOKUP($F143,Utslippsfaktorer!$B$6:$U$332,14,FALSE)*$G143 -> 0 | R143: =VLOOKUP($F143,Utslippsfaktorer!$B$6:$U$332,16,FALSE)*$G143 -> 0 | S143: =VLOOKUP($F143,Utslippsfaktorer!$B$6:$U$332,17,FALSE)*$G143 -> 0 | T143: =VLOOKUP($F143,Utslippsfaktorer!$B$6:$U$332,18,FALSE)*$G143 -> 0 | U143: =VLOOKUP($F143,Utslippsfaktorer!$B$6:$U$332,19,FALSE)*$G143 -> 0 | V143: 0 | W143: 0 | X143: =VLOOKUP($F143,Utslippsfaktorer!$B$6:$U$332,3,FALSE) -> -
C144: 28 | D144: 289 Andre trapper, balkonger m.m. | E144: (egen data) | G144: 0 | V144: 0 | W144: 0
A146: seksjon8 | C146: 49 | D146: Andre elkraftinstallasjoner | J146: =IFERROR((SUM(J147:J148)),"Not assessed") -> 0 | K146: 0 | L146: 0 | M146: 0 | N146: 0 | O146: 0 | P146: 0 | Q146: 0 | R146: 0 | S146: 0 | T146: 0 | U146: 0 | V146: 0 | X146: =IFERROR(V146/$U$2,0) -> 0
C147: 49 | D147: 49 | E147: (egen data) | G147: 0 | V147: =SUM(J147:U147) -> 0 | W147: =IFERROR(V147/$V$104,0) -> 0
C148: 49 | D148: 49 | E148: (Velg kategori) | F148: (Velg material eller prosesser) | G148: 0 | H148: =VLOOKUP($F148,Utslippsfaktorer!$B$6:$U$332,5,FALSE) -> - | I148: =VLOOKUP($F148,Utslippsfaktorer!$B$6:$U$332,6,FALSE) -> 0 | J148: =IFERROR(VLOOKUP($F148,Utslippsfaktorer!$B$6:$U$332,7,FALSE)*$G148,0) -> 0 | K148: =VLOOKUP($F148,Utslippsfaktorer!$B$6:$U$332,8,FALSE)*$G148 -> 0 | L148: =VLOOKUP($F148,Utslippsfaktorer!$B$6:$U$332,9,FALSE)*$G148 -> 0 | M148: =VLOOKUP($F148,Utslippsfaktorer!$B$6:$U$332,10,FALSE)*$G148 -> 0 | N148: =VLOOKUP($F148,Utslippsfaktorer!$B$6:$U$332,11,FALSE)*$G148 -> 0 | O148: =VLOOKUP($F148,Utslippsfaktorer!$B$6:$U$332,12,FALSE)*$G148 -> 0 | P148: =VLOOKUP($F148,Utslippsfaktorer!$B$6:$U$332,13,FALSE)*$G148 -> 0 | Q148: =VLOOKUP($F148,Utslippsfaktorer!$B$6:$U$332,14,FALSE)*$G148 -> 0 | R148: =VLOOKUP($F148,Utslippsfaktorer!$B$6:$U$332,16,FALSE)*$G148 -> 0 | S148: =VLOOKUP($F148,Utslippsfaktorer!$B$6:$U$332,17,FALSE)*$G148 -> 0 | T148: =VLOOKUP($F148,Utslippsfaktorer!$B$6:$U$332,18,FALSE)*$G148 -> 0 | U148: =VLOOKUP($F148,Utslippsfaktorer!$B$6:$U$332,19,FALSE)*$G148 -> 0 | V148: 0 | W148: =IFERROR(V148/$V$104,0) -> 0 | X148: =VLOOKUP($F148,Utslippsfaktorer!$B$6:$U$332,3,FALSE) -> -
A150: seksjon9
B151: Energibruk på byggeplass (del av A5) | V151: =SUM(V152:V154) -> 2670 | Y151: =IFERROR(V151/$U$2,0) -> 0.02703355515
F152: _Elektrisitet (NO) | G152: 0 | H152: =VLOOKUP($F152,Utslippsfaktorer!$B$6:$U$332,5,FALSE) -> kWh | I152: =_xlfn.IFS(AND(Prosjektbeskrivelse!$C$13="Utslippsfri",H152="liter",G152>0),"Krav for utslippsfri byggeplass!",AND(Prosjektbeskrivelse!$C$13="Fossilfri",OR(ISNUMBER(FIND("Diesel",F152)),ISNUMBER(FIND("LPG",F152))),G152>0),"Krav for fossilfri byggeplass!",TRUE,"") ->  | V152: =IFERROR(VLOOKUP($F152,Utslippsfaktorer!$B$6:$U$332,7,FALSE)*$G152,0) -> 0 | W152: =IFERROR(V152/$V$151,0) -> 0
F153: Diesel | G153: 1000 | H153: =VLOOKUP($F153,Utslippsfaktorer!$B$6:$U$332,5,FALSE) -> liter | I153: =_xlfn.IFS(AND(Prosjektbeskrivelse!$C$13="Utslippsfri",H153="liter",G153>0),"Krav for utslippsfri byggeplass!",AND(Prosjektbeskrivelse!$C$13="Fossilfri",OR(ISNUMBER(FIND("Diesel",F153)),ISNUMBER(FIND("LPG",F153))),G153>0),"Krav for fossilfri byggeplass!",TRUE,"") -> Krav for fossilfri byggeplass! | V153: =IFERROR(VLOOKUP($F153,Utslippsfaktorer!$B$6:$U$332,7,FALSE)*$G153,0) -> 2670 | W153: 1
F154: Biodiesel | G154: 0 | H154: =VLOOKUP($F154,Utslippsfaktorer!$B$6:$U$332,5,FALSE) -> liter | I154: =_xlfn.IFS(AND(Prosjektbeskrivelse!$C$13="Utslippsfri",H154="liter",G154>0),"Krav for utslippsfri byggeplass!",AND(Prosjektbeskrivelse!$C$13="Fossilfri",OR(ISNUMBER(FIND("Diesel",F154)),ISNUMBER(FIND("LPG",F154))),G154>0),"Krav for fossilfri byggeplass!",TRUE,"") ->  | V154: =IFERROR(VLOOKUP($F154,Utslippsfaktorer!$B$6:$U$332,7,FALSE)*$G154,0) -> 0 | W154: =IFERROR(V154/$V$151,0) -> 0
B156: Energibruk i drift (B6) | V156: =SUM(V158:V164) -> 23814 | Y156: =IFERROR(V156/$U$2,0) -> 0.2411150121
G157: Nøkkelverdi (PROfet) | J157: Verdier fra egen beregning | M157: Endelige verdier | P157: Totalt energibruk | V157: Utslipp | W157: % per energibehov
E158: Oppvarming | F158: _Elektrisitet (NO) | G158: =VLOOKUP(_xlfn.CONCAT(Prosjektbeskrivelse!$C$16," ",Prosjektbeskrivelse!$C$17),Input_rullegardin!$I$4:$N$39,4,FALSE) -> 102 | H158: kWh/(m2·år) | K158: kWh/(m2·år) | M158: =IF(ISBLANK(J158),G158,J158) -> 102 | N158: kWh/(m2BTA.år) | P158: =M158*Prosjektbeskrivelse!$C$21*Prosjektbeskrivelse!$C$24 -> 688500 | Q158: kWh | V158: =IFERROR(VLOOKUP($F158,Utslippsfaktorer!$B$6:$U$332,7,FALSE)*$P158,0) -> 12393 | W158: =IFERROR(V158/$V$156,0) -> 0.5204081633
F159: _Fjernvarme, Trondheim, NO (snitt 2019-2021) | K159: kWh/(m2·år) | M159: 0 | N159: kWh/(m2BTA.år) | P159: =M159*Prosjektbeskrivelse!$C$21*Prosjektbeskrivelse!$C$24 -> 0 | Q159: kWh | V159: =IFERROR(VLOOKUP($F159,Utslippsfaktorer!$B$6:$U$332,7,FALSE)*$P159,0) -> 0 | W159: =IFERROR(V159/$V$156,0) -> 0
E160: Vannoppvarming | F160: _Elektrisitet (NO) | G160: =VLOOKUP(_xlfn.CONCAT(Prosjektbeskrivelse!$C$16," ",Prosjektbeskrivelse!$C$17),Input_rullegardin!$I$4:$N$39,5,FALSE) -> 19 | H160: kWh/(m2·år) | K160: kWh/(m2·år) | M160: 19 | N160: kWh/(m2BTA.år) | P160: =M160*Prosjektbeskrivelse!$C$21*Prosjektbeskrivelse!$C$24 -> 128250 | Q160: kWh | V160: =IFERROR(VLOOKUP($F160,Utslippsfaktorer!$B$6:$U$332,7,FALSE)*$P160,0) -> 2308.5 | W160: =IFERROR(V160/$V$156,0) -> 0.09693877551
E161: Elektriske apparater | F161: _Elektrisitet (NO) | G161: =VLOOKUP(_xlfn.CONCAT(Prosjektbeskrivelse!$C$16," ",Prosjektbeskrivelse!$C$17),Input_rullegardin!$I$4:$N$39,6,FALSE) -> 75 | H161: kWh/(m2·år) | K161: kWh/(m2·år) | M161: 75 | N161: kWh/(m2BTA.år) | P161: =M161*Prosjektbeskrivelse!$C$21*Prosjektbeskrivelse!$C$24 -> 506250 | Q161: kWh | V161: =IFERROR(VLOOKUP($F161,Utslippsfaktorer!$B$6:$U$332,7,FALSE)*$P161,0) -> 9112.5 | W161: 0.3826530612
E162: Kjøling | F162: _Elektrisitet (NO) | H162: kWh/(m2·år) | K162: kWh/(m2·år) | M162: 0 | N162: kWh/(m2BTA.år) | P162: =M162*Prosjektbeskrivelse!$C$21*Prosjektbeskrivelse!$C$24 -> 0 | Q162: kWh | V162: =IFERROR(VLOOKUP($F162,Utslippsfaktorer!$B$6:$U$332,7,FALSE)*$P162,0) -> 0 | W162: 0
E163: Luftbehandling | F163: _Elektrisitet (NO) | H163: kWh/(m2·år) | K163: kWh/(m2·år) | M163: 0 | N163: kWh/(m2BTA.år) | P163: =M163*Prosjektbeskrivelse!$C$21*Prosjektbeskrivelse!$C$24 -> 0 | Q163: kWh | V163: =IFERROR(VLOOKUP($F163,Utslippsfaktorer!$B$6:$U$332,7,FALSE)*$P163,0) -> 0 | W163: 0
E164: Annet | F164: _Elektrisitet (NO) | H164: kWh/(m2·år) | K164: kWh/(m2·år) | M164: 0 | N164: kWh/(m2BTA.år) | P164: =M164*Prosjektbeskrivelse!$C$21*Prosjektbeskrivelse!$C$24 -> 0 | Q164: kWh | V164: =IFERROR(VLOOKUP($F164,Utslippsfaktorer!$B$6:$U$332,7,FALSE)*$P164,0) -> 0 | W164: 0
A167: =Veiledning!B2 -> Versjon 2023-04-13. Utviklet av SINTEF AS.

Sheet Resultater
C2: Klimagassregnskap, resultater
E4: Produktstadiet | F4: Transport | G4: Bygge- og monterings-arbeid | H4: Bygge- og monterings-arbeid | I4: Vedlikehold | J4: Reparasjon | K4: Utskiftning | L4: Energibruk i drift | M4: Transport i drift | N4: Sluttstadiet | P4: TEK17 krav | R4: Trondheim kommunes krav | T4: Alle moduler
B5: Prosjektspesifikke verdier? | E5: A1-A3 | F5: A4 | G5: A5-Svinn | H5: A5-Arbeid | I5: B2 | J5: B3 | K5: B4 | L5: B6 | M5: B8 | N5: C1-C4 | P5: Totalt klimagassutslipp | Q5: Klimagassutslipp per år og per m2 BTA | R5: Totalt | S5: Klimagassutslipp per år og per m2 BTA | T5: Totalt | U5: Klimagassutslipp per år og per m2 BTA
E6: kgCO2e | F6: kgCO2e | G6: kgCO2e | H6: kgCO2e | I6: kgCO2e | J6: kgCO2e | K6: kgCO2e | L6: kgCO2e | M6: kgCO2e | N6: kgCO2e | P6: kgCO2e | Q6: kgCO2e/(m2BTA.år) | R6: kgCO2e | S6: kgCO2e/(m2BTA.år) | T6: kgCO2e | U6: kgCO2e/(m2BTA.år)
B8: =IF(COUNTA(Skisseprosjekt!F9:K9,Skisseprosjekt!G46:G52)=0,"Nei","Ja") -> Nei | C8: Skisseprosjekt/Reguleringsfase | E8: =Skisseprosjekt!F11 -> 28057.5 | F8: =Skisseprosjekt!G11 -> 652.5 | G8: - | H8: =Skisseprosjekt!H11 -> 11194.5888 | I8: - | J8: - | K8: =Skisseprosjekt!I11 -> 652.5 | L8: =Skisseprosjekt!J11 -> 19197 | M8: =Skisseprosjekt!K11 -> 0 | N8: - | P8: - | Q8: - | R8: =SUM(E8:F8,H8,K8:M8) -> 59754.0888 | S8: =IFERROR(R8/(Prosjektbeskrivelse!$C$19*Prosjektbeskrivelse!$C$18),0) -> 8.241943283 | T8: - | U8: -
C11: Referansebygg | E11: =SUM(E12:E21) -> 2098080.548 | F11: =SUM(F12:F21) -> 104239.8665 | G11: =SUM(G12:G21) -> 179902.0989 | H11: =SUM(H12:H21) -> 32400 | I11: - | J11: =SUM(J12:J21) -> 0 | K11: =SUM(K12:K21) -> 462540.2105 | L11: =SUM(L12:L21) -> 23814 | N11: =SUM(N12:N21) -> 302003.0603 | P11: =SUM(P12:P17) -> 2833707.589 | Q11: =SUM(Q12:Q17) -> 390.8562191 | R11: =SUM(R12:R21) -> 2900976.724 | S11: =SUM(S12:S21) -> 400.1347205 | T11: 3202979.784 | U11: 441.790315
B12: - | C12: 21 Fundamentering | E12: =Referansebygg!$F$8 -> 301122 | F12: =Referansebygg!$G$8 -> 38592.74353 | G12: =Referansebygg!$H$8 -> 26892.64994 | H12: - | I12: - | J12: =Referansebygg!$I$9 -> 0 | K12: =Referansebygg!$J$9 -> 0 | L12: - | M12: - | N12: =Referansebygg!$L$8 -> 109371.2326 | P12: =IFERROR(SUM(E12:G12,K12),0) -> 366607.3935 | Q12: =IFERROR(P12/(Prosjektbeskrivelse!$C$19*Prosjektbeskrivelse!$C$18),0) -> 50.56653703 | R12: =IFERROR(SUM(E12:I12,K12:L12),0) -> 366607.3935 | S12: =IFERROR(R12/(Prosjektbeskrivelse!$C$19*Prosjektbeskrivelse!$C$18),0) -> 50.56653703 | T12: =IFERROR(SUM(E12:N12),0) -> 475978.626 | U12: =IFERROR(T12/(Prosjektbeskrivelse!$C$19*Prosjektbeskrivelse!$C$18),0) -> 65.65222428
B13: - | C13: 22 Bæresystemer | E13: =Referansebygg!$F$13 -> 313033.1201 | F13: =Referansebygg!$G$13 -> 6199.493236 | G13: =Referansebygg!$H$13 -> 13449.70599 | H13: - | I13: - | J13: =Referansebygg!$I$13 -> 0 | K13: =Referansebygg!$J$13 -> 0 | L13: - | M13: - | N13: =Referansebygg!$L$13 -> 7864.24228 | P13: 332682.3193 | Q13: =IFERROR(P13/(Prosjektbeskrivelse!$C$19*Prosjektbeskrivelse!$C$18),0) -> 45.88721646 | R13: 332682.3193 | S13: =IFERROR(R13/(Prosjektbeskrivelse!$C$19*Prosjektbeskrivelse!$C$18),0) -> 45.88721646 | T13: 340546.5616 | U13: =IFERROR(T13/(Prosjektbeskrivelse!$C$19*Prosjektbeskrivelse!$C$18),0) -> 46.97193953
B14: - | C14: 23 Yttervegger | E14: =Referansebygg!$F$19 -> 434171.9121 | F14: =Referansebygg!$G$19 -> 25924.81137 | G14: =Referansebygg!$H$19 -> 32807.20329 | H14: - | I14: - | J14: =Referansebygg!I19 -> 0 | K14: =Referansebygg!$J$19 -> 128950.72 | L14: - | M14: - | N14: =Referansebygg!$L$19 -> 30380.95381 | P14: 621854.6467 | Q14: =IFERROR(P14/(Prosjektbeskrivelse!$C$19*Prosjektbeskrivelse!$C$18),0) -> 85.77305472 | R14: 621854.6467 | S14: =IFERROR(R14/(Prosjektbeskrivelse!$C$19*Prosjektbeskrivelse!$C$18),0) -> 85.77305472 | T14: 652235.6006 | U14: =IFERROR(T14/(Prosjektbeskrivelse!$C$19*Prosjektbeskrivelse!$C$18),0) -> 89.96353111
B15: - | C15: 24 Innervegger | E15: =Referansebygg!$F$26 -> 287327.6587 | F15: =Referansebygg!$G$26 -> 2672.284338 | G15: =Referansebygg!$H$26 -> 17646.30666 | H15: - | I15: - | J15: =Referansebygg!I26 -> 0 | K15: =Referansebygg!$J$26 -> 135882.1077 | L15: - | M15: - | N15: =Referansebygg!$L$26 -> 20398.69112 | P15: 443528.3573 | Q15: =IFERROR(P15/(Prosjektbeskrivelse!$C$19*Prosjektbeskrivelse!$C$18),0) -> 61.17632515 | R15: 443528.3573 | S15: =IFERROR(R15/(Prosjektbeskrivelse!$C$19*Prosjektbeskrivelse!$C$18),0) -> 61.17632515 | T15: 463927.0485 | U15: =IFERROR(T15/(Prosjektbeskrivelse!$C$19*Prosjektbeskrivelse!$C$18),0) -> 63.98993772
B16: - | C16: 25 Dekker | E16: =Referansebygg!$F$33 -> 623963.8168 | F16: =Referansebygg!$G$33 -> 25036.33 | G16: =Referansebygg!$H$33 -> 51916.93326 | H16: - | I16: - | J16: =Referansebygg!I33 -> 0 | K16: =Referansebygg!$J$33 -> 79704.46224 | L16: - | M16: - | N16: =Referansebygg!$L$33 -> 46549.52794 | P16: 780621.5423 | Q16: =IFERROR(P16/(Prosjektbeskrivelse!$C$19*Prosjektbeskrivelse!$C$18),0) -> 107.6719369 | R16: 780621.5423 | S16: =IFERROR(R16/(Prosjektbeskrivelse!$C$19*Prosjektbeskrivelse!$C$18),0) -> 107.6719369 | T16: 827171.0703 | U16: =IFERROR(T16/(Prosjektbeskrivelse!$C$19*Prosjektbeskrivelse!$C$18),0) -> 114.0925614
B17: - | C17: 26 Yttertak | E17: =Referansebygg!$F$41 -> 129562.0399 | F17: =Referansebygg!$G$41 -> 5660.466617 | G17: =Referansebygg!$H$41 -> 35987.90223 | H17: - | I17: - | J17: =Referansebygg!I41 -> 0 | K17: =Referansebygg!$J$41 -> 117202.9206 | L17: - | M17: - | N17: =Referansebygg!$L$41 -> 85147.70449 | P17: 288413.3294 | Q17: =IFERROR(P17/(Prosjektbeskrivelse!$C$19*Prosjektbeskrivelse!$C$18),0) -> 39.78114888 | R17: 288413.3294 | S17: =IFERROR(R17/(Prosjektbeskrivelse!$C$19*Prosjektbeskrivelse!$C$18),0) -> 39.78114888 | T17: 373561.0339 | U17: =IFERROR(T17/(Prosjektbeskrivelse!$C$19*Prosjektbeskrivelse!$C$18),0) -> 51.52565985
B18: - | C18: 28 Trapper, balkonger, m.m. | E18: =Referansebygg!$F$48 -> 8000 | F18: =Referansebygg!$G$48 -> 76.86868376 | G18: =Referansebygg!$H$48 -> 1141.397572 | H18: - | I18: - | J18: =Referansebygg!I42 -> 0 | K18: =Referansebygg!$J$48 -> 0 | L18: - | M18: - | N18: =Referansebygg!$L$48 -> 1145.354065 | P18: - | Q18: =IFERROR(P18/(Prosjektbeskrivelse!$C$19*Prosjektbeskrivelse!$C$18),0) -> 0 | R18: 9218.266256 | S18: =IFERROR(R18/(Prosjektbeskrivelse!$C$19*Prosjektbeskrivelse!$C$18),0) -> 1.271485001 | T18: =IFERROR(SUM(E18:N18),0) -> 10363.62032 | U18: =IFERROR(T18/(Prosjektbeskrivelse!$C$19*Prosjektbeskrivelse!$C$18),0) -> 1.429464872
B19: - | C19: 49 Andre elkraftinstallasjoner | E19: =Referansebygg!$F$55 -> 900 | F19: =Referansebygg!$G$55 -> 76.86868376 | G19: =Referansebygg!$H$55 -> 60 | H19: - | I19: - | J19: =Referansebygg!I42 -> 0 | K19: =Referansebygg!$J$55 -> 800 | L19: - | M19: - | N19: =Referansebygg!$L$55 -> 1145.354065 | P19: - | Q19: =IFERROR(P19/(Prosjektbeskrivelse!$C$19*Prosjektbeskrivelse!$C$18),0) -> 0 | R19: 1836.868684 | S19: =IFERROR(R19/(Prosjektbeskrivelse!$C$19*Prosjektbeskrivelse!$C$18),0) -> 0.2533611978 | T19: =IFERROR(SUM(E19:N19),0) -> 2982.222748 | U19: =IFERROR(T19/(Prosjektbeskrivelse!$C$19*Prosjektbeskrivelse!$C$18),0) -> 0.4113410688
B20: - | C20: Energibruk konstruksjon | E20: - | F20: - | G20: - | H20: =Referansebygg!$M$60 -> 32400 | I20: - | J20: - | K20: - | L20: - | M20: - | N20: - | P20: - | Q20: - | R20: 32400 | S20: =IFERROR(R20/(Prosjektbeskrivelse!$C$19*Prosjektbeskrivelse!$C$18),0) -> 4.468965517 | T20: 32400 | U20: =IFERROR(T20/(Prosjektbeskrivelse!$C$19*Prosjektbeskrivelse!$C$18),0) -> 4.468965517
B21: - | C21: Energibruk i drift | E21: - | F21: - | G21: - | H21: - | I21: - | J21: - | K21: - | L21: =Referansebygg!$M$65 -> 23814 | M21: - | N21: - | P21: - | Q21: - | R21: 23814 | S21: =IFERROR(R21/(Prosjektbeskrivelse!$C$19*Prosjektbeskrivelse!$C$18),0) -> 3.284689655 | T21: 23814 | U21: =IFERROR(T21/(Prosjektbeskrivelse!$C$19*Prosjektbeskrivelse!$C$18),0) -> 3.284689655
C23: Forprosjekt | E23: =SUM(E24:E33) -> 77419.13182 | F23: =SUM(F24:F33) -> 38.32938 | G23: =SUM(G24:G33) -> 3872.87306 | H23: =SUM(H24:H33) -> 26700 | K23: =SUM(K24:K33) -> 10766.25 | L23: =SUM(L24:L33) -> 23814 | P23: =SUM(P24:P29) -> 75131.58426 | Q23: =SUM(Q24:Q29) -> 10.36297714 | R23: =SUM(R24:R33) -> 142610.5843 | S23: =SUM(S24:S33) -> 19.67042541 | T23: =SUM(T24:T33) -> 142610.5843 | U23: =SUM(U24:U33) -> 19.67042541
B24: =IF(AND(Forprosjekt!E8=FALSE,SUMIF(Forprosjekt!E9:E11,"(egen data)",Forprosjekt!N9:N11)>0),"Ja","Nei") -> Nei | C24: 21 Fundamentering | E24: =Forprosjekt!J7 -> 34354.13182 | F24: =Forprosjekt!K7 -> 38.32938 | G24: =Forprosjekt!L7 -> 1719.62306 | H24: - | I24: - | J24: - | K24: =Forprosjekt!M7 -> 0 | L24: - | M24: - | N24: - | P24: =IFERROR(SUM(E24:G24,K24),0) -> 36112.08426 | Q24: =IFERROR(P24/(Prosjektbeskrivelse!$C$19*Prosjektbeskrivelse!$C$18),0) -> 4.980977139 | R24: =IFERROR(SUM(E24:I24,K24:L24),0) -> 36112.08426 | S24: =IFERROR(R24/(Prosjektbeskrivelse!$C$19*Prosjektbeskrivelse!$C$18),0) -> 4.980977139 | T24: =IFERROR(SUM(E24:N24),0) -> 36112.08426 | U24: =IFERROR(T24/(Prosjektbeskrivelse!$C$19*Prosjektbeskrivelse!$C$18),0) -> 4.980977139
B25: =IF(AND(Forprosjekt!E14=FALSE,SUMIF(Forprosjekt!E15:E16,"(egen data)",Forprosjekt!N15:N16)>0),"Ja","Nei") -> Nei | C25: 22 Bæresystemer | E25: =Forprosjekt!$J$13 -> 3915 | F25: =Forprosjekt!$K$13 -> 0 | G25: =Forprosjekt!$L$13 -> 195.75 | H25: - | I25: - | J25: - | K25: =Forprosjekt!$M$13 -> 978.75 | L25: - | M25: - | N25: - | P25: 5089.5 | Q25: =IFERROR(P25/(Prosjektbeskrivelse!$C$19*Prosjektbeskrivelse!$C$18),0) -> 0.702 | R25: 5089.5 | S25: =IFERROR(R25/(Prosjektbeskrivelse!$C$19*Prosjektbeskrivelse!$C$18),0) -> 0.702 | T25: 5089.5 | U25: =IFERROR(T25/(Prosjektbeskrivelse!$C$19*Prosjektbeskrivelse!$C$18),0) -> 0.702
B26: =IF(AND(Forprosjekt!E19=FALSE,SUMIF(Forprosjekt!E20:E21,"(egen data)",Forprosjekt!N20:N21)>0),"Ja","Nei") -> Nei | C26: 23 Yttervegger | E26: =Forprosjekt!$J$18 -> 7830 | F26: =Forprosjekt!$K$18 -> 0 | G26: =Forprosjekt!$L$18 -> 391.5 | H26: - | I26: - | J26: - | K26: =Forprosjekt!$M$18 -> 1957.5 | L26: - | M26: - | N26: - | P26: 10179 | Q26: =IFERROR(P26/(Prosjektbeskrivelse!$C$19*Prosjektbeskrivelse!$C$18),0) -> 1.404 | R26: 10179 | S26: =IFERROR(R26/(Prosjektbeskrivelse!$C$19*Prosjektbeskrivelse!$C$18),0) -> 1.404 | T26: 10179 | U26: =IFERROR(T26/(Prosjektbeskrivelse!$C$19*Prosjektbeskrivelse!$C$18),0) -> 1.404
B27: =IF(AND(Forprosjekt!E24=FALSE,SUMIF(Forprosjekt!E25:E26,"(egen data)",Forprosjekt!N25:N26)>0),"Ja","Nei") -> Nei | C27: 24 Innervegger | E27: =Forprosjekt!$J$23 -> 5872.5 | F27: =Forprosjekt!$K$23 -> 0 | G27: =Forprosjekt!$L$23 -> 293.625 | H27: - | I27: - | J27: - | K27: =Forprosjekt!$M$23 -> 1468.125 | L27: - | M27: - | N27: - | P27: 7634.25 | Q27: =IFERROR(P27/(Prosjektbeskrivelse!$C$19*Prosjektbeskrivelse!$C$18),0) -> 1.053 | R27: 7634.25 | S27: =IFERROR(R27/(Prosjektbeskrivelse!$C$19*Prosjektbeskrivelse!$C$18),0) -> 1.053 | T27: 7634.25 | U27: =IFERROR(T27/(Prosjektbeskrivelse!$C$19*Prosjektbeskrivelse!$C$18),0) -> 1.053
B28: =IF(AND(Forprosjekt!E29=FALSE,SUMIF(Forprosjekt!E29:E31,"(egen data)",Forprosjekt!N30:N31)>0),"Ja","Nei") -> Nei | C28: 25 Dekker | E28: =Forprosjekt!$J$28 -> 9135 | F28: =Forprosjekt!$K$28 -> 0 | G28: =Forprosjekt!$L$28 -> 456.75 | H28: - | I28: - | J28: - | K28: =Forprosjekt!$M$28 -> 2283.75 | L28: - | M28: - | N28: - | P28: 11875.5 | Q28: =IFERROR(P28/(Prosjektbeskrivelse!$C$19*Prosjektbeskrivelse!$C$18),0) -> 1.638 | R28: 11875.5 | S28: =IFERROR(R28/(Prosjektbeskrivelse!$C$19*Prosjektbeskrivelse!$C$18),0) -> 1.638 | T28: 11875.5 | U28: =IFERROR(T28/(Prosjektbeskrivelse!$C$19*Prosjektbeskrivelse!$C$18),0) -> 1.638
B29: =IF(AND(Forprosjekt!E34=FALSE,SUMIF(Forprosjekt!E35:E36,"(egen data)",Forprosjekt!N35:N36)>0),"Ja","Nei") -> Nei | C29: 26 Yttertak | E29: =Forprosjekt!$J$33 -> 3262.5 | F29: =Forprosjekt!$K$33 -> 0 | G29: =Forprosjekt!$L$33 -> 163.125 | H29: - | I29: - | J29: - | K29: =Forprosjekt!$M$33 -> 815.625 | L29: - | M29: - | N29: - | P29: 4241.25 | Q29: =IFERROR(P29/(Prosjektbeskrivelse!$C$19*Prosjektbeskrivelse!$C$18),0) -> 0.585 | R29: 4241.25 | S29: =IFERROR(R29/(Prosjektbeskrivelse!$C$19*Prosjektbeskrivelse!$C$18),0) -> 0.585 | T29: 4241.25 | U29: =IFERROR(T29/(Prosjektbeskrivelse!$C$19*Prosjektbeskrivelse!$C$18),0) -> 0.585
B30: =IF(AND(Forprosjekt!E39=FALSE,SUMIF(Forprosjekt!E40:E41,"(egen data)",Forprosjekt!N40:N41)>0),"Ja","Nei") -> Nei | C30: 28 Trapper, balkonger, m.m. | E30: =Forprosjekt!$J$38 -> 652.5 | F30: =Forprosjekt!$K$38 -> 0 | G30: =Forprosjekt!$L$38 -> 32.625 | H30: - | I30: - | J30: - | K30: =Forprosjekt!$M$38 -> 163.125 | L30: - | M30: - | N30: - | P30: - | Q30: =IFERROR(P30/(Prosjektbeskrivelse!$C$19*Prosjektbeskrivelse!$C$18),0) -> 0 | R30: 848.25 | S30: =IFERROR(R30/(Prosjektbeskrivelse!$C$19*Prosjektbeskrivelse!$C$18),0) -> 0.117 | T30: 848.25 | U30: =IFERROR(T30/(Prosjektbeskrivelse!$C$19*Prosjektbeskrivelse!$C$18),0) -> 0.117
B31: =IF(AND(Forprosjekt!E44=FALSE,SUMIF(Forprosjekt!E45:E46,"(egen data)",Forprosjekt!N45:N46)>0),"Ja","Nei") -> Nei | C31: 49 Andre elkraftinstallasjoner | E31: =Forprosjekt!$J$43 -> 12397.5 | F31: =Forprosjekt!$K$43 -> 0 | G31: =Forprosjekt!$L$43 -> 619.875 | H31: - | I31: - | J31: - | K31: =Forprosjekt!$M$43 -> 3099.375 | L31: - | M31: - | N31: - | P31: - | Q31: =IFERROR(P31/(Prosjektbeskrivelse!$C$19*Prosjektbeskrivelse!$C$18),0) -> 0 | R31: 16116.75 | S31: =IFERROR(R31/(Prosjektbeskrivelse!$C$19*Prosjektbeskrivelse!$C$18),0) -> 2.223 | T31: 16116.75 | U31: =IFERROR(T31/(Prosjektbeskrivelse!$C$19*Prosjektbeskrivelse!$C$18),0) -> 2.223
B32: - | C32: Energibruk konstruskjon | E32: - | F32: - | G32: - | H32: =Forprosjekt!N49 -> 26700 | I32: - | J32: - | K32: - | L32: - | M32: - | N32: - | R32: 26700 | S32: =IFERROR(R32/(Prosjektbeskrivelse!$C$19*Prosjektbeskrivelse!$C$18),0) -> 3.682758621 | T32: 26700 | U32: =IFERROR(T32/(Prosjektbeskrivelse!$C$19*Prosjektbeskrivelse!$C$18),0) -> 3.682758621
B33: =IF(COUNTA(Forprosjekt!$K$57:$K$62)=0,"Nei","Ja") -> Nei | C33: Energibruk i drift | E33: - | F33: - | G33: - | H33: - | I33: - | J33: - | K33: - | L33: =Forprosjekt!$N$54 -> 23814 | M33: - | N33: - | R33: 23814 | S33: =IFERROR(R33/(Prosjektbeskrivelse!$C$19*Prosjektbeskrivelse!$C$18),0) -> 3.284689655 | T33: 23814 | U33: =IFERROR(T33/(Prosjektbeskrivelse!$C$19*Prosjektbeskrivelse!$C$18),0) -> 3.284689655
C35: Detaljprosjekt | E35: =SUM(E36:E45) -> 59561.59901 | F35: =SUM(F36:F45) -> 25.49256 | G35: =SUM(G36:G45) -> 915.6 | H35: =SUM(H36:H45) -> 2670 | I35: =SUM(I36:I45) -> 0 | J35: =SUM(J36:J45) -> 0 | K35: =SUM(K36:K45) -> 0 | L35: =SUM(L36:L45) -> 44537.85 | N35: =SUM(N36:N45) -> 0 | P35: =SUM(P36:P41) -> 60502.69157 | Q35: =SUM(Q36:Q41) -> 8.345198838 | R35: =SUM(R36:R45) -> 107710.5416 | S35: =SUM(S36:S45) -> 14.85662642 | T35: =SUM(T36:T45) -> 107710.5416 | U35: =SUM(U36:U45) -> 14.85662642
B36: =IF(SUMIFS(Detaljprosjekt!$V$9:$V$147,Detaljprosjekt!$C$9:$C$147,"21",Detaljprosjekt!$E$9:$E$147,"(egen data)")=0,"Nei","Ja") -> Nei | C36: 21 Fundamentering | E36: =Detaljprosjekt!$J$8 -> 10375.09901 | F36: =Detaljprosjekt!$K$8 -> 3.53886 | G36: =Detaljprosjekt!$L$8 -> 152.6 | H36: - | I36: =Detaljprosjekt!$N$8 -> 0 | J36: =Detaljprosjekt!$O$8 -> 0 | K36: =Detaljprosjekt!$P$8 -> 0 | L36: - | M36: - | N36: =SUM(Detaljprosjekt!$R$8:$U$8) -> 0 | P36: =IFERROR(SUM(E36:G36,K36),0) -> 10531.23787 | Q36: =IFERROR(P36/(Prosjektbeskrivelse!$C$19*Prosjektbeskrivelse!$C$18),0) -> 1.452584534 | R36: =IFERROR(SUM(E36:I36,K36:L36),0) -> 10531.23787 | S36: =IFERROR(R36/(Prosjektbeskrivelse!$C$19*Prosjektbeskrivelse!$C$18),0) -> 1.452584534 | T36: =IFERROR(SUM(E36:N36),0) -> 10531.23787 | U36: =IFERROR(T36/(Prosjektbeskrivelse!$C$19*Prosjektbeskrivelse!$C$18),0) -> 1.452584534
B37: =IF(SUMIFS(Detaljprosjekt!$V$9:$V$147,Detaljprosjekt!$C$9:$C$147,"22",Detaljprosjekt!$E$9:$E$147,"(egen data)")=0,"Nei","Ja") -> Nei | C37: 22 Bæresystemer | E37: =Detaljprosjekt!$J$18 -> 0 | F37: =Detaljprosjekt!$K$18 -> 0 | G37: =Detaljprosjekt!$L$18 -> 0 | H37: - | I37: =Detaljprosjekt!$N$18 -> 0 | J37: =Detaljprosjekt!$O$18 -> 0 | K37: =Detaljprosjekt!$P$18 -> 0 | L37: - | M37: - | N37: =SUM(Detaljprosjekt!R18:$U$18) -> 0 | P37: 0 | Q37: =IFERROR(P37/(Prosjektbeskrivelse!$C$19*Prosjektbeskrivelse!$C$18),0) -> 0 | R37: 0 | S37: =IFERROR(R37/(Prosjektbeskrivelse!$C$19*Prosjektbeskrivelse!$C$18),0) -> 0 | T37: 0 | U37: =IFERROR(T37/(Prosjektbeskrivelse!$C$19*Prosjektbeskrivelse!$C$18),0) -> 0
B38: =IF(SUMIFS(Detaljprosjekt!$V$9:$V$147,Detaljprosjekt!$C$9:$C$147,"23",Detaljprosjekt!$E$9:$E$147,"(egen data)")=0,"Nei","Ja") -> Nei | C38: 23 Yttervegger | E38: =Detaljprosjekt!$J$37 -> 48241 | F38: =Detaljprosjekt!$K$37 -> 21.4461 | G38: =Detaljprosjekt!$L$37 -> 0 | H38: - | I38: =Detaljprosjekt!$N$37 -> 0 | J38: =Detaljprosjekt!$O$37 -> 0 | K38: =Detaljprosjekt!$P$37 -> 0 | L38: - | M38: - | N38: =SUM(Detaljprosjekt!R37:$U$37) -> 0 | P38: 48262.4461 | Q38: =IFERROR(P38/(Prosjektbeskrivelse!$C$19*Prosjektbeskrivelse!$C$18),0) -> 6.656889117 | R38: 48262.4461 | S38: =IFERROR(R38/(Prosjektbeskrivelse!$C$19*Prosjektbeskrivelse!$C$18),0) -> 6.656889117 | T38: 48262.4461 | U38: =IFERROR(T38/(Prosjektbeskrivelse!$C$19*Prosjektbeskrivelse!$C$18),0) -> 6.656889117
B39: =IF(SUMIFS(Detaljprosjekt!$V$9:$V$147,Detaljprosjekt!$C$9:$C$147,"24",Detaljprosjekt!$E$9:$E$147,"(egen data)")=0,"Nei","Ja") -> Nei | C39: 24 Innervegger | E39: =Detaljprosjekt!$J$61 -> 0 | F39: =Detaljprosjekt!$K$61 -> 0 | G39: =Detaljprosjekt!$L$61 -> 0 | H39: - | I39: =Detaljprosjekt!$N$61 -> 0 | J39: =Detaljprosjekt!$O$61 -> 0 | K39: =Detaljprosjekt!$P$61 -> 0 | L39: - | M39: - | N39: =SUM(Detaljprosjekt!R61:$U$61) -> 0 | P39: 0 | Q39: =IFERROR(P39/(Prosjektbeskrivelse!$C$19*Prosjektbeskrivelse!$C$18),0) -> 0 | R39: 0 | S39: =IFERROR(R39/(Prosjektbeskrivelse!$C$19*Prosjektbeskrivelse!$C$18),0) -> 0 | T39: 0 | U39: =IFERROR(T39/(Prosjektbeskrivelse!$C$19*Prosjektbeskrivelse!$C$18),0) -> 0
B40: =IF(SUMIFS(Detaljprosjekt!$V$9:$V$147,Detaljprosjekt!$C$9:$C$147,"25",Detaljprosjekt!$E$9:$E$147,"(egen data)")=0,"Nei","Ja") -> Nei | C40: 25 Dekker | E40: =Detaljprosjekt!$J$82 -> 945.5 | F40: =Detaljprosjekt!$K$82 -> 0.5076 | G40: =Detaljprosjekt!$L$82 -> 763 | H40: - | I40: =Detaljprosjekt!$N$82 -> 0 | J40: =Detaljprosjekt!$O$82 -> 0 | K40: =Detaljprosjekt!$P$82 -> 0 | L40: - | M40: - | N40: =SUM(Detaljprosjekt!R82:$U$82) -> 0 | P40: 1709.0076 | Q40: =IFERROR(P40/(Prosjektbeskrivelse!$C$19*Prosjektbeskrivelse!$C$18),0) -> 0.2357251862 | R40: 1709.0076 | S40: =IFERROR(R40/(Prosjektbeskrivelse!$C$19*Prosjektbeskrivelse!$C$18),0) -> 0.2357251862 | T40: 1709.0076 | U40: =IFERROR(T40/(Prosjektbeskrivelse!$C$19*Prosjektbeskrivelse!$C$18),0) -> 0.2357251862
B41: =IF(SUMIFS(Detaljprosjekt!$V$9:$V$147,Detaljprosjekt!$C$9:$C$147,"26",Detaljprosjekt!$E$9:$E$147,"(egen data)")=0,"Nei","Ja") -> Nei | C41: 26 Yttertak | E41: =Detaljprosjekt!$J$103 -> 0 | F41: =Detaljprosjekt!$K$103 -> 0 | G41: =Detaljprosjekt!$L$103 -> 0 | H41: - | I41: =Detaljprosjekt!$N$103 -> 0 | J41: =Detaljprosjekt!$O$103 -> 0 | K41: =Detaljprosjekt!$P$103 -> 0 | L41: - | M41: - | N41: =SUM(Detaljprosjekt!R103:$U$103) -> 0 | P41: 0 | Q41: =IFERROR(P41/(Prosjektbeskrivelse!$C$19*Prosjektbeskrivelse!$C$18),0) -> 0 | R41: 0 | S41: =IFERROR(R41/(Prosjektbeskrivelse!$C$19*Prosjektbeskrivelse!$C$18),0) -> 0 | T41: 0 | U41: =IFERROR(T41/(Prosjektbeskrivelse!$C$19*Prosjektbeskrivelse!$C$18),0) -> 0
B42: =IF(SUMIFS(Detaljprosjekt!$V$9:$V$147,Detaljprosjekt!$C$9:$C$147,"28",Detaljprosjekt!$E$9:$E$147,"(egen data)")=0,"Nei","Ja") -> Nei | C42: 28 Trapper, balkonger, m.m. | E42: =Detaljprosjekt!$J$124 -> 0 | F42: =Detaljprosjekt!$K$124 -> 0 | G42: =Detaljprosjekt!$L$124 -> 0 | H42: - | I42: - | J42: =Detaljprosjekt!$O$124 -> 0 | K42: =Detaljprosjekt!$P$124 -> 0 | L42: - | M42: - | N42: =SUM(Detaljprosjekt!$R$124:$U$124) -> 0 | P42: - | Q42: =IFERROR(P42/(Prosjektbeskrivelse!$C$19*Prosjektbeskrivelse!$C$18),0) -> 0 | R42: 0 | S42: =IFERROR(R42/(Prosjektbeskrivelse!$C$19*Prosjektbeskrivelse!$C$18),0) -> 0 | T42: 0 | U42: =IFERROR(T42/(Prosjektbeskrivelse!$C$19*Prosjektbeskrivelse!$C$18),0) -> 0
B43: =IF(SUMIFS(Detaljprosjekt!$V$9:$V$147,Detaljprosjekt!$C$9:$C$147,"49",Detaljprosjekt!$E$9:$E$147,"(egen data)")=0,"Nei","Ja") -> Nei | C43: 49 Andre elkraftinstallasjoner | E43: =Detaljprosjekt!$J$145 -> 0 | F43: =Detaljprosjekt!$K$145 -> 0 | G43: =Detaljprosjekt!$L$145 -> 0 | H43: - | I43: - | J43: =Detaljprosjekt!$O$145 -> 0 | K43: =Detaljprosjekt!$P$145 -> 0 | L43: - | M43: - | N43: =SUM(Detaljprosjekt!$S$145:$U$145) -> 0 | P43: - | Q43: =IFERROR(P43/(Prosjektbeskrivelse!$C$19*Prosjektbeskrivelse!$C$18),0) -> 0 | R43: 0 | S43: =IFERROR(R43/(Prosjektbeskrivelse!$C$19*Prosjektbeskrivelse!$C$18),0) -> 0 | T43: 0 | U43: =IFERROR(T43/(Prosjektbeskrivelse!$C$19*Prosjektbeskrivelse!$C$18),0) -> 0
B44: - | C44: Energibruk konstruskjon | E44: - | F44: - | G44: - | H44: =Detaljprosjekt!V$150 -> 2670 | I44: - | J44: - | K44: - | L44: - | M44: - | N44: - | R44: 2670 | S44: =IFERROR(R44/(Prosjektbeskrivelse!$C$19*Prosjektbeskrivelse!$C$18),0) -> 0.3682758621 | T44: 2670 | U44: =IFERROR(T44/(Prosjektbeskrivelse!$C$19*Prosjektbeskrivelse!$C$18),0) -> 0.3682758621
B45: =IF(COUNTA(Detaljprosjekt!J157:J163)=0,"Nei","Ja") -> Ja | C45: Energibruk i drift | E45: - | F45: - | G45: - | H45: - | I45: - | J45: - | K45: - | L45: =Detaljprosjekt!V$155 -> 44537.85 | M45: - | N45: - | R45: 44537.85 | S45: =IFERROR(R45/(Prosjektbeskrivelse!$C$19*Prosjektbeskrivelse!$C$18),0) -> 6.143151724 | T45: 44537.85 | U45: =IFERROR(T45/(Prosjektbeskrivelse!$C$19*Prosjektbeskrivelse!$C$18),0) -> 6.143151724
C47: Som bygget | E47: =SUM(E48:E57) -> 8775.099015 | F47: =SUM(F48:F57) -> 3.53886 | G47: =SUM(G48:G57) -> 152.6 | H47: =SUM(H48:H57) -> 0 | I47: =SUM(I48:I57) -> 0 | J47: =SUM(J48:J57) -> 0 | K47: =SUM(K48:K57) -> 0 | L47: =SUM(L48:L57) -> 0 | N47: =SUM(N48:N57) -> 0 | P47: =SUM(P48:P53) -> 8931.237875 | Q47: =SUM(Q48:Q53) -> 1.231894879 | R47: =SUM(R48:R57) -> 8931.237875 | S47: =SUM(S48:S57) -> 1.231894879 | T47: =SUM(T48:T57) -> 8931.237875 | U47: =SUM(U48:U57) -> 1.231894879
B48: =IF(SUMIFS('Som bygget'!$V$9:$V$148,'Som bygget'!$C$9:$C$148,"21",'Som bygget'!$E$9:$E$148,"(egen data)")=0,"Nei","Ja") -> Nei | C48: 21 Fundamentering | E48: ='Som bygget'!$J$8 -> 8775.099015 | F48: ='Som bygget'!$K$8 -> 3.53886 | G48: ='Som bygget'!$L$8 -> 152.6 | H48: - | I48: ='Som bygget'!$N$8 -> 0 | J48: ='Som bygget'!$O$8 -> 0 | K48: ='Som bygget'!$P$8 -> 0 | L48: - | M48: - | N48: =SUM('Som bygget'!R$8:$U8) -> 0 | P48: =IFERROR(SUM(E48:G48,K48),0) -> 8931.237875 | Q48: =IFERROR(P48/(Prosjektbeskrivelse!$C$19*Prosjektbeskrivelse!$C$18),0) -> 1.231894879 | R48: =IFERROR(SUM(E48:I48,K48:L48),0) -> 8931.237875 | S48: =IFERROR(R48/(Prosjektbeskrivelse!$C$19*Prosjektbeskrivelse!$C$18),0) -> 1.231894879 | T48: =IFERROR(SUM(E48:N48),0) -> 8931.237875 | U48: =IFERROR(T48/(Prosjektbeskrivelse!$C$19*Prosjektbeskrivelse!$C$18),0) -> 1.231894879
B49: =IF(SUMIFS('Som bygget'!$V$9:$V$148,'Som bygget'!$C$9:$C$148,"22",'Som bygget'!$E$9:$E$148,"(egen data)")=0,"Nei","Ja") -> Nei | C49: 22 Bæresystemer | E49: ='Som bygget'!$J$16 -> 0 | F49: ='Som bygget'!$K$16 -> 0 | G49: ='Som bygget'!$L$16 -> 0 | H49: - | I49: ='Som bygget'!$N$16 -> 0 | J49: ='Som bygget'!$O$16 -> 0 | K49: ='Som bygget'!$P$16 -> 0 | L49: - | M49: - | N49: =SUM('Som bygget'!R16:U16) -> 0 | P49: =IFERROR(SUM(E49:G49,K49),0) -> 0 | Q49: =IFERROR(P49/(Prosjektbeskrivelse!$C$19*Prosjektbeskrivelse!$C$18),0) -> 0 | R49: =IFERROR(SUM(E49:I49,K49:L49),0) -> 0 | S49: =IFERROR(R49/(Prosjektbeskrivelse!$C$19*Prosjektbeskrivelse!$C$18),0) -> 0 | T49: 0 | U49: =IFERROR(T49/(Prosjektbeskrivelse!$C$19*Prosjektbeskrivelse!$C$18),0) -> 0
B50: =IF(SUMIFS('Som bygget'!$V$9:$V$148,'Som bygget'!$C$9:$C$148,"23",'Som bygget'!$E$9:$E$148,"(egen data)")=0,"Nei","Ja") -> Nei | C50: 23 Yttervegger | E50: ='Som bygget'!$J$35 -> 0 | F50: ='Som bygget'!$K$35 -> 0 | G50: ='Som bygget'!$L$35 -> 0 | H50: - | I50: ='Som bygget'!$N$35 -> 0 | J50: ='Som bygget'!$O$35 -> 0 | K50: ='Som bygget'!$P$35 -> 0 | L50: - | M50: - | N50: =SUM('Som bygget'!R35:U35) -> 0 | P50: 0 | Q50: =IFERROR(P50/(Prosjektbeskrivelse!$C$19*Prosjektbeskrivelse!$C$18),0) -> 0 | R50: 0 | S50: =IFERROR(R50/(Prosjektbeskrivelse!$C$19*Prosjektbeskrivelse!$C$18),0) -> 0 | T50: 0 | U50: =IFERROR(T50/(Prosjektbeskrivelse!$C$19*Prosjektbeskrivelse!$C$18),0) -> 0
B51: =IF(SUMIFS('Som bygget'!$V$9:$V$148,'Som bygget'!$C$9:$C$148,"24",'Som bygget'!$E$9:$E$148,"(egen data)")=0,"Nei","Ja") -> Nei | C51: 24 Innervegger | E51: ='Som bygget'!$J$56 -> 0 | F51: ='Som bygget'!$K$56 -> 0 | G51: ='Som bygget'!$L$56 -> 0 | H51: - | I51: ='Som bygget'!$N$56 -> 0 | J51: ='Som bygget'!$O$56 -> 0 | K51: ='Som bygget'!$P$56 -> 0 | L51: - | M51: - | N51: =SUM('Som bygget'!R56:U56) -> 0 | P51: 0 | Q51: =IFERROR(P51/(Prosjektbeskrivelse!$C$19*Prosjektbeskrivelse!$C$18),0) -> 0 | R51: 0 | S51: =IFERROR(R51/(Prosjektbeskrivelse!$C$19*Prosjektbeskrivelse!$C$18),0) -> 0 | T51: 0 | U51: =IFERROR(T51/(Prosjektbeskrivelse!$C$19*Prosjektbeskrivelse!$C$18),0) -> 0
B52: =IF(SUMIFS('Som bygget'!$V$9:$V$148,'Som bygget'!$C$9:$C$148,"25",'Som bygget'!$E$9:$E$148,"(egen data)")=0,"Nei","Ja") -> Nei | C52: 25 Dekker | E52: ='Som bygget'!$J$76 -> 0 | F52: ='Som bygget'!$K$76 -> 0 | G52: ='Som bygget'!$L$76 -> 0 | H52: - | I52: ='Som bygget'!$N$76 -> 0 | J52: ='Som bygget'!$O$76 -> 0 | K52: ='Som bygget'!$P$76 -> 0 | L52: - | M52: - | N52: =SUM('Som bygget'!R76:U76) -> 0 | P52: 0 | Q52: =IFERROR(P52/(Prosjektbeskrivelse!$C$19*Prosjektbeskrivelse!$C$18),0) -> 0 | R52: 0 | S52: =IFERROR(R52/(Prosjektbeskrivelse!$C$19*Prosjektbeskrivelse!$C$18),0) -> 0 | T52: 0 | U52: =IFERROR(T52/(Prosjektbeskrivelse!$C$19*Prosjektbeskrivelse!$C$18),0) -> 0
B53: =IF(SUMIFS('Som bygget'!$V$9:$V$148,'Som bygget'!$C$9:$C$148,"26",'Som bygget'!$E$9:$E$148,"(egen data)")=0,"Nei","Ja") -> Nei | C53: 26 Yttertak | E53: ='Som bygget'!$J$97 -> 0 | F53: ='Som bygget'!$K$97 -> 0 | G53: ='Som bygget'!$L$97 -> 0 | H53: - | I53: ='Som bygget'!$N$97 -> 0 | J53: ='Som bygget'!$O$97 -> 0 | K53: ='Som bygget'!$P$97 -> 0 | L53: - | M53: - | N53: =SUM('Som bygget'!R97:U97) -> 0 | P53: 0 | Q53: =IFERROR(P53/(Prosjektbeskrivelse!$C$19*Prosjektbeskrivelse!$C$18),0) -> 0 | R53: 0 | S53: =IFERROR(R53/(Prosjektbeskrivelse!$C$19*Prosjektbeskrivelse!$C$18),0) -> 0 | T53: 0 | U53: =IFERROR(T53/(Prosjektbeskrivelse!$C$19*Prosjektbeskrivelse!$C$18),0) -> 0
B54: =IF(SUMIFS('Som bygget'!$V$9:$V$148,'Som bygget'!$C$9:$C$148,"28",'Som bygget'!$E$9:$E$148,"(egen data)")=0,"Nei","Ja") -> Nei | C54: 28 Trapper, balkonger, m.m. | E54: ='Som bygget'!J125 -> 0 | F54: ='Som bygget'!K125 -> 0 | G54: ='Som bygget'!L125 -> 0 | H54: - | I54: ='Som bygget'!N125 -> 0 | J54: ='Som bygget'!O125 -> 0 | K54: ='Som bygget'!P125 -> 0 | L54: - | M54: - | N54: =SUM('Som bygget'!R125:U125) -> 0 | P54: - | Q54: =IFERROR(P54/(Prosjektbeskrivelse!$C$19*Prosjektbeskrivelse!$C$18),0) -> 0 | R54: 0 | S54: =IFERROR(R54/(Prosjektbeskrivelse!$C$19*Prosjektbeskrivelse!$C$18),0) -> 0 | T54: 0 | U54: =IFERROR(T54/(Prosjektbeskrivelse!$C$19*Prosjektbeskrivelse!$C$18),0) -> 0
B55: =IF(SUMIFS('Som bygget'!$V$9:$V$148,'Som bygget'!$C$9:$C$148,"49",'Som bygget'!$E$9:$E$148,"(egen data)")=0,"Nei","Ja") -> Nei | C55: 49 Andre elkraftinstallasjoner | E55: ='Som bygget'!J146 -> 0 | F55: ='Som bygget'!K146 -> 0 | G55: ='Som bygget'!L146 -> 0 | H55: - | I55: ='Som bygget'!N146 -> 0 | J55: ='Som bygget'!O146 -> 0 | K55: ='Som bygget'!P146 -> 0 | L55: - | M55: - | N55: =SUM('Som bygget'!R146:U146) -> 0 | P55: - | Q55: =IFERROR(P55/(Prosjektbeskrivelse!$C$19*Prosjektbeskrivelse!$C$18),0) -> 0 | R55: 0 | S55: =IFERROR(R55/(Prosjektbeskrivelse!$C$19*Prosjektbeskrivelse!$C$18),0) -> 0 | T55: 0 | U55: =IFERROR(T55/(Prosjektbeskrivelse!$C$19*Prosjektbeskrivelse!$C$18),0) -> 0
B56: - | C56: Energibruk konstruskjon | E56: - | F56: - | G56: - | H56: ='Som bygget'!V$119 -> 0 | I56: - | J56: - | K56: - | L56: - | M56: - | N56: - | R56: 0 | S56: =IFERROR(R56/(Prosjektbeskrivelse!$C$19*Prosjektbeskrivelse!$C$18),0) -> 0 | T56: 0 | U56: =IFERROR(T56/(Prosjektbeskrivelse!$C$19*Prosjektbeskrivelse!$C$18),0) -> 0
B57: =IF(COUNTA('Som bygget'!J158:J164)=0,"Nei","Ja") -> Nei | C57: Energibruk i drift | E57: - | F57: - | G57: - | H57: - | I57: - | J57: - | K57: - | L57: ='Som bygget'!$V$124 -> 0 | M57: - | N57: - | R57: 0 | S57: =IFERROR(R57/(Prosjektbeskrivelse!$C$19*Prosjektbeskrivelse!$C$18),0) -> 0 | T57: 0 | U57: =IFERROR(T57/(Prosjektbeskrivelse!$C$19*Prosjektbeskrivelse!$C$18),0) -> 0
C60: Oppsummering resultater for TEK17 krav
C61: Inkluderer livssyklusmoduler A1-3, A4, A5 for materialsvinn, B2 og B4, for bygningselementer 21-26. | E61: Produktstadiet (A1-3) | F61: Transport (A4) | G61: Bygge- og monterings-arbeid - Materialsvinn (A5) | H61: Bygge- og monterings-arbeid - Energibruk (A5) | I61: Vedlikehold (B2) | J61: Reparasjon (B3) | K61: Utskiftning (B4) | L61: Energibruk i drift (B6) | M61: Transport i drift (B8) | N61: Sluttstadiet (C1-4) | P61: Totalt TEK17
D62: Skisseprosjekt/Reguleringsfase | E62: =IFERROR(E8,"NA") -> 28057.5 | F62: =F8 -> 652.5 | G62: - | H62: - | I62: - | J62: - | K62: 652.5 | L62: 19197 | M62: - | N62: - | P62: =SUM(E62:F62,I62,K62) -> 29362.5 | Q62: =ROUND(P62,0) -> 29363
D63: Referansebygg | E63: =SUM(E12:E17) -> 2089180.548 | F63: =SUM(F12:F17) -> 104086.1291 | G63: 178700.7014 | H63: - | I63: 0 | J63: - | K63: 461740.2105 | L63: 0 | M63: - | N63: - | P63: =SUM(E63:G63,I63,K63) -> 2833707.589 | Q63: =_xlfn.CONCAT(ROUND(P63,0)," (Referanse)") -> 2833708 (Referanse)
D64: Forprosjekt | E64: =SUM(E24:E29) -> 64369.13182 | F64: =SUM(F24:F29) -> 38.32938 | G64: 3220.37306 | H64: - | I64: 0 | J64: - | K64: 7503.75 | L64: 0 | M64: - | N64: - | P64: =SUM(E64:G64,I64,K64) -> 75131.58426 | Q64: =_xlfn.CONCAT(ROUND(P64,0)," (",IFERROR(ROUND(-($P$63-P64)*100/$P$63,0),"-"),"%)") -> 75132 (-97%)
D65: Detaljprosjekt | E65: =SUM(E36:E41) -> 59561.59901 | F65: =SUM(F36:F41) -> 25.49256 | G65: 915.6 | H65: - | I65: 0 | J65: - | K65: 0 | L65: 0 | M65: - | N65: - | P65: =SUM(E65:G65,I65,K65) -> 60502.69157 | Q65: =_xlfn.CONCAT(ROUND(P65,0)," (",IFERROR(ROUND(-($P$63-P65)*100/$P$63,0),"-"),"%)") -> 60503 (-98%)
D66: Som bygget | E66: =SUM(E48:E53) -> 8775.099015 | F66: =SUM(F48:F53) -> 3.53886 | G66: 152.6 | H66: - | I66: 0 | J66: - | K66: 0 | L66: 0 | M66: - | N66: - | P66: =SUM(E66:G66,I66,K66) -> 8931.237875 | Q66: 8931 (-100%)
C93: Oppsummering resultater for Trondheim kommunes krav
C94: Inkluderer livssyklusmoduler A1-3, A4, A5 for materialsvinn, A5 for energibruk på byggeplass, B2, B4 og B6, for bygningselementer 21-26, 28 og 49. | E94: Produktstadiet (A1-3) | F94: Transport (A4) | G94: Bygge- og monterings-arbeid - Materialsvinn (A5) | H94: Bygge- og monterings-arbeid - Energibruk (A5) | I94: Vedlikehold (B2) | J94: Reparasjon (B3) | K94: Utskiftning (B4) | L94: Energibruk i drift (B6) | M94: Transport i drift (B8) | N94: Sluttstadiet (C1-4) | P94: Totalt Trondheim kommunes krav
D95: Skisseprosjekt/Reguleringsfase | E95: =E8 -> 28057.5 | F95: =F8 -> 652.5 | G95: - | H95: 11194.5888 | I95: - | J95: - | K95: 652.5 | L95: 19197 | M95: 0 | N95: - | P95: =SUM(D95:F95,H95,K95:M95) -> 59754.0888 | Q95: =ROUND(P95,0) -> 59754
D96: Referansebygg | E96: =E11 -> 2098080.548 | F96: =F11 -> 104239.8665 | G96: 179902.0989 | H96: 32400 | I96: - | J96: - | K96: 462540.2105 | L96: 23814 | M96: - | N96: - | P96: =SUM(D96:I96,K96,L96) -> 2900976.724 | Q96: =_xlfn.CONCAT(ROUND(P96,0)," (Referanse)") -> 2900977 (Referanse)
D97: Forprosjekt | E97: =E23 -> 77419.13182 | F97: =F23 -> 38.32938 | G97: 3872.87306 | H97: 26700 | I97: 0 | J97: - | K97: 10766.25 | L97: 23814 | M97: - | N97: - | P97: =SUM(D97:I97,K97,L97) -> 142610.5843 | Q97: =_xlfn.CONCAT(ROUND(P97,0)," (",IFERROR(ROUND(-($P$96-P97)*100/$P$96,0),"-"),"%)") -> 142611 (-95%)
D98: Detaljprosjekt | E98: =E35 -> 59561.59901 | F98: =F35 -> 25.49256 | G98: 915.6 | H98: 2670 | I98: 0 | J98: - | K98: 0 | L98: 44537.85 | M98: - | N98: - | P98: =SUM(D98:I98,K98,L98) -> 107710.5416 | Q98: =_xlfn.CONCAT(ROUND(P98,0)," (",IFERROR(ROUND(-($P$96-P98)*100/$P$96,0),"-"),"%)") -> 107711 (-96%)
D99: Som bygget | E99: =E47 -> 8775.099015 | F99: =F47 -> 3.53886 | G99: 152.6 | H99: 0 | I99: 0 | J99: - | K99: 0 | L99: 0 | M99: - | N99: - | P99: =SUM(D99:I99,K99,L99) -> 8931.237875 | Q99: 8931 (-100%)
C127: Oppsummering resultater for alle moduler
C128: Inkluderer livssyklusmoduler A1 til C4, for bygningselementer 21-26, 28 og 49. | E128: Produktstadiet (A1-3) | F128: Transport (A4) | G128: Bygge- og monterings-arbeid - Materialsvinn (A5) | H128: Bygge- og monterings-arbeid - Energibruk (A5) | I128: Vedlikehold (B2) | J128: Reparasjon (B3) | K128: Utskiftning (B4) | L128: Energibruk i drift (B6) | M128: Transport i drift (B8) | N128: Sluttstadiet (C1-4) | P128: Totalt alle moduler
D129: Skisseprosjekt/Reguleringsfase | E129: =E8 -> 28057.5 | F129: =F8 -> 652.5 | G129: - | H129: 11194.5888 | I129: - | J129: - | K129: 652.5 | L129: 19197 | M129: 0 | N129: - | P129: =SUM(E129:N129) -> 59754.0888 | Q129: =ROUND(P129,0) -> 59754
D130: Referansebygg | E130: =E11 -> 2098080.548 | F130: =F11 -> 104239.8665 | G130: 179902.0989 | H130: 32400 | I130: - | J130: 0 | K130: 462540.2105 | L130: 23814 | M130: 0 | N130: 302003.0603 | P130: =SUM(E130:N130) -> 3202979.784 | Q130: =_xlfn.CONCAT(ROUND(P130,0)," (Referanse)") -> 3202980 (Referanse)
D131: Forprosjekt | E131: =E23 -> 77419.13182 | F131: =F23 -> 38.32938 | G131: 3872.87306 | H131: 26700 | I131: 0 | J131: 0 | K131: 10766.25 | L131: 23814 | M131: 0 | N131: 0 | P131: 142610.5843 | Q131: =_xlfn.CONCAT(ROUND(P131,0)," (",IFERROR(ROUND(-($P$96-P131)*100/$P$96,0),"-"),"%)") -> 142611 (-95%)
D132: Detaljprosjekt | E132: =E35 -> 59561.59901 | F132: =F35 -> 25.49256 | G132: 915.6 | H132: 2670 | I132: 0 | J132: 0 | K132: 0 | L132: 44537.85 | M132: 0 | N132: 0 | P132: 107710.5416 | Q132: =_xlfn.CONCAT(ROUND(P132,0)," (",IFERROR(ROUND(-($P$96-P132)*100/$P$96,0),"-"),"%)") -> 107711 (-96%)
D133: Som bygget | E133: =E47 -> 8775.099015 | F133: =F47 -> 3.53886 | G133: 152.6 | H133: 0 | I133: 0 | J133: 0 | K133: 0 | L133: 0 | M133: 0 | N133: 0 | P133: 8931.237875 | Q133: 8931 (-100%)
A162: =Veiledning!$B$2 -> Versjon 2023-04-13. Utviklet av SINTEF AS.

Sheet Utslippsfaktorer (hidden)
B1: Utslippsfaktorer
H3: GWP per enhet [kgCO2e/enhet]
B4: Kategoriene må listes i alfabetisk rekkefølge, og alle produkter må tilknyttes en kategori. | H4: Produkt-stadiet | I4: Gjennomføringsstadiet | K4: Brukstadiet | Q4: Livsløpets sluttstadium | U4: Konsekvenser utover systemgrensen
A5: Kategori | B5: Materialer eller prosesser | C5: Detaljert navn | D5: Referanse | E5: Geograsfiske opprinnelse | F5: Funksjonell Enhet | G5: Levetid (AV) | H5: A1-3 | I5: A4 | J5: A5 | K5: B1 | L5: B2 | M5: B3 | N5: B4 | O5: B5 | P5: B6 | Q5: C1 | R5: C2 | S5: C3 | T5: C4 | U5: D | V5: kg/FU | W5: A4 from EPD | X5: A5 from EPD
A6: (Velg kategori) | B6: (Velg material eller prosesser) | D6: - | E6: - | F6: - | G6: 0 | H6: 0 | I6: 0 | J6: 0 | K6: 0 | L6: 0 | M6: 0 | N6: 0 | O6: 0 | P6: 0 | Q6: 0 | R6: 0 | S6: 0 | T6: 0 | U6: 0 | W6: 0 | X6: 0
A7: _Bygningsdel | B7: Bygningsdel 21, gjennomsnitt, per m2 bygg | C7: gjennomsnittsverdier, fra ZEN report 24 | D7: ZEN report 24 | F7: m2BTAår | H7: =1.2*0.75 -> 0.9 | I7: =Utslippsfaktorer2[[#This Row],[kg/FU]]*$H$202 -> 0 | N7: =Utslippsfaktorer2[[#This Row],[A1-3]]*0.25 -> 0.225
A8: _Bygningsdel | B8: Bygningsdel 22, gjennomsnitt, per m2 bygg | C8: gjennomsnittsverdier, fra ZEN report 24 | D8: ZEN report 24 | F8: m2BTAår | H8: =0.6*0.75 -> 0.45 | I8: =Utslippsfaktorer2[[#This Row],[kg/FU]]*$H$202 -> 0 | N8: =Utslippsfaktorer2[[#This Row],[A1-3]]*0.25 -> 0.1125
A9: _Bygningsdel | B9: Bygningsdel 23, gjennomsnitt, per m2 bygg | C9: gjennomsnittsverdier, fra ZEN report 24 | D9: ZEN report 24 | F9: m2BTAår | H9: =1.2*0.75 -> 0.9 | I9: =Utslippsfaktorer2[[#This Row],[kg/FU]]*$H$202 -> 0 | N9: =Utslippsfaktorer2[[#This Row],[A1-3]]*0.25 -> 0.225
A10: _Bygningsdel | B10: Bygningsdel 24, gjennomsnitt, per m2 bygg | C10: gjennomsnittsverdier, fra ZEN report 24 | D10: ZEN report 24 | F10: m2BTAår | H10: =0.9*0.75 -> 0.675 | I10: =Utslippsfaktorer2[[#This Row],[kg/FU]]*$H$202 -> 0 | N10: =Utslippsfaktorer2[[#This Row],[A1-3]]*0.25 -> 0.16875
A11: _Bygningsdel | B11: Bygningsdel 25, gjennomsnitt, per m2 bygg | C11: gjennomsnittsverdier, fra ZEN report 24 | D11: ZEN report 24 | F11: m2BTAår | H11: =1.4*0.75 -> 1.05 | I11: =Utslippsfaktorer2[[#This Row],[kg/FU]]*$H$202 -> 0 | N11: =Utslippsfaktorer2[[#This Row],[A1-3]]*0.25 -> 0.2625
A12: _Bygningsdel | B12: Bygningsdel 26, gjennomsnitt, per m2 bygg | C12: gjennomsnittsverdier, fra ZEN report 24 | D12: ZEN report 24 | F12: m2BTAår | H12: =0.5*0.75 -> 0.375 | I12: =Utslippsfaktorer2[[#This Row],[kg/FU]]*$H$202 -> 0 | N12: =Utslippsfaktorer2[[#This Row],[A1-3]]*0.25 -> 0.09375
A13: _Bygningsdel | B13: Bygningsdel 28, gjennomsnitt, per m2 bygg | C13: gjennomsnittsverdier, fra ZEN report 24 | D13: ZEN report 24 | F13: m2BTAår | H13: =0.1*0.75 -> 0.075 | I13: =Utslippsfaktorer2[[#This Row],[kg/FU]]*$H$202 -> 0 | N13: =Utslippsfaktorer2[[#This Row],[A1-3]]*0.25 -> 0.01875
A14: _Bygningsdel | B14: Bygningsdel 49, gjennomsnitt, per m2 bygg | C14: gjennomsnittsverdier, fra ZEN report 24 | D14: ZEN report 24 | F14: m2BTAår | H14: =1.9*0.75 -> 1.425 | I14: =Utslippsfaktorer2[[#This Row],[kg/FU]]*$H$202 -> 0 | N14: =Utslippsfaktorer2[[#This Row],[A1-3]]*0.25 -> 0.35625
A15: Annet | B15: Armeringsduk | F15: m2 | G15: 25 | H15: 1.53796 | I15: =Utslippsfaktorer2[[#This Row],[kg/FU]]*$H$202 -> 8.46e-05 | V15: 1
A16: Annet | B16: Fiberduk | F16: m2 | G16: 25 | H16: 0.5311186848 | I16: =Utslippsfaktorer2[[#This Row],[kg/FU]]*$H$202 -> 8.46e-05 | V16: 1
A17: Annet | B17: Kabel, fiberoptisk | F17: m | G17: 25 | H17: 1.9963 | I17: =Utslippsfaktorer2[[#This Row],[kg/FU]]*$H$202 -> 8.46e-05 | V17: 1
A18: Annet | B18: Kabel, høyspent | F18: m | G18: 25 | H18: 7.2206 | I18: =Utslippsfaktorer2[[#This Row],[kg/FU]]*$H$202 -> 8.46e-05 | V18: 1
A19: Annet | B19: Kabel, jordledning | F19: m | G19: 25 | H19: 4.952688826 | I19: =Utslippsfaktorer2[[#This Row],[kg/FU]]*$H$202 -> 8.46e-05 | V19: 1
A20: Annet | B20: Kabel, lavspent | F20: m | G20: 25 | H20: 3.6103 | I20: =Utslippsfaktorer2[[#This Row],[kg/FU]]*$H$202 -> 8.46e-05 | V20: 1
A21: Annet | B21: Kabel, tele | F21: m | G21: 25 | H21: 0.54927084 | I21: =Utslippsfaktorer2[[#This Row],[kg/FU]]*$H$202 -> 8.46e-05 | V21: 1
A22: Annet | B22: Kledning, EPD snitt | C22: gjennomsnittsverdier, samlet av SINTEF | E22: varierer | F22: tonn | G22: 25 | H22: 131.7785714 | I22: =Utslippsfaktorer2[[#This Row],[kg/FU]]*$H$202 -> 0.0846 | J22: 68.8775 | V22: 1000 | W22: 195.9087833 | X22: 68.8775
A23: Annet | B23: Konstruksjonstrevirke | F23: m3 | G23: 25 | H23: 76.6 | I23: =Utslippsfaktorer2[[#This Row],[kg/FU]]*$H$202 -> 8.46e-05 | V23: 1
A24: Annet | B24: Plastmembran inkl. fiberduk | F24: m2 | G24: 25 | H24: 5.691143621 | I24: =Utslippsfaktorer2[[#This Row],[kg/FU]]*$H$202 -> 8.46e-05 | V24: 1
A25: Annet | B25: Sprengstoff | F25: kg | G25: 20 | H25: 1.26 | I25: =Utslippsfaktorer2[[#This Row],[kg/FU]]*$H$202 -> 8.46e-05 | V25: 1
A26: Annet | B26: Sykkelstativ | C26: Urban bicycle post, C | D26: NEPD-3037-1695-EN | E26: NO | F26: stk | G26: 50 | H26: =30.5+0.487+0.347 -> 31.334 | I26: =Utslippsfaktorer2[[#This Row],[kg/FU]]*$H$202 -> 8.46e-05 | J26: 0.189 | R26: 0.921 | S26: 0.126 | T26: 0.000482 | U26: -15.1 | V26: 1 | W26: 1.77 | X26: 0.189
A27: Annet | B27: Sykkelstativ, rektangulært | C27: Vroom bicycle rack small, C | D27: NEPD-3038-1694-EN | E27: NO | F27: stk | G27: 50 | H27: =21.1+0.127+0.23 -> 21.457 | I27: =Utslippsfaktorer2[[#This Row],[kg/FU]]*$H$202 -> 8.46e-05 | J27: 0.134 | V27: 1 | W27: 1.26 | X27: 0.134
A28: Annet | B28: Trykkimpregnert tre | F28: m3 | G28: 20 | H28: 115.561563 | I28: =Utslippsfaktorer2[[#This Row],[kg/FU]]*$H$202 -> 8.46e-05 | V28: 1
A29: Asfalt | B29: Asfalt, EPD snitt | C29: gjennomsnittsverdier, samlet av SINTEF | E29: varierer | F29: tonn | G29: 7 | H29: 115.06 | I29: =Utslippsfaktorer2[[#This Row],[kg/FU]]*$H$202 -> 0.0846 | V29: 1000
A30: Asfalt | B30: Asfaltbetong (Ab PMB) | D30: VegLCA v5.06B | F30: kg | G30: 7 | H30: 0.05035 | I30: =Utslippsfaktorer2[[#This Row],[kg/FU]]*$H$202 -> 8.46e-05 | V30: 1
A31: Asfalt | B31: Asfaltbetong (Ab) | D31: VegLCA v5.06B | F31: kg | G31: 7 | H31: 0.0505 | I31: =Utslippsfaktorer2[[#This Row],[kg/FU]]*$H$202 -> 8.46e-05 | V31: 1
A32: Asfalt | B32: Asfaltert grus (Ag) | D32: VegLCA v5.06B | F32: kg | G32: 7 | H32: 0.0341 | I32: =Utslippsfaktorer2[[#This Row],[kg/FU]]*$H$202 -> 8.46e-05 | V32: 1
A33: Asfalt | B33: Asfaltert pukk (Ap) | D33: VegLCA v5.06B | E33: NO | F33: kg | G33: 7 | H33: 0.0341 | I33: =Utslippsfaktorer2[[#This Row],[kg/FU]]*$H$202 -> 8.46e-05 | V33: 1
A34: Asfalt | B34: Asfaltgrusbetong (Agb) | D34: VegLCA v5.06B | F34: kg | G34: 7 | H34: 0.0747 | I34: =Utslippsfaktorer2[[#This Row],[kg/FU]]*$H$202 -> 8.46e-05 | V34: 1
A35: Asfalt | B35: Gjenbruksasfalt (Gja) | D35: VegLCA v5.06B | F35: kg | G35: 7 | H35: 0.0036261855 | I35: =Utslippsfaktorer2[[#This Row],[kg/FU]]*$H$202 -> 8.46e-05 | V35: 1
A36: Asfalt | B36: Skjelettasfalt (Ska PMB) | D36: VegLCA v5.06B | F36: kg | G36: 7 | H36: 0.0596 | I36: =Utslippsfaktorer2[[#This Row],[kg/FU]]*$H$202 -> 8.46e-05 | V36: 1
A37: Asfalt | B37: Skjelettasfalt (Ska) | D37: VegLCA v5.06B | F37: kg | G37: 7 | H37: 0.06095 | I37: =Utslippsfaktorer2[[#This Row],[kg/FU]]*$H$202 -> 8.46e-05 | V37: 1
A38: Belysning | B38: LED Vegbelysning | F38: stk | G38: 25 | H38: 35.09130175 | I38: =Utslippsfaktorer2[[#This Row],[kg/FU]]*$H$202 -> 8.46e-05 | V38: 1
A39: Belysning | B39: Lysmast av aluminium | F39: stk | G39: 25 | H39: 206.5095341 | I39: =Utslippsfaktorer2[[#This Row],[kg/FU]]*$H$202 -> 8.46e-05 | V39: 1
A40: Belysning | B40: Lysmast av fagverk av metallkonstruksjoner - gittermast | F40: stk | G40: 25 | H40: 523.867293 | I40: =Utslippsfaktorer2[[#This Row],[kg/FU]]*$H$202 -> 8.46e-05 | V40: 1
A41: Belysning | B41: Lysmast av fiberforsterket kompositt | F41: stk | G41: 25 | H41: 427.7469121 | I41: =Utslippsfaktorer2[[#This Row],[kg/FU]]*$H$202 -> 8.46e-05 | V41: 1
A42: Belysning | B42: Lysmast av stål | F42: stk | G42: 25 | H42: 232.52489 | I42: =Utslippsfaktorer2[[#This Row],[kg/FU]]*$H$202 -> 8.46e-05 | V42: 1
A43: Belysning | B43: Lysmast av tre | F43: stk | G43: 25 | H43: 74.24853006 | I43: =Utslippsfaktorer2[[#This Row],[kg/FU]]*$H$202 -> 8.46e-05 | V43: 1
A44: Betong | B44: Betong B30, bransjereferanse | D44: NB37 | F44: m3 | G44: 60 | H44: 280 | I44: =Utslippsfaktorer2[[#This Row],[kg/FU]]*$H$201 -> 0.3192 | V44: 2400
A45: Betong | B45: Betong B30, lavkarbon A | F45: m3 | G45: 60 | H45: 200 | I45: =Utslippsfaktorer2[[#This Row],[kg/FU]]*$H$201 -> 0.3192 | V45: 2400
A46: Betong | B46: Betong B30, lavkarbon B | F46: m3 | G46: 60 | H46: 230 | I46: =Utslippsfaktorer2[[#This Row],[kg/FU]]*$H$201 -> 0.3192 | V46: 2400
A47: Betong | B47: Betong B30, lavkarbon ekstrem | F47: m3 | G47: 60 | H47: 110 | I47: =Utslippsfaktorer2[[#This Row],[kg/FU]]*$H$201 -> 0.3192 | V47: 2400
A48: Betong | B48: Betong B30, lavkarbon Pluss | F48: m3 | G48: 60 | H48: 150 | I48: =Utslippsfaktorer2[[#This Row],[kg/FU]]*$H$201 -> 0.3192 | V48: 2400
A49: Betong | B49: Betong B35, bransjereferanse | F49: m3 | G49: 60 | H49: 330 | I49: =Utslippsfaktorer2[[#This Row],[kg/FU]]*$H$201 -> 0.3192 | V49: 2400
A50: Betong | B50: Betong B35, lavkarbon A | F50: m3 | G50: 60 | H50: 210 | I50: =Utslippsfaktorer2[[#This Row],[kg/FU]]*$H$201 -> 0.3192 | V50: 2400
A51: Betong | B51: Betong B35, lavkarbon B | F51: m3 | G51: 60 | H51: 280 | I51: =Utslippsfaktorer2[[#This Row],[kg/FU]]*$H$201 -> 0.3192 | V51: 2400
A52: Betong | B52: Betong B35, lavkarbon Ekstrem | F52: m3 | G52: 60 | H52: 120 | I52: =Utslippsfaktorer2[[#This Row],[kg/FU]]*$H$201 -> 0.3192 | V52: 2400
A53: Betong | B53: Betong B35, lavkarbon Pluss | F53: m3 | G53: 60 | H53: 160 | I53: =Utslippsfaktorer2[[#This Row],[kg/FU]]*$H$201 -> 0.3192 | V53: 2400
A54: Betong | B54: Betong B45, bransjereferanse | F54: m3 | G54: 60 | H54: 360 | I54: =Utslippsfaktorer2[[#This Row],[kg/FU]]*$H$201 -> 0.3192 | V54: 2400
A55: Betong | B55: Betong B45, lavkarbon A | F55: m3 | G55: 60 | H55: 220 | I55: =Utslippsfaktorer2[[#This Row],[kg/FU]]*$H$201 -> 0.3192 | V55: 2400
A56: Betong | B56: Betong B45, lavkarbon B | F56: m3 | G56: 60 | H56: 290 | I56: =Utslippsfaktorer2[[#This Row],[kg/FU]]*$H$201 -> 0.3192 | V56: 2400
A57: Betong | B57: Betong B45, lavkarbon Ekstrem | F57: m3 | G57: 60 | H57: 130 | I57: =Utslippsfaktorer2[[#This Row],[kg/FU]]*$H$201 -> 0.3192 | V57: 2400
A58: Betong | B58: Betong B45, lavkarbon Pluss | F58: m3 | G58: 60 | H58: 170 | I58: =Utslippsfaktorer2[[#This Row],[kg/FU]]*$H$201 -> 0.3192 | V58: 2400 | Z58: Tettheter
A59: Binder | B59: Avrettingsmasse, tørrgulv, NO | C59: Saint-Gobain Byggevarere: Weber Støpemørtel Bad, dry floor screed | D59: NEPD nr.: 1512-512-EN (2018) | E59: Trondheim, NO | F59: kg | G59: 60 | H59: 0.16711 | I59: =Utslippsfaktorer2[[#This Row],[kg/FU]]*$H$202 -> 8.46e-05 | V59: 1 | W59: 0.0423 | Z59: Asfalt | AA59: 2500 | AB59: kg/m3
A60: Binder | B60: Mørtel, EPD snitt | C60: gjennomsnittsverdier, samlet av SINTEF | E60: varierer | F60: kg | G60: 60 | H60: 0.7270892857 | I60: =Utslippsfaktorer2[[#This Row],[kg/FU]]*$H$202 -> 8.46e-05 | V60: 1 | W60: 0.0176152 | Z60: Asfaltert grus | AA60: 2400 | AB60: kg/m3
A61: Bitumen | B61: Bitumen, EPD snitt | C61: gjennomsnittsverdier, samlet av SINTEF | E61: Malmo, SE | F61: m2 | G61: 25 | H61: 4.7275 | I61: =Utslippsfaktorer2[[#This Row],[kg/FU]]*$H$202 -> 0.002538 | J61: 3.815 | V61: 30 | X61: 3.815 | Z61: Betong | AA61: 2400 | AB61: kg/m3
A62: Bygningsplater | B62: Bygningsplater - Gipsplater (12-15 mm) | D62: Grønn materialguide | F62: m2 | G62: 40 | H62: 2.82 | I62: =Utslippsfaktorer2[[#This Row],[kg/FU]]*$H$202 -> 0.002538 | V62: 30 | Z62: EPS 200 | AA62: 30 | AB62: kg/m3
A63: Bygningsplater | B63: Bygningsplater - Heltreplater (14 mm) | D63: Grønn materialguide | F63: m2 | G63: 40 | H63: 0.78 | I63: =Utslippsfaktorer2[[#This Row],[kg/FU]]*$H$202 -> 0.002538 | V63: 30 | Z63: Grus | AA63: 1.66 | AB63: tonn/m3
A64: Bygningsplater | B64: Bygningsplater - Kryssfiner (15 mm) | D64: Grønn materialguide | F64: m2 | G64: 40 | H64: 2.87 | I64: =Utslippsfaktorer2[[#This Row],[kg/FU]]*$H$202 -> 0.002538 | V64: 30 | Z64: Jord og leire | AA64: 1.3 | AB64: tonn/m3
A65: Bygningsplater | B65: Bygningsplater - MDF-plater (15 mm) | D65: Grønn materialguide | F65: m2 | G65: 40 | H65: 5.06 | I65: =Utslippsfaktorer2[[#This Row],[kg/FU]]*$H$202 -> 0.002538 | V65: 30 | Z65: Kobber | AA65: 8940 | AB65: kg/m3
A66: Bygningsplater | B66: Bygningsplater - OSB-plater (15 mm) | D66: Grønn materialguide | F66: m2 | G66: 40 | H66: 5 | I66: =Utslippsfaktorer2[[#This Row],[kg/FU]]*$H$202 -> 0.002538 | V66: 30 | Z66: Lettbetong | AA66: 1.35 | AB66: tonn/m3
A67: Bygningsplater | B67: Bygningsplater - Pressede trefiberplater (12 mm) | D67: Grønn materialguide | F67: m2 | G67: 40 | H67: 4.31 | I67: =Utslippsfaktorer2[[#This Row],[kg/FU]]*$H$202 -> 0.002538 | V67: 30 | Z67: Lettklinker | AA67: 325 | AB67: kg/m3
A68: Bygningsplater | B68: Bygningsplater - Sponplater (12 mm) | D68: Grønn materialguide | F68: m2 | G68: 40 | H68: 3.41 | I68: =Utslippsfaktorer2[[#This Row],[kg/FU]]*$H$202 -> 0.002538 | V68: 30 | Z68: Naturstein | AA68: 2700 | AB68: kg/m3
A69: Bygningsplater | B69: Bygningsplater - Treullsement (25 mm) | D69: Grønn materialguide | F69: m2 | G69: 40 | H69: 3.11 | I69: =Utslippsfaktorer2[[#This Row],[kg/FU]]*$H$202 -> 0.002538 | V69: 30 | Z69: PE-skum | AA69: 35 | AB69: kg/m3
A70: Bygningsplater | B70: Gips 12,5mm, NO | C70: Gyproc: Normal standard plasterboard (12,5mm) | D70: NEPD nr.: 3364-1995-EN (2022) | E70: Fredrikstad, NO | F70: m2 | G70: 40 | H70: 1.34 | I70: =Utslippsfaktorer2[[#This Row],[kg/FU]]*$H$202 -> 0.002538 | J70: 0.183 | K70: 0 | L70: 0 | M70: 0 | N70: 0 | O70: 0 | P70: 0 | Q70: 0.043 | R70: 0.079 | S70: 0.005 | T70: 0.7 | U70: -0.006 | V70: 30 | W70: 0.13 | X70: 0.183 | Z70: Sprengstein | AA70: 1.66 | AB70: tonn/m3
A71: Bygningsplater | B71: Gips 9,5mm, NO | C71: Gyproc: Vindtett sheathing board (9,5mm) | D71: NEPD nr.: 3368-1995-EN (2022) | E71: Fredrikstad, NO | F71: m2 | G71: 40 | H71: 1.08 | I71: =Utslippsfaktorer2[[#This Row],[kg/FU]]*$H$202 -> 0.002538 | J71: 0.178 | K71: 0 | L71: 0 | M71: 0 | N71: 0 | O71: 0 | P71: 0 | Q71: 0.033 | R71: 0.061 | S71: 0.004 | T71: 0.71 | U71: -0.005 | V71: 30 | W71: 0.104 | X71: 0.178 | Z71: Stål | AA71: 7400 | AB71: kg/m3
A72: Drivstoff | B72: _Elektrisitet (EU28+NO) | D72: NS 3720 | E72: EU28+NO | F72: kWh | H72: =136/1000 -> 0.136 | Z72: Trevirke | AA72: 500 | AB72: kg/m3
A73: Drivstoff | B73: _Elektrisitet (NO) | D73: NS 3720 | E73: NO | F73: kWh | H73: =18/1000 -> 0.018 | Z73: XPS 400 | AA73: 35 | AB73: kg/m3
A74: Drivstoff | B74: _Fjernvarme, Trondheim, EU28+NO (snitt 2019-2021) | D74: Energisammensetting fra fjernkontrollen.no. Utslippsfaktor for el fra NS3720, for andre energigilder Norsk fjernvarme 2020 (Energi Norge) | F74: kWh | H74: 0.0437
A75: Drivstoff | B75: _Fjernvarme, Trondheim, NO (snitt 2019-2021) | D75: Energisammensetting fra fjernkontrollen.no. Utslippsfaktor for el fra NS3720, for andre energigilder Norsk fjernvarme 2020 (Energi Norge) | F75: kWh | H75: 0.0301
A76: Drivstoff | B76: Biodiesel | D76: NS-EN 16258:2012 | F76: liter | H76: 1.92
A77: Drivstoff | B77: Diesel | D77: VegLCA v5.06B | F77: liter | H77: 2.67
A78: Drivstoff | B78: Diesel, Well to wheel | D78: NS-EN 16258:2012 | F78: liter | H78: 3.24
A79: Drivstoff | B79: Flytende petroleumsgass (LPG) | D79: NS-EN 16258:2012 | F79: liter | H79: 1.9
A80: Gulvbelegg | B80: Gulvbelegg - Epoxy | D80: Grønn materialguide | E80: NGBC | F80: m2 | G80: 20 | H80: 3.5 | I80: =Utslippsfaktorer2[[#This Row],[kg/FU]]*$H$202 -> 0.001269 | V80: 15
A81: Gulvbelegg | B81: Gulvbelegg - Gulvteppe | D81: Grønn materialguide | E81: NGBC | F81: m2 | G81: 8 | H81: 10 | I81: =Utslippsfaktorer2[[#This Row],[kg/FU]]*$H$202 -> 0.001269 | V81: 15
A82: Gulvbelegg | B82: Gulvbelegg - Gummi | D82: Grønn materialguide | E82: NGBC | F82: m2 | G82: 20 | H82: 16 | I82: =Utslippsfaktorer2[[#This Row],[kg/FU]]*$H$202 -> 0.001269 | V82: 15
A83: Gulvbelegg | B83: Gulvbelegg - Heltregulv | D83: Grønn materialguide | E83: NGBC | F83: m2 | G83: 40 | H83: 2.5 | I83: =Utslippsfaktorer2[[#This Row],[kg/FU]]*$H$202 -> 0.001269 | V83: 15
A84: Gulvbelegg | B84: Gulvbelegg - Keramisk flis | D84: Grønn materialguide | E84: NGBC | F84: m2 | G84: 25 | H84: 12.5 | I84: =Utslippsfaktorer2[[#This Row],[kg/FU]]*$H$202 -> 0.001269 | V84: 15
A85: Gulvbelegg | B85: Gulvbelegg - Linoleum | D85: Grønn materialguide | E85: NGBC | F85: m2 | G85: 20 | H85: 4.2 | I85: =Utslippsfaktorer2[[#This Row],[kg/FU]]*$H$202 -> 0.001269 | V85: 15
A86: Gulvbelegg | B86: Gulvbelegg - Naturstein | D86: Grønn materialguide | E86: NGBC | F86: m2 | G86: 25 | H86: 5.2 | I86: =Utslippsfaktorer2[[#This Row],[kg/FU]]*$H$202 -> 0.00423 | V86: 50
A87: Gulvbelegg | B87: Gulvbelegg - Parkett | D87: Grønn materialguide | E87: NGBC | F87: m2 | G87: 40 | H87: 6 | I87: =Utslippsfaktorer2[[#This Row],[kg/FU]]*$H$202 -> 0.001269 | V87: 15
A88: Gulvbelegg | B88: Gulvbelegg - Slipt betong | D88: Grønn materialguide | E88: NGBC | F88: m2 | G88: 25 | H88: 10.8 | I88: =Utslippsfaktorer2[[#This Row],[kg/FU]]*$H$202 -> 0.001269 | V88: 15
A89: Gulvbelegg | B89: Gulvbelegg - Vinyl | D89: Grønn materialguide | E89: NGBC | F89: m2 | G89: 20 | H89: 7.9 | I89: =Utslippsfaktorer2[[#This Row],[kg/FU]]*$H$202 -> 0.001269 | V89: 15
A90: Isolasjon | B90: Ekspandert polystyren (EPS 200) | F90: m3 | G90: 20 | H90: 85 | I90: =Utslippsfaktorer2[[#This Row],[kg/FU]]*$H$202 -> 0.002538 | V90: 30
A91: Isolasjon | B91: Ekstrudert polystyren (XPS 400) | F91: m3 | G91: 20 | H91: 111.8417936 | I91: =Utslippsfaktorer2[[#This Row],[kg/FU]]*$H$202 -> 0.002538 | V91: 30
A92: Isolasjon | B92: Isolasjon - Celluloseisolasjon | D92: Grønn materialguide | E92: NGBC | F92: m3 | G92: 20 | H92: 4.62 | I92: =Utslippsfaktorer2[[#This Row],[kg/FU]]*$H$202 -> 0.002538 | V92: 30
A93: Isolasjon | B93: Isolasjon - EPS | D93: Grønn materialguide | E93: NGBC | F93: m3 | G93: 20 | H93: 65.8 | I93: =Utslippsfaktorer2[[#This Row],[kg/FU]]*$H$202 -> 0.002538 | V93: 30
A94: Isolasjon | B94: Isolasjon - Glassull | D94: Grønn materialguide | E94: NGBC | F94: m3 | G94: 20 | H94: 23.4 | I94: =Utslippsfaktorer2[[#This Row],[kg/FU]]*$H$202 -> 0.002538 | V94: 30
A95: Isolasjon | B95: Isolasjon - Skumglass | D95: Grønn materialguide | E95: NGBC | F95: m3 | G95: 20 | H95: 6.97 | I95: =Utslippsfaktorer2[[#This Row],[kg/FU]]*$H$202 -> 0.002538 | V95: 30
A96: Isolasjon | B96: Isolasjon - Steinull | D96: Grønn materialguide | E96: NGBC | F96: m3 | G96: 20 | H96: 34.3 | I96: =Utslippsfaktorer2[[#This Row],[kg/FU]]*$H$202 -> 0.002538 | V96: 30
A97: Isolasjon | B97: Isolasjon - Translucent isolasjon | D97: Grønn materialguide | E97: NGBC | F97: m2 | G97: 20 | H97: 9.4 | I97: =Utslippsfaktorer2[[#This Row],[kg/FU]]*$H$202 -> 0.002538 | V97: 30
A98: Isolasjon | B98: Isolasjon - Trefiberisolasjon | D98: Grønn materialguide | E98: NGBC | F98: m3 | G98: 20 | H98: 34.7 | I98: =Utslippsfaktorer2[[#This Row],[kg/FU]]*$H$202 -> 0.002538 | V98: 30
A99: Isolasjon | B99: Isolasjon - Vakuumisolasjon (20 mm) | D99: Grønn materialguide | E99: NGBC | F99: m2 | G99: 20 | H99: 31.15 | I99: =Utslippsfaktorer2[[#This Row],[kg/FU]]*$H$202 -> 0.002538 | V99: 30
A100: Isolasjon | B100: Isolasjon - XPS | D100: Grønn materialguide | E100: NGBC | F100: m3 | G100: 20 | H100: 156 | I100: =Utslippsfaktorer2[[#This Row],[kg/FU]]*$H$202 -> 0.002538 | V100: 30
A101: Konstruktive materialer | B101: Konstruktive materialer - Betong (bransjereferanse, B30) | D101: Grønn materialguide | E101: NGBC | F101: m3 | G101: 60 | H101: 280 | I101: =Utslippsfaktorer2[[#This Row],[kg/FU]]*$H$202 -> 0.20304 | V101: 2400
A102: Konstruktive materialer | B102: Konstruktive materialer - Betong (lavkarbon A, B30) | D102: Grønn materialguide | E102: NGBC | F102: m3 | G102: 60 | H102: 200 | I102: =Utslippsfaktorer2[[#This Row],[kg/FU]]*$H$202 -> 0.20304 | V102: 2400
A103: Konstruktive materialer | B103: Konstruktive materialer - Betong (lavkarbon B, B30) | D103: Grønn materialguide | E103: NGBC | F103: m3 | G103: 60 | H103: 230 | I103: =Utslippsfaktorer2[[#This Row],[kg/FU]]*$H$202 -> 0.20304 | V103: 2400
A104: Konstruktive materialer | B104: Konstruktive materialer - Konstruksjonsvirke | D104: Grønn materialguide | E104: NGBC | F104: m3 | G104: 60 | H104: 48 | I104: =Utslippsfaktorer2[[#This Row],[kg/FU]]*$H$202 -> 0.0423 | V104: 500
A105: Konstruktive materialer | B105: Konstruktive materialer - Limtre | D105: Grønn materialguide | E105: NGBC | F105: m3 | G105: 60 | H105: 120 | I105: =Utslippsfaktorer2[[#This Row],[kg/FU]]*$H$202 -> 0.0423 | V105: 500
A106: Konstruktive materialer | B106: Konstruktive materialer - Massivtre | D106: Grønn materialguide | E106: NGBC | F106: m3 | G106: 60 | H106: 137 | I106: =Utslippsfaktorer2[[#This Row],[kg/FU]]*$H$202 -> 0.0423 | V106: 500
A107: Konstruktive materialer | B107: Konstruktive materialer - Stål | D107: Grønn materialguide | E107: NGBC | F107: kg | G107: 60 | H107: 3.18 | I107: =Utslippsfaktorer2[[#This Row],[kg/FU]]*$H$202 -> 0.62604 | V107: 7400
A108: Kummer | B108: Inspeksjonskum, betong | F108: stk | G108: 100 | H108: 440.0017896 | I108: =Utslippsfaktorer2[[#This Row],[kg/FU]]*$H$202 -> 8.46e-05 | V108: 1
A109: Kummer | B109: Inspeksjonskum, plast | F109: stk | G109: 100 | H109: 53.5549056 | I109: =Utslippsfaktorer2[[#This Row],[kg/FU]]*$H$202 -> 8.46e-05 | V109: 1
A110: Kummer | B110: Kumring, betong | C110: NEPD-3467-2068-NO | F110: tonn | G110: 100 | H110: 90.3 | I110: =Utslippsfaktorer2[[#This Row],[kg/FU]]*$H$202 -> 8.46e-05 | V110: 1 | W110: 0.828
A111: Kummer | B111: Sandfangkum, betong | F111: stk | G111: 60 | H111: 493.3196712 | I111: =Utslippsfaktorer2[[#This Row],[kg/FU]]*$H$202 -> 8.46e-05 | V111: 1
A112: Kummer | B112: Sandfangkum, plast | F112: stk | G112: 60 | H112: 36.18781478 | I112: =Utslippsfaktorer2[[#This Row],[kg/FU]]*$H$202 -> 8.46e-05 | V112: 1
A113: Kummer | B113: Spillvannskum, betong | F113: stk | G113: 60 | H113: 521.0893438 | I113: =Utslippsfaktorer2[[#This Row],[kg/FU]]*$H$202 -> 8.46e-05 | V113: 1
A114: Kummer | B114: Spillvannskum, plast | F114: stk | G114: 60 | H114: 67.83621376 | I114: =Utslippsfaktorer2[[#This Row],[kg/FU]]*$H$202 -> 8.46e-05 | V114: 1
A115: Kummer | B115: Trekkekum S TK2 | F115: stk | G115: 60 | H115: 268.8989703 | I115: =Utslippsfaktorer2[[#This Row],[kg/FU]]*$H$202 -> 8.46e-05 | V115: 1
A116: Kummer | B116: Trekkekum S TK3 | F116: stk | G116: 60 | H116: 303.5095117 | I116: =Utslippsfaktorer2[[#This Row],[kg/FU]]*$H$202 -> 8.46e-05 | V116: 1
A117: Kummer | B117: Trekkekum TK2-900 | F117: stk | G117: 60 | H117: 295.2689066 | I117: =Utslippsfaktorer2[[#This Row],[kg/FU]]*$H$202 -> 8.46e-05 | V117: 1
A118: Kummer | B118: Trekkekum TK3-900 | F118: stk | G118: 60 | H118: 392.5080468 | I118: =Utslippsfaktorer2[[#This Row],[kg/FU]]*$H$202 -> 8.46e-05 | V118: 1
A119: Kummer | B119: Vannkum, betong | F119: stk | G119: 60 | H119: 628.7116463 | I119: =Utslippsfaktorer2[[#This Row],[kg/FU]]*$H$202 -> 8.46e-05 | V119: 1
A120: Kummer | B120: Vannkum, plast | F120: stk | G120: 60 | H120: 86.79087683 | I120: =Utslippsfaktorer2[[#This Row],[kg/FU]]*$H$202 -> 8.46e-05 | V120: 1
A121: Masser | B121: Forurensede masser | F121: m3 | G121: 60 | H121: 0 | I121: =Utslippsfaktorer2[[#This Row],[kg/FU]]*$H$202 -> 8.46e-05 | V121: 1
A122: Masser | B122: Lettklinker/Ekspandert leire | F122: m3 | G122: 60 | H122: 61.499 | I122: =Utslippsfaktorer2[[#This Row],[kg/FU]]*$H$202 -> 8.46e-05 | V122: 1
A123: Masser | B123: Pukk/grus 0/2, 2/4 ,4/8, 11/16-45 , 16/22-45 | C123: knusetrinn 3 | D123: Kortreist stein kalkulator | F123: tonn | G123: 100 | H123: 2.6 | I123: =Utslippsfaktorer2[[#This Row],[kg/FU]]*$H$202 -> 8.46e-05 | V123: 1
A124: Masser | B124: Pukk/grus 22/120, 22/250 0/16, 0/45 | C124: knusetrinn 1 | D124: Kortreist stein kalkulator | F124: tonn | G124: 100 | H124: 2.2 | I124: =Utslippsfaktorer2[[#This Row],[kg/FU]]*$H$202 -> 0.0846 | V124: 1000
A125: Masser | B125: Pukk/grus 4-8/16 , 32/63, 0/8 , 0/4 | C125: knusetrinn 2 | D125: Kortreist stein kalkulator | F125: tonn | G125: 100 | H125: 2.38 | I125: =Utslippsfaktorer2[[#This Row],[kg/FU]]*$H$202 -> 0.0846 | V125: 1000
A126: Masser | B126: Sprengstein | C126: knusetrinn 0 | D126: Kortreist stein kalkulator | F126: tonn | G126: 100 | H126: 2.13 | I126: =Utslippsfaktorer2[[#This Row],[kg/FU]]*$H$202 -> 0.0846 | V126: 1000
A127: Masser | B127: Stedlige masser | F127: m3 | G127: 60 | H127: 0 | I127: =Utslippsfaktorer2[[#This Row],[kg/FU]]*$H$202 -> 0.0846 | V127: 1000
A128: Murstein | B128: Fasadesystem med resirkulert murstein | C128: Gamle Murstein: Facade System with 12.5mm Fermacell and brick shells cut from recycled bricks | D128: NEPD nr.: 1675-673-EN (2018) | E128: Svendborg, DK | F128: m2 | G128: 60 | H128: 55.5 | I128: =Utslippsfaktorer2[[#This Row],[kg/FU]]*$H$202 -> 0.002538 | V128: 30
A129: Rør | B129: Kabelrør PVC 110mm SN4 | C129: NEPD nr.: 2345-1080-NO (2020) | F129: m | G129: 100 | H129: 1.75 | I129: =Utslippsfaktorer2[[#This Row],[kg/FU]]*$H$202 -> 0.000846 | V129: 10 | W129: 0.0343
A130: Rør | B130: Kabelrør PVC 125mm SN4 | C130: NEPD nr.: 2340-1077-NO (2020) | F130: m | G130: 100 | H130: 2.17 | I130: =Utslippsfaktorer2[[#This Row],[kg/FU]]*$H$202 -> 0.000846 | V130: 10 | W130: 0.0424
A131: Rør | B131: Kabelrør PVC 125mm SN8 | C131: NEPD nr.: 2347-1078-NO (2020) | F131: m | G131: 100 | H131: 2.66 | I131: =Utslippsfaktorer2[[#This Row],[kg/FU]]*$H$202 -> 0.000846 | V131: 10 | W131: 0.0525
A132: Rør | B132: Kabelrør PVC 160mm SN4 | C132: NEPD nr.: 2342-1083-NO (2020) | F132: m | G132: 100 | H132: 3.77 | I132: =Utslippsfaktorer2[[#This Row],[kg/FU]]*$H$202 -> 0.000846 | V132: 10 | W132: 0.0738
A133: Rør | B133: Kabelrør PVC 160mm SN8 | C133: NEPD nr.: 2344-1081-NO (2020) | F133: m | G133: 100 | H133: 4.56 | I133: =Utslippsfaktorer2[[#This Row],[kg/FU]]*$H$202 -> 0.000846 | V133: 10 | W133: 0.0897
A134: Rør | B134: Kabelrør PVC 200mm SN8 | C134: NEPD nr.: 2346-1079-NO (2020) | F134: m | G134: 100 | H134: 7.23 | I134: =Utslippsfaktorer2[[#This Row],[kg/FU]]*$H$202 -> 0.000846 | V134: 10 | W134: 0.143
A135: Rør | B135: Kabelrør PVC 75mm SN8 | C135: NEPD nr.: 2343-1082-NO (2020) | F135: m | G135: 100 | H135: 0.96 | I135: =Utslippsfaktorer2[[#This Row],[kg/FU]]*$H$202 -> 0.000846 | V135: 10 | W135: 0.0189
A136: Rør | B136: PP DN 110, Grunnavløps- og overvannsrør | C136: Pipelife Norge: Grunnavløps- og overvannsrør med homogen rørvegg i PP DN200 | D136: NEPD nr.: 1505-513-NO (2018) | F136: m | G136: 100 | H136: 9.16786 | I136: =Utslippsfaktorer2[[#This Row],[kg/FU]]*$H$202 -> 0.000846 | J136: 0.03314187 | V136: 10 | W136: 0.07609 | X136: 0.03314187
A137: Rør | B137: PP DN 125 | C137: Pipelife Norge: Grunnavløps- og overvannsrør med homogen rørvegg i PP DN110 | D137: NEPD nr.: 1505-513-NO (2018) | F137: m | G137: 100 | H137: 2.66154 | I137: =Utslippsfaktorer2[[#This Row],[kg/FU]]*$H$202 -> 0.000846 | J137: 32.0326 | V137: 10 | W137: 0.0221 | X137: 32.0326
A138: Rør | B138: PP DN 160 | C138: Pipelife Norge: Grunnavløps- og overvannsrør med homogen rørvegg i PP DN125 | D138: NEPD nr.: 1505-513-NO (2018) | F138: m | G138: 100 | H138: 3.57783 | I138: =Utslippsfaktorer2[[#This Row],[kg/FU]]*$H$202 -> 0.000846 | J138: 32.34935 | V138: 10 | W138: 0.02965 | X138: 32.34935
A139: Rør | B139: PP DN 160, Pragma grunnavløps-, overvanns- og drensrør | C139: Pipelife Norge: Pragma grunnavløps-, overvanns- og drensrør i PP DN160 | D139: NEPD nr.: 1507-513-NO (2018) | F139: m | G139: 100 | H139: 2.79588 | I139: =Utslippsfaktorer2[[#This Row],[kg/FU]]*$H$202 -> 0.000846 | J139: 32.47718 | V139: 10 | W139: 0.02378 | X139: 32.47718
A140: Rør | B140: PP DN 200 | C140: Pipelife Norge: Pragma grunnavløps-, overvanns- og drensrør i PP DN200 | D140: NEPD nr.: 1507-513-NO (2018) | F140: m | G140: 100 | H140: 4.05448 | I140: =Utslippsfaktorer2[[#This Row],[kg/FU]]*$H$202 -> 0.000846 | J140: 33.13787 | V140: 10 | W140: 0.03449 | X140: 33.13787
A141: Rør | B141: PP DN 200 | C141: Pipelife Norge: Grunnavløps- og overvannsrør med homogen rørvegg i PP DN160 | D141: NEPD nr.: 1505-513-NO (2018) | F141: m | G141: 100 | H141: 5.75756 | I141: =Utslippsfaktorer2[[#This Row],[kg/FU]]*$H$202 -> 0.000846 | J141: 32.91642 | V141: 10 | W141: 0.04783 | X141: 32.91642
A142: Rør | B142: PP DN 250 | C142: Pipelife Norge: Pragma grunnavløps-, overvanns- og drensrør i PP DN250 | D142: NEPD nr.: 1507-513-NO (2018) | F142: m | G142: 100 | H142: 6.89272 | I142: =Utslippsfaktorer2[[#This Row],[kg/FU]]*$H$202 -> 0.000846 | J142: 34.12552 | V142: 10 | W142: 0.05595 | X142: 34.12552
A143: Rør | B143: PP DN 315 | C143: Pipelife Norge: Pragma grunnavløps-, overvanns- og drensrør i PP DN315 | D143: NEPD nr.: 1507-513-NO (2018) | F143: m | G143: 100 | H143: 11.24818 | I143: =Utslippsfaktorer2[[#This Row],[kg/FU]]*$H$202 -> 0.000846 | J143: 35.19193 | V143: 10 | W143: 0.09539 | X143: 35.19193
A144: Rør | B144: PP DN 400 | C144: Pipelife Norge: Pragma grunnavløps-, overvanns- og drensrør i PP DN400 | D144: NEPD nr.: 1507-513-NO (2018) | F144: m | G144: 100 | H144: 17.91281 | I144: =Utslippsfaktorer2[[#This Row],[kg/FU]]*$H$202 -> 0.000846 | J144: 40.84029 | V144: 10 | W144: 0.15217 | X144: 40.84029
A145: Rør | B145: PVC DN 125, Grunnavløps- og overvannsrør | C145: Pipelife Norge: Grunnavløps- og overvannsrør med homogen rørvegg i PVC DN 125 | D145: NEPD nr.: 1506-513-NO (2018) | F145: m | G145: 100 | H145: 2.92379 | I145: =Utslippsfaktorer2[[#This Row],[kg/FU]]*$H$202 -> 0.000846 | J145: 32.10034 | V145: 10 | W145: 0.03748 | X145: 32.10034
A146: Rør | B146: PVC DN 160 | C146: Pipelife Norge: Grunnavløps- og overvannsrør med homogen rørvegg i PVC DN 160 | D146: NEPD nr.: 1506-513-NO (2018) | F146: m | G146: 100 | H146: 5.01906 | I146: =Utslippsfaktorer2[[#This Row],[kg/FU]]*$H$202 -> 0.000846 | J146: 32.70931 | V146: 10 | W146: 0.0649 | X146: 32.70931
A147: Rør | B147: PVC DN 200 | C147: Pipelife Norge: Grunnavløps- og overvannsrør med homogen rørvegg i PVC DN 200 | D147: NEPD nr.: 1506-513-NO (2018) | F147: m | G147: 100 | H147: 7.90159 | I147: =Utslippsfaktorer2[[#This Row],[kg/FU]]*$H$202 -> 0.000846 | J147: 33.37497 | V147: 10 | W147: 0.1021 | X147: 33.37497
A148: Rør | B148: PVC DN 250 | C148: Pipelife Norge: Grunnavløps- og overvannsrør med homogen rørvegg i PVC DN 250 | D148: NEPD nr.: 1506-513-NO (2018) | F148: m | G148: 100 | H148: 21.55373 | I148: =Utslippsfaktorer2[[#This Row],[kg/FU]]*$H$202 -> 0.000846 | J148: 34.366 | V148: 10 | W148: 0.15861 | X148: 34.366
A149: Rør | B149: Rør, betong, 100 | F149: m | G149: 100 | I149: =Utslippsfaktorer2[[#This Row],[kg/FU]]*$H$202 -> 0.00846 | V149: 100
A150: Rør | B150: Rør, betong, 150 | F150: m | G150: 100 | I150: =Utslippsfaktorer2[[#This Row],[kg/FU]]*$H$202 -> 0.00846 | V150: 100
A151: Rør | B151: Rør, betong, 200 | F151: m | G151: 100 | I151: =Utslippsfaktorer2[[#This Row],[kg/FU]]*$H$202 -> 0.00846 | V151: 100
A152: Rør | B152: Rør, betong, 250 | F152: m | G152: 100 | I152: =Utslippsfaktorer2[[#This Row],[kg/FU]]*$H$202 -> 0.00846 | V152: 100
A153: Rør | B153: Rør, betong, 300 | F153: m | G153: 100 | I153: =Utslippsfaktorer2[[#This Row],[kg/FU]]*$H$202 -> 0.00846 | V153: 100
A154: Rør | B154: Rør, betong, 400 | F154: m | G154: 100 | I154: =Utslippsfaktorer2[[#This Row],[kg/FU]]*$H$202 -> 0.00846 | V154: 100
A155: Rør | B155: Rør, betong, 500 | F155: m | G155: 100 | I155: =Utslippsfaktorer2[[#This Row],[kg/FU]]*$H$202 -> 0.00846 | V155: 100
A156: Rør | B156: Rør, betong, 600 | F156: m | G156: 100 | I156: =Utslippsfaktorer2[[#This Row],[kg/FU]]*$H$202 -> 0.00846 | V156: 100
A157: Rør | B157: Støpejern | F157: kg | G157: 60 | H157: 1.5517862 | I157: =Utslippsfaktorer2[[#This Row],[kg/FU]]*$H$202 -> 8.46e-05 | V157: 1
A158: Stein | B158: betongheller | F158: kg | G158: 60 | H158: 2 | I158: =Utslippsfaktorer2[[#This Row],[kg/FU]]*$H$202 -> 8.46e-05 | V158: 1
A159: Stein | B159: betongstein | F159: kg | G159: 60 | H159: 3 | I159: =Utslippsfaktorer2[[#This Row],[kg/FU]]*$H$202 -> 8.46e-05 | V159: 1
A160: Stein | B160: Fasade- og gulvstein, granitt, CN | C160: Granitt G654 fasade- og gulvtstein fra Fujian provinsen i Kina | D160: NEPD-1635-653-NO, white | F160: tonn | G160: 60 | I160: =Utslippsfaktorer2[[#This Row],[kg/FU]]*$H$202 -> 0.0846 | V160: 1000
A161: Stein | B161: Murstein, EPD snitt, DK | C161: gjennomsnittsverdier, samlet av SINTEF | E161: Svendborg, DK | F161: m2 | G161: 60 | H161: 51 | I161: =Utslippsfaktorer2[[#This Row],[kg/FU]]*$H$202 -> 0.022842 | V161: 270
A162: Stein | B162: Naturstein | D162: VegLCA v5.06B | F162: kg | G162: 60 | H162: 0.1284333333 | I162: =Utslippsfaktorer2[[#This Row],[kg/FU]]*$H$202 -> 8.46e-05 | V162: 1
A163: Stål | B163: Stål, kamstål armering | F163: kg | G163: 60 | H163: 0.5663 | I163: =Utslippsfaktorer2[[#This Row],[kg/FU]]*$H$202 -> 8.46e-05 | V163: 1
A164: Stål | B164: Stål, konstruksjon m/resirk | F164: kg | G164: 60 | H164: 1.242545455 | I164: =Utslippsfaktorer2[[#This Row],[kg/FU]]*$H$202 -> 8.46e-05 | V164: 1
A165: Stål | B165: Stål, konstruksjon u/resirk | F165: kg | G165: 60 | H165: 2.513772727 | I165: =Utslippsfaktorer2[[#This Row],[kg/FU]]*$H$202 -> 8.46e-05 | V165: 1
A166: Stål | B166: Stål, peler | F166: kg | G166: 60 | H166: 2.513772727 | I166: =Utslippsfaktorer2[[#This Row],[kg/FU]]*$H$202 -> 8.46e-05 | V166: 1
A167: Stål | B167: Stål, spunt | F167: kg | G167: 60 | H167: 0.5663 | I167: =Utslippsfaktorer2[[#This Row],[kg/FU]]*$H$202 -> 8.46e-05 | V167: 1
A168: Taktekking | B168: Taktekking - Ett-lags-membran | D168: Grønn materialguide | E168: NGBC | F168: m2 | G168: 30 | H168: 5.7 | I168: =Utslippsfaktorer2[[#This Row],[kg/FU]]*$H$202 -> 0.00846 | V168: 100
A169: Taktekking | B169: Taktekking - Grønne tak | D169: Grønn materialguide | E169: NGBC | F169: m2 | G169: 30 | H169: 7 | I169: =Utslippsfaktorer2[[#This Row],[kg/FU]]*$H$202 -> 0.00846 | V169: 100
A170: Taktekking | B170: Taktekking - Skifer | D170: Grønn materialguide | E170: NGBC | F170: m2 | G170: 30 | H170: 2.8 | I170: =Utslippsfaktorer2[[#This Row],[kg/FU]]*$H$202 -> 0.00846 | V170: 100
A171: Taktekking | B171: Taktekking - Takbelegg, asfalt/bitumen | D171: Grønn materialguide | E171: NGBC | F171: m2 | G171: 30 | H171: 6 | I171: =Utslippsfaktorer2[[#This Row],[kg/FU]]*$H$202 -> 0.00846 | V171: 100
A172: Taktekking | B172: Taktekking - Takstein, tegl | D172: Grønn materialguide | E172: NGBC | F172: m2 | G172: 30 | H172: 14 | I172: =Utslippsfaktorer2[[#This Row],[kg/FU]]*$H$202 -> 0.00846 | V172: 100
A173: Taktekking | B173: Taktekking - Ubehandlet tre | D173: Grønn materialguide | E173: NGBC | F173: m2 | G173: 30 | H173: 4.3 | I173: =Utslippsfaktorer2[[#This Row],[kg/FU]]*$H$202 -> 0.00846 | V173: 100
A174: Utvendige dekker | B174: Utvendige dekker - Betong (30-50 mm) | D174: Grønn materialguide | E174: NGBC | F174: m2 | G174: 30 | H174: 15 | I174: =Utslippsfaktorer2[[#This Row],[kg/FU]]*$H$202 -> 0.00846 | V174: 100
A175: Utvendige dekker | B175: Utvendige dekker - Gummidekke | D175: Grønn materialguide | E175: NGBC | F175: m2 | G175: 30 | H175: 35 | I175: =Utslippsfaktorer2[[#This Row],[kg/FU]]*$H$202 -> 0.00846 | V175: 100
A176: Utvendige dekker | B176: Utvendige dekker - Kompositt-terrassebord | D176: Grønn materialguide | E176: NGBC | F176: m2 | G176: 30 | H176: 28 | I176: =Utslippsfaktorer2[[#This Row],[kg/FU]]*$H$202 -> 0.00846 | V176: 100
A177: Utvendige dekker | B177: Utvendige dekker - Limte dekker (30 mm) | D177: Grønn materialguide | E177: NGBC | F177: m2 | G177: 30 | H177: 9 | I177: =Utslippsfaktorer2[[#This Row],[kg/FU]]*$H$202 -> 0.00846 | V177: 100
A178: Utvendige dekker | B178: Utvendige dekker - Modifisert trevirke (28 mm) | D178: Grønn materialguide | E178: NGBC | F178: m2 | G178: 30 | H178: 15.5 | I178: =Utslippsfaktorer2[[#This Row],[kg/FU]]*$H$202 -> 0.00846 | V178: 100
A179: Utvendige dekker | B179: Utvendige dekker - Naturstein | D179: Grønn materialguide | E179: NGBC | F179: m2 | G179: 30 | H179: 17 | I179: =Utslippsfaktorer2[[#This Row],[kg/FU]]*$H$202 -> 0.00846 | V179: 100
A180: Utvendige dekker | B180: Utvendige dekker - Ubehandlet trevirke | D180: Grønn materialguide | E180: NGBC | F180: m2 | G180: 30 | H180: 8 | I180: =Utslippsfaktorer2[[#This Row],[kg/FU]]*$H$202 -> 0.00846 | V180: 100
A181: Utvendige dekker | B181: Utvendige dekker - Værbestandig stål (4 mm) | D181: Grønn materialguide | E181: NGBC | F181: m2 | G181: 30 | H181: 78 | I181: =Utslippsfaktorer2[[#This Row],[kg/FU]]*$H$202 -> 0.00846 | V181: 100
A182: Utvendige kledninger | B182: Utvendige kledninger - Aluminiumsplater (4 mm) | D182: Grønn materialguide | E182: NGBC | F182: m2 | G182: 30 | H182: 54 | I182: =Utslippsfaktorer2[[#This Row],[kg/FU]]*$H$202 -> 0.00846 | V182: 100
A183: Utvendige kledninger | B183: Utvendige kledninger - Fibersementplater (6 mm) | D183: Grønn materialguide | E183: NGBC | F183: m2 | G183: 30 | H183: 19 | I183: =Utslippsfaktorer2[[#This Row],[kg/FU]]*$H$202 -> 0.00846 | V183: 100
A184: Utvendige kledninger | B184: Utvendige kledninger - Glass (4-12 mm) | D184: Grønn materialguide | E184: NGBC | F184: m2 | G184: 30 | H184: 31.3 | I184: =Utslippsfaktorer2[[#This Row],[kg/FU]]*$H$202 -> 0.00846 | V184: 100
A185: Utvendige kledninger | B185: Utvendige kledninger - Keramiske fasadesystemer | D185: Grønn materialguide | E185: NGBC | F185: m2 | G185: 30 | H185: 40.2 | I185: =Utslippsfaktorer2[[#This Row],[kg/FU]]*$H$202 -> 0.00846 | V185: 100
A186: Utvendige kledninger | B186: Utvendige kledninger - Keramiske flis (8 mm) | D186: Grønn materialguide | E186: NGBC | F186: m2 | G186: 30 | H186: 17.1 | I186: =Utslippsfaktorer2[[#This Row],[kg/FU]]*$H$202 -> 0.00846 | V186: 100
A187: Utvendige kledninger | B187: Utvendige kledninger - Kobberplater (< 1 mm) | D187: Grønn materialguide | E187: NGBC | F187: m2 | G187: 30 | H187: 11.6 | I187: =Utslippsfaktorer2[[#This Row],[kg/FU]]*$H$202 -> 0.00846 | V187: 100
A188: Utvendige kledninger | B188: Utvendige kledninger - Komposittplater | D188: Grønn materialguide | E188: NGBC | F188: m2 | G188: 30 | H188: 34.1 | I188: =Utslippsfaktorer2[[#This Row],[kg/FU]]*$H$202 -> 0.00846 | V188: 100
A189: Utvendige kledninger | B189: Utvendige kledninger - Modifisert trevirke (22 mm) | D189: Grønn materialguide | E189: NGBC | F189: m2 | G189: 30 | H189: 11.6 | I189: =Utslippsfaktorer2[[#This Row],[kg/FU]]*$H$202 -> 0.00846 | V189: 100
A190: Utvendige kledninger | B190: Utvendige kledninger - Naturstein | D190: Grønn materialguide | E190: NGBC | F190: m2 | G190: 30 | H190: 6 | I190: =Utslippsfaktorer2[[#This Row],[kg/FU]]*$H$202 -> 0.00846 | V190: 100
A191: Utvendige kledninger | B191: Utvendige kledninger - Polykarbonat (6 mm) | D191: Grønn materialguide | E191: NGBC | F191: m2 | G191: 30 | H191: 32.9 | I191: =Utslippsfaktorer2[[#This Row],[kg/FU]]*$H$202 -> 0.00846 | V191: 100
A192: Utvendige kledninger | B192: Utvendige kledninger - Puss-systemer | D192: Grønn materialguide | E192: NGBC | F192: m2 | G192: 30 | H192: 12.5 | I192: =Utslippsfaktorer2[[#This Row],[kg/FU]]*$H$202 -> 0.00846 | V192: 100
A193: Utvendige kledninger | B193: Utvendige kledninger - Sink | D193: Grønn materialguide | E193: NGBC | F193: m2 | G193: 30 | H193: 24.4 | I193: =Utslippsfaktorer2[[#This Row],[kg/FU]]*$H$202 -> 0.00846 | V193: 100
A194: Utvendige kledninger | B194: Utvendige kledninger - Teglstein | D194: Grønn materialguide | E194: NGBC | F194: m2 | G194: 30 | H194: 32.5 | I194: =Utslippsfaktorer2[[#This Row],[kg/FU]]*$H$202 -> 0.00846 | V194: 100
A195: Utvendige kledninger | B195: Utvendige kledninger - Ubehandlet trevirke | D195: Grønn materialguide | E195: NGBC | F195: m2 | G195: 30 | H195: 5.2 | I195: =Utslippsfaktorer2[[#This Row],[kg/FU]]*$H$202 -> 0.00846 | V195: 100
A196: Vegutstyr | B196: Gang-/sykkelvegrekkverk i stål | F196: m | G196: 30 | H196: 45 | I196: =Utslippsfaktorer2[[#This Row],[kg/FU]]*$H$202 -> 0.00846 | V196: 100
A197: Vegutstyr | B197: Standard vegbelysning | F197: stk | G197: 30 | H197: 35.09130175 | I197: =Utslippsfaktorer2[[#This Row],[kg/FU]]*$H$202 -> 0.00846 | V197: 100
A198: Vegutstyr | B198: Topprekkverk | F198: m | G198: 30 | H198: 13.92548087 | I198: =Utslippsfaktorer2[[#This Row],[kg/FU]]*$H$202 -> 0.00846 | V198: 100
A199: Vegutstyr | B199: Vegskilt | F199: stk | G199: 30 | H199: 69.90760761 | I199: =Utslippsfaktorer2[[#This Row],[kg/FU]]*$H$202 -> 0.00846 | V199: 100
A200: Transport | B200: Lastebil 16-32 tonn, EURO 5, diesel | D200: lca.no | F200: kgkm | H200: =0.1626/1000 -> 0.0001626
A201: Transport | B201: Lastebil 16-32 tonn, EURO 5, biodiesel, raps (FAME) | D201: lca.no | F201: kgkm | H201: =0.133/1000 -> 0.000133
... 2 more rows

Sheet Input_rullegardin (hidden)
A1: Categories | B1: dynamic: | E1: Utslippsnivå for A1-A3 og B4 | J1: Tabel 2. Brutto energibehov [kWh/(m2 BRA·år)]. Kilde for Lite energieffektivt og TEK10-TEK17: PROFet1 (SINTEF). Kilder for TEK17: TEK17 | Q1: Database building impact (not scaled down for different RSP)
A2: (Velg kategori) | B2: =_xlfn.UNIQUE(#REF!) ->  | C2: Velg bygningskategoriene: | E2: Referansenivå
A3: Annet | C3: Småhus | E3: Klimavennlige materialer | K3: Energieffektivitetsnivå3 | L3: Romoppvarming4 | M3: Oppvarming av varmt tappevann5 | N3: Elspesifikt6 | O3: Totalt | Q3: Used in Skisseprosjekt | T3: A1-A3 | U3: A4 | V3: B4 | W3: Kilde
A4: Asfalt | C4: Boligblokk | E4: Ombruk | I4: =J4&" "&K4 -> Småhus Lite energieffektivt | J4: Småhus | K4: Lite energieffektivt | L4: 141 | M4: 16 | N4: 38 | O4: 195 | Q4: Referansenivå | R4: Småhus | S4: =_xlfn.CONCAT(Q4," ",R4) -> Referansenivå Småhus | T4: 2.4 | U4: 0.5 | V4: 1.66 | W4: ENOVA / AV rapport
A5: Belysning | C5: Kontorbygning | E5: Rehabilitering | I5: Småhus TEK10-TEK17 | J5: Småhus | K5: TEK10-TEK17 | L5: 76 | M5: 16 | N5: 38 | O5: 130 | Q5: Referansenivå | R5: Boligblokk | S5: Referansenivå Boligblokk | T5: 5.38 | U5: 1.04 | V5: 1.62 | W5: ENOVA / AV rapport
A6: Betong | C6: Forretningsbygning | I6: Småhus TEK17 | J6: Småhus | K6: TEK17 | L6: 57.95185185 | M6: 25 | N6: 28.9 | O6: 111.8518519 | Q6: Referansenivå | R6: Kontorbygning | S6: Referansenivå Kontorbygning | T6: 4.36 | U6: 0.67 | V6: 1.74 | W6: ENOVA / AV rapport
A7: Binder | C7: Hotell | I7: Boligblokk Lite energieffektivt | J7: Boligblokk | K7: Lite energieffektivt | L7: 96 | M7: 31 | N7: 39 | O7: 166 | Q7: Referansenivå | R7: Forretningsbygning | S7: Referansenivå Forretningsbygning | T7: 3.76 | U7: 0.69 | V7: 1.52 | W7: ENOVA / AV rapport
A8: Bitumen | C8: Barnehage | I8: Boligblokk TEK10-TEK17 | J8: Boligblokk | K8: TEK10-TEK17 | L8: 52 | M8: 31 | N8: 39 | O8: 122 | Q8: Referansenivå | R8: Hotell | S8: Referansenivå Hotell | T8: NA | U8: NA | V8: NA
A9: Bygningsplater | C9: Skolebygning | I9: Boligblokk TEK17 | J9: Boligblokk | K9: TEK17 | L9: 41.1 | M9: 25 | N9: 28.9 | O9: 95 | Q9: Referansenivå | R9: Barnehage | S9: Referansenivå Barnehage | T9: 3.87 | U9: 0.09 | V9: 0.09 | W9: ZEN rapport 24, Kolstad barnehage
A10: Drivstoff | C10: Universitet | I10: Kontorbygning Lite energieffektivt | J10: Kontorbygning | K10: Lite energieffektivt | L10: 84 | M10: 12 | N10: 179 | O10: 275 | Q10: Referansenivå | R10: Skolebygning | S10: Referansenivå Skolebygning | T10: 4.38 | U10: 0.69 | V10: 1.29 | W10: ENOVA / AV rapport
A11: Gulvbelegg | C11: Idrettsbygning | I11: Kontorbygning TEK10-TEK17 | J11: Kontorbygning | K11: TEK10-TEK17 | L11: 49 | M11: 12 | N11: 128 | O11: 189 | Q11: Referansenivå | R11: Universitet | S11: Referansenivå Universitet | T11: 2.25 | U11: 0.05 | V11: 0.72 | W11: ZEN rapport 24, based on average Ui Agder, Reference
A12: Isolasjon | C12: Sykehjem | I12: Kontorbygning TEK17 | J12: Kontorbygning | K12: TEK17 | L12: 78.7 | M12: 5 | N12: 31.3 | O12: 115 | Q12: Referansenivå | R12: Idrettsbygning | S12: Referansenivå Idrettsbygning | T12: 6.07 | U12: 0.13 | V12: 0.65 | W12: ZEN rapport 24, average from 3 idrettshaller , Reference
A13: Konstruktive materialer | C13: Sykehus | I13: Forretningsbygning Lite energieffektivt | J13: Forretningsbygning | K13: Lite energieffektivt | L13: 103 | M13: 21 | N13: 139 | O13: 263 | Q13: Referansenivå | R13: Sykehjem | S13: Referansenivå Sykehjem | T13: 4.76 | U13: 0.8 | V13: 1.28 | W13: ENOVA / AV rapport
A14: Kummer | I14: Forretningsbygning TEK10-TEK17 | J14: Forretningsbygning | K14: TEK10-TEK17 | L14: 42 | M14: 21 | N14: 139 | O14: 202 | Q14: Referansenivå | R14: Sykehus | S14: Referansenivå Sykehus | T14: NA | U14: NA | V14: NA
A15: Masser | I15: Forretningsbygning TEK17 | J15: Forretningsbygning | K15: TEK17 | L15: 101.9 | M15: 10 | N15: 68.1 | O15: 180 | Q15: Referansenivå | R15: Andre | S15: Referansenivå Andre | T15: NA | U15: NA | V15: NA
A16: Murstein | C16: Energieffektivitetsnivå | I16: Hotell Lite energieffektivt | J16: Hotell | K16: Lite energieffektivt | L16: 100 | M16: 46 | N16: 116 | O16: 262 | Q16: Klimavennlige materialer | R16: Småhus | S16: Klimavennlige materialer Småhus | T16: 1.47 | U16: 0.5 | V16: 1.33 | W16: ENOVA / AV rapport
A17: Rør | C17: Lite energieffektivt | I17: Hotell TEK10-TEK17 | J17: Hotell | K17: TEK10-TEK17 | L17: 51 | M17: 46 | N17: 116 | O17: 213 | Q17: Klimavennlige materialer | R17: Boligblokk | S17: Klimavennlige materialer Boligblokk | T17: 2.61 | U17: 1.04 | V17: 1.18 | W17: ENOVA / AV rapport
A18: Stein | C18: TEK10-TEK17 | I18: Hotell TEK17 | J18: Hotell | K18: TEK17 | L18: 116.5 | M18: 30 | N18: 23.5 | O18: 170 | Q18: Klimavennlige materialer | R18: Kontorbygning | S18: Klimavennlige materialer Kontorbygning | T18: 2.32 | U18: 0.67 | V18: 1.09 | W18: ENOVA / AV rapport
A19: Stål | C19: TEK17 | I19: Barnehage Lite energieffektivt | J19: Barnehage | K19: Lite energieffektivt | L19: 102 | M19: 19 | N19: 75 | O19: 196 | Q19: Klimavennlige materialer | R19: Forretningsbygning | S19: Klimavennlige materialer Forretningsbygning | T19: 2.1 | U19: 0.69 | V19: 1.01 | W19: ENOVA / AV rapport
A20: Taktekking | I20: Barnehage TEK10-TEK17 | J20: Barnehage | K20: TEK10-TEK17 | L20: 64 | M20: 19 | N20: 75 | O20: 158 | Q20: Klimavennlige materialer | R20: Hotell | S20: Klimavennlige materialer Hotell | T20: NA | U20: NA | V20: NA
A21: Utvendige dekker | I21: Barnehage TEK17 | J21: Barnehage | K21: TEK17 | L21: 107 | M21: 10 | N21: 18 | O21: 135 | Q21: Klimavennlige materialer | R21: Barnehage | S21: Klimavennlige materialer Barnehage | T21: 2.07 | U21: 0.12 | V21: 0.13 | W21: ZEN rapport 24, Kolstad barnehage
A22: Utvendige kledninger | I22: Skolebygning Lite energieffektivt | J22: Skolebygning | K22: Lite energieffektivt | L22: 103 | M22: 16 | N22: 61 | O22: 180 | Q22: Klimavennlige materialer | R22: Skolebygning | S22: Klimavennlige materialer Skolebygning | T22: 2.37 | U22: 0.69 | V22: 1.29 | W22: ENOVA / AV rapport
A23: Vegutstyr | I23: Skolebygning TEK10-TEK17 | J23: Skolebygning | K23: TEK10-TEK17 | L23: 48 | M23: 16 | N23: 45 | O23: 109 | Q23: Klimavennlige materialer | R23: Universitet | S23: Klimavennlige materialer Universitet | T23: NA | U23: NA | V23: NA
I24: Skolebygning TEK17 | J24: Skolebygning | K24: TEK17 | L24: 86.3 | M24: 5 | N24: 18.7 | O24: 110 | Q24: Klimavennlige materialer | R24: Idrettsbygning | S24: Klimavennlige materialer Idrettsbygning | T24: 3.71 | U24: 0.16 | V24: 0.58 | W24: ZEN rapport 24, average from 3 idrettshaller , Design
I25: Universitet Lite energieffektivt | J25: Universitet | K25: Lite energieffektivt | L25: 152 | M25: 34 | N25: 179 | O25: 365 | Q25: Klimavennlige materialer | R25: Sykehjem | S25: Klimavennlige materialer Sykehjem | T25: 2.49 | U25: 0.8 | V25: 1.24 | W25: ENOVA / AV rapport
I26: Universitet TEK10-TEK17 | J26: Universitet | K26: TEK10-TEK17 | L26: 65 | M26: 34 | N26: 128 | O26: 227 | Q26: Klimavennlige materialer | R26: Sykehus | S26: Klimavennlige materialer Sykehus | T26: NA | U26: NA | V26: NA
I27: Universitet TEK17 | J27: Universitet | K27: TEK17 | L27: 90.4 | M27: 5 | N27: 29.6 | O27: 125 | Q27: Klimavennlige materialer | R27: Andre | S27: Klimavennlige materialer Andre | T27: NA | U27: NA | V27: NA
I28: Idrettsbygning Lite energieffektivt | J28: Idrettsbygning | K28: Lite energieffektivt | L28: 234 | M28: 11 | N28: 139 | O28: 384 | Q28: Ombruk | R28: Småhus | S28: Ombruk Småhus | T28: 1.14 | U28: 0.43 | V28: 1.33 | W28: ENOVA / AV rapport
I29: Idrettsbygning TEK10-TEK17 | J29: Idrettsbygning | K29: TEK10-TEK17 | L29: 62 | M29: 11 | N29: 139 | O29: 212 | Q29: Ombruk | R29: Boligblokk | S29: Ombruk Boligblokk | T29: 1.82 | U29: 0.61 | V29: 1.18 | W29: ENOVA / AV rapport
I30: Idrettsbygning TEK17 | J30: Idrettsbygning | K30: TEK17 | L30: 117.5 | M30: 10 | N30: 17.5 | O30: 145 | Q30: Ombruk | R30: Kontorbygning | S30: Ombruk Kontorbygning | T30: 1.35 | U30: 0.33 | V30: 1.09 | W30: ENOVA / AV rapport
I31: Sykehjem Lite energieffektivt | J31: Sykehjem | K31: Lite energieffektivt | L31: 142 | M31: 34 | N31: 94 | O31: 270 | Q31: Ombruk | R31: Forretningsbygning | S31: Ombruk Forretningsbygning | T31: 1.31 | U31: 0.36 | V31: 1.01 | W31: ENOVA / AV rapport
I32: Sykehjem TEK10-TEK17 | J32: Sykehjem | K32: TEK10-TEK17 | L32: 76 | M32: 34 | N32: 94 | O32: 204 | Q32: Ombruk | R32: Hotell | S32: Ombruk Hotell | T32: NA | U32: NA | V32: NA
I33: Sykehjem TEK17 | J33: Sykehjem | K33: TEK17 | L33: 138.7 | M33: 10 | N33: 46.3 | O33: 195 | Q33: Ombruk | R33: Barnehage | S33: Ombruk Barnehage | T33: NA | U33: NA | V33: NA
I34: Sykehus Lite energieffektivt | J34: Sykehus | K34: Lite energieffektivt | L34: 179 | M34: 36 | N34: 227 | O34: 442 | Q34: Ombruk | R34: Skolebygning | S34: Ombruk Skolebygning | T34: 1.43 | U34: 0.36 | V34: 1.29 | W34: ENOVA / AV rapport
I35: Sykehus TEK10-TEK17 | J35: Sykehus | K35: TEK10-TEK17 | L35: 179 | M35: 36 | N35: 227 | O35: 442 | Q35: Ombruk | R35: Universitet | S35: Ombruk Universitet | T35: 6.41 | U35: 0.3 | V35: 1.95 | W35: ZEN rapport 24, ZEB Campus Evenstad administrasjonsbygg
I36: Sykehus TEK17 | J36: Sykehus | K36: TEK17 | L36: 134 | M36: 15 | N36: 76 | O36: 225 | Q36: Ombruk | R36: Idrettsbygning | S36: Ombruk Idrettsbygning | T36: NA | U36: NA | V36: NA
I37: =J37&" "&K37 -> Velg bygningskategoriene: Lite energieffektivt | J37: Velg bygningskategoriene: | K37: Lite energieffektivt | L37: =MAX($L$4:$L$36) -> 234 | M37: =MAX($M$4:$M$36) -> 46 | N37: =MAX($N$4:$N$36) -> 227 | O37: =SUM(L37:N37) -> 507 | Q37: Ombruk | R37: Sykehjem | S37: Ombruk Sykehjem | T37: 1.53 | U37: 0.42 | V37: 1.24 | W37: ENOVA / AV rapport
I38: Velg bygningskategoriene: TEK10-TEK17 | J38: Velg bygningskategoriene: | K38: TEK10-TEK17 | L38: =MAX(L8,L5,L11,L14,L17,L20,L23,L26,L29,L32,L35) -> 179 | M38: =MAX($M$4:$M$36) -> 46 | N38: =MAX($N$4:$N$36) -> 227 | O38: 452 | Q38: Ombruk | R38: Sykehus | S38: Ombruk Sykehus | T38: NA | U38: NA | V38: NA
I39: Velg bygningskategoriene: TEK17 | J39: Velg bygningskategoriene: | K39: TEK17 | L39: =MAX(L6,L9,L12,L15,L18,L21,L24,L27,L30,L33,L36) -> 138.7 | M39: 46 | N39: 227 | O39: 411.7 | Q39: Ombruk | R39: Andre | S39: Ombruk Andre | T39: NA | U39: NA | V39: NA
Q40: Rehabilitering | R40: Småhus | S40: Rehabilitering Småhus | T40: 0.82 | U40: 0.31 | V40: 1.33 | W40: ENOVA / AV rapport
Q41: Rehabilitering | R41: Boligblokk | S41: Rehabilitering Boligblokk | T41: 1.25 | U41: 0.42 | V41: 1.18 | W41: ENOVA / AV rapport
